Workbook

Sheet Introduction

Sheet Abbreviations & Assumptions
B1: Capacity Analysis for Planning of Junctions Capacity Analysis for Planning of Junctions
B3: Abbreviation Definitions
B34: General Assumptions
B48: Multimodal Capacity Adjustment Factor Definitions
E59: Mode | J59: Activity Level | M59: Signalized Intersections (Conventional, QR, TD, DLTI, SPI) | Y59: Mini- or Single-lane Roundabout | AE59: Multilane Roundabout | AK59: Other | AO59: Threshold (Adapted from HSM Table 12-26) | AW59: Associated Context Classification Zones
M60: 2-lane Major Street | P60: 4-lane Major Street | S60: 6-lane Major Street | V60: 8-lane Major Street | Y60: 3-leg | AB60: 4-leg | AE60: 3-leg | AH60: 4-leg
E61: Pedestrian | J61: Low | M61: 1 | P61: 1 | S61: 1 | V61: 1 | Y61: 1 | AB61: 1 | AE61: 1 | AH61: 1 | AK61: 1 | AO61: Fewer than 240 pedestrians per day | AW61: Natural, Rural
J63: Medium | M63: 1 | P63: 1 | S63: 0.9 | V63: 0.8 | Y63: 0.99 | AB63: 0.99 | AE63: 0.97 | AH63: 0.95 | AK63: 1 | AO63: 240 to 3,200 pedestrians per day | AW63: Rural Town, Suburban Residential/ Commercial
J65: High | M65: 1 | P65: 1 | S65: 0.9 | V65: 0.8 | Y65: 0.98 | AB65: 0.98 | AE65: 0.93 | AH65: 0.91 | AK65: 1 | AO65: More than 3,200 pedestrians per day | AW65: Urban Center, Urban Core
E67: Bicycle | J67: Low | M67: 1 | P67: 1 | S67: 1 | V67: 1 | Y67: 1 | AB67: 1 | AE67: 1 | AH67: 1 | AK67: 1 | AO67: Fewer than 240 bicycles per day | AW67: Natural, Rural
J69: Medium | M69: 1 | P69: 1 | S69: 0.9 | V69: 0.8 | Y69: 0.99 | AB69: 0.99 | AE69: 0.97 | AH69: 0.95 | AK69: 1 | AO69: 240 to 3,200 bicycles per day | AW69: Rural Town, Suburban Residential/ Commercial
J71: High | M71: 1 | P71: 1 | S71: 0.9 | V71: 0.8 | Y71: 0.98 | AB71: 0.98 | AE71: 0.93 | AH71: 0.91 | AK71: 1 | AO71: More than 3,200 bicycles per day | AW71: Urban Residential, Urban Center, Urban Core
E73: Transit | J73: Low | M73: 1 | P73: 1 | S73: 1 | V73: 1 | Y73: 1 | AB73: 1 | AE73: 1 | AH73: 1 | AK73: 1 | AO73: No transit stops | AW73: Natural, Rural
J75: Medium | M75: 1 | P75: 1 | S75: 1 | V75: 1 | Y75: 1 | AB75: 1 | AE75: 1 | AH75: 1 | AK75: 1 | AO75: A transit stop serving a single route | AW75: Rural Town, Suburban Residential/ Commercial
J77: High | M77: 1 | P77: 1 | S77: 1 | V77: 1 | Y77: 1 | AB77: 1 | AE77: 1 | AH77: 1 | AK77: 1 | AO77: A transit stop serving multiple routes | AW77: Urban Residential, Urban Center, Urban Core

Sheet Changelog
A1: Capacity Analysis for Planning of Junctions Capacity Analysis for Planning of Junctions
A3: Changelog
C7: Date | I7: Description
C9: 2019-06-06 | I9: Fixed issue where equivalent passenger car volumes were not being computed correctly for eastbound left-turns and eastbound right-turns (on tab 1 - Volume Input). Previously, the LT and RT computations for EB were incorrectly linked to the WB truck percentages and growth factors.
C14: 2019-08-16 | I14: Updated labeling of 1x2 and 2x1 roundabouts to more accurately reflect that they represent 1NS x 2EW and 2NS x 1EW, respectively. Additionally, fixed issue where the incorrect major street alternative intersection was being displayed as the exising conditions in the 2 - Base and Alt Sel tab for some 3-leg intersection configurations. Fixed issue where certain intersections were not counted correctly in the Number of Configurations bins in the 4a - Detailed Results Tab.
C21: 2019-08-28 | I21: Updated 5b - Detailed Report tab, Number of Lanes for Interchanges to reflect 3 - Alt Num Lanes Input tab.
C28: 2021-10-06 | I28: Added Signalized and Unsignalized ThruCut intersections for N-S and E-W directions.
C35: 2022-10-13 | I35: Added V/C calculations for second entry of bowtie roundabouts. Replaced MMScoring methodology with MM Pedestrian and Bike Scores. Exclusive Pedestrian Phase input toggle added for Thrucut, Single Point, and QR. Median presence toggle added for TWSC.

Sheet 1 - Volume Input
B1: Capacity Analysis for Planning of Junctions Capacity Analysis for Planning of Junctions
B3: Input Worksheet 1
E8: Project Name: | M8: Cap-X Sample Street
E10: Project Number: | M10: 10000
E12: Location | M12: Tallahassee, FL
E14: Date | M14: 2017 AM
E16: Number of Intersection Legs | M16: 4 | BH16: 3 | BI16: N
BH17: 4 | BI17: S
E18: Major Street Direction | M18: North-South | BG18: North-South | BH18: =IF(Input_MajorStreetDirection="North-South","East-West","North-South") -> East-West | BI18: E
BG19: East-West | BI19: W
E20: Which leg is the minor street? | M20: S
E22: Traffic Volume Demand
K24: Volume (Veh/hr) | AQ24: Percent (%)
K26: U-Turn | S26: Left | AA26: Thru | AI26: Right | AQ26: Heavy Vehicles | AY26: Volume Growth
E32: Eastbound | K32: 0 | S32: 30 | AA32: 200 | AI32: 50 | AQ32: 0.02 | AY32: 0
E34: Westbound | K34: 0 | S34: 30 | AA34: 200 | AI34: 50 | AQ34: 0.02 | AY34: 0
E36: Southbound | K36: 0 | S36: 50 | AA36: 500 | AI36: 200 | AQ36: 0.02 | AY36: 0
E38: Northbound | K38: 0 | S38: 100 | AA38: 500 | AI38: 200 | AQ38: 0.02 | AY38: 0
BH39: C1-Natural
E40: Adjustment Factor | K40: 0.8 | S40: 0.95 | AI40: 0.85 | BH40: C2-Rural
BH41: C2T-Rural Town
E42: Suggested | K42: 0.8 | S42: 0.95 | AI42: 0.85 | BH42: C3R-Suburban Residential
BH43: C3C-Suburban Commercial
E44: Truck to PCE Factor | AI44: Suggested = 2.00 | AU44: 2 | BH44: C4-Urban General
BH45: C5-Urban Center
E46: FDOT Context Zone | W46: C2-Rural | BH46: C6-Urban Core
E48: E-W / Crossing East-West Legs | W48: =IF(Multimodal=1,"Low",IF(Multimodal=2,"Medium","High")) -> Low | AI48: =IF(Multimodal=1,"Low",IF(Multimodal=2,"Medium","High")) -> Low | AU48: =IF(Multimodal=1,"Low",IF(Multimodal=2,"Medium","High")) -> Low
E50: Westbound / Crossing East Leg | W50: =IF(Multimodal=1,"Low",IF(Multimodal=2,"Medium","High")) -> Low | AI50: =IF(Multimodal=1,"Low",IF(Multimodal=2,"Medium","High")) -> Low | AU50: =IF(Multimodal=1,"Low",IF(Multimodal=2,"Medium","High")) -> Low
E52: N-S / Crossing North-South Legs | W52: =IF(Multimodal=1,"Low",IF(Multimodal=2,"Medium","High")) -> Low | AI52: =IF(Multimodal=1,"Low",IF(Multimodal=2,"Medium","High")) -> Low | AU52: =IF(Multimodal=1,"Low",IF(Multimodal=2,"Medium","High")) -> Low
E54: Northbound / Crossing South Leg | W54: =IF(Multimodal=1,"Low",IF(Multimodal=2,"Medium","High")) -> Low | AI54: =IF(Multimodal=1,"Low",IF(Multimodal=2,"Medium","High")) -> Low | AU54: =IF(Multimodal=1,"Low",IF(Multimodal=2,"Medium","High")) -> Low
E56: Critical Lane Volume Threshold | T56: 2-phase signal | AI56: Suggested = 1800 | AU56: 1800
T58: 3-phase signal | AI58: Suggested = 1750 | AU58: 1750
T60: 4-phase signal | AI60: Suggested = 1700 | AU60: 1700
M64: Equivalent Passenger Car Volume | BB64: =IF(W48="Low",1,IF(W48="Medium",2,3)) -> 1 | BC64: =IF(AI48="Low",1,IF(AI48="Medium",2,3)) -> 1 | BG64: =IF(W46=BH40,1,IF(W46=BH39,1,IF(OR(W46=BH44,W46=BH45),3,IF(W46=BH46,3,2)))) -> 1
S66: Volume (Veh/hr) | BB66: =IF(W50="Low",1,IF(W50="Medium",2,3)) -> 1 | BC66: =IF(AI50="Low",1,IF(AI50="Medium",2,3)) -> 1
S68: U-Turn | AA68: Left | AI68: Thru | AQ68: Right | BB68: =IF(W52="Low",1,IF(W52="Medium",2,3)) -> 1 | BC68: =IF(AI52="Low",1,IF(AI52="Medium",2,3)) -> 1
BB70: =IF(W54="Low",1,IF(W54="Medium",2,3)) -> 1 | BC70: =IF(AI54="Low",1,IF(AI54="Medium",2,3)) -> 1
M74: Eastbound | S74: =+ROUND((K32*(1-EB_Truck_Percentage) +K32* EB_Truck_Percentage*Truck_Adjustment_Factor)*(1+EB_Growth_Factor),0) -> 0 | AA74: =+ROUND((S32*(1-EB_Truck_Percentage) +S32* EB_Truck_Percentage*Truck_Adjustment_Factor)*(1+EB_Growth_Factor),0) -> 31 | AI74: =+ROUND((AA32*(1-EB_Truck_Percentage) +AA32* EB_Truck_Percentage*Truck_Adjustment_Factor)*(1+EB_Growth_Factor),0) -> 204 | AQ74: =+ROUND((AI32*(1-EB_Truck_Percentage) +AI32* EB_Truck_Percentage*Truck_Adjustment_Factor)*(1+EB_Growth_Factor),0) -> 51
M76: Westbound | S76: =+ROUND((K34*(1-WB_Truck_Percentage) +K34*WB_Truck_Percentage*Truck_Adjustment_Factor)*(1+WB_Growth_Factor),0) -> 0 | AA76: =+ROUND((S34*(1-WB_Truck_Percentage) +S34* WB_Truck_Percentage*Truck_Adjustment_Factor)*(1+WB_Growth_Factor),0) -> 31 | AI76: =+ROUND((AA34*(1-WB_Truck_Percentage) +AA34* WB_Truck_Percentage*Truck_Adjustment_Factor)*(1+WB_Growth_Factor),0) -> 204 | AQ76: =+ROUND((AI34*(1-WB_Truck_Percentage) +AI34* WB_Truck_Percentage*Truck_Adjustment_Factor)*(1+WB_Growth_Factor),0) -> 51
M78: Southbound | S78: =+ROUND((K36*(1-SB_Truck_Percentage) +K36* SB_Truck_Percentage*Truck_Adjustment_Factor)*(1+SB_Growth_Factor),0) -> 0 | AA78: =+ROUND((S36*(1-SB_Truck_Percentage) +S36* SB_Truck_Percentage*Truck_Adjustment_Factor)*(1+SB_Growth_Factor),0) -> 51 | AI78: =+ROUND((AA36*(1-SB_Truck_Percentage) +AA36* SB_Truck_Percentage*Truck_Adjustment_Factor)*(1+SB_Growth_Factor),0) -> 510 | AQ78: =+ROUND((AI36*(1-SB_Truck_Percentage) +AI36* SB_Truck_Percentage*Truck_Adjustment_Factor)*(1+SB_Growth_Factor),0) -> 204
M80: Northbound | S80: =+ROUND((K38*(1-NB_Truck_Percentage) +K38* NB_Truck_Percentage*Truck_Adjustment_Factor)*(1+NB_Growth_Factor),0) -> 0 | AA80: =+ROUND((S38*(1-NB_Truck_Percentage) +S38* NB_Truck_Percentage*Truck_Adjustment_Factor)*(1+NB_Growth_Factor),0) -> 102 | AI80: =+ROUND((AA38*(1-NB_Truck_Percentage) +AA38* NB_Truck_Percentage*Truck_Adjustment_Factor)*(1+NB_Growth_Factor),0) -> 510 | AQ80: =+ROUND((AI38*(1-NB_Truck_Percentage) +AI38* NB_Truck_Percentage*Truck_Adjustment_Factor)*(1+NB_Growth_Factor),0) -> 204
E85: Notes:
E86: Left-Turn Adjustment Factor | W86: Conversion of left-turning vehicles to equivalent through vehicles
E87: Right-turn Adjustment Factor | W87: Conversion of right-turning vehicles to equivalent through vehicles
E88: U-turn Adjustment Factor | W88: Conversion of U-turning vehicles to equivalent through vehicles
E89: Truck to PCE Factor | W89: 1 truck = X Passenger Car Equivalents
E90: Critical Lane Volume Sum Limit | W90: Saturation Value for Critical Lane Volume Sum at an intersection

Sheet 2 - Base and Alt Sel
A1: Capacity Analysis for Planning of Junctions Capacity Analysis for Planning of Junctions | BL1: Major Str Offset | BN1: =IF(OR($L$14='1 - Volume Input'!$BG$18,$L$14='1 - Volume Input'!$BI$18,$L$14='1 - Volume Input'!$BI$19),0,2) -> 0 | BP1: NB Lanes | BT1: SB Lanes | BX1: EB Lanes | CB1: WB Lanes | CF1: Zone 1 | CH1: Zone 2 | CJ1: Zone 3 | CL1: Zone 4 | CN1: Zone 5 | CP1: Zone 6 | CR1: Overall V/C | CS1: Ped Accom. | CT1: Bike Accom. | CU1: Transit Accom.
A3: Step 2A: Base Conditions Analysis | BL3: Existing Intx List: | BN3: No Lanes | BO3: Outputs | BP3: U | BQ3: L | BR3: T | BS3: R | BT3: U | BU3: L | BV3: T | BW3: R | BX3: U | BY3: L | BZ3: T | CA3: R | CB3: U | CC3: L | CD3: T | CE3: R | CF3: CLV | CG3: VC | CH3: CLV | CI3: VC | CJ3: CLV | CK3: VC | CL3: CLV | CM3: VC | CN3: CLV | CO3: VC | CP3: CLV | CQ3: VC
BL4: ='3 - Alt Num Lanes Input'!E24 -> Traffic Signal | BN4: =24 -> 24 | BO4: =24 -> 24 | BP4: =INDIRECT("'3 - Alt Num Lanes Input'!AA"&$BN4) -> 0 | BQ4: =INDIRECT("'3 - Alt Num Lanes Input'!AC"&$BN4) -> 1 | BR4: =INDIRECT("'3 - Alt Num Lanes Input'!AE"&$BN4) -> 2 | BS4: =INDIRECT("'3 - Alt Num Lanes Input'!AG"&$BN4) -> 1 | BT4: =INDIRECT("'3 - Alt Num Lanes Input'!AI"&$BN4) -> 0 | BU4: =INDIRECT("'3 - Alt Num Lanes Input'!AK"&$BN4) -> 1 | BV4: =INDIRECT("'3 - Alt Num Lanes Input'!AM"&$BN4) -> 2 | BW4: =INDIRECT("'3 - Alt Num Lanes Input'!AO"&$BN4) -> 1 | BX4: =INDIRECT("'3 - Alt Num Lanes Input'!AQ"&$BN4) -> 0 | BY4: =INDIRECT("'3 - Alt Num Lanes Input'!AS"&$BN4) -> 1 | BZ4: =INDIRECT("'3 - Alt Num Lanes Input'!AU"&$BN4) -> 2 | CA4: =INDIRECT("'3 - Alt Num Lanes Input'!AW"&$BN4) -> 1 | CB4: =INDIRECT("'3 - Alt Num Lanes Input'!AY"&$BN4) -> 0 | CC4: =INDIRECT("'3 - Alt Num Lanes Input'!BA"&$BN4) -> 1 | CD4: =INDIRECT("'3 - Alt Num Lanes Input'!BC"&$BN4) -> 2 | CE4: =INDIRECT("'3 - Alt Num Lanes Input'!BE"&$BN4) -> 1 | CF4: =INDIRECT("'4a - Detailed Results'!AD"&$BO4) -> 0 | CG4: =INDIRECT("'4a - Detailed Results'!AG"&$BO4) -> 0 | CH4: =INDIRECT("'4a - Detailed Results'!AJ"&$BO4) -> 0 | CI4: =INDIRECT("'4a - Detailed Results'!AM"&$BO4) -> 0 | CJ4: =INDIRECT("'4a - Detailed Results'!AP"&$BO4) -> 0 | CK4: =INDIRECT("'4a - Detailed Results'!AS"&$BO4) -> 0 | CL4: =INDIRECT("'4a - Detailed Results'!AV"&$BO4) -> 0 | CM4: =INDIRECT("'4a - Detailed Results'!AY"&$BO4) -> 0 | CN4: =INDIRECT("'4a - Detailed Results'!BB"&$BO4) -> 502.6509695 | CO4: =INDIRECT("'4a - Detailed Results'!BE"&$BO4) -> 0.3 | CP4: 0 | CQ4: 0 | CR4: =INDIRECT("'4a - Detailed Results'!BH"&$BO4) -> 0.3 | CS4: =INDIRECT("'4a - Detailed Results'!BO"&$BO4) -> Enter Major/Minor Street Speeds | CT4: =INDIRECT("'4a - Detailed Results'!BS"&$BO4) -> Check Speed Limit and/or Lane Input | CU4: =INDIRECT("'4a - Detailed Results'!BW"&$BO4) -> 0
BL5: ='3 - Alt Num Lanes Input'!E26 -> Two-Way Stop Control | BN5: =26 +$BN$1 -> 26 | BO5: =26 +$BN$1 -> 26 | BP5: =INDIRECT("'3 - Alt Num Lanes Input'!AA"&$BN5) -> 0 | BQ5: =INDIRECT("'3 - Alt Num Lanes Input'!AC"&$BN5) -> 1 | BR5: =INDIRECT("'3 - Alt Num Lanes Input'!AE"&$BN5) -> 2 | BS5: =INDIRECT("'3 - Alt Num Lanes Input'!AG"&$BN5) -> 1 | BT5: =INDIRECT("'3 - Alt Num Lanes Input'!AI"&$BN5) -> 0 | BU5: =INDIRECT("'3 - Alt Num Lanes Input'!AK"&$BN5) -> 1 | BV5: =INDIRECT("'3 - Alt Num Lanes Input'!AM"&$BN5) -> 2 | BW5: =INDIRECT("'3 - Alt Num Lanes Input'!AO"&$BN5) -> 1 | BX5: =INDIRECT("'3 - Alt Num Lanes Input'!AQ"&$BN5) -> 0 | BY5: =INDIRECT("'3 - Alt Num Lanes Input'!AS"&$BN5) -> 1 | BZ5: =INDIRECT("'3 - Alt Num Lanes Input'!AU"&$BN5) -> 2 | CA5: =INDIRECT("'3 - Alt Num Lanes Input'!AW"&$BN5) -> 1 | CB5: =INDIRECT("'3 - Alt Num Lanes Input'!AY"&$BN5) -> 0 | CC5: =INDIRECT("'3 - Alt Num Lanes Input'!BA"&$BN5) -> 1 | CD5: =INDIRECT("'3 - Alt Num Lanes Input'!BC"&$BN5) -> 2 | CE5: =INDIRECT("'3 - Alt Num Lanes Input'!BE"&$BN5) -> 1 | CF5: =INDIRECT("'4a - Detailed Results'!AD"&$BO5) -> 0 | CG5: =INDIRECT("'4a - Detailed Results'!AG"&$BO5) -> 0 | CH5: =INDIRECT("'4a - Detailed Results'!AJ"&$BO5) -> 0 | CI5: =INDIRECT("'4a - Detailed Results'!AM"&$BO5) -> 0 | CJ5: =INDIRECT("'4a - Detailed Results'!AP"&$BO5) -> 0 | CK5: =INDIRECT("'4a - Detailed Results'!AS"&$BO5) -> 0 | CL5: =INDIRECT("'4a - Detailed Results'!AV"&$BO5) -> 0 | CM5: =INDIRECT("'4a - Detailed Results'!AY"&$BO5) -> 0 | CN5: =INDIRECT("'4a - Detailed Results'!BB"&$BO5) -> -- | CO5: =INDIRECT("'4a - Detailed Results'!BE"&$BO5) -> 4.736769316 | CP5: 0 | CQ5: 0 | CR5: =INDIRECT("'4a - Detailed Results'!BH"&$BO5) -> 4.736769316 | CS5: =INDIRECT("'4a - Detailed Results'!BO"&$BO5) -> Enter Major/Minor Street Speeds | CT5: =INDIRECT("'4a - Detailed Results'!BS"&$BO5) -> Check Speed Limit and/or Lane Input | CU5: =INDIRECT("'4a - Detailed Results'!BW"&$BO5) -> 0
D6: Project Name: | L6: ='1 - Volume Input'!M8 -> Cap-X Sample Street | BL6: ='3 - Alt Num Lanes Input'!E30 -> All-Way Stop Control | BN6: =30 -> 30 | BO6: =30 -> 30 | BP6: 0 | BQ6: 1 | BR6: 2 | BS6: 1 | BT6: 0 | BU6: 1 | BV6: 2 | BW6: 1 | BX6: 0 | BY6: 1 | BZ6: 2 | CA6: 1 | CB6: 0 | CC6: 1 | CD6: 2 | CE6: 1 | CF6: 0 | CG6: 0 | CH6: 0 | CI6: 0 | CJ6: 0 | CK6: 0 | CL6: 0 | CM6: 0 | CN6: 2153 | CO6: 1.2 | CP6: 0 | CQ6: 0 | CR6: 1.2 | CS6: Enter Major/Minor Street Speeds | CT6: Check Speed Limit and/or Lane Input | CU6: 0
BL7: 1x1 Roundabout | BN7: =-1 -> -1 | BO7: 101 | BP7: -- | BQ7: -- | BR7: -- | BS7: -- | BT7: -- | BU7: -- | BV7: -- | BW7: -- | BX7: -- | BY7: -- | BZ7: -- | CA7: -- | CB7: -- | CC7: -- | CD7: -- | CE7: -- | CF7: =INDIRECT("'4a - Detailed Results'!L"&$BO7) -> 0.7817479192 | CG7: =INDIRECT("'4a - Detailed Results'!P"&$BO7) -> 0 | CH7: =INDIRECT("'4a - Detailed Results'!T"&$BO7) -> 0 | CI7: =INDIRECT("'4a - Detailed Results'!X"&$BO7) -> 0.3790803969 | CJ7: =INDIRECT("'4a - Detailed Results'!AB"&$BO7) -> 0 | CK7: =INDIRECT("'4a - Detailed Results'!AF"&$BO7) -> 0 | CL7: =INDIRECT("'4a - Detailed Results'!AJ"&$BO7) -> 0.7915957587 | CM7: =INDIRECT("'4a - Detailed Results'!AN"&$BO7) -> 0 | CN7: =INDIRECT("'4a - Detailed Results'!AR"&$BO7) -> 0 | CO7: =INDIRECT("'4a - Detailed Results'!AV"&$BO7) -> 0.3993220809 | CP7: =INDIRECT("'4a - Detailed Results'!AZ"&$BO7) -> 0 | CQ7: =INDIRECT("'4a - Detailed Results'!BD"&$BO7) -> 0 | CR7: 0.7915957587 | CS7: 5.167708465 | CU7: Poor
D8: Project Number: | L8: ='1 - Volume Input'!M10 -> 10000 | BL8: 1x2 Roundabout | BN8: -1 | BO8: 103 | BP8: -- | BQ8: -- | BR8: -- | BS8: -- | BT8: -- | BU8: -- | BV8: -- | BW8: -- | BX8: -- | BY8: -- | BZ8: -- | CA8: -- | CB8: -- | CC8: -- | CD8: -- | CE8: -- | CF8: =INDIRECT("'4a - Detailed Results'!L"&$BO8) -> 0.7174253943 | CG8: =INDIRECT("'4a - Detailed Results'!P"&$BO8) -> 0 | CH8: =INDIRECT("'4a - Detailed Results'!T"&$BO8) -> 0 | CI8: =INDIRECT("'4a - Detailed Results'!X"&$BO8) -> 0.1716580873 | CJ8: =INDIRECT("'4a - Detailed Results'!AB"&$BO8) -> 0.176559277 | CK8: =INDIRECT("'4a - Detailed Results'!AF"&$BO8) -> 0 | CL8: =INDIRECT("'4a - Detailed Results'!AJ"&$BO8) -> 0.7327887663 | CM8: =INDIRECT("'4a - Detailed Results'!AN"&$BO8) -> 0 | CN8: =INDIRECT("'4a - Detailed Results'!AR"&$BO8) -> 0 | CO8: =INDIRECT("'4a - Detailed Results'!AV"&$BO8) -> 0.1799042265 | CP8: =INDIRECT("'4a - Detailed Results'!AZ"&$BO8) -> 0.1843814421 | CQ8: =INDIRECT("'4a - Detailed Results'!BD"&$BO8) -> 0 | CR8: 0.7327887663 | CS8: 4.864658511 | CU8: Poor
BL9: 2x2 Roundabout | BN9: -1 | BO9: 107 | BP9: -- | BQ9: -- | BR9: -- | BS9: -- | BT9: -- | BU9: -- | BV9: -- | BW9: -- | BX9: -- | BY9: -- | BZ9: -- | CA9: -- | CB9: -- | CC9: -- | CD9: -- | CE9: -- | CF9: 0.3631400807 | CG9: 0.380235459 | CH9: 0 | CI9: 0.1799042265 | CJ9: 0.1843814421 | CK9: 0 | CL9: 0.3695947659 | CM9: 0.3883780461 | CN9: 0 | CO9: 0.1716580873 | CP9: 0.176559277 | CQ9: 0 | CR9: 0.3883780461 | CS9: 4.566756706 | CU9: Poor
D10: Location: | L10: ='1 - Volume Input'!M12 -> Tallahassee, FL | BL10: Traditional Diamond | BN10: =97+(2-$BN$1) -> 99 | BO10: =118 +(2-$BN$1) -> 120 | BP10: 0 | BQ10: 1 | BR10: 2 | BS10: 1 | BT10: 0 | BU10: 1 | BV10: 2 | BW10: 1 | BX10: 0 | BY10: 1 | BZ10: 2 | CA10: 1 | CB10: 0 | CC10: 1 | CD10: 2 | CE10: 1 | CF10: =INDIRECT("'4a - Detailed Results'!X"&$BO10) -> 0 | CG10: =INDIRECT("'4a - Detailed Results'!AA"&$BO10) -> 0 | CH10: =INDIRECT("'4a - Detailed Results'!AD"&$BO10) -> 0 | CI10: =INDIRECT("'4a - Detailed Results'!AG"&$BO10) -> 0 | CJ10: =INDIRECT("'4a - Detailed Results'!AJ"&$BO10) -> 503.2894737 | CK10: =INDIRECT("'4a - Detailed Results'!AM"&$BO10) -> 0.29 | CL10: =INDIRECT("'4a - Detailed Results'!AP"&$BO10) -> 454.0526316 | CM10: =INDIRECT("'4a - Detailed Results'!AS"&$BO10) -> 0.26 | CN10: =INDIRECT("'4a - Detailed Results'!AV"&$BO10) -> 0 | CO10: =INDIRECT("'4a - Detailed Results'!AY"&$BO10) -> 0 | CP10: =INDIRECT("'4a - Detailed Results'!BB"&$BO10) -> 0 | CQ10: =INDIRECT("'4a - Detailed Results'!BE"&$BO10) -> 0 | CR10: 0.29 | CS10: 5.722726648 | CT10: Check Speed Limit and/or Lane Input | CU10: Poor
BL11: Partial Cloverleaf A | BN11: =101 +(2-$BN$1) -> 103 | BO11: =122 +(2-$BN$1) -> 124 | BP11: 0 | BQ11: 1 | BR11: 0 | BS11: 1 | BT11: 0 | BU11: 1 | BV11: 0 | BW11: 1 | BX11: 0 | BY11: 0 | BZ11: 2 | CA11: 0 | CB11: 0 | CC11: 0 | CD11: 2 | CE11: 0 | CF11: =INDIRECT("'4a - Detailed Results'!X"&$BO11) -> 0 | CG11: =INDIRECT("'4a - Detailed Results'!AA"&$BO11) -> 0 | CH11: =INDIRECT("'4a - Detailed Results'!AD"&$BO11) -> 0 | CI11: =INDIRECT("'4a - Detailed Results'!AG"&$BO11) -> 0 | CJ11: =INDIRECT("'4a - Detailed Results'!AJ"&$BO11) -> 171.1842105 | CK11: =INDIRECT("'4a - Detailed Results'!AM"&$BO11) -> 0.1 | CL11: =INDIRECT("'4a - Detailed Results'!AP"&$BO11) -> 224.8684211 | CM11: =INDIRECT("'4a - Detailed Results'!AS"&$BO11) -> 0.12 | CN11: =INDIRECT("'4a - Detailed Results'!AV"&$BO11) -> 0 | CO11: =INDIRECT("'4a - Detailed Results'!AY"&$BO11) -> 0 | CP11: =INDIRECT("'4a - Detailed Results'!BB"&$BO11) -> 0 | CQ11: =INDIRECT("'4a - Detailed Results'!BE"&$BO11) -> 0 | CR11: 0.12 | CS11: 3.731862526 | CT11: Check Speed Limit and/or Lane Input | CU11: Poor
D12: Date: | L12: ='1 - Volume Input'!M14 -> 2017 AM | BL12: Partial Cloverleaf B | BN12: =105 +(2-$BN$1) -> 107 | BO12: =126 +(2-$BN$1) -> 128 | BP12: 0 | BQ12: 1 | BR12: 0 | BS12: 1 | BT12: 0 | BU12: 1 | BV12: 0 | BW12: 1 | BX12: 0 | BY12: 1 | BZ12: 2 | CA12: 1 | CB12: 0 | CC12: 1 | CD12: 2 | CE12: 1 | CF12: 0 | CG12: 0 | CH12: 0 | CI12: 0 | CJ12: 165.6315789 | CK12: 0.09 | CL12: 150.1315789 | CM12: 0.08 | CN12: 0 | CO12: 0 | CP12: 0 | CQ12: 0 | CR12: 0.09 | CS12: 3.521148923 | CT12: Check Speed Limit and/or Lane Input | CU12: Poor
BL13: *Will likely want note that existing lanes needs to be configured in step 3
D14: =IF(Input_NumLegs = 3,'1 - Volume Input'!E20, '1 - Volume Input'!E18) -> Major Street Direction | L14: =IF(Input_NumLegs = 3, Input_MinorStreetLeg, '1 - Volume Input'!M18) -> North-South
D17: Existing Intersection Configuration | AH17: Two-Way Stop Control
D20: Number of Lanes for Existing Configuration (Can be edited in "3- Alt Num Lanes Input" as needed)
D22: TYPE OF INTERSECTION | U22: Sheet | AA22: Northbound | AI22: Southbound | AQ22: Eastbound | AY22: Westbound
AA24: U | AC24: L | AE24: T | AG24: R | AI24: U | AK24: L | AM24: T | AO24: R | AQ24: U | AS24: L | AU24: T | AW24: R | AY24: U | BA24: L | BC24: T | BE24: R
D26: =AH17 -> Two-Way Stop Control | U26: =IF(VLOOKUP(AH17,$BL$4:$BO$12,3,FALSE)>0,INDIRECT("'3 - Alt Num Lanes Input'!V"&VLOOKUP(AH17,$BL$4:$BO$12,3,FALSE)),INDIRECT("'4a - Detailed Results'!E"&VLOOKUP(AH17,$BL$4:$BO$12,4,FALSE))) -> N-S | AC26: =VLOOKUP($AH$17,$BL$4:$CE$12,6,FALSE) -> 1 | AE26: =VLOOKUP($AH$17,$BL$4:$CE$12,7,FALSE) -> 2 | AG26: =VLOOKUP($AH$17,$BL$4:$CE$12,8,FALSE) -> 1 | AK26: =VLOOKUP($AH$17,$BL$4:$CE$12,10,FALSE) -> 1 | AM26: =VLOOKUP($AH$17,$BL$4:$CE$12,11,FALSE) -> 2 | AO26: =VLOOKUP($AH$17,$BL$4:$CE$12,12,FALSE) -> 1 | AS26: =VLOOKUP($AH$17,$BL$4:$CE$12,14,FALSE) -> 1 | AU26: =VLOOKUP($AH$17,$BL$4:$CE$12,15,FALSE) -> 2 | AW26: =VLOOKUP($AH$17,$BL$4:$CE$12,16,FALSE) -> 1 | BA26: =VLOOKUP($AH$17,$BL$4:$CE$12,18,FALSE) -> 1 | BC26: =VLOOKUP($AH$17,$BL$4:$CE$12,19,FALSE) -> 2 | BE26: =VLOOKUP($AH$17,$BL$4:$CE$12,20,FALSE) -> 1
D29: Results for Existing Configuration
D31: TYPE OF INTERSECTION | Q31: Sheet | W31: =IF($C$35=1,'4a - Detailed Results'!AD20,IF($C$35=2,'4a - Detailed Results'!L93,'4a - Detailed Results'!X114)) -> Zone 1 (North) | AC31: =IF($C$35=1,'4a - Detailed Results'!AJ20,IF($C$35=2,'4a - Detailed Results'!X93,'4a - Detailed Results'!AD114)) -> Zone 2 (South) | AI31: =IF($C$35=1,'4a - Detailed Results'!AP20,IF($C$35=2,'4a - Detailed Results'!AJ93,'4a - Detailed Results'!AJ114)) -> Zone 3 (East) | AO31: =IF($C$35=1,'4a - Detailed Results'!AV20,IF($C$35=2,'4a - Detailed Results'!AV93,'4a - Detailed Results'!AP114)) -> Zone 4 (West) | AU31: =IF($C$35=1,'4a - Detailed Results'!BB20,IF($C$35=2,"",'4a - Detailed Results'!AV114)) -> Zone 5 (Center) | BA31: =IF($C$35=1,"",IF($C$35=2,"",'4a - Detailed Results'!BB114)) -> 
W33: =IF(W31<>"",IF($C$35=2,"V/C","CLV"),"") -> CLV | Z33: =IF(W31<>"","V/C","") -> V/C | AC33: =IF(AC31<>"",IF($C$35=2,"V/C","CLV"),"") -> CLV | AF33: =IF(AC31<>"","V/C","") -> V/C | AI33: =IF(AI31<>"",IF($C$35=2,"V/C","CLV"),"") -> CLV | AL33: =IF(AI31<>"","V/C","") -> V/C | AO33: =IF(AO31<>"",IF($C$35=2,"V/C","CLV"),"") -> CLV | AR33: =IF(AO31<>"","V/C","") -> V/C | AU33: =IF(AU31<>"","CLV","") -> CLV | AX33: =IF(AU31<>"","V/C","") -> V/C | BA33: =IF(BA31<>"","CLV","") ->  | BD33: =IF(BA31<>"","V/C","") -> 
C35: =IF(VLOOKUP(AH17,$BL$4:$BO$12,3,FALSE)<0,2,IF(VLOOKUP(AH17,$BL$4:$BO$12,3,FALSE)>80,3,1)) -> 1 | D35: =AH17 -> Two-Way Stop Control | Q35: =IF(VLOOKUP(AH17,$BL$4:$BO$12,3,FALSE)>0,INDIRECT("'3 - Alt Num Lanes Input'!V"&VLOOKUP(AH17,$BL$4:$BO$12,3,FALSE)),INDIRECT("'4a - Detailed Results'!E"&VLOOKUP(AH17,$BL$4:$BO$12,4,FALSE))) -> N-S | W35: =VLOOKUP($AH$17,$BL$4:$CQ$12,21,FALSE) -> 0 | Z35: =VLOOKUP($AH$17,$BL$4:$CQ$12,22,FALSE) -> 0 | AC35: =IF($C$35<>2,VLOOKUP($AH$17,$BL$4:$CQ$12,23,FALSE),VLOOKUP($AH$17,$BL$4:$CQ$12,24,FALSE)) -> 0 | AF35: =IF($C$35<>2,VLOOKUP($AH$17,$BL$4:$CQ$12,24,FALSE),VLOOKUP($AH$17,$BL$4:$CQ$12,25,FALSE)) -> 0 | AI35: =IF($C$35<>2,VLOOKUP($AH$17,$BL$4:$CQ$12,25,FALSE),VLOOKUP($AH$17,$BL$4:$CQ$12,27,FALSE)) -> 0 | AL35: =IF($C$35<>2,VLOOKUP($AH$17,$BL$4:$CQ$12,26,FALSE),VLOOKUP($AH$17,$BL$4:$CQ$12,28,FALSE)) -> 0 | AO35: =IF($C$35<>2,VLOOKUP($AH$17,$BL$4:$CQ$12,27,FALSE),VLOOKUP($AH$17,$BL$4:$CQ$12,30,FALSE)) -> 0 | AR35: =IF($C$35<>2,VLOOKUP($AH$17,$BL$4:$CQ$12,28,FALSE),VLOOKUP($AH$17,$BL$4:$CQ$12,31,FALSE)) -> 0 | AU35: =IF($C$35<>2,VLOOKUP($AH$17,$BL$4:$CQ$12,29,FALSE),0) -> -- | AX35: =IF(OR(AND(Input_MajorStreetDirection="North-South",Result_TWSC_NS_VC_Z5=">10"),AND(Input_MajorStreetDirection="East-West",'TWSC E-W'!AM22=">10")),">10",IF($C$35<>2,VLOOKUP($AH$17,$BL$4:$CQ$12,30,FALSE),0)) -> 4.736769316 | BA35: =IF($C$35<>2,VLOOKUP($AH$17,$BL$4:$CQ$12,31,FALSE),0) -> 0 | BD35: =IF($C$35<>2,VLOOKUP($AH$17,$BL$4:$CQ$12,32,FALSE),0) -> 0
D38: Existing Configuration Results
D40: Overall v/c Ratio | J40: =VLOOKUP($AH$17,$BL$4:$CU$12,33,FALSE) -> 4.736769316 | Q40: Pedestrian Accommodation | AG40: =VLOOKUP($AH$17,$BL$4:$CU$12,34,FALSE) -> Enter Major/Minor Street Speeds | AL40: Bicycle Accommodation | BB40: =VLOOKUP($AH$17,$BL$4:$CU$12,35,FALSE) -> Check Speed Limit and/or Lane Input
A43: Step 2B: Alternative Selection
BG45: Yes
D46: Rankings Inclusion | AH46: Yes/No | AN46: Comment | BG46: No
C47: =IF(AH47=$BG$45,TRUE,FALSE) -> TRUE | D47: At-Grade Non-Roundabout Intersections? | AH47: Yes
C48: =IF(AH48=$BG$45,TRUE,FALSE) -> FALSE | D48: ='3 - Alt Num Lanes Input'!E24 -> Traffic Signal | AH48: No
C49: FALSE | D49: ='3 - Alt Num Lanes Input'!E26 -> Two-Way Stop Control | AH49: No
C50: FALSE | D50: ='3 - Alt Num Lanes Input'!E30 -> All-Way Stop Control | AH50: No
C51: FALSE | D51: Continuous Green T | AH51: No
C52: FALSE | D52: Quadrant Roadway | AB52: S-W | AH52: No
C53: FALSE | AB53: N-E | AH53: No
C54: FALSE | AB54: S-E | AH54: No
C55: FALSE | AB55: N-W | AH55: No
C56: FALSE | D56: Partial Displaced Left Turn | AH56: No
C57: FALSE | D57: Displaced Left Turn | AH57: No
C58: FALSE | D58: ='3 - Alt Num Lanes Input'!E54 -> Signalized Restricted Crossing U-Turn | AH58: No
C59: FALSE | D59: ='3 - Alt Num Lanes Input'!E58 -> Unsignalized Restricted Crossing U-Turn | AH59: No
C60: FALSE | D60: Median U-Turn | AH60: No
C61: FALSE | D61: Partial Median U-Turn | AH61: No
C62: FALSE | D62: Bowtie | AH62: No
C63: =IF(AH63=$BG$45,TRUE,FALSE) -> FALSE | D63: Signalized ThruCut | AH63: No
C64: =IF(AH64=$BG$45,TRUE,FALSE) -> FALSE | D64: Unsignalized ThruCut | AH64: No
C65: FALSE | D65: Roundabouts? | AH65: No
C66: FALSE | D66: 50 ICD Miniroundabout | AH66: No
C67: FALSE | D67: 75 ICD Miniroundaobut | AH67: No
C68: FALSE | D68: 1x1 | AH68: No
C69: =IF(AH69=$BG$45,TRUE,FALSE) -> FALSE | D69: 1NS x 2EW | AH69: No
C70: FALSE | D70: 2NS x 1EW | AH70: No
C71: FALSE | D71: 2x2 | AH71: No
C72: FALSE | D72: 3x3 | AH72: No
C73: FALSE | D73: Grade Separated Interchanges? | AH73: No
C74: FALSE | D74: Diamond | AH74: No
C75: FALSE | D75: Partial Cloverleaf A | AH75: No
C76: FALSE | D76: Partial Cloverleaf B | AH76: No
C77: FALSE | D77: Displaced Left Turn Interchange | AH77: No
C78: FALSE | D78: Diverging Diamond Interchange | AH78: No
C79: FALSE | D79: Single Point | AH79: No
A81: Continue to Step 3

Sheet 3 - Alt Num Lanes Input
B1: Capacity Analysis for Planning of Junctions Capacity Analysis for Planning of Junctions | BL1: Capacity Analysis for Planning of Junctions Capacity Analysis for Planning of Junctions
B3: Input Worksheet 2 | BL3: Input Worksheet 2
E8: Project Name: | M8: ='1 - Volume Input'!M8 -> Cap-X Sample Street | BO8: Project Name: | BW8: =M8 -> Cap-X Sample Street
E10: Project Number: | M10: ='1 - Volume Input'!M10 -> 10000 | BO10: Project Number: | BW10: =M10 -> 10000
E12: Location: | M12: ='1 - Volume Input'!M12 -> Tallahassee, FL | BO12: Location: | BW12: =M12 -> Tallahassee, FL
E14: Date: | M14: ='1 - Volume Input'!M14 -> 2017 AM | BO14: Date: | BW14: =M14 -> 2017 AM
E16: Analysis Type: | M16: At-Grade Intersections and Interchanges | BH16: At-Grade Intersections and Interchanges | BO16: Analysis Type: | BW16: =AnalysisType -> At-Grade Intersections and Interchanges
BH17: At-Grade Intersections Only
E18: Number of Lanes for Non-roundabout Intersections | BO18: Volume Echo with Shared Lane Adjustment for Non-roundabout Intersections
E20: TYPE OF INTERSECTION | V20: Sheet | AA20: Northbound | AI20: Southbound | AQ20: Eastbound | AY20: Westbound | BO20: TYPE OF INTERSECTION | CF20: Sheet | CK20: Northbound | CS20: Southbound | DA20: Eastbound | DI20: Westbound
AA22: U | AC22: L | AE22: T | AG22: R | AI22: U | AK22: L | AM22: T | AO22: R | AQ22: U | AS22: L | AU22: T | AW22: R | AY22: U | BA22: L | BC22: T | BE22: R | CK22: U | CM22: L | CO22: T | CQ22: R | CS22: U | CU22: L | CW22: T | CY22: R | DA22: U | DC22: L | DE22: T | DG22: R | DI22: U | DK22: L | DM22: T | DO22: R
E24: Traffic Signal | V24: FULL | AC24: 1 | AE24: 2 | AG24: 1 | AK24: 1 | AM24: 2 | AO24: 1 | AS24: 1 | AU24: 2 | AW24: 1 | BA24: 1 | BC24: 2 | BE24: 1 | BO24: ='3 - Alt Num Lanes Input'!E24 -> Traffic Signal | CF24: FULL | CM24: =IF(AC24>0,NBL_Master,0) -> 102 | CO24: =NBT_Master + IF(AC24=0,NBL_Master,0) + IF(AG24=0,NBR_Master) -> 510 | CQ24: =IF(AG24>0,NBR_Master,0) -> 204 | CU24: =IF(AK24>0,SBL_Master,0) -> 51 | CW24: =SBT_Master + IF(AK24=0,SBL_Master,0) + IF(AO24=0,SBR_Master) -> 510 | CY24: =IF(AO24>0,SBR_Master,0) -> 204 | DC24: =IF(AS24>0,EBL_Master,0) -> 31 | DE24: =EBT_Master + IF(AS24=0,EBL_Master,0) + IF(AW24=0,EBR_Master) -> 204 | DG24: =IF(AW24>0,EBR_Master,0) -> 51 | DK24: =IF(BA24>0,WBL_Master,0) -> 31 | DM24: =WBT_Master + IF(BA24=0,WBL_Master,0) + IF(BE24=0,WBR_Master) -> 204 | DO24: =IF(BE24>0,WBR_Master,0) -> 51
E26: Two-Way Stop Control | V26: N-S | AC26: 1 | AE26: 2 | AG26: 1 | AK26: 1 | AM26: 2 | AO26: 1 | AS26: 1 | AU26: 2 | AW26: 1 | BA26: 1 | BC26: 2 | BE26: 1 | BO26: =E26 -> Two-Way Stop Control | CF26: N-S | CM26: =IF(AC26>0,NBL_Master,0) -> 102 | CO26: =NBT_Master + IF(AC26=0,NBL_Master,0) + IF(AG26=0,NBR_Master) -> 510 | CQ26: =IF(AG26>0,NBR_Master,0) -> 204 | CU26: =IF(AK26>0,SBL_Master,0) -> 51 | CW26: =SBT_Master + IF(AK26=0,SBL_Master,0) + IF(AO26=0,SBR_Master) -> 510 | CY26: =IF(AO26>0,SBR_Master,0) -> 204 | DC26: =IF(AS26>0,EBL_Master,0) -> 31 | DE26: =EBT_Master + IF(AS26=0,EBL_Master,0) + IF(AW26=0,EBR_Master) -> 204 | DG26: =IF(AW26>0,EBR_Master,0) -> 51 | DK26: =IF(BA26>0,WBL_Master,0) -> 31 | DM26: =WBT_Master + IF(BA26=0,WBL_Master,0) + IF(BE26=0,WBR_Master) -> 204 | DO26: =IF(BE26>0,WBR_Master,0) -> 51
V28: E-W | AC28: 1 | AE28: 2 | AG28: 1 | AK28: 1 | AM28: 2 | AO28: 1 | AS28: 1 | AU28: 2 | AW28: 1 | BA28: 1 | BC28: 2 | BE28: 1 | CF28: E-W | CM28: =IF(AC28>0,NBL_Master,0) -> 102 | CO28: =NBT_Master + IF(AC28=0,NBL_Master,0) + IF(AG28=0,NBR_Master) -> 510 | CQ28: =IF(AG28>0,NBR_Master,0) -> 204 | CU28: =IF(AK28>0,SBL_Master,0) -> 51 | CW28: =SBT_Master + IF(AK28=0,SBL_Master,0) + IF(AO28=0,SBR_Master) -> 510 | CY28: =IF(AO28>0,SBR_Master,0) -> 204 | DC28: =IF(AS28>0,EBL_Master,0) -> 31 | DE28: =EBT_Master + IF(AS28=0,EBL_Master,0) + IF(AW28=0,EBR_Master) -> 204 | DG28: =IF(AW28>0,EBR_Master,0) -> 51 | DK28: =IF(BA28>0,WBL_Master,0) -> 31 | DM28: =WBT_Master + IF(BA28=0,WBL_Master,0) + IF(BE28=0,WBR_Master) -> 204 | DO28: =IF(BE28>0,WBR_Master,0) -> 51
E30: All-Way Stop Control | V30: FULL | AC30: 1 | AE30: 2 | AG30: 1 | AK30: 1 | AM30: 2 | AO30: 1 | AS30: 1 | AU30: 2 | AW30: 1 | BA30: 1 | BC30: 2 | BE30: 1 | BO30: =E30 -> All-Way Stop Control | CF30: FULL | CM30: =IF(AC30>0,NBL_Master,0) -> 102 | CO30: =NBT_Master + IF(AC30=0,NBL_Master,0) + IF(AG30=0,NBR_Master) -> 510 | CQ30: =IF(AG30>0,NBR_Master,0) -> 204 | CU30: =IF(AK30>0,SBL_Master,0) -> 51 | CW30: =SBT_Master + IF(AK30=0,SBL_Master,0) + IF(AO30=0,SBR_Master) -> 510 | CY30: =IF(AO30>0,SBR_Master,0) -> 204 | DC30: =IF(AS30>0,EBL_Master,0) -> 31 | DE30: =EBT_Master + IF(AS30=0,EBL_Master,0) + IF(AW30=0,EBR_Master) -> 204 | DG30: =IF(AW30>0,EBR_Master,0) -> 51 | DK30: =IF(BA30>0,WBL_Master,0) -> 31 | DM30: =WBT_Master + IF(BA30=0,WBL_Master,0) + IF(BE30=0,WBR_Master) -> 204 | DO30: =IF(BE30>0,WBR_Master,0) -> 51
E32: Continuous Green T | V32: W | AC32: 1 | AE32: 2 | AM32: 2 | AO32: 1 | AS32: 1 | AW32: 1 | BO32: Continuous Green T | CF32: W | CM32: =IF(AC32>0,NBL_Master,0) -> 102 | CO32: =NBT_Master + IF(AC32=0,NBL_Master,0) -> 510 | CW32: =SBT_Master + IF(AO32=0,SBR_Master) -> 510 | CY32: =IF(AO32>0,SBR_Master,0) -> 204 | DC32: =IF(AS32>0,EBL_Master,0) -> 31 | DG32: =IF(AW32>0,EBR_Master,0) -> 51
V34: N | AK34: 1 | AO34: 1 | AS34: 1 | AU34: 2 | BC34: 2 | BE34: 1 | CF34: N | CU34: =IF(AK34>0,SBL_Master,0) -> 51 | CY34: =IF(AO34>0,SBR_Master,0) -> 204 | DC34: =IF(AS34>0,EBL_Master,0) -> 31 | DE34: =EBT_Master + IF(AS34=0,EBL_Master,0) -> 204 | DM34: =WBT_Master + IF(BE34=0,WBR_Master) -> 204 | DO34: =IF(BE34>0,WBL_Master,0) -> 31
V36: E | AE36: 2 | AG36: 1 | AK36: 1 | AM36: 2 | BA36: 1 | BE36: 1 | CF36: E | CO36: =NBT_Master + IF(AG36=0,NBR_Master) -> 510 | CQ36: =IF(AG36>0,NBR_Master,0) -> 204 | CU36: =IF(AK36>0,SBL_Master,0) -> 51 | CW36: =SBT_Master + IF(AK36=0,SBL_Master,0) -> 510 | DK36: =IF(BA36>0,WBL_Master,0) -> 31 | DO36: =IF(BE36>0,WBL_Master,0) -> 31
V38: S | AC38: 1 | AG38: 1 | AU38: 2 | AW38: 1 | BA38: 1 | BC38: 2 | CF38: S | CM38: =IF(AC38>0,NBL_Master,0) -> 102 | CQ38: =IF(AG38>0,NBR_Master,0) -> 204 | DE38: =EBT_Master+ IF(AW38=0,EBR_Master) -> 204 | DG38: =IF(AW38>0,EBR_Master,0) -> 51 | DK38: =IF(BA38>0,WBL_Master,0) -> 31 | DM38: =WBT_Master + IF(BA38=0,WBL_Master,0) -> 204
E40: Quadrant Roadway | V40: S-W | AA40: Use the respective intersection tab(s) to specify the # of lanes inputs. | BO40: Quadrant Roadway | CF40: S-W | CM40: =NBL_Master -> 102 | CO40: =NBT_Master -> 510 | CQ40: =NBR_Master -> 204 | CW40: =SBT_Master -> 510 | CY40: =SBR_Master -> 204 | DC40: =EBL_Master -> 31 | DE40: =EBT_Master -> 204 | DG40: =EBR_Master -> 51 | DK40: =WBL_Master -> 31 | DM40: =WBT_Master -> 204 | DO40: =WBR_Master -> 51
V42: N-E | CF42: N-E | CO42: =NBT_Master -> 510 | CQ42: =NBR_Master -> 204 | CU42: =SBL_Master -> 51 | CW42: =SBT_Master -> 510 | CY42: =SBR_Master -> 204 | DC42: =EBL_Master -> 31 | DE42: =EBT_Master -> 204 | DG42: =EBR_Master -> 51 | DK42: =WBL_Master -> 31 | DM42: =WBT_Master -> 204 | DO42: =WBR_Master -> 51
V44: S-E | CF44: S-E | CM44: =NBL_Master -> 102 | CO44: =NBT_Master -> 510 | CQ44: =NBR_Master -> 204 | CU44: =SBL_Master -> 51 | CW44: =SBT_Master -> 510 | CY44: =SBR_Master -> 204 | DE44: =EBT_Master -> 204 | DG44: =EBR_Master -> 51 | DK44: =WBL_Master -> 31 | DM44: =WBT_Master -> 204 | DO44: =WBR_Master -> 51
V46: N-W | CF46: N-W | CM46: =NBL_Master -> 102 | CO46: =NBT_Master -> 510 | CQ46: =NBR_Master -> 204 | CU46: =SBL_Master -> 51 | CW46: =SBT_Master -> 510 | CY46: =SBR_Master -> 204 | DC46: =EBL_Master -> 31 | DE46: =EBT_Master -> 204 | DG46: =EBR_Master -> 51 | DM46: =WBT_Master -> 204 | DO46: =WBR_Master -> 51
E48: Partial Displaced Left Turn | V48: N-S | AC48: 1 | AE48: 2 | AG48: 1 | AK48: 1 | AM48: 2 | AO48: 1 | AS48: 1 | AU48: 2 | AW48: 1 | BA48: 1 | BC48: 2 | BE48: 1 | BO48: Partial Displaced Left Turn | CF48: N-S | CM48: =NBL_Master -> 102 | CO48: =NBT_Master + IF(AG48=0,NBR_Master) -> 510 | CQ48: =IF(AG48>0,NBR_Master,0) -> 204 | CU48: =SBL_Master -> 51 | CW48: =SBT_Master + IF(AO48=0,SBR_Master) -> 510 | CY48: =IF(AO48>0,SBR_Master,0) -> 204 | DC48: =IF(AS48>0,EBL_Master,0) -> 31 | DE48: =EBT_Master + IF(AS48=0,EBL_Master,0) + IF(AW48=0,EBR_Master) -> 204 | DG48: =IF(AW48>0,EBR_Master,0) -> 51 | DK48: =IF(BA48>0,WBL_Master,0) -> 31 | DM48: =WBT_Master + IF(BA48=0,WBL_Master,0) + IF(BE48=0,WBR_Master) -> 204 | DO48: =IF(BE48>0,WBR_Master,0) -> 51
V50: E-W | AC50: 1 | AE50: 2 | AG50: 1 | AK50: 1 | AM50: 2 | AO50: 1 | AS50: 1 | AU50: 2 | AW50: 1 | BA50: 1 | BC50: 2 | BE50: 1 | CF50: E-W | CM50: =IF(AC50>0,NBL_Master,0) -> 102 | CO50: =NBT_Master + IF(AC50=0,NBL_Master,0) + IF(AG50=0,NBR_Master) -> 510 | CQ50: =IF(AG50>0,NBR_Master,0) -> 204 | CU50: =IF(AK50>0,SBL_Master,0) -> 51 | CW50: =SBT_Master + IF(AK50=0,SBL_Master,0) + IF(AO50=0,SBR_Master) -> 510 | CY50: =IF(AO50>0,SBR_Master,0) -> 204 | DC50: =EBL_Master -> 31 | DE50: =EBT_Master+ IF(AW50=0,EBR_Master) -> 204 | DG50: =IF(AW50>0,EBR_Master,0) -> 51 | DK50: =WBL_Master -> 31 | DM50: =WBT_Master + IF(BE50=0,WBR_Master) -> 204 | DO50: =IF(BE50>0,WBR_Master,0) -> 51
E52: Displaced Left Turn | V52: FULL | AC52: 1 | AE52: 2 | AG52: 1 | AK52: 1 | AM52: 2 | AO52: 1 | AS52: 1 | AU52: 2 | AW52: 1 | BA52: 1 | BC52: 2 | BE52: 1 | BO52: Displaced Left Turn | CF52: FULL | CM52: =NBL_Master -> 102 | CO52: =NBT_Master + IF(AG52=0,NBR_Master) -> 510 | CQ52: =IF(AG52>0,NBR_Master,0) -> 204 | CU52: =SBL_Master -> 51 | CW52: =SBT_Master + IF(AO52=0,SBR_Master) -> 510 | CY52: =IF(AO52>0,SBR_Master,0) -> 204 | DC52: =EBL_Master -> 31 | DE52: =EBT_Master + IF(AW52=0,EBR_Master) -> 204 | DG52: =IF(AW52>0,EBR_Master,0) -> 51 | DK52: =WBL_Master -> 31 | DM52: =WBT_Master + IF(BE52=0,WBR_Master) -> 204 | DO52: =IF(BE52>0,WBR_Master,0) -> 51
E54: Signalized Restricted Crossing U-Turn | V54: N-S | AA54: 1 | AC54: 1 | AE54: 2 | AG54: 1 | AI54: 1 | AK54: 1 | AM54: 2 | AO54: 1 | AW54: 1 | BE54: 1 | BO54: =E54 -> Signalized Restricted Crossing U-Turn | CF54: N-S | CK54: =IF(AA54>0,NBU_Master,0) -> 0 | CM54: =NBL_Master -> 102 | CO54: =NBT_Master + IF(AG54=0,NBR_Master) -> 510 | CQ54: =IF(AG54>0,NBR_Master,0) -> 204 | CS54: =IF(AI54>0,SBU_Master,0) -> 0 | CU54: =IF(AK54>0,SBL_Master,0) -> 51 | CW54: =SBT_Master + IF(AK54=0,SBL_Master,0) + IF(AO54=0,SBR_Master)+ IF(AI54=0,SBU_Master) -> 510 | CY54: =IF(AO54>0,SBR_Master,0) -> 204 | DG54: =IF(AW54>0,EBR_Master,0) -> 51 | DO54: =IF(BE54>0,WBR_Master,0) -> 51
V56: E-W | AG56: 1 | AO56: 1 | AQ56: 1 | AS56: 1 | AU56: 2 | AW56: 1 | AY56: 1 | BA56: 1 | BC56: 2 | BE56: 1 | CF56: E-W | CQ56: =IF(AG56>0,NBR_Master,0) -> 204 | CY56: =IF(AO56>0,SBR_Master,0) -> 204 | DA56: =IF(AQ56>0,EBU_Master,0) -> 0 | DC56: =IF(AS56>0,EBL_Master,0) -> 31 | DE56: =EBT_Master + IF(AS56=0,EBL_Master,0) + IF(AW56=0,EBR_Master)+ IF(AQ56=0,EBU_Master) -> 204 | DG56: =IF(AW56>0,EBR_Master,0) -> 51 | DI56: =IF(AY56>0,WBU_Master,0) -> 0 | DK56: =IF(BA56>0,WBL_Master,0) -> 31 | DM56: =WBT_Master + IF(BA56=0,WBL_Master,0) + IF(BE56=0,WBR_Master)+ IF(AY56=0,WBU_Master) -> 204 | DO56: =IF(BE56>0,WBR_Master,0) -> 51
E58: Unsignalized Restricted Crossing U-Turn | V58: N-S | AA58: 1 | AC58: 1 | AE58: 2 | AG58: 1 | AI58: 1 | AK58: 1 | AM58: 2 | AO58: 1 | AW58: 1 | BE58: 1 | BO58: =E58 -> Unsignalized Restricted Crossing U-Turn | CF58: N-S | CK58: =IF(AA58>0,NBU_Master,0) -> 0 | CM58: =NBL_Master -> 102 | CO58: =NBT_Master + IF(AG58=0,NBR_Master) -> 510 | CQ58: =IF(AG58>0,NBR_Master,0) -> 204 | CS58: =IF(AI58>0,SBU_Master,0) -> 0 | CU58: =IF(AK58>0,SBL_Master,0) -> 51 | CW58: =SBT_Master + IF(AK58=0,SBL_Master,0) + IF(AO58=0,SBR_Master)+ IF(AI58=0,SBU_Master) -> 510 | CY58: =IF(AO58>0,SBR_Master,0) -> 204 | DG58: =IF(AW58>0,EBR_Master,0) -> 51 | DO58: =IF(BE58>0,WBR_Master,0) -> 51
V60: E-W | AG60: 1 | AO60: 1 | AQ60: 1 | AS60: 1 | AU60: 2 | AW60: 1 | AY60: 1 | BA60: 1 | BC60: 2 | BE60: 1 | CF60: E-W | CQ60: =IF(AG60>0,NBR_Master,0) -> 204 | CY60: =IF(AO60>0,SBR_Master,0) -> 204 | DA60: =IF(AQ60>0,EBU_Master,0) -> 0 | DC60: =IF(AS60>0,EBL_Master,0) -> 31 | DE60: =EBT_Master + IF(AS60=0,EBL_Master,0) + IF(AW60=0,EBR_Master)+ IF(AQ60=0,EBU_Master) -> 204 | DG60: =IF(AW60>0,EBR_Master,0) -> 51 | DI60: =IF(AY60>0,WBU_Master,0) -> 0 | DK60: =IF(BA60>0,WBL_Master,0) -> 31 | DM60: =WBT_Master + IF(BA60=0,WBL_Master,0) + IF(BE60=0,WBR_Master)+ IF(AY60=0,WBU_Master) -> 204 | DO60: =IF(BE60>0,WBR_Master,0) -> 51
E62: Median U-Turn | V62: N-S | AA62: 1 | AE62: 2 | AG62: 1 | AI62: 1 | AM62: 2 | AO62: 1 | AU62: 2 | AW62: 1 | BC62: 2 | BE62: 1 | BO62: Median U-Turn | CF62: N-S | CK62: =IF(AA62>0,NBU_Master,0) -> 0 | CO62: =NBT_Master + IF(AG62=0,NBR_Master)+ IF(AA54=0,NBU_Master) -> 510 | CQ62: =IF(AG62>0,NBR_Master,0) -> 204 | CS62: =IF(AI62>0,SBU_Master,0) -> 0 | CW62: =SBT_Master + IF(AO62=0,SBR_Master)+ IF(AI54=0,SBU_Master) -> 510 | CY62: =IF(AO62>0,SBR_Master,0) -> 204 | DE62: =EBT_Master+ IF(AW62=0,EBR_Master) -> 204 | DG62: =IF(AW62>0,EBR_Master,0) -> 51 | DM62: =WBT_Master + IF(BE62=0,WBR_Master) -> 204 | DO62: =IF(BE62>0,WBR_Master,0) -> 51
V64: E-W | AE64: 2 | AG64: 1 | AM64: 2 | AO64: 1 | AQ64: 1 | AU64: 2 | AW64: 1 | AY64: 1 | BC64: 2 | BE64: 1 | CF64: E-W | CO64: =NBT_Master + IF(AG64=0,NBR_Master) -> 510 | CQ64: =IF(AG64>0,NBR_Master,0) -> 204 | CW64: =SBT_Master + IF(AO64=0,SBR_Master) -> 510 | CY64: =IF(AO64>0,SBR_Master,0) -> 204 | DA64: =IF(AQ64>0,EBU_Master,0) -> 0 | DE64: =EBT_Master+ IF(AW64=0,EBR_Master)+ IF(AQ56=0,EBU_Master) -> 204 | DG64: =IF(AW64>0,EBR_Master,0) -> 51 | DI64: =IF(AY64>0,WBU_Master,0) -> 0 | DM64: =WBT_Master + IF(BE64=0,WBR_Master)+ IF(AY56=0,WBU_Master) -> 204 | DO64: =IF(BE64>0,WBR_Master,0) -> 51
E66: Partial Median U-Turn | V66: N-S | AA66: 1 | AE66: 2 | AG66: 1 | AI66: 1 | AM66: 2 | AO66: 1 | AS66: 1 | AU66: 2 | AW66: 1 | BA66: 1 | BC66: 2 | BE66: 1 | BO66: Partial Median U-Turn | CF66: N-S | CK66: =IF(AA66>0,NBU_Master,0) -> 0 | CO66: =NBT_Master + IF(AG66=0,NBR_Master)+ IF(AA54=0,NBU_Master) -> 510 | CQ66: =IF(AG66>0,NBR_Master,0) -> 204 | CS66: =IF(AI66>0,SBU_Master,0) -> 0 | CW66: =SBT_Master + IF(AO66=0,SBR_Master)+ IF(AI54=0,SBU_Master) -> 510 | CY66: =IF(AO66>0,SBR_Master,0) -> 204 | DC66: =IF(AS66>0,EBL_Master,0) -> 31 | DE66: =EBT_Master + IF(AS66=0,EBL_Master,0) + IF(AW66=0,EBR_Master) -> 204 | DG66: =IF(AW66>0,EBR_Master,0) -> 51 | DK66: =IF(BA66>0,WBL_Master,0) -> 31 | DM66: =WBT_Master + IF(BA66=0,WBL_Master,0) + IF(BE66=0,WBR_Master) -> 204 | DO66: =IF(BE66>0,WBR_Master,0) -> 51
V68: E-W | AC68: 1 | AE68: 2 | AG68: 1 | AK68: 1 | AM68: 2 | AO68: 1 | AQ68: 1 | AU68: 2 | AW68: 1 | AY68: 1 | BC68: 2 | BE68: 1 | CF68: E-W | CM68: =IF(AC68>0,NBL_Master,0) -> 102 | CO68: =NBT_Master + IF(AC68=0,NBL_Master,0) + IF(AG68=0,NBR_Master) -> 510 | CQ68: =IF(AG68>0,NBR_Master,0) -> 204 | CU68: =IF(AK68>0,SBL_Master,0) -> 51 | CW68: =SBT_Master + IF(AK68=0,SBL_Master,0) + IF(AO68=0,SBR_Master) -> 510 | CY68: =IF(AO68>0,SBR_Master,0) -> 204 | DA68: =IF(AQ68>0,EBU_Master,0) -> 0 | DE68: =EBT_Master+ IF(AW68=0,EBR_Master)+ IF(AQ56=0,EBU_Master) -> 204 | DG68: =IF(AW68>0,EBR_Master,0) -> 51 | DI68: =IF(AY68>0,WBU_Master,0) -> 0 | DM68: =WBT_Master + IF(BE68=0,WBR_Master)+ IF(AY56=0,WBU_Master) -> 204 | DO68: =IF(BE68>0,WBR_Master,0) -> 51
E70: Signalized ThruCut | V70: N-S | AC70: 1 | AE70: 2 | AG70: 1 | AK70: 1 | AM70: 2 | AO70: 1 | AS70: 1 | AW70: 1 | BA70: 1 | BE70: 1 | BO70: =E70 -> Signalized ThruCut | CF70: N-S | CM70: =IF(AC70>0,NBL_Master,0) -> 102 | CO70: =NBT_Master + IF(AG70=0,ROUND(NBR_Master/RTAF,0),0) + IF(AC70=0,ROUND(NBL_Master/LTAF,0),0) -> 510 | CQ70: =IF(AG70>0,NBR_Master,0) -> 204 | CU70: =IF(AK70>0,SBL_Master,0) -> 51 | CW70: =SBT_Master + IF(AO70=0,ROUND(SBR_Master/RTAF,0),0) + IF(AK70=0,ROUND(SBL_Master/LTAF,0),0) -> 510 | CY70: =IF(AO70>0,SBR_Master,0) -> 204 | DC70: =IF(AS70>0,EBL_Master + EBT_Master/2 + IF(AW70=0,EBR_Master + EBT_Master/2,0),0) -> 133 | DG70: =IF(AW70>0,EBR_Master + EBT_Master/2 + IF(AS70=0,EBL_Master + EBT_Master/2,0),0) -> 153 | DK70: =IF(BA70>0,WBL_Master + WBT_Master/2 + IF(BE70=0,WBR_Master + WBT_Master/2,0),0) -> 133 | DO70: =IF(BE70>0,WBR_Master + WBT_Master/2 + IF(BA70=0,WBL_Master + WBT_Master/2,0),0) -> 153
V72: E-W | AC72: 1 | AG72: 1 | AK72: 1 | AO72: 1 | AS72: 1 | AU72: 2 | AW72: 1 | BA72: 1 | BC72: 2 | BE72: 1 | CF72: E-W | CM72: =IF(AC72>0,NBL_Master + NBT_Master/2 + IF(AG72=0,NBR_Master + NBT_Master/2,0),0) -> 357 | CQ72: =IF(AG72>0,NBR_Master + NBT_Master/2 + IF(AC72=0,NBL_Master + NBT_Master/2,0),0) -> 459 | CU72: =IF(AK72>0,SBL_Master + SBT_Master/2 + IF(AO72=0,SBR_Master + SBT_Master/2,0),0) -> 306 | CY72: =IF(AO72>0,SBR_Master + SBT_Master/2 + IF(AK72=0,SBL_Master + SBT_Master/2,0),0) -> 459 | DC72: =IF(AS72>0,EBL_Master,0) -> 31 | DE72: =EBT_Master + IF(AW72=0,ROUND(EBR_Master/RTAF,0),0) + IF(AS72=0,ROUND(EBL_Master/LTAF,0),0) -> 204 | DG72: =IF(AW72>0,EBR_Master,0) -> 51 | DK72: =IF(BA72>0,WBL_Master,0) -> 31 | DM72: =WBT_Master + IF(BE72=0,ROUND(WBR_Master/RTAF,0),0) + IF(BA72=0,ROUND(WBL_Master/LTAF,0),0) -> 204 | DO72: =IF(BE72>0,WBR_Master,0) -> 51
E74: Unsignalized ThruCut | V74: N-S | AC74: 1 | AE74: 2 | AG74: 1 | AK74: 1 | AM74: 2 | AO74: 1 | AS74: 1 | AW74: 1 | BA74: 1 | BE74: 1 | BO74: =E74 -> Unsignalized ThruCut | CF74: N-S | CM74: =IF(AC74>0,NBL_Master,0) -> 102 | CO74: =NBT_Master + IF(AC70=0,NBL_Master,0) + IF(AG70=0,NBR_Master,0) -> 510 | CQ74: =IF(AG74>0,NBR_Master,0) -> 204 | CU74: =IF(AK74>0,SBL_Master,0) -> 51 | CW74: =SBT_Master + IF(AK70=0,SBL_Master,0) + IF(AO70=0,SBR_Master,0) -> 510 | CY74: =IF(AO74>0,SBR_Master,0) -> 204 | DC74: =IF(AS74>0,EBL_Master + EBT_Master/2,0) -> 133 | DG74: =EBR_Master + EBT_Master/2 + IF(AS74=0,EBL_Master + EBT_Master/2,0) -> 153 | DK74: =IF(BA74>0,WBL_Master + WBT_Master/2,0) -> 133 | DO74: =WBR_Master + WBT_Master/2 + IF(BA74=0,WBL_Master + WBT_Master/2,0) -> 153
V76: E-W | AC76: 1 | AG76: 1 | AK76: 1 | AO76: 1 | AS76: 1 | AU76: 2 | AW76: 1 | BA76: 1 | BC76: 2 | BE76: 1 | CF76: E-W | CM76: =IF(AC76>0,NBL_Master + NBT_Master/2,0) -> 357 | CQ76: =NBR_Master + NBT_Master/2 + IF(AC76=0,NBL_Master + NBT_Master/2,0) -> 459 | CU76: =IF(AK76>0,SBL_Master + SBT_Master/2,0) -> 306 | CY76: =SBR_Master + SBT_Master/2 + IF(AK76=0,SBL_Master + SBT_Master/2,0) -> 459 | DC76: =IF(AS76>0,EBL_Master,0) -> 31 | DE76: =EBT_Master+IF(AS76=0,EBL_Master,0) + IF(AW76=0,EBR_Master,0) -> 204 | DG76: =IF(AW76>0,EBR_Master,0) -> 51 | DK76: =IF(BA76>0,WBL_Master,0) -> 31 | DM76: =WBT_Master+IF(BA76=0,WBL_Master,0) + IF(BE76=0,WBR_Master,0) -> 204 | DO76: =IF(BE76>0,WBR_Master,0) -> 51
E78: Bowtie | V78: N-S | AE78: 2 | AG78: 1 | AM78: 2 | AO78: 1 | AU78: 1 | AW78: 1 | BC78: 1 | BE78: 1 | BO78: =E78 -> Bowtie | CF78: N-S | CM78: =IF(AG78>0,NBL_Master,0) -> 102 | CO78: =NBT_Master+(NBR_Master+NBL_Master-CQ78-CM78)/RTAF -> 510 | CQ78: =IF(AG78>0,NBR_Master,(NBR_Master*(AG78/(AG78+1)))) -> 204 | CU78: =IF(AO78>0,SBL_Master,0) -> 51 | CW78: =SBT_Master + IF(AK74=0,SBL_Master,0) + IF(AO74=0,SBR_Master,0) -> 510 | CY78: =IF(AO78>0,SBR_Master,(SBR_Master*(AO78/(AO78+1)))) -> 204 | DE78: =EBT_Master+EBL_Master+SBL_Master+((EBR_Master+WBL_Master-DG78)/RTAF) -> 286 | DG78: =IF(AW78>0,EBR_Master+WBL_Master,((EBR_Master+WBL_Master)*(AW78/(AW78+1)))) -> 82 | DM78: =NBL_Master+WBT_Master+WBL_Master+(EBL_Master+WBR_Master-DO78)/RTAF -> 337 | DO78: =IF(BE78>0,WBR_Master+EBL_Master,((WBR_Master+EBL_Master)*(BE78/(BE78+1)))) -> 82
V80: E-W | AE80: 1 | AG80: 1 | AM80: 1 | AO80: 1 | AU80: 2 | AW80: 1 | BC80: 2 | BE80: 1 | CF80: E-W | CO80: =NBT_Master+NBL_Master+EBL_Master+(NBR_Master+SBL_Master-CQ80)/RTAF -> 643 | CQ80: =IF(AG80>0,NBR_Master+SBL_Master,((NBR_Master+SBL_Master)*(AG80/(AG80+1)))) -> 255 | CW80: =SBT_Master+SBL_Master+WBL_Master+(SBR_Master+NBL_Master-CY80)/RTAF -> 592 | CY80: =IF(AO80>0,SBR_Master+NBL_Master,((SBR_Master+NBL_Master)*(AO80/(AO80+1)))) -> 306 | DC80: =IF(AW80>0,EBL_Master,0) -> 31 | DE80: =EBT_Master+(EBR_Master+EBL_Master-DG80-DC80)/RTAF -> 204 | DG80: =IF(AW80>0,EBR_Master,(EBR_Master*(AW80/(AW80+1)))) -> 51 | DK80: =IF(BE80>0,WBL_Master,0) -> 31 | DM80: =WBT_Master+(WBR_Master+WBL_Master-DO80-DK80)/RTAF -> 204 | DO80: =IF(BE80>0,WBR_Master,(WBR_Master*(BE80/(BE80+1)))) -> 51
E83: For shared lanes, enter "0" in L or R
B85: Capacity Analysis for Planning of Junctions
B87: Input Worksheet 2
E91: Number of Lanes for Interchanges
E93: TYPE OF INTERCHANGE | V93: Sheet | AA93: Northbound | AI93: Southbound | AQ93: Eastbound | AY93: Westbound
AA95: U | AC95: L | AE95: T | AG95: R | AI95: U | AK95: L | AM95: T | AO95: R | AQ95: U | AS95: L | AU95: T | AW95: R | AY95: U | BA95: L | BC95: T | BE95: R
E97: Diamond | V97: N-S | AC97: 1 | AE97: 2 | AG97: 1 | AK97: 1 | AM97: 2 | AO97: 1 | AS97: 1 | AU97: 2 | AW97: 1 | BA97: 1 | BC97: 2 | BE97: 1
V99: E-W | AC99: 1 | AE99: 2 | AG99: 1 | AK99: 1 | AM99: 2 | AO99: 1 | AS99: 1 | AU99: 2 | AW99: 1 | BA99: 1 | BC99: 2 | BE99: 1
E101: Partial Cloverleaf A | V101: N-S | AE101: 2 | AM101: 2 | AS101: 1 | AW101: 1 | BA101: 1 | BE101: 1
V103: E-W | AC103: 1 | AG103: 1 | AK103: 1 | AO103: 1 | AU103: 2 | BC103: 2
E105: Partial Cloverleaf B | V105: N-S | AC105: 1 | AE105: 2 | AG105: 1 | AK105: 1 | AM105: 2 | AO105: 1 | AS105: 1 | AW105: 1 | BA105: 1 | BE105: 1
V107: E-W | AC107: 1 | AG107: 1 | AK107: 1 | AO107: 1 | AS107: 1 | AU107: 2 | AW107: 1 | BA107: 1 | BC107: 2 | BE107: 1
E109: Displaced Left Turn | V109: N-S | AC109: 1 | AE109: 2 | AG109: 1 | AK109: 1 | AM109: 2 | AO109: 1 | AS109: 1 | AU109: 2 | AW109: 1 | BA109: 1 | BC109: 2 | BE109: 1 | BQ109: EBT_Master + IF(AW74=0,ROUND(EBR_Master/RTAF,0),0) + IF(AS74=0,ROUND(EBL_Master*LeftTurnFactor(EBT_Master+EBR_Master/RTAF),0),0)
V111: E-W | AC111: 1 | AE111: 2 | AG111: 1 | AK111: 1 | AM111: 2 | AO111: 1 | AS111: 1 | AU111: 2 | AW111: 1 | BA111: 1 | BC111: 2 | BE111: 1
E113: Diverging Diamond Interchange | V113: N-S | AC113: 1 | AE113: 2 | AG113: 1 | AK113: 1 | AM113: 2 | AO113: 1 | AS113: 1 | AW113: 1 | BA113: 1 | BE113: 1
V115: E-W | AC115: 1 | AG115: 1 | AK115: 1 | AO115: 1 | AS115: 1 | AU115: 2 | AW115: 1 | BA115: 1 | BC115: 2 | BE115: 1
E117: Single Point | V117: N-S | AC117: 1 | AE117: 2 | AG117: 1 | AK117: 1 | AM117: 2 | AO117: 1 | AS117: 1 | AU117: 2 | AW117: 1 | BA117: 1 | BC117: 2 | BE117: 1
V119: E-W | AC119: 1 | AE119: 2 | AG119: 1 | AK119: 1 | AM119: 2 | AO119: 1 | AS119: 1 | AU119: 2 | AW119: 1 | BA119: 1 | BC119: 2 | BE119: 1

Sheet Multimodal Ped
A2: Capacity Analysis for Planning of Junctions
A4: Multimodal Intersection Configuration for Pedestrian Crossings
CR7: Crosswalk Marking Legend
CR8: Conflicting Vehicle Type
DA10: Stop/Signal Controlled
DA12: Freeflowing
DA14: Yield Controlled (yield to vehicles downstream)
DA16: Permissive Left (unless exclusive pedestrian phase)
CR18: Marking Type
B20: Roadway Operating Speeds | AA20: Ramp Speeds (Only for Interchanges) | DF20: Marked | DO20: Unmarked
B21: Major Street Speed Limit | Z21: =IF(Input_MajorStreetDirection=Input_MajorStreetDirection,$P$21,$P$23) -> 0 | AA21: Diagonal Ramps | AO21: 20
B23: Minor Street Speed Limit | Z23: =IF(Input_MinorStreetDirection=Input_MinorStreetDirection,$P$23,$P$21) -> 0 | AA23: Loop Ramps | AO23: 20
B25: Mini Roundabout Entry & Exit Speed | P25: 20 | AA25: DDI Ramps | AO25: 20
B27: 1-Lane Roundabout Entry & Exit Speed | P27: 25 | AA27: Single Point Ramps | AO27: 30
B29: 2-Lane Roundabout Entry & Exit Speed | P29: 30
A34: DO NOT REMOVE ROW: Hiden Calculations | AC34: 5 | AN34: 6 | AO34: 7 | AP34: 8
A35: Pedestrian Crossing Configurations for Non-roundabout Intersections
A37: DO NOT MODIFY THIS ROW | AN37: 1 | AS37: =AN37 -> 1 | BQ37: 2 | BV37: =BQ37 -> 2 | CT37: 3 | CY37: =CT37 -> 3 | DD37: 4 | DI37: =DD37 -> 4 | DN37: 5 | DS37: =DN37 -> 5 | DX37: 6 | EC37: =DX37 -> 6 | EH37: 7 | EM37: =EH37 -> 7 | ER37: 8 | EW37: =ER37 -> 8 | FB37: 9 | FG37: =FB37 -> 9 | FL37: 10 | FQ37: =FL37 -> 10 | FV37: 11 | GA37: =FV37 -> 11 | GF37: 12 | GK37: =GF37 -> 12 | GP37: 13 | GU37: =GP37 -> 13 | GZ37: 14 | HE37: =GZ37 -> 14 | HJ37: 15 | HO37: =HJ37 -> 15 | HT37: 16 | HY37: =HT37 -> 16
A38: TYPE OF INTERSECTION | T38: Sheet | Z38: Intersection Score | AD38: Out of Direction Travel | AI38: Multistage Crossing | AN38: Crossing #1 | BQ38: Crossing #2 | CT38: Crossing #3 | DW38: Crossing #4 | EZ38: Crossing #5 | GC38: Crossing #6 | HF38: Crossing #7 | II38: Crossing #8 | JL38: Crossing #9 | KO38: Crossing #10 | LR38: Crossing #11 | MU38: Crossing #12 | NX38: Crossing #13 | PA38: Crossing #14 | QD38: Crossing #15 | RG38: Crossing #16 | SJ38: Crossing #17 | TM38: Crossing #18 | UP38: Score | UU38: Individual Crossing Scores
AN40: # Lanes | AS40: Veh Speed | AX40: Volume | BC40: Conflicting Veh Type | BK40: Markings | BQ40: # Lanes | BV40: Veh Speed | CA40: Volume | CF40: Conflicting Veh Type | CN40: Markings | CT40: # Lanes | CY40: Veh Speed | DD40: Volume | DI40: Conflicting Veh Type | DQ40: Markings | DW40: # Lanes | EB40: Veh Speed | EG40: Volume | EL40: Conflicting Veh Type | ET40: Markings | EZ40: # Lanes | FE40: Veh Speed | FJ40: Volume | FO40: Conflicting Veh Type | FW40: Markings | GC40: # Lanes | GH40: Veh Speed | GM40: Volume | GR40: Conflicting Veh Type | GZ40: Markings | HF40: # Lanes | HK40: Veh Speed | HP40: Volume | HU40: Conflicting Veh Type | IC40: Markings | II40: # Lanes | IN40: Veh Speed | IS40: Volume | IX40: Conflicting Veh Type | JF40: Markings | JL40: # Lanes | JQ40: Veh Speed | JV40: Volume | KA40: Conflicting Veh Type | KI40: Markings | KO40: # Lanes | KT40: Veh Speed | KY40: Volume | LD40: Conflicting Veh Type | LL40: Markings | LR40: # Lanes | LW40: Veh Speed | MB40: Volume | MG40: Conflicting Veh Type | MO40: Markings | MU40: # Lanes | MZ40: Veh Speed | NE40: Volume | NJ40: Conflicting Veh Type | NR40: Markings | NX40: # Lanes | OC40: Veh Speed | OH40: Volume | OM40: Conflicting Veh Type | OU40: Markings | PA40: # Lanes | PF40: Veh Speed | PK40: Volume | PP40: Conflicting Veh Type | PX40: Markings | QD40: # Lanes | QI40: Veh Speed | QN40: Volume | QS40: Conflicting Veh Type | RA40: Markings | RG40: # Lanes | RL40: Veh Speed | RQ40: Volume | RV40: Conflicting Veh Type | SD40: Markings | SJ40: # Lanes | SO40: Veh Speed | ST40: Volume | SY40: Conflicting Veh Type | TG40: Markings | TM40: # Lanes | TR40: Veh Speed | TW40: Volume | UB40: Conflicting Veh Type | UJ40: Markings | UP40: Combined | UU40: #1 | VE40: #2 | VO40: #3 | VY40: #4 | WI40: #5 | WS40: #6 | XC40: #7 | XM40: #8 | XW40: #9 | YG40: #10 | YQ40: #11 | ZA40: #12 | ZK40: #13 | ZU40: #14 | AAE40: #15 | AAO40: #16 | AAY40: #17 | ABI40: #18
A42: ='3 - Alt Num Lanes Input'!E24 -> Traffic Signal | T42: FULL | Z42: =UP42 -> Enter Major/Minor Street Speeds | AD42: No | AI42: Yes Crossing(s) with 2 stages | AN42: =SUM('Traffic Signal'!CJ30:CU30) -> 4 | AS42: =IF(OR(AND(Input_MajorStreetDirection="East-West",OR(AN38="Crossing #3",AN38="Crossing #4",AN38="Crossing #7",AN38="Crossing #8")),AND(Input_MajorStreetDirection="North-South",OR(AN38="Crossing #1",AN38="Crossing #2",AN38="Crossing #5",AN38="Crossing #6"))),Maj_St_Spd_Lmt,Min_St_Spd_Lmt) -> 0 | AX42: =SUM(SBU_Master,SBL_Master,SBT_Master,SBR_Master) -> 765 | BC42: Stop/Signal Controlled | BK42: Marked | BQ42: =MAX('Traffic Signal'!CI31:CI36,'Traffic Signal'!CP43:CR43,'Traffic Signal'!CV31:CV33) -> 2 | BV42: =IF(OR(AND(Input_MajorStreetDirection="East-West",OR(BQ38="Crossing #3",BQ38="Crossing #4",BQ38="Crossing #7",BQ38="Crossing #8")),AND(Input_MajorStreetDirection="North-South",OR(BQ38="Crossing #1",BQ38="Crossing #2",BQ38="Crossing #5",BQ38="Crossing #6"))),Maj_St_Spd_Lmt,Min_St_Spd_Lmt) -> 0 | CA42: =SUM(SBU_Master,EBL_Master,NBT_Master,WBR_Master) -> 592 | CF42: Stop/Signal Controlled | CN42: Marked | CT42: =SUM('Traffic Signal'!CV31:CV42) -> 4 | CY42: =IF(OR(AND(Input_MajorStreetDirection="East-West",OR(CT38="Crossing #3",CT38="Crossing #4",CT38="Crossing #7",CT38="Crossing #8")),AND(Input_MajorStreetDirection="North-South",OR(CT38="Crossing #1",CT38="Crossing #2",CT38="Crossing #5",CT38="Crossing #6"))),Maj_St_Spd_Lmt,Min_St_Spd_Lmt) -> 0 | DD42: =SUM(WBU_Master,WBL_Master,WBT_Master,WBR_Master) -> 286 | DI42: Stop/Signal Controlled | DQ42: Marked | DW42: =MAX('Traffic Signal'!CP30:CU30,'Traffic Signal'!CI37:CI39,'Traffic Signal'!CS43:CU43) -> 2 | EB42: =IF(OR(AND(Input_MajorStreetDirection="East-West",OR(DW38="Crossing #3",DW38="Crossing #4",DW38="Crossing #7",DW38="Crossing #8")),AND(Input_MajorStreetDirection="North-South",OR(DW38="Crossing #1",DW38="Crossing #2",DW38="Crossing #5",DW38="Crossing #6"))),Maj_St_Spd_Lmt,Min_St_Spd_Lmt) -> 0 | EG42: =SUM(NBR_Master,SBL_Master,WBU_Master,EBT_Master) -> 459 | EL42: Stop/Signal Controlled | ET42: Marked | EZ42: =SUM('Traffic Signal'!CJ43:CU43) -> 4 | FE42: =IF(OR(AND(Input_MajorStreetDirection="East-West",OR(EZ38="Crossing #3",EZ38="Crossing #4",EZ38="Crossing #7",EZ38="Crossing #8")),AND(Input_MajorStreetDirection="North-South",OR(EZ38="Crossing #1",EZ38="Crossing #2",EZ38="Crossing #5",EZ38="Crossing #6"))),Maj_St_Spd_Lmt,Min_St_Spd_Lmt) -> 0 | FJ42: =SUM(NBT_Master,NBL_Master,NBR_Master,NBU_Master) -> 816 | FO42: Stop/Signal Controlled | FW42: Marked | GC42: =MAX('Traffic Signal'!CV37:CV42,'Traffic Signal'!CM30:CO30,'Traffic Signal'!CI40:CI42) -> 2 | GH42: =IF(OR(AND(Input_MajorStreetDirection="East-West",OR(GC38="Crossing #3",GC38="Crossing #4",GC38="Crossing #7",GC38="Crossing #8")),AND(Input_MajorStreetDirection="North-South",OR(GC38="Crossing #1",GC38="Crossing #2",GC38="Crossing #5",GC38="Crossing #6"))),Maj_St_Spd_Lmt,Min_St_Spd_Lmt) -> 0 | GM42: =SUM(EBR_Master,SBT_Master,WBL_Master,NBU_Master) -> 592 | GR42: Stop/Signal Controlled | GZ42: Marked | HF42: =SUM('Traffic Signal'!CI31:CI42) -> 4 | HK42: =IF(OR(AND(Input_MajorStreetDirection="East-West",OR(HF38="Crossing #3",HF38="Crossing #4",HF38="Crossing #7",HF38="Crossing #8")),AND(Input_MajorStreetDirection="North-South",OR(HF38="Crossing #1",HF38="Crossing #2",HF38="Crossing #5",HF38="Crossing #6"))),Maj_St_Spd_Lmt,Min_St_Spd_Lmt) -> 0 | HP42: =SUM(EBL_Master,EBT_Master,EBR_Master,EBU_Master) -> 286 | HU42: Stop/Signal Controlled | IC42: Marked | II42: =MAX('Traffic Signal'!CJ43:CO43,'Traffic Signal'!CV34:CV36,'Traffic Signal'!CJ30:CL30) -> 2 | IN42: =IF(OR(AND(Input_MajorStreetDirection="East-West",OR(II38="Crossing #3",II38="Crossing #4",II38="Crossing #7",II38="Crossing #8")),AND(Input_MajorStreetDirection="North-South",OR(II38="Crossing #1",II38="Crossing #2",II38="Crossing #5",II38="Crossing #6"))),Maj_St_Spd_Lmt,Min_St_Spd_Lmt) -> 0 | IS42: =SUM(NBL_Master,WBT_Master,SBR_Master,EBU_Master) -> 510 | IX42: Stop/Signal Controlled | JF42: Marked | UP42: =IFERROR((((SUM(SQRT(UU42),SQRT(VE42),SQRT(VO42),SQRT(VY42),SQRT(WI42),SQRT(WS42),SQRT(XC42),SQRT(XM42),SQRT(XW42),SQRT(YG42),SQRT(YQ42),SQRT(ZA42),SQRT(ZK42),SQRT(ZU42),SQRT(AAE42),SQRT(AAO42),SQRT(AAY42),SQRT(ABI42))/COUNTIF(UU42:ABR43,">0"))^2)*(_xlfn.XLOOKUP(AD42,$W$304:$W$305,$AA$304:$AA$305,"lookup error",0,1))*(_xlfn.XLOOKUP(AI42,Multistage_Crossing,$AA$298:$AA$300,"lookup error",0,1))),"Enter Major/Minor Street Speeds") -> Enter Major/Minor Street Speeds | UU42: =IF(OR(ISBLANK($P$21),ISBLANK($P$23)),"Enter Major/Minor Street Speeds",IF(AN42=0,,(IF(AN42<5,_xlfn.XLOOKUP(AN42,$W$269:$W$272,$AA$269:$AA$272,"error",0,1),$AA$273)+IF(AS42<=$V$276,$AA$276,IF(AND(AS42>$V$276,AS42<=$V$277),$AA$277,IF(AND(AS42>$V$277,AS42<=$V$278),$AA$278,IF(AND(AS42>$V$278,AS42<=$V$279),$AA$279,$AA$280))))+IF(AX42<=$V$286,_xlfn.XLOOKUP(BC42,AA$285:$AD$285,$AA$286:$AD$286,"check xlookup for volume 150",0,1),IF(AND(AX42>$V$286,AX42<=$V$287),_xlfn.XLOOKUP(BC42,$AA$285:$AD$285,$AA$287:$AD$287,"check xlookup for volume 300",0,1),IF(AND(AX42>$V$287,AX42<=$V$288),_xlfn.XLOOKUP(BC42,$AA$285:$AD$285,$AA$288:$AD$288,"check xlookup for volume 900",0,1),IF(AND(AX42>$V$288,AX42<=$V$289),_xlfn.XLOOKUP(BC42,$AA$285:$AD$285,$AA$289:$AD$289,"check xlookup for volume 1500",0,1),IF(AX42>$V$289,_xlfn.XLOOKUP(BC42,$AA$285:$AD$285,$AA$290:$AD$290,"check xlookup for volume >1500",0,1),"")))))+IF(BK42=$W$293,$AA$293,$AA$294))/4)) -> Enter Major/Minor Street Speeds | VE42: =IF(OR(ISBLANK($P$21),ISBLANK($P$23)),"Enter Major/Minor Street Speeds",IF(BQ42=0,,(IF(BQ42<5,_xlfn.XLOOKUP(BQ42,$W$269:$W$272,$AA$269:$AA$272,"error",0,1),$AA$273)+IF(BV42<=$V$276,$AA$276,IF(AND(BV42>$V$276,BV42<=$V$277),$AA$277,IF(AND(BV42>$V$277,BV42<=$V$278),$AA$278,IF(AND(BV42>$V$278,BV42<=$V$279),$AA$279,$AA$280))))+IF(CA42<=$V$286,_xlfn.XLOOKUP(CF42,AA$285:$AD$285,$AA$286:$AD$286,"check xlookup for volume 150",0,1),IF(AND(CA42>$V$286,CA42<=$V$287),_xlfn.XLOOKUP(CF42,$AA$285:$AD$285,$AA$287:$AD$287,"check xlookup for volume 300",0,1),IF(AND(CA42>$V$287,CA42<=$V$288),_xlfn.XLOOKUP(CF42,$AA$285:$AD$285,$AA$288:$AD$288,"check xlookup for volume 900",0,1),IF(AND(CA42>$V$288,CA42<=$V$289),_xlfn.XLOOKUP(CF42,$AA$285:$AD$285,$AA$289:$AD$289,"check xlookup for volume 1500",0,1),IF(CA42>$V$289,_xlfn.XLOOKUP(CF42,$AA$285:$AD$285,$AA$290:$AD$290,"check xlookup for volume >1500",0,1),"")))))+IF(CN42=$W$293,$AA$293,$AA$294))/4)) -> Enter Major/Minor Street Speeds | VO42: =IF(OR(ISBLANK($P$21),ISBLANK($P$23)),"Enter Major/Minor Street Speeds",IF(CT42=0,,(IF(CT42<5,_xlfn.XLOOKUP(CT42,$W$269:$W$272,$AA$269:$AA$272,"error",0,1),$AA$273)+IF(CY42<=$V$276,$AA$276,IF(AND(CY42>$V$276,CY42<=$V$277),$AA$277,IF(AND(CY42>$V$277,CY42<=$V$278),$AA$278,IF(AND(CY42>$V$278,CY42<=$V$279),$AA$279,$AA$280))))+IF(DD42<=$V$286,_xlfn.XLOOKUP(DI42,AA$285:$AD$285,$AA$286:$AD$286,"check xlookup for volume 150",0,1),IF(AND(DD42>$V$286,DD42<=$V$287),_xlfn.XLOOKUP(DI42,$AA$285:$AD$285,$AA$287:$AD$287,"check xlookup for volume 300",0,1),IF(AND(DD42>$V$287,DD42<=$V$288),_xlfn.XLOOKUP(DI42,$AA$285:$AD$285,$AA$288:$AD$288,"check xlookup for volume 900",0,1),IF(AND(DD42>$V$288,DD42<=$V$289),_xlfn.XLOOKUP(DI42,$AA$285:$AD$285,$AA$289:$AD$289,"check xlookup for volume 1500",0,1),IF(DD42>$V$289,_xlfn.XLOOKUP(DI42,$AA$285:$AD$285,$AA$290:$AD$290,"check xlookup for volume >1500",0,1),"")))))+IF(DQ42=$W$293,$AA$293,$AA$294))/4)) -> Enter Major/Minor Street Speeds | VY42: =IF(OR(ISBLANK($P$21),ISBLANK($P$23)),"Enter Major/Minor Street Speeds",IF(DW42=0,,(IF(DW42<5,_xlfn.XLOOKUP(DW42,$W$269:$W$272,$AA$269:$AA$272,"error",0,1),$AA$273)+IF(EB42<=$V$276,$AA$276,IF(AND(EB42>$V$276,EB42<=$V$277),$AA$277,IF(AND(EB42>$V$277,EB42<=$V$278),$AA$278,IF(AND(EB42>$V$278,EB42<=$V$279),$AA$279,$AA$280))))+IF(EG42<=$V$286,_xlfn.XLOOKUP(EL42,AA$285:$AD$285,$AA$286:$AD$286,"check xlookup for volume 150",0,1),IF(AND(EG42>$V$286,EG42<=$V$287),_xlfn.XLOOKUP(EL42,$AA$285:$AD$285,$AA$287:$AD$287,"check xlookup for volume 300",0,1),IF(AND(EG42>$V$287,EG42<=$V$288),_xlfn.XLOOKUP(EL42,$AA$285:$AD$285,$AA$288:$AD$288,"check xlookup for volume 900",0,1),IF(AND(EG42>$V$288,EG42<=$V$289),_xlfn.XLOOKUP(EL42,$AA$285:$AD$285,$AA$289:$AD$289,"check xlookup for volume 1500",0,1),IF(EG42>$V$289,_xlfn.XLOOKUP(EL42,$AA$285:$AD$285,$AA$290:$AD$290,"check xlookup for volume >1500",0,1),"")))))+IF(ET42=$W$293,$AA$293,$AA$294))/4)) -> Enter Major/Minor Street Speeds | WI42: =IF(OR(ISBLANK($P$21),ISBLANK($P$23)),"Enter Major/Minor Street Speeds",IF(EZ42=0,,(IF(EZ42<5,_xlfn.XLOOKUP(EZ42,$W$269:$W$272,$AA$269:$AA$272,"error",0,1),$AA$273)+IF(FE42<=$V$276,$AA$276,IF(AND(FE42>$V$276,FE42<=$V$277),$AA$277,IF(AND(FE42>$V$277,FE42<=$V$278),$AA$278,IF(AND(FE42>$V$278,FE42<=$V$279),$AA$279,$AA$280))))+IF(FJ42<=$V$286,_xlfn.XLOOKUP(FO42,AA$285:$AD$285,$AA$286:$AD$286,"check xlookup for volume 150",0,1),IF(AND(FJ42>$V$286,FJ42<=$V$287),_xlfn.XLOOKUP(FO42,$AA$285:$AD$285,$AA$287:$AD$287,"check xlookup for volume 300",0,1),IF(AND(FJ42>$V$287,FJ42<=$V$288),_xlfn.XLOOKUP(FO42,$AA$285:$AD$285,$AA$288:$AD$288,"check xlookup for volume 900",0,1),IF(AND(FJ42>$V$288,FJ42<=$V$289),_xlfn.XLOOKUP(FO42,$AA$285:$AD$285,$AA$289:$AD$289,"check xlookup for volume 1500",0,1),IF(FJ42>$V$289,_xlfn.XLOOKUP(FO42,$AA$285:$AD$285,$AA$290:$AD$290,"check xlookup for volume >1500",0,1),"")))))+IF(FW42=$W$293,$AA$293,$AA$294))/4)) -> Enter Major/Minor Street Speeds | WS42: =IF(OR(ISBLANK($P$21),ISBLANK($P$23)),"Enter Major/Minor Street Speeds",IF(GC42=0,,(IF(GC42<5,_xlfn.XLOOKUP(GC42,$W$269:$W$272,$AA$269:$AA$272,"error",0,1),$AA$273)+IF(GH42<=$V$276,$AA$276,IF(AND(GH42>$V$276,GH42<=$V$277),$AA$277,IF(AND(GH42>$V$277,GH42<=$V$278),$AA$278,IF(AND(GH42>$V$278,GH42<=$V$279),$AA$279,$AA$280))))+IF(GM42<=$V$286,_xlfn.XLOOKUP(GR42,AA$285:$AD$285,$AA$286:$AD$286,"check xlookup for volume 150",0,1),IF(AND(GM42>$V$286,GM42<=$V$287),_xlfn.XLOOKUP(GR42,$AA$285:$AD$285,$AA$287:$AD$287,"check xlookup for volume 300",0,1),IF(AND(GM42>$V$287,GM42<=$V$288),_xlfn.XLOOKUP(GR42,$AA$285:$AD$285,$AA$288:$AD$288,"check xlookup for volume 900",0,1),IF(AND(GM42>$V$288,GM42<=$V$289),_xlfn.XLOOKUP(GR42,$AA$285:$AD$285,$AA$289:$AD$289,"check xlookup for volume 1500",0,1),IF(GM42>$V$289,_xlfn.XLOOKUP(GR42,$AA$285:$AD$285,$AA$290:$AD$290,"check xlookup for volume >1500",0,1),"")))))+IF(GZ42=$W$293,$AA$293,$AA$294))/4)) -> Enter Major/Minor Street Speeds | XC42: =IF(OR(ISBLANK($P$21),ISBLANK($P$23)),"Enter Major/Minor Street Speeds",IF(HF42=0,,(IF(HF42<5,_xlfn.XLOOKUP(HF42,$W$269:$W$272,$AA$269:$AA$272,"error",0,1),$AA$273)+IF(HK42<=$V$276,$AA$276,IF(AND(HK42>$V$276,HK42<=$V$277),$AA$277,IF(AND(HK42>$V$277,HK42<=$V$278),$AA$278,IF(AND(HK42>$V$278,HK42<=$V$279),$AA$279,$AA$280))))+IF(HP42<=$V$286,_xlfn.XLOOKUP(HU42,AA$285:$AD$285,$AA$286:$AD$286,"check xlookup for volume 150",0,1),IF(AND(HP42>$V$286,HP42<=$V$287),_xlfn.XLOOKUP(HU42,$AA$285:$AD$285,$AA$287:$AD$287,"check xlookup for volume 300",0,1),IF(AND(HP42>$V$287,HP42<=$V$288),_xlfn.XLOOKUP(HU42,$AA$285:$AD$285,$AA$288:$AD$288,"check xlookup for volume 900",0,1),IF(AND(HP42>$V$288,HP42<=$V$289),_xlfn.XLOOKUP(HU42,$AA$285:$AD$285,$AA$289:$AD$289,"check xlookup for volume 1500",0,1),IF(HP42>$V$289,_xlfn.XLOOKUP(HU42,$AA$285:$AD$285,$AA$290:$AD$290,"check xlookup for volume >1500",0,1),"")))))+IF(IC42=$W$293,$AA$293,$AA$294))/4)) -> Enter Major/Minor Street Speeds | XM42: =IF(OR(ISBLANK($P$21),ISBLANK($P$23)),"Enter Major/Minor Street Speeds",IF(II42=0,,(IF(II42<5,_xlfn.XLOOKUP(II42,$W$269:$W$272,$AA$269:$AA$272,"error",0,1),$AA$273)+IF(IN42<=$V$276,$AA$276,IF(AND(IN42>$V$276,IN42<=$V$277),$AA$277,IF(AND(IN42>$V$277,IN42<=$V$278),$AA$278,IF(AND(IN42>$V$278,IN42<=$V$279),$AA$279,$AA$280))))+IF(IS42<=$V$286,_xlfn.XLOOKUP(IX42,AA$285:$AD$285,$AA$286:$AD$286,"check xlookup for volume 150",0,1),IF(AND(IS42>$V$286,IS42<=$V$287),_xlfn.XLOOKUP(IX42,$AA$285:$AD$285,$AA$287:$AD$287,"check xlookup for volume 300",0,1),IF(AND(IS42>$V$287,IS42<=$V$288),_xlfn.XLOOKUP(IX42,$AA$285:$AD$285,$AA$288:$AD$288,"check xlookup for volume 900",0,1),IF(AND(IS42>$V$288,IS42<=$V$289),_xlfn.XLOOKUP(IX42,$AA$285:$AD$285,$AA$289:$AD$289,"check xlookup for volume 1500",0,1),IF(IS42>$V$289,_xlfn.XLOOKUP(IX42,$AA$285:$AD$285,$AA$290:$AD$290,"check xlookup for volume >1500",0,1),"")))))+IF(JF42=$W$293,$AA$293,$AA$294))/4)) -> Enter Major/Minor Street Speeds | XW42: =IF(OR(ISBLANK($P$21),ISBLANK($P$23)),"Enter Major/Minor Street Speeds",IF(JL42=0,,(IF(JL42<5,_xlfn.XLOOKUP(JL42,$W$269:$W$272,$AA$269:$AA$272,"error",0,1),$AA$273)+IF(JQ42<=$V$276,$AA$276,IF(AND(JQ42>$V$276,JQ42<=$V$277),$AA$277,IF(AND(JQ42>$V$277,JQ42<=$V$278),$AA$278,IF(AND(JQ42>$V$278,JQ42<=$V$279),$AA$279,$AA$280))))+IF(JV42<=$V$286,_xlfn.XLOOKUP(KA42,AA$285:$AD$285,$AA$286:$AD$286,"check xlookup for volume 150",0,1),IF(AND(JV42>$V$286,JV42<=$V$287),_xlfn.XLOOKUP(KA42,$AA$285:$AD$285,$AA$287:$AD$287,"check xlookup for volume 300",0,1),IF(AND(JV42>$V$287,JV42<=$V$288),_xlfn.XLOOKUP(KA42,$AA$285:$AD$285,$AA$288:$AD$288,"check xlookup for volume 900",0,1),IF(AND(JV42>$V$288,JV42<=$V$289),_xlfn.XLOOKUP(KA42,$AA$285:$AD$285,$AA$289:$AD$289,"check xlookup for volume 1500",0,1),IF(JV42>$V$289,_xlfn.XLOOKUP(KA42,$AA$285:$AD$285,$AA$290:$AD$290,"check xlookup for volume >1500",0,1),"")))))+IF(KI42=$W$293,$AA$293,$AA$294))/4)) -> Enter Major/Minor Street Speeds | YG42: =IF(OR(ISBLANK($P$21),ISBLANK($P$23)),"Enter Major/Minor Street Speeds",IF(KO42=0,,(IF(KO42<5,_xlfn.XLOOKUP(KO42,$W$269:$W$272,$AA$269:$AA$272,"error",0,1),$AA$273)+IF(KT42<=$V$276,$AA$276,IF(AND(KT42>$V$276,KT42<=$V$277),$AA$277,IF(AND(KT42>$V$277,KT42<=$V$278),$AA$278,IF(AND(KT42>$V$278,KT42<=$V$279),$AA$279,$AA$280))))+IF(KY42<=$V$286,_xlfn.XLOOKUP(LD42,AA$285:$AD$285,$AA$286:$AD$286,"check xlookup for volume 150",0,1),IF(AND(KY42>$V$286,KY42<=$V$287),_xlfn.XLOOKUP(LD42,$AA$285:$AD$285,$AA$287:$AD$287,"check xlookup for volume 300",0,1),IF(AND(KY42>$V$287,KY42<=$V$288),_xlfn.XLOOKUP(LD42,$AA$285:$AD$285,$AA$288:$AD$288,"check xlookup for volume 900",0,1),IF(AND(KY42>$V$288,KY42<=$V$289),_xlfn.XLOOKUP(LD42,$AA$285:$AD$285,$AA$289:$AD$289,"check xlookup for volume 1500",0,1),IF(KY42>$V$289,_xlfn.XLOOKUP(LD42,$AA$285:$AD$285,$AA$290:$AD$290,"check xlookup for volume >1500",0,1),"")))))+IF(LL42=$W$293,$AA$293,$AA$294))/4)) -> Enter Major/Minor Street Speeds | YQ42: =IF(OR(ISBLANK($P$21),ISBLANK($P$23)),"Enter Major/Minor Street Speeds",IF(LR42=0,,(IF(LR42<5,_xlfn.XLOOKUP(LR42,$W$269:$W$272,$AA$269:$AA$272,"error",0,1),$AA$273)+IF(LW42<=$V$276,$AA$276,IF(AND(LW42>$V$276,LW42<=$V$277),$AA$277,IF(AND(LW42>$V$277,LW42<=$V$278),$AA$278,IF(AND(LW42>$V$278,LW42<=$V$279),$AA$279,$AA$280))))+IF(MB42<=$V$286,_xlfn.XLOOKUP(MG42,AA$285:$AD$285,$AA$286:$AD$286,"check xlookup for volume 150",0,1),IF(AND(MB42>$V$286,MB42<=$V$287),_xlfn.XLOOKUP(MG42,$AA$285:$AD$285,$AA$287:$AD$287,"check xlookup for volume 300",0,1),IF(AND(MB42>$V$287,MB42<=$V$288),_xlfn.XLOOKUP(MG42,$AA$285:$AD$285,$AA$288:$AD$288,"check xlookup for volume 900",0,1),IF(AND(MB42>$V$288,MB42<=$V$289),_xlfn.XLOOKUP(MG42,$AA$285:$AD$285,$AA$289:$AD$289,"check xlookup for volume 1500",0,1),IF(MB42>$V$289,_xlfn.XLOOKUP(MG42,$AA$285:$AD$285,$AA$290:$AD$290,"check xlookup for volume >1500",0,1),"")))))+IF(MO42=$W$293,$AA$293,$AA$294))/4)) -> Enter Major/Minor Street Speeds | ZA42: =IF(OR(ISBLANK($P$21),ISBLANK($P$23)),"Enter Major/Minor Street Speeds",IF(MU42=0,,(IF(MU42<5,_xlfn.XLOOKUP(MU42,$W$269:$W$272,$AA$269:$AA$272,"error",0,1),$AA$273)+IF(MZ42<=$V$276,$AA$276,IF(AND(MZ42>$V$276,MZ42<=$V$277),$AA$277,IF(AND(MZ42>$V$277,MZ42<=$V$278),$AA$278,IF(AND(MZ42>$V$278,MZ42<=$V$279),$AA$279,$AA$280))))+IF(NE42<=$V$286,_xlfn.XLOOKUP(NJ42,AA$285:$AD$285,$AA$286:$AD$286,"check xlookup for volume 150",0,1),IF(AND(NE42>$V$286,NE42<=$V$287),_xlfn.XLOOKUP(NJ42,$AA$285:$AD$285,$AA$287:$AD$287,"check xlookup for volume 300",0,1),IF(AND(NE42>$V$287,NE42<=$V$288),_xlfn.XLOOKUP(NJ42,$AA$285:$AD$285,$AA$288:$AD$288,"check xlookup for volume 900",0,1),IF(AND(NE42>$V$288,NE42<=$V$289),_xlfn.XLOOKUP(NJ42,$AA$285:$AD$285,$AA$289:$AD$289,"check xlookup for volume 1500",0,1),IF(NE42>$V$289,_xlfn.XLOOKUP(NJ42,$AA$285:$AD$285,$AA$290:$AD$290,"check xlookup for volume >1500",0,1),"")))))+IF(NR42=$W$293,$AA$293,$AA$294))/4)) -> Enter Major/Minor Street Speeds | ZK42: =IF(OR(ISBLANK($P$21),ISBLANK($P$23)),"Enter Major/Minor Street Speeds",IF(NX42=0,,(IF(NX42<5,_xlfn.XLOOKUP(NX42,$W$269:$W$272,$AA$269:$AA$272,"error",0,1),$AA$273)+IF(OC42<=$V$276,$AA$276,IF(AND(OC42>$V$276,OC42<=$V$277),$AA$277,IF(AND(OC42>$V$277,OC42<=$V$278),$AA$278,IF(AND(OC42>$V$278,OC42<=$V$279),$AA$279,$AA$280))))+IF(OH42<=$V$286,_xlfn.XLOOKUP(OM42,AA$285:$AD$285,$AA$286:$AD$286,"check xlookup for volume 150",0,1),IF(AND(OH42>$V$286,OH42<=$V$287),_xlfn.XLOOKUP(OM42,$AA$285:$AD$285,$AA$287:$AD$287,"check xlookup for volume 300",0,1),IF(AND(OH42>$V$287,OH42<=$V$288),_xlfn.XLOOKUP(OM42,$AA$285:$AD$285,$AA$288:$AD$288,"check xlookup for volume 900",0,1),IF(AND(OH42>$V$288,OH42<=$V$289),_xlfn.XLOOKUP(OM42,$AA$285:$AD$285,$AA$289:$AD$289,"check xlookup for volume 1500",0,1),IF(OH42>$V$289,_xlfn.XLOOKUP(OM42,$AA$285:$AD$285,$AA$290:$AD$290,"check xlookup for volume >1500",0,1),"")))))+IF(OU42=$W$293,$AA$293,$AA$294))/4)) -> Enter Major/Minor Street Speeds | ZU42: =IF(OR(ISBLANK($P$21),ISBLANK($P$23)),"Enter Major/Minor Street Speeds",IF(PA42=0,,(IF(PA42<5,_xlfn.XLOOKUP(PA42,$W$269:$W$272,$AA$269:$AA$272,"error",0,1),$AA$273)+IF(PF42<=$V$276,$AA$276,IF(AND(PF42>$V$276,PF42<=$V$277),$AA$277,IF(AND(PF42>$V$277,PF42<=$V$278),$AA$278,IF(AND(PF42>$V$278,PF42<=$V$279),$AA$279,$AA$280))))+IF(PK42<=$V$286,_xlfn.XLOOKUP(PP42,AA$285:$AD$285,$AA$286:$AD$286,"check xlookup for volume 150",0,1),IF(AND(PK42>$V$286,PK42<=$V$287),_xlfn.XLOOKUP(PP42,$AA$285:$AD$285,$AA$287:$AD$287,"check xlookup for volume 300",0,1),IF(AND(PK42>$V$287,PK42<=$V$288),_xlfn.XLOOKUP(PP42,$AA$285:$AD$285,$AA$288:$AD$288,"check xlookup for volume 900",0,1),IF(AND(PK42>$V$288,PK42<=$V$289),_xlfn.XLOOKUP(PP42,$AA$285:$AD$285,$AA$289:$AD$289,"check xlookup for volume 1500",0,1),IF(PK42>$V$289,_xlfn.XLOOKUP(PP42,$AA$285:$AD$285,$AA$290:$AD$290,"check xlookup for volume >1500",0,1),"")))))+IF(PX42=$W$293,$AA$293,$AA$294))/4)) -> Enter Major/Minor Street Speeds | AAE42: =IF(OR(ISBLANK($P$21),ISBLANK($P$23)),"Enter Major/Minor Street Speeds",IF(QD42=0,,(IF(QD42<5,_xlfn.XLOOKUP(QD42,$W$269:$W$272,$AA$269:$AA$272,"error",0,1),$AA$273)+IF(QI42<=$V$276,$AA$276,IF(AND(QI42>$V$276,QI42<=$V$277),$AA$277,IF(AND(QI42>$V$277,QI42<=$V$278),$AA$278,IF(AND(QI42>$V$278,QI42<=$V$279),$AA$279,$AA$280))))+IF(QN42<=$V$286,_xlfn.XLOOKUP(QS42,AA$285:$AD$285,$AA$286:$AD$286,"check xlookup for volume 150",0,1),IF(AND(QN42>$V$286,QN42<=$V$287),_xlfn.XLOOKUP(QS42,$AA$285:$AD$285,$AA$287:$AD$287,"check xlookup for volume 300",0,1),IF(AND(QN42>$V$287,QN42<=$V$288),_xlfn.XLOOKUP(QS42,$AA$285:$AD$285,$AA$288:$AD$288,"check xlookup for volume 900",0,1),IF(AND(QN42>$V$288,QN42<=$V$289),_xlfn.XLOOKUP(QS42,$AA$285:$AD$285,$AA$289:$AD$289,"check xlookup for volume 1500",0,1),IF(QN42>$V$289,_xlfn.XLOOKUP(QS42,$AA$285:$AD$285,$AA$290:$AD$290,"check xlookup for volume >1500",0,1),"")))))+IF(RA42=$W$293,$AA$293,$AA$294))/4)) -> Enter Major/Minor Street Speeds | AAO42: =IF(OR(ISBLANK($P$21),ISBLANK($P$23)),"Enter Major/Minor Street Speeds",IF(RG42=0,,(IF(RG42<5,_xlfn.XLOOKUP(RG42,$W$269:$W$272,$AA$269:$AA$272,"error",0,1),$AA$273)+IF(RL42<=$V$276,$AA$276,IF(AND(RL42>$V$276,RL42<=$V$277),$AA$277,IF(AND(RL42>$V$277,RL42<=$V$278),$AA$278,IF(AND(RL42>$V$278,RL42<=$V$279),$AA$279,$AA$280))))+IF(RQ42<=$V$286,_xlfn.XLOOKUP(RV42,AA$285:$AD$285,$AA$286:$AD$286,"check xlookup for volume 150",0,1),IF(AND(RQ42>$V$286,RQ42<=$V$287),_xlfn.XLOOKUP(RV42,$AA$285:$AD$285,$AA$287:$AD$287,"check xlookup for volume 300",0,1),IF(AND(RQ42>$V$287,RQ42<=$V$288),_xlfn.XLOOKUP(RV42,$AA$285:$AD$285,$AA$288:$AD$288,"check xlookup for volume 900",0,1),IF(AND(RQ42>$V$288,RQ42<=$V$289),_xlfn.XLOOKUP(RV42,$AA$285:$AD$285,$AA$289:$AD$289,"check xlookup for volume 1500",0,1),IF(RQ42>$V$289,_xlfn.XLOOKUP(RV42,$AA$285:$AD$285,$AA$290:$AD$290,"check xlookup for volume >1500",0,1),"")))))+IF(SD42=$W$293,$AA$293,$AA$294))/4)) -> Enter Major/Minor Street Speeds | AAY42: =IF(OR(ISBLANK($P$21),ISBLANK($P$23)),"Enter Major/Minor Street Speeds",IF(SJ42=0,,(IF(SJ42<5,_xlfn.XLOOKUP(SJ42,$W$269:$W$272,$AA$269:$AA$272,"error",0,1),$AA$273)+IF(SO42<=$V$276,$AA$276,IF(AND(SO42>$V$276,SO42<=$V$277),$AA$277,IF(AND(SO42>$V$277,SO42<=$V$278),$AA$278,IF(AND(SO42>$V$278,SO42<=$V$279),$AA$279,$AA$280))))+IF(ST42<=$V$286,_xlfn.XLOOKUP(SY42,AA$285:$AD$285,$AA$286:$AD$286,"check xlookup for volume 150",0,1),IF(AND(ST42>$V$286,ST42<=$V$287),_xlfn.XLOOKUP(SY42,$AA$285:$AD$285,$AA$287:$AD$287,"check xlookup for volume 300",0,1),IF(AND(ST42>$V$287,ST42<=$V$288),_xlfn.XLOOKUP(SY42,$AA$285:$AD$285,$AA$288:$AD$288,"check xlookup for volume 900",0,1),IF(AND(ST42>$V$288,ST42<=$V$289),_xlfn.XLOOKUP(SY42,$AA$285:$AD$285,$AA$289:$AD$289,"check xlookup for volume 1500",0,1),IF(ST42>$V$289,_xlfn.XLOOKUP(SY42,$AA$285:$AD$285,$AA$290:$AD$290,"check xlookup for volume >1500",0,1),"")))))+IF(TG42=$W$293,$AA$293,$AA$294))/4)) -> Enter Major/Minor Street Speeds | ABI42: =IF(OR(ISBLANK($P$21),ISBLANK($P$23)),"Enter Major/Minor Street Speeds",IF(TM42=0,,(IF(TM42<5,_xlfn.XLOOKUP(TM42,$W$269:$W$272,$AA$269:$AA$272,"error",0,1),$AA$273)+IF(TR42<=$V$276,$AA$276,IF(AND(TR42>$V$276,TR42<=$V$277),$AA$277,IF(AND(TR42>$V$277,TR42<=$V$278),$AA$278,IF(AND(TR42>$V$278,TR42<=$V$279),$AA$279,$AA$280))))+IF(TW42<=$V$286,_xlfn.XLOOKUP(UB42,AA$285:$AD$285,$AA$286:$AD$286,"check xlookup for volume 150",0,1),IF(AND(TW42>$V$286,TW42<=$V$287),_xlfn.XLOOKUP(UB42,$AA$285:$AD$285,$AA$287:$AD$287,"check xlookup for volume 300",0,1),IF(AND(TW42>$V$287,TW42<=$V$288),_xlfn.XLOOKUP(UB42,$AA$285:$AD$285,$AA$288:$AD$288,"check xlookup for volume 900",0,1),IF(AND(TW42>$V$288,TW42<=$V$289),_xlfn.XLOOKUP(UB42,$AA$285:$AD$285,$AA$289:$AD$289,"check xlookup for volume 1500",0,1),IF(TW42>$V$289,_xlfn.XLOOKUP(UB42,$AA$285:$AD$285,$AA$290:$AD$290,"check xlookup for volume >1500",0,1),"")))))+IF(UJ42=$W$293,$AA$293,$AA$294))/4)) -> Enter Major/Minor Street Speeds
A44: ='3 - Alt Num Lanes Input'!E26 -> Two-Way Stop Control | T44: N-S | Z44: =UP44 -> Enter Major/Minor Street Speeds | AD44: No | AI44: No | AN44: =SUM('TWSC N-S'!EV32:FG32) -> 4 | AS44: =Maj_St_Spd_Lmt -> 0 | AX44: =SUM(SBL_Master,SBT_Master,SBR_Master,SBU_Master,EBL_Master,NBT_Master,WBR_Master) -> 1357 | BC44: Free Flowing | BK44: Unmarked | BQ44: =SUM('TWSC N-S'!FH33:FH44) -> 4 | BV44: =Min_St_Spd_Lmt -> 0 | CA44: =SUM(WBL_Master,WBT_Master,WBR_Master,WBU_Master,SBL_Master,EBT_Master,NBR_Master) -> 745 | CF44: Permissive Left | CN44: Marked | CT44: =SUM('TWSC N-S'!EV45:FG45) -> 4 | CY44: =Maj_St_Spd_Lmt -> 0 | DD44: =SUM(NBL_Master,NBT_Master,NBR_Master,NBU_Master,WBL_Master,SBT_Master,EBR_Master) -> 1408 | DI44: Free Flowing | DQ44: Unmarked | DW44: =SUM('TWSC N-S'!EU33:EU44) -> 4 | EB44: =Min_St_Spd_Lmt -> 0 | EG44: =SUM(EBL_Master,EBT_Master,EBR_Master,EBU_Master,NBL_Master,WBT_Master,SBR_Master) -> 796 | EL44: Permissive Left | ET44: Marked | UP44: =IFERROR((((SUM(SQRT(UU44),SQRT(VE44),SQRT(VO44),SQRT(VY44),SQRT(WI44),SQRT(WS44),SQRT(XC44),SQRT(XM44),SQRT(XW44),SQRT(YG44),SQRT(YQ44),SQRT(ZA44),SQRT(ZK44),SQRT(ZU44),SQRT(AAE44),SQRT(AAO44),SQRT(AAY44),SQRT(ABI44))/COUNTIF(UU44:ABR45,">0"))^2)*(_xlfn.XLOOKUP(AD44,$W$304:$W$305,$AA$304:$AA$305,"lookup error",0,1))*(_xlfn.XLOOKUP(AI44,Multistage_Crossing,$AA$298:$AA$300,"lookup error",0,1))),"Enter Major/Minor Street Speeds") -> Enter Major/Minor Street Speeds | UU44: =IF(OR(ISBLANK($P$21),ISBLANK($P$23)),"Enter Major/Minor Street Speeds",IF(AN44=0,,(IF(AN44<5,_xlfn.XLOOKUP(AN44,$W$269:$W$272,$AA$269:$AA$272,"error",0,1),$AA$273)+IF(AS44<=$V$276,$AA$276,IF(AND(AS44>$V$276,AS44<=$V$277),$AA$277,IF(AND(AS44>$V$277,AS44<=$V$278),$AA$278,IF(AND(AS44>$V$278,AS44<=$V$279),$AA$279,$AA$280))))+IF(AX44<=$V$286,_xlfn.XLOOKUP(BC44,AA$285:$AD$285,$AA$286:$AD$286,"check xlookup for volume 150",0,1),IF(AND(AX44>$V$286,AX44<=$V$287),_xlfn.XLOOKUP(BC44,$AA$285:$AD$285,$AA$287:$AD$287,"check xlookup for volume 300",0,1),IF(AND(AX44>$V$287,AX44<=$V$288),_xlfn.XLOOKUP(BC44,$AA$285:$AD$285,$AA$288:$AD$288,"check xlookup for volume 900",0,1),IF(AND(AX44>$V$288,AX44<=$V$289),_xlfn.XLOOKUP(BC44,$AA$285:$AD$285,$AA$289:$AD$289,"check xlookup for volume 1500",0,1),IF(AX44>$V$289,_xlfn.XLOOKUP(BC44,$AA$285:$AD$285,$AA$290:$AD$290,"check xlookup for volume >1500",0,1),"")))))+IF(BK44=$W$293,$AA$293,$AA$294))/4)) -> Enter Major/Minor Street Speeds | VE44: =IF(OR(ISBLANK($P$21),ISBLANK($P$23)),"Enter Major/Minor Street Speeds",IF(BQ44=0,,(IF(BQ44<5,_xlfn.XLOOKUP(BQ44,$W$269:$W$272,$AA$269:$AA$272,"error",0,1),$AA$273)+IF(BV44<=$V$276,$AA$276,IF(AND(BV44>$V$276,BV44<=$V$277),$AA$277,IF(AND(BV44>$V$277,BV44<=$V$278),$AA$278,IF(AND(BV44>$V$278,BV44<=$V$279),$AA$279,$AA$280))))+IF(CA44<=$V$286,_xlfn.XLOOKUP(CF44,AA$285:$AD$285,$AA$286:$AD$286,"check xlookup for volume 150",0,1),IF(AND(CA44>$V$286,CA44<=$V$287),_xlfn.XLOOKUP(CF44,$AA$285:$AD$285,$AA$287:$AD$287,"check xlookup for volume 300",0,1),IF(AND(CA44>$V$287,CA44<=$V$288),_xlfn.XLOOKUP(CF44,$AA$285:$AD$285,$AA$288:$AD$288,"check xlookup for volume 900",0,1),IF(AND(CA44>$V$288,CA44<=$V$289),_xlfn.XLOOKUP(CF44,$AA$285:$AD$285,$AA$289:$AD$289,"check xlookup for volume 1500",0,1),IF(CA44>$V$289,_xlfn.XLOOKUP(CF44,$AA$285:$AD$285,$AA$290:$AD$290,"check xlookup for volume >1500",0,1),"")))))+IF(CN44=$W$293,$AA$293,$AA$294))/4)) -> Enter Major/Minor Street Speeds | VO44: =IF(OR(ISBLANK($P$21),ISBLANK($P$23)),"Enter Major/Minor Street Speeds",IF(CT44=0,,(IF(CT44<5,_xlfn.XLOOKUP(CT44,$W$269:$W$272,$AA$269:$AA$272,"error",0,1),$AA$273)+IF(CY44<=$V$276,$AA$276,IF(AND(CY44>$V$276,CY44<=$V$277),$AA$277,IF(AND(CY44>$V$277,CY44<=$V$278),$AA$278,IF(AND(CY44>$V$278,CY44<=$V$279),$AA$279,$AA$280))))+IF(DD44<=$V$286,_xlfn.XLOOKUP(DI44,AA$285:$AD$285,$AA$286:$AD$286,"check xlookup for volume 150",0,1),IF(AND(DD44>$V$286,DD44<=$V$287),_xlfn.XLOOKUP(DI44,$AA$285:$AD$285,$AA$287:$AD$287,"check xlookup for volume 300",0,1),IF(AND(DD44>$V$287,DD44<=$V$288),_xlfn.XLOOKUP(DI44,$AA$285:$AD$285,$AA$288:$AD$288,"check xlookup for volume 900",0,1),IF(AND(DD44>$V$288,DD44<=$V$289),_xlfn.XLOOKUP(DI44,$AA$285:$AD$285,$AA$289:$AD$289,"check xlookup for volume 1500",0,1),IF(DD44>$V$289,_xlfn.XLOOKUP(DI44,$AA$285:$AD$285,$AA$290:$AD$290,"check xlookup for volume >1500",0,1),"")))))+IF(DQ44=$W$293,$AA$293,$AA$294))/4)) -> Enter Major/Minor Street Speeds | VY44: =IF(OR(ISBLANK($P$21),ISBLANK($P$23)),"Enter Major/Minor Street Speeds",IF(DW44=0,,(IF(DW44<5,_xlfn.XLOOKUP(DW44,$W$269:$W$272,$AA$269:$AA$272,"error",0,1),$AA$273)+IF(EB44<=$V$276,$AA$276,IF(AND(EB44>$V$276,EB44<=$V$277),$AA$277,IF(AND(EB44>$V$277,EB44<=$V$278),$AA$278,IF(AND(EB44>$V$278,EB44<=$V$279),$AA$279,$AA$280))))+IF(EG44<=$V$286,_xlfn.XLOOKUP(EL44,AA$285:$AD$285,$AA$286:$AD$286,"check xlookup for volume 150",0,1),IF(AND(EG44>$V$286,EG44<=$V$287),_xlfn.XLOOKUP(EL44,$AA$285:$AD$285,$AA$287:$AD$287,"check xlookup for volume 300",0,1),IF(AND(EG44>$V$287,EG44<=$V$288),_xlfn.XLOOKUP(EL44,$AA$285:$AD$285,$AA$288:$AD$288,"check xlookup for volume 900",0,1),IF(AND(EG44>$V$288,EG44<=$V$289),_xlfn.XLOOKUP(EL44,$AA$285:$AD$285,$AA$289:$AD$289,"check xlookup for volume 1500",0,1),IF(EG44>$V$289,_xlfn.XLOOKUP(EL44,$AA$285:$AD$285,$AA$290:$AD$290,"check xlookup for volume >1500",0,1),"")))))+IF(ET44=$W$293,$AA$293,$AA$294))/4)) -> Enter Major/Minor Street Speeds | WI44: =IF(OR(ISBLANK($P$21),ISBLANK($P$23)),"Enter Major/Minor Street Speeds",IF(EZ44=0,,(IF(EZ44<5,_xlfn.XLOOKUP(EZ44,$W$269:$W$272,$AA$269:$AA$272,"error",0,1),$AA$273)+IF(FE44<=$V$276,$AA$276,IF(AND(FE44>$V$276,FE44<=$V$277),$AA$277,IF(AND(FE44>$V$277,FE44<=$V$278),$AA$278,IF(AND(FE44>$V$278,FE44<=$V$279),$AA$279,$AA$280))))+IF(FJ44<=$V$286,_xlfn.XLOOKUP(FO44,AA$285:$AD$285,$AA$286:$AD$286,"check xlookup for volume 150",0,1),IF(AND(FJ44>$V$286,FJ44<=$V$287),_xlfn.XLOOKUP(FO44,$AA$285:$AD$285,$AA$287:$AD$287,"check xlookup for volume 300",0,1),IF(AND(FJ44>$V$287,FJ44<=$V$288),_xlfn.XLOOKUP(FO44,$AA$285:$AD$285,$AA$288:$AD$288,"check xlookup for volume 900",0,1),IF(AND(FJ44>$V$288,FJ44<=$V$289),_xlfn.XLOOKUP(FO44,$AA$285:$AD$285,$AA$289:$AD$289,"check xlookup for volume 1500",0,1),IF(FJ44>$V$289,_xlfn.XLOOKUP(FO44,$AA$285:$AD$285,$AA$290:$AD$290,"check xlookup for volume >1500",0,1),"")))))+IF(FW44=$W$293,$AA$293,$AA$294))/4)) -> Enter Major/Minor Street Speeds | WS44: =IF(OR(ISBLANK($P$21),ISBLANK($P$23)),"Enter Major/Minor Street Speeds",IF(GC44=0,,(IF(GC44<5,_xlfn.XLOOKUP(GC44,$W$269:$W$272,$AA$269:$AA$272,"error",0,1),$AA$273)+IF(GH44<=$V$276,$AA$276,IF(AND(GH44>$V$276,GH44<=$V$277),$AA$277,IF(AND(GH44>$V$277,GH44<=$V$278),$AA$278,IF(AND(GH44>$V$278,GH44<=$V$279),$AA$279,$AA$280))))+IF(GM44<=$V$286,_xlfn.XLOOKUP(GR44,AA$285:$AD$285,$AA$286:$AD$286,"check xlookup for volume 150",0,1),IF(AND(GM44>$V$286,GM44<=$V$287),_xlfn.XLOOKUP(GR44,$AA$285:$AD$285,$AA$287:$AD$287,"check xlookup for volume 300",0,1),IF(AND(GM44>$V$287,GM44<=$V$288),_xlfn.XLOOKUP(GR44,$AA$285:$AD$285,$AA$288:$AD$288,"check xlookup for volume 900",0,1),IF(AND(GM44>$V$288,GM44<=$V$289),_xlfn.XLOOKUP(GR44,$AA$285:$AD$285,$AA$289:$AD$289,"check xlookup for volume 1500",0,1),IF(GM44>$V$289,_xlfn.XLOOKUP(GR44,$AA$285:$AD$285,$AA$290:$AD$290,"check xlookup for volume >1500",0,1),"")))))+IF(GZ44=$W$293,$AA$293,$AA$294))/4)) -> Enter Major/Minor Street Speeds | XC44: =IF(OR(ISBLANK($P$21),ISBLANK($P$23)),"Enter Major/Minor Street Speeds",IF(HF44=0,,(IF(HF44<5,_xlfn.XLOOKUP(HF44,$W$269:$W$272,$AA$269:$AA$272,"error",0,1),$AA$273)+IF(HK44<=$V$276,$AA$276,IF(AND(HK44>$V$276,HK44<=$V$277),$AA$277,IF(AND(HK44>$V$277,HK44<=$V$278),$AA$278,IF(AND(HK44>$V$278,HK44<=$V$279),$AA$279,$AA$280))))+IF(HP44<=$V$286,_xlfn.XLOOKUP(HU44,AA$285:$AD$285,$AA$286:$AD$286,"check xlookup for volume 150",0,1),IF(AND(HP44>$V$286,HP44<=$V$287),_xlfn.XLOOKUP(HU44,$AA$285:$AD$285,$AA$287:$AD$287,"check xlookup for volume 300",0,1),IF(AND(HP44>$V$287,HP44<=$V$288),_xlfn.XLOOKUP(HU44,$AA$285:$AD$285,$AA$288:$AD$288,"check xlookup for volume 900",0,1),IF(AND(HP44>$V$288,HP44<=$V$289),_xlfn.XLOOKUP(HU44,$AA$285:$AD$285,$AA$289:$AD$289,"check xlookup for volume 1500",0,1),IF(HP44>$V$289,_xlfn.XLOOKUP(HU44,$AA$285:$AD$285,$AA$290:$AD$290,"check xlookup for volume >1500",0,1),"")))))+IF(IC44=$W$293,$AA$293,$AA$294))/4)) -> Enter Major/Minor Street Speeds | XM44: =IF(OR(ISBLANK($P$21),ISBLANK($P$23)),"Enter Major/Minor Street Speeds",IF(II44=0,,(IF(II44<5,_xlfn.XLOOKUP(II44,$W$269:$W$272,$AA$269:$AA$272,"error",0,1),$AA$273)+IF(IN44<=$V$276,$AA$276,IF(AND(IN44>$V$276,IN44<=$V$277),$AA$277,IF(AND(IN44>$V$277,IN44<=$V$278),$AA$278,IF(AND(IN44>$V$278,IN44<=$V$279),$AA$279,$AA$280))))+IF(IS44<=$V$286,_xlfn.XLOOKUP(IX44,AA$285:$AD$285,$AA$286:$AD$286,"check xlookup for volume 150",0,1),IF(AND(IS44>$V$286,IS44<=$V$287),_xlfn.XLOOKUP(IX44,$AA$285:$AD$285,$AA$287:$AD$287,"check xlookup for volume 300",0,1),IF(AND(IS44>$V$287,IS44<=$V$288),_xlfn.XLOOKUP(IX44,$AA$285:$AD$285,$AA$288:$AD$288,"check xlookup for volume 900",0,1),IF(AND(IS44>$V$288,IS44<=$V$289),_xlfn.XLOOKUP(IX44,$AA$285:$AD$285,$AA$289:$AD$289,"check xlookup for volume 1500",0,1),IF(IS44>$V$289,_xlfn.XLOOKUP(IX44,$AA$285:$AD$285,$AA$290:$AD$290,"check xlookup for volume >1500",0,1),"")))))+IF(JF44=$W$293,$AA$293,$AA$294))/4)) -> Enter Major/Minor Street Speeds | XW44: =IF(OR(ISBLANK($P$21),ISBLANK($P$23)),"Enter Major/Minor Street Speeds",IF(JL44=0,,(IF(JL44<5,_xlfn.XLOOKUP(JL44,$W$269:$W$272,$AA$269:$AA$272,"error",0,1),$AA$273)+IF(JQ44<=$V$276,$AA$276,IF(AND(JQ44>$V$276,JQ44<=$V$277),$AA$277,IF(AND(JQ44>$V$277,JQ44<=$V$278),$AA$278,IF(AND(JQ44>$V$278,JQ44<=$V$279),$AA$279,$AA$280))))+IF(JV44<=$V$286,_xlfn.XLOOKUP(KA44,AA$285:$AD$285,$AA$286:$AD$286,"check xlookup for volume 150",0,1),IF(AND(JV44>$V$286,JV44<=$V$287),_xlfn.XLOOKUP(KA44,$AA$285:$AD$285,$AA$287:$AD$287,"check xlookup for volume 300",0,1),IF(AND(JV44>$V$287,JV44<=$V$288),_xlfn.XLOOKUP(KA44,$AA$285:$AD$285,$AA$288:$AD$288,"check xlookup for volume 900",0,1),IF(AND(JV44>$V$288,JV44<=$V$289),_xlfn.XLOOKUP(KA44,$AA$285:$AD$285,$AA$289:$AD$289,"check xlookup for volume 1500",0,1),IF(JV44>$V$289,_xlfn.XLOOKUP(KA44,$AA$285:$AD$285,$AA$290:$AD$290,"check xlookup for volume >1500",0,1),"")))))+IF(KI44=$W$293,$AA$293,$AA$294))/4)) -> Enter Major/Minor Street Speeds | YG44: =IF(OR(ISBLANK($P$21),ISBLANK($P$23)),"Enter Major/Minor Street Speeds",IF(KO44=0,,(IF(KO44<5,_xlfn.XLOOKUP(KO44,$W$269:$W$272,$AA$269:$AA$272,"error",0,1),$AA$273)+IF(KT44<=$V$276,$AA$276,IF(AND(KT44>$V$276,KT44<=$V$277),$AA$277,IF(AND(KT44>$V$277,KT44<=$V$278),$AA$278,IF(AND(KT44>$V$278,KT44<=$V$279),$AA$279,$AA$280))))+IF(KY44<=$V$286,_xlfn.XLOOKUP(LD44,AA$285:$AD$285,$AA$286:$AD$286,"check xlookup for volume 150",0,1),IF(AND(KY44>$V$286,KY44<=$V$287),_xlfn.XLOOKUP(LD44,$AA$285:$AD$285,$AA$287:$AD$287,"check xlookup for volume 300",0,1),IF(AND(KY44>$V$287,KY44<=$V$288),_xlfn.XLOOKUP(LD44,$AA$285:$AD$285,$AA$288:$AD$288,"check xlookup for volume 900",0,1),IF(AND(KY44>$V$288,KY44<=$V$289),_xlfn.XLOOKUP(LD44,$AA$285:$AD$285,$AA$289:$AD$289,"check xlookup for volume 1500",0,1),IF(KY44>$V$289,_xlfn.XLOOKUP(LD44,$AA$285:$AD$285,$AA$290:$AD$290,"check xlookup for volume >1500",0,1),"")))))+IF(LL44=$W$293,$AA$293,$AA$294))/4)) -> Enter Major/Minor Street Speeds | YQ44: =IF(OR(ISBLANK($P$21),ISBLANK($P$23)),"Enter Major/Minor Street Speeds",IF(LR44=0,,(IF(LR44<5,_xlfn.XLOOKUP(LR44,$W$269:$W$272,$AA$269:$AA$272,"error",0,1),$AA$273)+IF(LW44<=$V$276,$AA$276,IF(AND(LW44>$V$276,LW44<=$V$277),$AA$277,IF(AND(LW44>$V$277,LW44<=$V$278),$AA$278,IF(AND(LW44>$V$278,LW44<=$V$279),$AA$279,$AA$280))))+IF(MB44<=$V$286,_xlfn.XLOOKUP(MG44,AA$285:$AD$285,$AA$286:$AD$286,"check xlookup for volume 150",0,1),IF(AND(MB44>$V$286,MB44<=$V$287),_xlfn.XLOOKUP(MG44,$AA$285:$AD$285,$AA$287:$AD$287,"check xlookup for volume 300",0,1),IF(AND(MB44>$V$287,MB44<=$V$288),_xlfn.XLOOKUP(MG44,$AA$285:$AD$285,$AA$288:$AD$288,"check xlookup for volume 900",0,1),IF(AND(MB44>$V$288,MB44<=$V$289),_xlfn.XLOOKUP(MG44,$AA$285:$AD$285,$AA$289:$AD$289,"check xlookup for volume 1500",0,1),IF(MB44>$V$289,_xlfn.XLOOKUP(MG44,$AA$285:$AD$285,$AA$290:$AD$290,"check xlookup for volume >1500",0,1),"")))))+IF(MO44=$W$293,$AA$293,$AA$294))/4)) -> Enter Major/Minor Street Speeds | ZA44: =IF(OR(ISBLANK($P$21),ISBLANK($P$23)),"Enter Major/Minor Street Speeds",IF(MU44=0,,(IF(MU44<5,_xlfn.XLOOKUP(MU44,$W$269:$W$272,$AA$269:$AA$272,"error",0,1),$AA$273)+IF(MZ44<=$V$276,$AA$276,IF(AND(MZ44>$V$276,MZ44<=$V$277),$AA$277,IF(AND(MZ44>$V$277,MZ44<=$V$278),$AA$278,IF(AND(MZ44>$V$278,MZ44<=$V$279),$AA$279,$AA$280))))+IF(NE44<=$V$286,_xlfn.XLOOKUP(NJ44,AA$285:$AD$285,$AA$286:$AD$286,"check xlookup for volume 150",0,1),IF(AND(NE44>$V$286,NE44<=$V$287),_xlfn.XLOOKUP(NJ44,$AA$285:$AD$285,$AA$287:$AD$287,"check xlookup for volume 300",0,1),IF(AND(NE44>$V$287,NE44<=$V$288),_xlfn.XLOOKUP(NJ44,$AA$285:$AD$285,$AA$288:$AD$288,"check xlookup for volume 900",0,1),IF(AND(NE44>$V$288,NE44<=$V$289),_xlfn.XLOOKUP(NJ44,$AA$285:$AD$285,$AA$289:$AD$289,"check xlookup for volume 1500",0,1),IF(NE44>$V$289,_xlfn.XLOOKUP(NJ44,$AA$285:$AD$285,$AA$290:$AD$290,"check xlookup for volume >1500",0,1),"")))))+IF(NR44=$W$293,$AA$293,$AA$294))/4)) -> Enter Major/Minor Street Speeds | ZK44: =IF(OR(ISBLANK($P$21),ISBLANK($P$23)),"Enter Major/Minor Street Speeds",IF(NX44=0,,(IF(NX44<5,_xlfn.XLOOKUP(NX44,$W$269:$W$272,$AA$269:$AA$272,"error",0,1),$AA$273)+IF(OC44<=$V$276,$AA$276,IF(AND(OC44>$V$276,OC44<=$V$277),$AA$277,IF(AND(OC44>$V$277,OC44<=$V$278),$AA$278,IF(AND(OC44>$V$278,OC44<=$V$279),$AA$279,$AA$280))))+IF(OH44<=$V$286,_xlfn.XLOOKUP(OM44,AA$285:$AD$285,$AA$286:$AD$286,"check xlookup for volume 150",0,1),IF(AND(OH44>$V$286,OH44<=$V$287),_xlfn.XLOOKUP(OM44,$AA$285:$AD$285,$AA$287:$AD$287,"check xlookup for volume 300",0,1),IF(AND(OH44>$V$287,OH44<=$V$288),_xlfn.XLOOKUP(OM44,$AA$285:$AD$285,$AA$288:$AD$288,"check xlookup for volume 900",0,1),IF(AND(OH44>$V$288,OH44<=$V$289),_xlfn.XLOOKUP(OM44,$AA$285:$AD$285,$AA$289:$AD$289,"check xlookup for volume 1500",0,1),IF(OH44>$V$289,_xlfn.XLOOKUP(OM44,$AA$285:$AD$285,$AA$290:$AD$290,"check xlookup for volume >1500",0,1),"")))))+IF(OU44=$W$293,$AA$293,$AA$294))/4)) -> Enter Major/Minor Street Speeds | ZU44: =IF(OR(ISBLANK($P$21),ISBLANK($P$23)),"Enter Major/Minor Street Speeds",IF(PA44=0,,(IF(PA44<5,_xlfn.XLOOKUP(PA44,$W$269:$W$272,$AA$269:$AA$272,"error",0,1),$AA$273)+IF(PF44<=$V$276,$AA$276,IF(AND(PF44>$V$276,PF44<=$V$277),$AA$277,IF(AND(PF44>$V$277,PF44<=$V$278),$AA$278,IF(AND(PF44>$V$278,PF44<=$V$279),$AA$279,$AA$280))))+IF(PK44<=$V$286,_xlfn.XLOOKUP(PP44,AA$285:$AD$285,$AA$286:$AD$286,"check xlookup for volume 150",0,1),IF(AND(PK44>$V$286,PK44<=$V$287),_xlfn.XLOOKUP(PP44,$AA$285:$AD$285,$AA$287:$AD$287,"check xlookup for volume 300",0,1),IF(AND(PK44>$V$287,PK44<=$V$288),_xlfn.XLOOKUP(PP44,$AA$285:$AD$285,$AA$288:$AD$288,"check xlookup for volume 900",0,1),IF(AND(PK44>$V$288,PK44<=$V$289),_xlfn.XLOOKUP(PP44,$AA$285:$AD$285,$AA$289:$AD$289,"check xlookup for volume 1500",0,1),IF(PK44>$V$289,_xlfn.XLOOKUP(PP44,$AA$285:$AD$285,$AA$290:$AD$290,"check xlookup for volume >1500",0,1),"")))))+IF(PX44=$W$293,$AA$293,$AA$294))/4)) -> Enter Major/Minor Street Speeds | AAE44: =IF(OR(ISBLANK($P$21),ISBLANK($P$23)),"Enter Major/Minor Street Speeds",IF(QD44=0,,(IF(QD44<5,_xlfn.XLOOKUP(QD44,$W$269:$W$272,$AA$269:$AA$272,"error",0,1),$AA$273)+IF(QI44<=$V$276,$AA$276,IF(AND(QI44>$V$276,QI44<=$V$277),$AA$277,IF(AND(QI44>$V$277,QI44<=$V$278),$AA$278,IF(AND(QI44>$V$278,QI44<=$V$279),$AA$279,$AA$280))))+IF(QN44<=$V$286,_xlfn.XLOOKUP(QS44,AA$285:$AD$285,$AA$286:$AD$286,"check xlookup for volume 150",0,1),IF(AND(QN44>$V$286,QN44<=$V$287),_xlfn.XLOOKUP(QS44,$AA$285:$AD$285,$AA$287:$AD$287,"check xlookup for volume 300",0,1),IF(AND(QN44>$V$287,QN44<=$V$288),_xlfn.XLOOKUP(QS44,$AA$285:$AD$285,$AA$288:$AD$288,"check xlookup for volume 900",0,1),IF(AND(QN44>$V$288,QN44<=$V$289),_xlfn.XLOOKUP(QS44,$AA$285:$AD$285,$AA$289:$AD$289,"check xlookup for volume 1500",0,1),IF(QN44>$V$289,_xlfn.XLOOKUP(QS44,$AA$285:$AD$285,$AA$290:$AD$290,"check xlookup for volume >1500",0,1),"")))))+IF(RA44=$W$293,$AA$293,$AA$294))/4)) -> Enter Major/Minor Street Speeds | AAO44: =IF(OR(ISBLANK($P$21),ISBLANK($P$23)),"Enter Major/Minor Street Speeds",IF(RG44=0,,(IF(RG44<5,_xlfn.XLOOKUP(RG44,$W$269:$W$272,$AA$269:$AA$272,"error",0,1),$AA$273)+IF(RL44<=$V$276,$AA$276,IF(AND(RL44>$V$276,RL44<=$V$277),$AA$277,IF(AND(RL44>$V$277,RL44<=$V$278),$AA$278,IF(AND(RL44>$V$278,RL44<=$V$279),$AA$279,$AA$280))))+IF(RQ44<=$V$286,_xlfn.XLOOKUP(RV44,AA$285:$AD$285,$AA$286:$AD$286,"check xlookup for volume 150",0,1),IF(AND(RQ44>$V$286,RQ44<=$V$287),_xlfn.XLOOKUP(RV44,$AA$285:$AD$285,$AA$287:$AD$287,"check xlookup for volume 300",0,1),IF(AND(RQ44>$V$287,RQ44<=$V$288),_xlfn.XLOOKUP(RV44,$AA$285:$AD$285,$AA$288:$AD$288,"check xlookup for volume 900",0,1),IF(AND(RQ44>$V$288,RQ44<=$V$289),_xlfn.XLOOKUP(RV44,$AA$285:$AD$285,$AA$289:$AD$289,"check xlookup for volume 1500",0,1),IF(RQ44>$V$289,_xlfn.XLOOKUP(RV44,$AA$285:$AD$285,$AA$290:$AD$290,"check xlookup for volume >1500",0,1),"")))))+IF(SD44=$W$293,$AA$293,$AA$294))/4)) -> Enter Major/Minor Street Speeds | AAY44: =IF(OR(ISBLANK($P$21),ISBLANK($P$23)),"Enter Major/Minor Street Speeds",IF(SJ44=0,,(IF(SJ44<5,_xlfn.XLOOKUP(SJ44,$W$269:$W$272,$AA$269:$AA$272,"error",0,1),$AA$273)+IF(SO44<=$V$276,$AA$276,IF(AND(SO44>$V$276,SO44<=$V$277),$AA$277,IF(AND(SO44>$V$277,SO44<=$V$278),$AA$278,IF(AND(SO44>$V$278,SO44<=$V$279),$AA$279,$AA$280))))+IF(ST44<=$V$286,_xlfn.XLOOKUP(SY44,AA$285:$AD$285,$AA$286:$AD$286,"check xlookup for volume 150",0,1),IF(AND(ST44>$V$286,ST44<=$V$287),_xlfn.XLOOKUP(SY44,$AA$285:$AD$285,$AA$287:$AD$287,"check xlookup for volume 300",0,1),IF(AND(ST44>$V$287,ST44<=$V$288),_xlfn.XLOOKUP(SY44,$AA$285:$AD$285,$AA$288:$AD$288,"check xlookup for volume 900",0,1),IF(AND(ST44>$V$288,ST44<=$V$289),_xlfn.XLOOKUP(SY44,$AA$285:$AD$285,$AA$289:$AD$289,"check xlookup for volume 1500",0,1),IF(ST44>$V$289,_xlfn.XLOOKUP(SY44,$AA$285:$AD$285,$AA$290:$AD$290,"check xlookup for volume >1500",0,1),"")))))+IF(TG44=$W$293,$AA$293,$AA$294))/4)) -> Enter Major/Minor Street Speeds | ABI44: =IF(OR(ISBLANK($P$21),ISBLANK($P$23)),"Enter Major/Minor Street Speeds",IF(TM44=0,,(IF(TM44<5,_xlfn.XLOOKUP(TM44,$W$269:$W$272,$AA$269:$AA$272,"error",0,1),$AA$273)+IF(TR44<=$V$276,$AA$276,IF(AND(TR44>$V$276,TR44<=$V$277),$AA$277,IF(AND(TR44>$V$277,TR44<=$V$278),$AA$278,IF(AND(TR44>$V$278,TR44<=$V$279),$AA$279,$AA$280))))+IF(TW44<=$V$286,_xlfn.XLOOKUP(UB44,AA$285:$AD$285,$AA$286:$AD$286,"check xlookup for volume 150",0,1),IF(AND(TW44>$V$286,TW44<=$V$287),_xlfn.XLOOKUP(UB44,$AA$285:$AD$285,$AA$287:$AD$287,"check xlookup for volume 300",0,1),IF(AND(TW44>$V$287,TW44<=$V$288),_xlfn.XLOOKUP(UB44,$AA$285:$AD$285,$AA$288:$AD$288,"check xlookup for volume 900",0,1),IF(AND(TW44>$V$288,TW44<=$V$289),_xlfn.XLOOKUP(UB44,$AA$285:$AD$285,$AA$289:$AD$289,"check xlookup for volume 1500",0,1),IF(TW44>$V$289,_xlfn.XLOOKUP(UB44,$AA$285:$AD$285,$AA$290:$AD$290,"check xlookup for volume >1500",0,1),"")))))+IF(UJ44=$W$293,$AA$293,$AA$294))/4)) -> Enter Major/Minor Street Speeds
T46: E-W | Z46: =UP46 -> Enter Major/Minor Street Speeds | AD46: No | AI46: No | AN46: =SUM('TWSC E-W'!CK71:CV71)+MAX('TWSC E-W'!CW72:CW74,'TWSC E-W'!CQ84:CS84,'TWSC E-W'!CC75:CC77) -> 6 | AS46: =Maj_St_Spd_Lmt -> 0 | AX46: =SUM(EBL_Master,EBT_Master,EBR_Master,EBU_Master,WBT_Master,NBL_Master,SBR_Master) -> 796 | BC46: Free Flowing | BK46: Unmarked | BQ46: =SUM('TWSC E-W'!CW72:CW83)+MAX('TWSC E-W'!CT84:CV84,'TWSC E-W'!CJ78:CJ80,'TWSC E-W'!CQ71:CV71) -> 6 | BV46: =Min_St_Spd_Lmt -> 0 | CA46: =SUM(SBL_Master,SBT_Master,SBR_Master,NBT_Master,WBR_Master,EBL_Master) -> 1357 | CF46: Permissive Left | CN46: Marked | CT46: =SUM('TWSC E-W'!CK84:CV84)+MAX('TWSC E-W'!CW78:CW83,'TWSC E-W'!CN71:CP71,'TWSC E-W'!CJ81:CJ83) -> 6 | CY46: =Maj_St_Spd_Lmt -> 0 | DD46: =SUM(WBU_Master,WBL_Master,WBT_Master,WBR_Master,EBT_Master,SBL_Master,NBR_Master) -> 745 | DI46: Free Flowing | DQ46: Unmarked | DW46: =SUM('TWSC E-W'!CJ72:CJ83)+MAX('TWSC E-W'!CK84:CP84,'TWSC E-W'!CW75:CW77,'TWSC E-W'!CK71:CM71) -> 6 | EB46: =Min_St_Spd_Lmt -> 0 | EG46: =SUM(NBL_Master,NBT_Master,NBR_Master,WBL_Master,EBR_Master,SBT_Master) -> 1408 | EL46: Permissive Left | ET46: Marked | UP46: =IFERROR((((SUM(SQRT(UU46),SQRT(VE46),SQRT(VO46),SQRT(VY46),SQRT(WI46),SQRT(WS46),SQRT(XC46),SQRT(XM46),SQRT(XW46),SQRT(YG46),SQRT(YQ46),SQRT(ZA46),SQRT(ZK46),SQRT(ZU46),SQRT(AAE46),SQRT(AAO46),SQRT(AAY46),SQRT(ABI46))/COUNTIF(UU46:ABR47,">0"))^2)*(_xlfn.XLOOKUP(AD46,$W$304:$W$305,$AA$304:$AA$305,"lookup error",0,1))*(_xlfn.XLOOKUP(AI46,Multistage_Crossing,$AA$298:$AA$300,"lookup error",0,1))),"Enter Major/Minor Street Speeds") -> Enter Major/Minor Street Speeds | UU46: =IF(OR(ISBLANK($P$21),ISBLANK($P$23)),"Enter Major/Minor Street Speeds",IF(AN46=0,,(IF(AN46<5,_xlfn.XLOOKUP(AN46,$W$269:$W$272,$AA$269:$AA$272,"error",0,1),$AA$273)+IF(AS46<=$V$276,$AA$276,IF(AND(AS46>$V$276,AS46<=$V$277),$AA$277,IF(AND(AS46>$V$277,AS46<=$V$278),$AA$278,IF(AND(AS46>$V$278,AS46<=$V$279),$AA$279,$AA$280))))+IF(AX46<=$V$286,_xlfn.XLOOKUP(BC46,AA$285:$AD$285,$AA$286:$AD$286,"check xlookup for volume 150",0,1),IF(AND(AX46>$V$286,AX46<=$V$287),_xlfn.XLOOKUP(BC46,$AA$285:$AD$285,$AA$287:$AD$287,"check xlookup for volume 300",0,1),IF(AND(AX46>$V$287,AX46<=$V$288),_xlfn.XLOOKUP(BC46,$AA$285:$AD$285,$AA$288:$AD$288,"check xlookup for volume 900",0,1),IF(AND(AX46>$V$288,AX46<=$V$289),_xlfn.XLOOKUP(BC46,$AA$285:$AD$285,$AA$289:$AD$289,"check xlookup for volume 1500",0,1),IF(AX46>$V$289,_xlfn.XLOOKUP(BC46,$AA$285:$AD$285,$AA$290:$AD$290,"check xlookup for volume >1500",0,1),"")))))+IF(BK46=$W$293,$AA$293,$AA$294))/4)) -> Enter Major/Minor Street Speeds | VE46: =IF(OR(ISBLANK($P$21),ISBLANK($P$23)),"Enter Major/Minor Street Speeds",IF(BQ46=0,,(IF(BQ46<5,_xlfn.XLOOKUP(BQ46,$W$269:$W$272,$AA$269:$AA$272,"error",0,1),$AA$273)+IF(BV46<=$V$276,$AA$276,IF(AND(BV46>$V$276,BV46<=$V$277),$AA$277,IF(AND(BV46>$V$277,BV46<=$V$278),$AA$278,IF(AND(BV46>$V$278,BV46<=$V$279),$AA$279,$AA$280))))+IF(CA46<=$V$286,_xlfn.XLOOKUP(CF46,AA$285:$AD$285,$AA$286:$AD$286,"check xlookup for volume 150",0,1),IF(AND(CA46>$V$286,CA46<=$V$287),_xlfn.XLOOKUP(CF46,$AA$285:$AD$285,$AA$287:$AD$287,"check xlookup for volume 300",0,1),IF(AND(CA46>$V$287,CA46<=$V$288),_xlfn.XLOOKUP(CF46,$AA$285:$AD$285,$AA$288:$AD$288,"check xlookup for volume 900",0,1),IF(AND(CA46>$V$288,CA46<=$V$289),_xlfn.XLOOKUP(CF46,$AA$285:$AD$285,$AA$289:$AD$289,"check xlookup for volume 1500",0,1),IF(CA46>$V$289,_xlfn.XLOOKUP(CF46,$AA$285:$AD$285,$AA$290:$AD$290,"check xlookup for volume >1500",0,1),"")))))+IF(CN46=$W$293,$AA$293,$AA$294))/4)) -> Enter Major/Minor Street Speeds | VO46: =IF(OR(ISBLANK($P$21),ISBLANK($P$23)),"Enter Major/Minor Street Speeds",IF(CT46=0,,(IF(CT46<5,_xlfn.XLOOKUP(CT46,$W$269:$W$272,$AA$269:$AA$272,"error",0,1),$AA$273)+IF(CY46<=$V$276,$AA$276,IF(AND(CY46>$V$276,CY46<=$V$277),$AA$277,IF(AND(CY46>$V$277,CY46<=$V$278),$AA$278,IF(AND(CY46>$V$278,CY46<=$V$279),$AA$279,$AA$280))))+IF(DD46<=$V$286,_xlfn.XLOOKUP(DI46,AA$285:$AD$285,$AA$286:$AD$286,"check xlookup for volume 150",0,1),IF(AND(DD46>$V$286,DD46<=$V$287),_xlfn.XLOOKUP(DI46,$AA$285:$AD$285,$AA$287:$AD$287,"check xlookup for volume 300",0,1),IF(AND(DD46>$V$287,DD46<=$V$288),_xlfn.XLOOKUP(DI46,$AA$285:$AD$285,$AA$288:$AD$288,"check xlookup for volume 900",0,1),IF(AND(DD46>$V$288,DD46<=$V$289),_xlfn.XLOOKUP(DI46,$AA$285:$AD$285,$AA$289:$AD$289,"check xlookup for volume 1500",0,1),IF(DD46>$V$289,_xlfn.XLOOKUP(DI46,$AA$285:$AD$285,$AA$290:$AD$290,"check xlookup for volume >1500",0,1),"")))))+IF(DQ46=$W$293,$AA$293,$AA$294))/4)) -> Enter Major/Minor Street Speeds | VY46: =IF(OR(ISBLANK($P$21),ISBLANK($P$23)),"Enter Major/Minor Street Speeds",IF(DW46=0,,(IF(DW46<5,_xlfn.XLOOKUP(DW46,$W$269:$W$272,$AA$269:$AA$272,"error",0,1),$AA$273)+IF(EB46<=$V$276,$AA$276,IF(AND(EB46>$V$276,EB46<=$V$277),$AA$277,IF(AND(EB46>$V$277,EB46<=$V$278),$AA$278,IF(AND(EB46>$V$278,EB46<=$V$279),$AA$279,$AA$280))))+IF(EG46<=$V$286,_xlfn.XLOOKUP(EL46,AA$285:$AD$285,$AA$286:$AD$286,"check xlookup for volume 150",0,1),IF(AND(EG46>$V$286,EG46<=$V$287),_xlfn.XLOOKUP(EL46,$AA$285:$AD$285,$AA$287:$AD$287,"check xlookup for volume 300",0,1),IF(AND(EG46>$V$287,EG46<=$V$288),_xlfn.XLOOKUP(EL46,$AA$285:$AD$285,$AA$288:$AD$288,"check xlookup for volume 900",0,1),IF(AND(EG46>$V$288,EG46<=$V$289),_xlfn.XLOOKUP(EL46,$AA$285:$AD$285,$AA$289:$AD$289,"check xlookup for volume 1500",0,1),IF(EG46>$V$289,_xlfn.XLOOKUP(EL46,$AA$285:$AD$285,$AA$290:$AD$290,"check xlookup for volume >1500",0,1),"")))))+IF(ET46=$W$293,$AA$293,$AA$294))/4)) -> Enter Major/Minor Street Speeds | WI46: =IF(OR(ISBLANK($P$21),ISBLANK($P$23)),"Enter Major/Minor Street Speeds",IF(EZ46=0,,(IF(EZ46<5,_xlfn.XLOOKUP(EZ46,$W$269:$W$272,$AA$269:$AA$272,"error",0,1),$AA$273)+IF(FE46<=$V$276,$AA$276,IF(AND(FE46>$V$276,FE46<=$V$277),$AA$277,IF(AND(FE46>$V$277,FE46<=$V$278),$AA$278,IF(AND(FE46>$V$278,FE46<=$V$279),$AA$279,$AA$280))))+IF(FJ46<=$V$286,_xlfn.XLOOKUP(FO46,AA$285:$AD$285,$AA$286:$AD$286,"check xlookup for volume 150",0,1),IF(AND(FJ46>$V$286,FJ46<=$V$287),_xlfn.XLOOKUP(FO46,$AA$285:$AD$285,$AA$287:$AD$287,"check xlookup for volume 300",0,1),IF(AND(FJ46>$V$287,FJ46<=$V$288),_xlfn.XLOOKUP(FO46,$AA$285:$AD$285,$AA$288:$AD$288,"check xlookup for volume 900",0,1),IF(AND(FJ46>$V$288,FJ46<=$V$289),_xlfn.XLOOKUP(FO46,$AA$285:$AD$285,$AA$289:$AD$289,"check xlookup for volume 1500",0,1),IF(FJ46>$V$289,_xlfn.XLOOKUP(FO46,$AA$285:$AD$285,$AA$290:$AD$290,"check xlookup for volume >1500",0,1),"")))))+IF(FW46=$W$293,$AA$293,$AA$294))/4)) -> Enter Major/Minor Street Speeds | WS46: =IF(OR(ISBLANK($P$21),ISBLANK($P$23)),"Enter Major/Minor Street Speeds",IF(GC46=0,,(IF(GC46<5,_xlfn.XLOOKUP(GC46,$W$269:$W$272,$AA$269:$AA$272,"error",0,1),$AA$273)+IF(GH46<=$V$276,$AA$276,IF(AND(GH46>$V$276,GH46<=$V$277),$AA$277,IF(AND(GH46>$V$277,GH46<=$V$278),$AA$278,IF(AND(GH46>$V$278,GH46<=$V$279),$AA$279,$AA$280))))+IF(GM46<=$V$286,_xlfn.XLOOKUP(GR46,AA$285:$AD$285,$AA$286:$AD$286,"check xlookup for volume 150",0,1),IF(AND(GM46>$V$286,GM46<=$V$287),_xlfn.XLOOKUP(GR46,$AA$285:$AD$285,$AA$287:$AD$287,"check xlookup for volume 300",0,1),IF(AND(GM46>$V$287,GM46<=$V$288),_xlfn.XLOOKUP(GR46,$AA$285:$AD$285,$AA$288:$AD$288,"check xlookup for volume 900",0,1),IF(AND(GM46>$V$288,GM46<=$V$289),_xlfn.XLOOKUP(GR46,$AA$285:$AD$285,$AA$289:$AD$289,"check xlookup for volume 1500",0,1),IF(GM46>$V$289,_xlfn.XLOOKUP(GR46,$AA$285:$AD$285,$AA$290:$AD$290,"check xlookup for volume >1500",0,1),"")))))+IF(GZ46=$W$293,$AA$293,$AA$294))/4)) -> Enter Major/Minor Street Speeds | XC46: =IF(OR(ISBLANK($P$21),ISBLANK($P$23)),"Enter Major/Minor Street Speeds",IF(HF46=0,,(IF(HF46<5,_xlfn.XLOOKUP(HF46,$W$269:$W$272,$AA$269:$AA$272,"error",0,1),$AA$273)+IF(HK46<=$V$276,$AA$276,IF(AND(HK46>$V$276,HK46<=$V$277),$AA$277,IF(AND(HK46>$V$277,HK46<=$V$278),$AA$278,IF(AND(HK46>$V$278,HK46<=$V$279),$AA$279,$AA$280))))+IF(HP46<=$V$286,_xlfn.XLOOKUP(HU46,AA$285:$AD$285,$AA$286:$AD$286,"check xlookup for volume 150",0,1),IF(AND(HP46>$V$286,HP46<=$V$287),_xlfn.XLOOKUP(HU46,$AA$285:$AD$285,$AA$287:$AD$287,"check xlookup for volume 300",0,1),IF(AND(HP46>$V$287,HP46<=$V$288),_xlfn.XLOOKUP(HU46,$AA$285:$AD$285,$AA$288:$AD$288,"check xlookup for volume 900",0,1),IF(AND(HP46>$V$288,HP46<=$V$289),_xlfn.XLOOKUP(HU46,$AA$285:$AD$285,$AA$289:$AD$289,"check xlookup for volume 1500",0,1),IF(HP46>$V$289,_xlfn.XLOOKUP(HU46,$AA$285:$AD$285,$AA$290:$AD$290,"check xlookup for volume >1500",0,1),"")))))+IF(IC46=$W$293,$AA$293,$AA$294))/4)) -> Enter Major/Minor Street Speeds | XM46: =IF(OR(ISBLANK($P$21),ISBLANK($P$23)),"Enter Major/Minor Street Speeds",IF(II46=0,,(IF(II46<5,_xlfn.XLOOKUP(II46,$W$269:$W$272,$AA$269:$AA$272,"error",0,1),$AA$273)+IF(IN46<=$V$276,$AA$276,IF(AND(IN46>$V$276,IN46<=$V$277),$AA$277,IF(AND(IN46>$V$277,IN46<=$V$278),$AA$278,IF(AND(IN46>$V$278,IN46<=$V$279),$AA$279,$AA$280))))+IF(IS46<=$V$286,_xlfn.XLOOKUP(IX46,AA$285:$AD$285,$AA$286:$AD$286,"check xlookup for volume 150",0,1),IF(AND(IS46>$V$286,IS46<=$V$287),_xlfn.XLOOKUP(IX46,$AA$285:$AD$285,$AA$287:$AD$287,"check xlookup for volume 300",0,1),IF(AND(IS46>$V$287,IS46<=$V$288),_xlfn.XLOOKUP(IX46,$AA$285:$AD$285,$AA$288:$AD$288,"check xlookup for volume 900",0,1),IF(AND(IS46>$V$288,IS46<=$V$289),_xlfn.XLOOKUP(IX46,$AA$285:$AD$285,$AA$289:$AD$289,"check xlookup for volume 1500",0,1),IF(IS46>$V$289,_xlfn.XLOOKUP(IX46,$AA$285:$AD$285,$AA$290:$AD$290,"check xlookup for volume >1500",0,1),"")))))+IF(JF46=$W$293,$AA$293,$AA$294))/4)) -> Enter Major/Minor Street Speeds | XW46: =IF(OR(ISBLANK($P$21),ISBLANK($P$23)),"Enter Major/Minor Street Speeds",IF(JL46=0,,(IF(JL46<5,_xlfn.XLOOKUP(JL46,$W$269:$W$272,$AA$269:$AA$272,"error",0,1),$AA$273)+IF(JQ46<=$V$276,$AA$276,IF(AND(JQ46>$V$276,JQ46<=$V$277),$AA$277,IF(AND(JQ46>$V$277,JQ46<=$V$278),$AA$278,IF(AND(JQ46>$V$278,JQ46<=$V$279),$AA$279,$AA$280))))+IF(JV46<=$V$286,_xlfn.XLOOKUP(KA46,AA$285:$AD$285,$AA$286:$AD$286,"check xlookup for volume 150",0,1),IF(AND(JV46>$V$286,JV46<=$V$287),_xlfn.XLOOKUP(KA46,$AA$285:$AD$285,$AA$287:$AD$287,"check xlookup for volume 300",0,1),IF(AND(JV46>$V$287,JV46<=$V$288),_xlfn.XLOOKUP(KA46,$AA$285:$AD$285,$AA$288:$AD$288,"check xlookup for volume 900",0,1),IF(AND(JV46>$V$288,JV46<=$V$289),_xlfn.XLOOKUP(KA46,$AA$285:$AD$285,$AA$289:$AD$289,"check xlookup for volume 1500",0,1),IF(JV46>$V$289,_xlfn.XLOOKUP(KA46,$AA$285:$AD$285,$AA$290:$AD$290,"check xlookup for volume >1500",0,1),"")))))+IF(KI46=$W$293,$AA$293,$AA$294))/4)) -> Enter Major/Minor Street Speeds | YG46: =IF(OR(ISBLANK($P$21),ISBLANK($P$23)),"Enter Major/Minor Street Speeds",IF(KO46=0,,(IF(KO46<5,_xlfn.XLOOKUP(KO46,$W$269:$W$272,$AA$269:$AA$272,"error",0,1),$AA$273)+IF(KT46<=$V$276,$AA$276,IF(AND(KT46>$V$276,KT46<=$V$277),$AA$277,IF(AND(KT46>$V$277,KT46<=$V$278),$AA$278,IF(AND(KT46>$V$278,KT46<=$V$279),$AA$279,$AA$280))))+IF(KY46<=$V$286,_xlfn.XLOOKUP(LD46,AA$285:$AD$285,$AA$286:$AD$286,"check xlookup for volume 150",0,1),IF(AND(KY46>$V$286,KY46<=$V$287),_xlfn.XLOOKUP(LD46,$AA$285:$AD$285,$AA$287:$AD$287,"check xlookup for volume 300",0,1),IF(AND(KY46>$V$287,KY46<=$V$288),_xlfn.XLOOKUP(LD46,$AA$285:$AD$285,$AA$288:$AD$288,"check xlookup for volume 900",0,1),IF(AND(KY46>$V$288,KY46<=$V$289),_xlfn.XLOOKUP(LD46,$AA$285:$AD$285,$AA$289:$AD$289,"check xlookup for volume 1500",0,1),IF(KY46>$V$289,_xlfn.XLOOKUP(LD46,$AA$285:$AD$285,$AA$290:$AD$290,"check xlookup for volume >1500",0,1),"")))))+IF(LL46=$W$293,$AA$293,$AA$294))/4)) -> Enter Major/Minor Street Speeds | YQ46: =IF(OR(ISBLANK($P$21),ISBLANK($P$23)),"Enter Major/Minor Street Speeds",IF(LR46=0,,(IF(LR46<5,_xlfn.XLOOKUP(LR46,$W$269:$W$272,$AA$269:$AA$272,"error",0,1),$AA$273)+IF(LW46<=$V$276,$AA$276,IF(AND(LW46>$V$276,LW46<=$V$277),$AA$277,IF(AND(LW46>$V$277,LW46<=$V$278),$AA$278,IF(AND(LW46>$V$278,LW46<=$V$279),$AA$279,$AA$280))))+IF(MB46<=$V$286,_xlfn.XLOOKUP(MG46,AA$285:$AD$285,$AA$286:$AD$286,"check xlookup for volume 150",0,1),IF(AND(MB46>$V$286,MB46<=$V$287),_xlfn.XLOOKUP(MG46,$AA$285:$AD$285,$AA$287:$AD$287,"check xlookup for volume 300",0,1),IF(AND(MB46>$V$287,MB46<=$V$288),_xlfn.XLOOKUP(MG46,$AA$285:$AD$285,$AA$288:$AD$288,"check xlookup for volume 900",0,1),IF(AND(MB46>$V$288,MB46<=$V$289),_xlfn.XLOOKUP(MG46,$AA$285:$AD$285,$AA$289:$AD$289,"check xlookup for volume 1500",0,1),IF(MB46>$V$289,_xlfn.XLOOKUP(MG46,$AA$285:$AD$285,$AA$290:$AD$290,"check xlookup for volume >1500",0,1),"")))))+IF(MO46=$W$293,$AA$293,$AA$294))/4)) -> Enter Major/Minor Street Speeds | ZA46: =IF(OR(ISBLANK($P$21),ISBLANK($P$23)),"Enter Major/Minor Street Speeds",IF(MU46=0,,(IF(MU46<5,_xlfn.XLOOKUP(MU46,$W$269:$W$272,$AA$269:$AA$272,"error",0,1),$AA$273)+IF(MZ46<=$V$276,$AA$276,IF(AND(MZ46>$V$276,MZ46<=$V$277),$AA$277,IF(AND(MZ46>$V$277,MZ46<=$V$278),$AA$278,IF(AND(MZ46>$V$278,MZ46<=$V$279),$AA$279,$AA$280))))+IF(NE46<=$V$286,_xlfn.XLOOKUP(NJ46,AA$285:$AD$285,$AA$286:$AD$286,"check xlookup for volume 150",0,1),IF(AND(NE46>$V$286,NE46<=$V$287),_xlfn.XLOOKUP(NJ46,$AA$285:$AD$285,$AA$287:$AD$287,"check xlookup for volume 300",0,1),IF(AND(NE46>$V$287,NE46<=$V$288),_xlfn.XLOOKUP(NJ46,$AA$285:$AD$285,$AA$288:$AD$288,"check xlookup for volume 900",0,1),IF(AND(NE46>$V$288,NE46<=$V$289),_xlfn.XLOOKUP(NJ46,$AA$285:$AD$285,$AA$289:$AD$289,"check xlookup for volume 1500",0,1),IF(NE46>$V$289,_xlfn.XLOOKUP(NJ46,$AA$285:$AD$285,$AA$290:$AD$290,"check xlookup for volume >1500",0,1),"")))))+IF(NR46=$W$293,$AA$293,$AA$294))/4)) -> Enter Major/Minor Street Speeds | ZK46: =IF(OR(ISBLANK($P$21),ISBLANK($P$23)),"Enter Major/Minor Street Speeds",IF(NX46=0,,(IF(NX46<5,_xlfn.XLOOKUP(NX46,$W$269:$W$272,$AA$269:$AA$272,"error",0,1),$AA$273)+IF(OC46<=$V$276,$AA$276,IF(AND(OC46>$V$276,OC46<=$V$277),$AA$277,IF(AND(OC46>$V$277,OC46<=$V$278),$AA$278,IF(AND(OC46>$V$278,OC46<=$V$279),$AA$279,$AA$280))))+IF(OH46<=$V$286,_xlfn.XLOOKUP(OM46,AA$285:$AD$285,$AA$286:$AD$286,"check xlookup for volume 150",0,1),IF(AND(OH46>$V$286,OH46<=$V$287),_xlfn.XLOOKUP(OM46,$AA$285:$AD$285,$AA$287:$AD$287,"check xlookup for volume 300",0,1),IF(AND(OH46>$V$287,OH46<=$V$288),_xlfn.XLOOKUP(OM46,$AA$285:$AD$285,$AA$288:$AD$288,"check xlookup for volume 900",0,1),IF(AND(OH46>$V$288,OH46<=$V$289),_xlfn.XLOOKUP(OM46,$AA$285:$AD$285,$AA$289:$AD$289,"check xlookup for volume 1500",0,1),IF(OH46>$V$289,_xlfn.XLOOKUP(OM46,$AA$285:$AD$285,$AA$290:$AD$290,"check xlookup for volume >1500",0,1),"")))))+IF(OU46=$W$293,$AA$293,$AA$294))/4)) -> Enter Major/Minor Street Speeds | ZU46: =IF(OR(ISBLANK($P$21),ISBLANK($P$23)),"Enter Major/Minor Street Speeds",IF(PA46=0,,(IF(PA46<5,_xlfn.XLOOKUP(PA46,$W$269:$W$272,$AA$269:$AA$272,"error",0,1),$AA$273)+IF(PF46<=$V$276,$AA$276,IF(AND(PF46>$V$276,PF46<=$V$277),$AA$277,IF(AND(PF46>$V$277,PF46<=$V$278),$AA$278,IF(AND(PF46>$V$278,PF46<=$V$279),$AA$279,$AA$280))))+IF(PK46<=$V$286,_xlfn.XLOOKUP(PP46,AA$285:$AD$285,$AA$286:$AD$286,"check xlookup for volume 150",0,1),IF(AND(PK46>$V$286,PK46<=$V$287),_xlfn.XLOOKUP(PP46,$AA$285:$AD$285,$AA$287:$AD$287,"check xlookup for volume 300",0,1),IF(AND(PK46>$V$287,PK46<=$V$288),_xlfn.XLOOKUP(PP46,$AA$285:$AD$285,$AA$288:$AD$288,"check xlookup for volume 900",0,1),IF(AND(PK46>$V$288,PK46<=$V$289),_xlfn.XLOOKUP(PP46,$AA$285:$AD$285,$AA$289:$AD$289,"check xlookup for volume 1500",0,1),IF(PK46>$V$289,_xlfn.XLOOKUP(PP46,$AA$285:$AD$285,$AA$290:$AD$290,"check xlookup for volume >1500",0,1),"")))))+IF(PX46=$W$293,$AA$293,$AA$294))/4)) -> Enter Major/Minor Street Speeds | AAE46: =IF(OR(ISBLANK($P$21),ISBLANK($P$23)),"Enter Major/Minor Street Speeds",IF(QD46=0,,(IF(QD46<5,_xlfn.XLOOKUP(QD46,$W$269:$W$272,$AA$269:$AA$272,"error",0,1),$AA$273)+IF(QI46<=$V$276,$AA$276,IF(AND(QI46>$V$276,QI46<=$V$277),$AA$277,IF(AND(QI46>$V$277,QI46<=$V$278),$AA$278,IF(AND(QI46>$V$278,QI46<=$V$279),$AA$279,$AA$280))))+IF(QN46<=$V$286,_xlfn.XLOOKUP(QS46,AA$285:$AD$285,$AA$286:$AD$286,"check xlookup for volume 150",0,1),IF(AND(QN46>$V$286,QN46<=$V$287),_xlfn.XLOOKUP(QS46,$AA$285:$AD$285,$AA$287:$AD$287,"check xlookup for volume 300",0,1),IF(AND(QN46>$V$287,QN46<=$V$288),_xlfn.XLOOKUP(QS46,$AA$285:$AD$285,$AA$288:$AD$288,"check xlookup for volume 900",0,1),IF(AND(QN46>$V$288,QN46<=$V$289),_xlfn.XLOOKUP(QS46,$AA$285:$AD$285,$AA$289:$AD$289,"check xlookup for volume 1500",0,1),IF(QN46>$V$289,_xlfn.XLOOKUP(QS46,$AA$285:$AD$285,$AA$290:$AD$290,"check xlookup for volume >1500",0,1),"")))))+IF(RA46=$W$293,$AA$293,$AA$294))/4)) -> Enter Major/Minor Street Speeds | AAO46: =IF(OR(ISBLANK($P$21),ISBLANK($P$23)),"Enter Major/Minor Street Speeds",IF(RG46=0,,(IF(RG46<5,_xlfn.XLOOKUP(RG46,$W$269:$W$272,$AA$269:$AA$272,"error",0,1),$AA$273)+IF(RL46<=$V$276,$AA$276,IF(AND(RL46>$V$276,RL46<=$V$277),$AA$277,IF(AND(RL46>$V$277,RL46<=$V$278),$AA$278,IF(AND(RL46>$V$278,RL46<=$V$279),$AA$279,$AA$280))))+IF(RQ46<=$V$286,_xlfn.XLOOKUP(RV46,AA$285:$AD$285,$AA$286:$AD$286,"check xlookup for volume 150",0,1),IF(AND(RQ46>$V$286,RQ46<=$V$287),_xlfn.XLOOKUP(RV46,$AA$285:$AD$285,$AA$287:$AD$287,"check xlookup for volume 300",0,1),IF(AND(RQ46>$V$287,RQ46<=$V$288),_xlfn.XLOOKUP(RV46,$AA$285:$AD$285,$AA$288:$AD$288,"check xlookup for volume 900",0,1),IF(AND(RQ46>$V$288,RQ46<=$V$289),_xlfn.XLOOKUP(RV46,$AA$285:$AD$285,$AA$289:$AD$289,"check xlookup for volume 1500",0,1),IF(RQ46>$V$289,_xlfn.XLOOKUP(RV46,$AA$285:$AD$285,$AA$290:$AD$290,"check xlookup for volume >1500",0,1),"")))))+IF(SD46=$W$293,$AA$293,$AA$294))/4)) -> Enter Major/Minor Street Speeds | AAY46: =IF(OR(ISBLANK($P$21),ISBLANK($P$23)),"Enter Major/Minor Street Speeds",IF(SJ46=0,,(IF(SJ46<5,_xlfn.XLOOKUP(SJ46,$W$269:$W$272,$AA$269:$AA$272,"error",0,1),$AA$273)+IF(SO46<=$V$276,$AA$276,IF(AND(SO46>$V$276,SO46<=$V$277),$AA$277,IF(AND(SO46>$V$277,SO46<=$V$278),$AA$278,IF(AND(SO46>$V$278,SO46<=$V$279),$AA$279,$AA$280))))+IF(ST46<=$V$286,_xlfn.XLOOKUP(SY46,AA$285:$AD$285,$AA$286:$AD$286,"check xlookup for volume 150",0,1),IF(AND(ST46>$V$286,ST46<=$V$287),_xlfn.XLOOKUP(SY46,$AA$285:$AD$285,$AA$287:$AD$287,"check xlookup for volume 300",0,1),IF(AND(ST46>$V$287,ST46<=$V$288),_xlfn.XLOOKUP(SY46,$AA$285:$AD$285,$AA$288:$AD$288,"check xlookup for volume 900",0,1),IF(AND(ST46>$V$288,ST46<=$V$289),_xlfn.XLOOKUP(SY46,$AA$285:$AD$285,$AA$289:$AD$289,"check xlookup for volume 1500",0,1),IF(ST46>$V$289,_xlfn.XLOOKUP(SY46,$AA$285:$AD$285,$AA$290:$AD$290,"check xlookup for volume >1500",0,1),"")))))+IF(TG46=$W$293,$AA$293,$AA$294))/4)) -> Enter Major/Minor Street Speeds | ABI46: =IF(OR(ISBLANK($P$21),ISBLANK($P$23)),"Enter Major/Minor Street Speeds",IF(TM46=0,,(IF(TM46<5,_xlfn.XLOOKUP(TM46,$W$269:$W$272,$AA$269:$AA$272,"error",0,1),$AA$273)+IF(TR46<=$V$276,$AA$276,IF(AND(TR46>$V$276,TR46<=$V$277),$AA$277,IF(AND(TR46>$V$277,TR46<=$V$278),$AA$278,IF(AND(TR46>$V$278,TR46<=$V$279),$AA$279,$AA$280))))+IF(TW46<=$V$286,_xlfn.XLOOKUP(UB46,AA$285:$AD$285,$AA$286:$AD$286,"check xlookup for volume 150",0,1),IF(AND(TW46>$V$286,TW46<=$V$287),_xlfn.XLOOKUP(UB46,$AA$285:$AD$285,$AA$287:$AD$287,"check xlookup for volume 300",0,1),IF(AND(TW46>$V$287,TW46<=$V$288),_xlfn.XLOOKUP(UB46,$AA$285:$AD$285,$AA$288:$AD$288,"check xlookup for volume 900",0,1),IF(AND(TW46>$V$288,TW46<=$V$289),_xlfn.XLOOKUP(UB46,$AA$285:$AD$285,$AA$289:$AD$289,"check xlookup for volume 1500",0,1),IF(TW46>$V$289,_xlfn.XLOOKUP(UB46,$AA$285:$AD$285,$AA$290:$AD$290,"check xlookup for volume >1500",0,1),"")))))+IF(UJ46=$W$293,$AA$293,$AA$294))/4)) -> Enter Major/Minor Street Speeds
A48: All-Way Stop Control | T48: FULL | Z48: =UP48 -> Enter Major/Minor Street Speeds | AD48: No | AI48: No | AN48: =SUM(AWSC!CK30:CV30)+MAX(AWSC!CJ31,AWSC!CQ43,AWSC!CW31) -> 6 | AS48: =IF(OR(AND(Input_MajorStreetDirection="East-West",OR(AN38="Crossing #2",AN38="Crossing #4")),AND(Input_MajorStreetDirection="North-South",OR(AN38="Crossing #1",AN38="Crossing #3"))),Maj_St_Spd_Lmt,Min_St_Spd_Lmt) -> 0 | AX48: =SUM(SBL_Master,SBT_Master,SBR_Master,WBR_Master,EBL_Master,NBT_Master) -> 1357 | BC48: Stop/Signal Controlled | BK48: Marked | BQ48: =SUM(AWSC!CW31:CW42)+MAX(AWSC!CQ30,AWSC!CJ37,AWSC!CT43) -> 6 | BV48: =IF(OR(AND(Input_MajorStreetDirection="East-West",OR(BQ38="Crossing #2",BQ38="Crossing #4")),AND(Input_MajorStreetDirection="North-South",OR(BQ38="Crossing #1",BQ38="Crossing #3"))),Maj_St_Spd_Lmt,Min_St_Spd_Lmt) -> 0 | CA48: =SUM(WBL_Master,WBT_Master,WBR_Master,SBL_Master,NBR_Master,EBT_Master) -> 745 | CF48: Stop/Signal Controlled | CN48: Marked | CT48: =SUM(AWSC!CK43:CV43)+MAX(AWSC!CW37,AWSC!CN30,AWSC!CJ40) -> 6 | CY48: =IF(OR(AND(Input_MajorStreetDirection="East-West",OR(CT38="Crossing #2",CT38="Crossing #4")),AND(Input_MajorStreetDirection="North-South",OR(CT38="Crossing #1",CT38="Crossing #3"))),Maj_St_Spd_Lmt,Min_St_Spd_Lmt) -> 0 | DD48: =SUM(NBL_Master,NBT_Master,NBR_Master,WBL_Master,EBR_Master,SBT_Master) -> 1408 | DI48: Stop/Signal Controlled | DQ48: Marked | DW48: =SUM(AWSC!CJ31:CJ42)+MAX(AWSC!CK43,AWSC!CW34,AWSC!CK30) -> 6 | EB48: =IF(OR(AND(Input_MajorStreetDirection="East-West",OR(DW38="Crossing #2",DW38="Crossing #4")),AND(Input_MajorStreetDirection="North-South",OR(DW38="Crossing #1",DW38="Crossing #3"))),Maj_St_Spd_Lmt,Min_St_Spd_Lmt) -> 0 | EG48: =SUM(EBL_Master,EBT_Master,EBR_Master,NBL_Master,SBR_Master,WBT_Master) -> 796 | EL48: Stop/Signal Controlled | ET48: Marked | UP48: =IFERROR((((SUM(SQRT(UU48),SQRT(VE48),SQRT(VO48),SQRT(VY48),SQRT(WI48),SQRT(WS48),SQRT(XC48),SQRT(XM48),SQRT(XW48),SQRT(YG48),SQRT(YQ48),SQRT(ZA48),SQRT(ZK48),SQRT(ZU48),SQRT(AAE48),SQRT(AAO48),SQRT(AAY48),SQRT(ABI48))/COUNTIF(UU48:ABR49,">0"))^2)*(_xlfn.XLOOKUP(AD48,$W$304:$W$305,$AA$304:$AA$305,"lookup error",0,1))*(_xlfn.XLOOKUP(AI48,Multistage_Crossing,$AA$298:$AA$300,"lookup error",0,1))),"Enter Major/Minor Street Speeds") -> Enter Major/Minor Street Speeds | UU48: =IF(OR(ISBLANK($P$21),ISBLANK($P$23)),"Enter Major/Minor Street Speeds",IF(AN48=0,,(IF(AN48<5,_xlfn.XLOOKUP(AN48,$W$269:$W$272,$AA$269:$AA$272,"error",0,1),$AA$273)+IF(AS48<=$V$276,$AA$276,IF(AND(AS48>$V$276,AS48<=$V$277),$AA$277,IF(AND(AS48>$V$277,AS48<=$V$278),$AA$278,IF(AND(AS48>$V$278,AS48<=$V$279),$AA$279,$AA$280))))+IF(AX48<=$V$286,_xlfn.XLOOKUP(BC48,AA$285:$AD$285,$AA$286:$AD$286,"check xlookup for volume 150",0,1),IF(AND(AX48>$V$286,AX48<=$V$287),_xlfn.XLOOKUP(BC48,$AA$285:$AD$285,$AA$287:$AD$287,"check xlookup for volume 300",0,1),IF(AND(AX48>$V$287,AX48<=$V$288),_xlfn.XLOOKUP(BC48,$AA$285:$AD$285,$AA$288:$AD$288,"check xlookup for volume 900",0,1),IF(AND(AX48>$V$288,AX48<=$V$289),_xlfn.XLOOKUP(BC48,$AA$285:$AD$285,$AA$289:$AD$289,"check xlookup for volume 1500",0,1),IF(AX48>$V$289,_xlfn.XLOOKUP(BC48,$AA$285:$AD$285,$AA$290:$AD$290,"check xlookup for volume >1500",0,1),"")))))+IF(BK48=$W$293,$AA$293,$AA$294))/4)) -> Enter Major/Minor Street Speeds | VE48: =IF(OR(ISBLANK($P$21),ISBLANK($P$23)),"Enter Major/Minor Street Speeds",IF(BQ48=0,,(IF(BQ48<5,_xlfn.XLOOKUP(BQ48,$W$269:$W$272,$AA$269:$AA$272,"error",0,1),$AA$273)+IF(BV48<=$V$276,$AA$276,IF(AND(BV48>$V$276,BV48<=$V$277),$AA$277,IF(AND(BV48>$V$277,BV48<=$V$278),$AA$278,IF(AND(BV48>$V$278,BV48<=$V$279),$AA$279,$AA$280))))+IF(CA48<=$V$286,_xlfn.XLOOKUP(CF48,AA$285:$AD$285,$AA$286:$AD$286,"check xlookup for volume 150",0,1),IF(AND(CA48>$V$286,CA48<=$V$287),_xlfn.XLOOKUP(CF48,$AA$285:$AD$285,$AA$287:$AD$287,"check xlookup for volume 300",0,1),IF(AND(CA48>$V$287,CA48<=$V$288),_xlfn.XLOOKUP(CF48,$AA$285:$AD$285,$AA$288:$AD$288,"check xlookup for volume 900",0,1),IF(AND(CA48>$V$288,CA48<=$V$289),_xlfn.XLOOKUP(CF48,$AA$285:$AD$285,$AA$289:$AD$289,"check xlookup for volume 1500",0,1),IF(CA48>$V$289,_xlfn.XLOOKUP(CF48,$AA$285:$AD$285,$AA$290:$AD$290,"check xlookup for volume >1500",0,1),"")))))+IF(CN48=$W$293,$AA$293,$AA$294))/4)) -> Enter Major/Minor Street Speeds | VO48: =IF(OR(ISBLANK($P$21),ISBLANK($P$23)),"Enter Major/Minor Street Speeds",IF(CT48=0,,(IF(CT48<5,_xlfn.XLOOKUP(CT48,$W$269:$W$272,$AA$269:$AA$272,"error",0,1),$AA$273)+IF(CY48<=$V$276,$AA$276,IF(AND(CY48>$V$276,CY48<=$V$277),$AA$277,IF(AND(CY48>$V$277,CY48<=$V$278),$AA$278,IF(AND(CY48>$V$278,CY48<=$V$279),$AA$279,$AA$280))))+IF(DD48<=$V$286,_xlfn.XLOOKUP(DI48,AA$285:$AD$285,$AA$286:$AD$286,"check xlookup for volume 150",0,1),IF(AND(DD48>$V$286,DD48<=$V$287),_xlfn.XLOOKUP(DI48,$AA$285:$AD$285,$AA$287:$AD$287,"check xlookup for volume 300",0,1),IF(AND(DD48>$V$287,DD48<=$V$288),_xlfn.XLOOKUP(DI48,$AA$285:$AD$285,$AA$288:$AD$288,"check xlookup for volume 900",0,1),IF(AND(DD48>$V$288,DD48<=$V$289),_xlfn.XLOOKUP(DI48,$AA$285:$AD$285,$AA$289:$AD$289,"check xlookup for volume 1500",0,1),IF(DD48>$V$289,_xlfn.XLOOKUP(DI48,$AA$285:$AD$285,$AA$290:$AD$290,"check xlookup for volume >1500",0,1),"")))))+IF(DQ48=$W$293,$AA$293,$AA$294))/4)) -> Enter Major/Minor Street Speeds | VY48: =IF(OR(ISBLANK($P$21),ISBLANK($P$23)),"Enter Major/Minor Street Speeds",IF(DW48=0,,(IF(DW48<5,_xlfn.XLOOKUP(DW48,$W$269:$W$272,$AA$269:$AA$272,"error",0,1),$AA$273)+IF(EB48<=$V$276,$AA$276,IF(AND(EB48>$V$276,EB48<=$V$277),$AA$277,IF(AND(EB48>$V$277,EB48<=$V$278),$AA$278,IF(AND(EB48>$V$278,EB48<=$V$279),$AA$279,$AA$280))))+IF(EG48<=$V$286,_xlfn.XLOOKUP(EL48,AA$285:$AD$285,$AA$286:$AD$286,"check xlookup for volume 150",0,1),IF(AND(EG48>$V$286,EG48<=$V$287),_xlfn.XLOOKUP(EL48,$AA$285:$AD$285,$AA$287:$AD$287,"check xlookup for volume 300",0,1),IF(AND(EG48>$V$287,EG48<=$V$288),_xlfn.XLOOKUP(EL48,$AA$285:$AD$285,$AA$288:$AD$288,"check xlookup for volume 900",0,1),IF(AND(EG48>$V$288,EG48<=$V$289),_xlfn.XLOOKUP(EL48,$AA$285:$AD$285,$AA$289:$AD$289,"check xlookup for volume 1500",0,1),IF(EG48>$V$289,_xlfn.XLOOKUP(EL48,$AA$285:$AD$285,$AA$290:$AD$290,"check xlookup for volume >1500",0,1),"")))))+IF(ET48=$W$293,$AA$293,$AA$294))/4)) -> Enter Major/Minor Street Speeds | WI48: =IF(OR(ISBLANK($P$21),ISBLANK($P$23)),"Enter Major/Minor Street Speeds",IF(EZ48=0,,(IF(EZ48<5,_xlfn.XLOOKUP(EZ48,$W$269:$W$272,$AA$269:$AA$272,"error",0,1),$AA$273)+IF(FE48<=$V$276,$AA$276,IF(AND(FE48>$V$276,FE48<=$V$277),$AA$277,IF(AND(FE48>$V$277,FE48<=$V$278),$AA$278,IF(AND(FE48>$V$278,FE48<=$V$279),$AA$279,$AA$280))))+IF(FJ48<=$V$286,_xlfn.XLOOKUP(FO48,AA$285:$AD$285,$AA$286:$AD$286,"check xlookup for volume 150",0,1),IF(AND(FJ48>$V$286,FJ48<=$V$287),_xlfn.XLOOKUP(FO48,$AA$285:$AD$285,$AA$287:$AD$287,"check xlookup for volume 300",0,1),IF(AND(FJ48>$V$287,FJ48<=$V$288),_xlfn.XLOOKUP(FO48,$AA$285:$AD$285,$AA$288:$AD$288,"check xlookup for volume 900",0,1),IF(AND(FJ48>$V$288,FJ48<=$V$289),_xlfn.XLOOKUP(FO48,$AA$285:$AD$285,$AA$289:$AD$289,"check xlookup for volume 1500",0,1),IF(FJ48>$V$289,_xlfn.XLOOKUP(FO48,$AA$285:$AD$285,$AA$290:$AD$290,"check xlookup for volume >1500",0,1),"")))))+IF(FW48=$W$293,$AA$293,$AA$294))/4)) -> Enter Major/Minor Street Speeds | WS48: =IF(OR(ISBLANK($P$21),ISBLANK($P$23)),"Enter Major/Minor Street Speeds",IF(GC48=0,,(IF(GC48<5,_xlfn.XLOOKUP(GC48,$W$269:$W$272,$AA$269:$AA$272,"error",0,1),$AA$273)+IF(GH48<=$V$276,$AA$276,IF(AND(GH48>$V$276,GH48<=$V$277),$AA$277,IF(AND(GH48>$V$277,GH48<=$V$278),$AA$278,IF(AND(GH48>$V$278,GH48<=$V$279),$AA$279,$AA$280))))+IF(GM48<=$V$286,_xlfn.XLOOKUP(GR48,AA$285:$AD$285,$AA$286:$AD$286,"check xlookup for volume 150",0,1),IF(AND(GM48>$V$286,GM48<=$V$287),_xlfn.XLOOKUP(GR48,$AA$285:$AD$285,$AA$287:$AD$287,"check xlookup for volume 300",0,1),IF(AND(GM48>$V$287,GM48<=$V$288),_xlfn.XLOOKUP(GR48,$AA$285:$AD$285,$AA$288:$AD$288,"check xlookup for volume 900",0,1),IF(AND(GM48>$V$288,GM48<=$V$289),_xlfn.XLOOKUP(GR48,$AA$285:$AD$285,$AA$289:$AD$289,"check xlookup for volume 1500",0,1),IF(GM48>$V$289,_xlfn.XLOOKUP(GR48,$AA$285:$AD$285,$AA$290:$AD$290,"check xlookup for volume >1500",0,1),"")))))+IF(GZ48=$W$293,$AA$293,$AA$294))/4)) -> Enter Major/Minor Street Speeds | XC48: =IF(OR(ISBLANK($P$21),ISBLANK($P$23)),"Enter Major/Minor Street Speeds",IF(HF48=0,,(IF(HF48<5,_xlfn.XLOOKUP(HF48,$W$269:$W$272,$AA$269:$AA$272,"error",0,1),$AA$273)+IF(HK48<=$V$276,$AA$276,IF(AND(HK48>$V$276,HK48<=$V$277),$AA$277,IF(AND(HK48>$V$277,HK48<=$V$278),$AA$278,IF(AND(HK48>$V$278,HK48<=$V$279),$AA$279,$AA$280))))+IF(HP48<=$V$286,_xlfn.XLOOKUP(HU48,AA$285:$AD$285,$AA$286:$AD$286,"check xlookup for volume 150",0,1),IF(AND(HP48>$V$286,HP48<=$V$287),_xlfn.XLOOKUP(HU48,$AA$285:$AD$285,$AA$287:$AD$287,"check xlookup for volume 300",0,1),IF(AND(HP48>$V$287,HP48<=$V$288),_xlfn.XLOOKUP(HU48,$AA$285:$AD$285,$AA$288:$AD$288,"check xlookup for volume 900",0,1),IF(AND(HP48>$V$288,HP48<=$V$289),_xlfn.XLOOKUP(HU48,$AA$285:$AD$285,$AA$289:$AD$289,"check xlookup for volume 1500",0,1),IF(HP48>$V$289,_xlfn.XLOOKUP(HU48,$AA$285:$AD$285,$AA$290:$AD$290,"check xlookup for volume >1500",0,1),"")))))+IF(IC48=$W$293,$AA$293,$AA$294))/4)) -> Enter Major/Minor Street Speeds | XM48: =IF(OR(ISBLANK($P$21),ISBLANK($P$23)),"Enter Major/Minor Street Speeds",IF(II48=0,,(IF(II48<5,_xlfn.XLOOKUP(II48,$W$269:$W$272,$AA$269:$AA$272,"error",0,1),$AA$273)+IF(IN48<=$V$276,$AA$276,IF(AND(IN48>$V$276,IN48<=$V$277),$AA$277,IF(AND(IN48>$V$277,IN48<=$V$278),$AA$278,IF(AND(IN48>$V$278,IN48<=$V$279),$AA$279,$AA$280))))+IF(IS48<=$V$286,_xlfn.XLOOKUP(IX48,AA$285:$AD$285,$AA$286:$AD$286,"check xlookup for volume 150",0,1),IF(AND(IS48>$V$286,IS48<=$V$287),_xlfn.XLOOKUP(IX48,$AA$285:$AD$285,$AA$287:$AD$287,"check xlookup for volume 300",0,1),IF(AND(IS48>$V$287,IS48<=$V$288),_xlfn.XLOOKUP(IX48,$AA$285:$AD$285,$AA$288:$AD$288,"check xlookup for volume 900",0,1),IF(AND(IS48>$V$288,IS48<=$V$289),_xlfn.XLOOKUP(IX48,$AA$285:$AD$285,$AA$289:$AD$289,"check xlookup for volume 1500",0,1),IF(IS48>$V$289,_xlfn.XLOOKUP(IX48,$AA$285:$AD$285,$AA$290:$AD$290,"check xlookup for volume >1500",0,1),"")))))+IF(JF48=$W$293,$AA$293,$AA$294))/4)) -> Enter Major/Minor Street Speeds | XW48: =IF(OR(ISBLANK($P$21),ISBLANK($P$23)),"Enter Major/Minor Street Speeds",IF(JL48=0,,(IF(JL48<5,_xlfn.XLOOKUP(JL48,$W$269:$W$272,$AA$269:$AA$272,"error",0,1),$AA$273)+IF(JQ48<=$V$276,$AA$276,IF(AND(JQ48>$V$276,JQ48<=$V$277),$AA$277,IF(AND(JQ48>$V$277,JQ48<=$V$278),$AA$278,IF(AND(JQ48>$V$278,JQ48<=$V$279),$AA$279,$AA$280))))+IF(JV48<=$V$286,_xlfn.XLOOKUP(KA48,AA$285:$AD$285,$AA$286:$AD$286,"check xlookup for volume 150",0,1),IF(AND(JV48>$V$286,JV48<=$V$287),_xlfn.XLOOKUP(KA48,$AA$285:$AD$285,$AA$287:$AD$287,"check xlookup for volume 300",0,1),IF(AND(JV48>$V$287,JV48<=$V$288),_xlfn.XLOOKUP(KA48,$AA$285:$AD$285,$AA$288:$AD$288,"check xlookup for volume 900",0,1),IF(AND(JV48>$V$288,JV48<=$V$289),_xlfn.XLOOKUP(KA48,$AA$285:$AD$285,$AA$289:$AD$289,"check xlookup for volume 1500",0,1),IF(JV48>$V$289,_xlfn.XLOOKUP(KA48,$AA$285:$AD$285,$AA$290:$AD$290,"check xlookup for volume >1500",0,1),"")))))+IF(KI48=$W$293,$AA$293,$AA$294))/4)) -> Enter Major/Minor Street Speeds | YG48: =IF(OR(ISBLANK($P$21),ISBLANK($P$23)),"Enter Major/Minor Street Speeds",IF(KO48=0,,(IF(KO48<5,_xlfn.XLOOKUP(KO48,$W$269:$W$272,$AA$269:$AA$272,"error",0,1),$AA$273)+IF(KT48<=$V$276,$AA$276,IF(AND(KT48>$V$276,KT48<=$V$277),$AA$277,IF(AND(KT48>$V$277,KT48<=$V$278),$AA$278,IF(AND(KT48>$V$278,KT48<=$V$279),$AA$279,$AA$280))))+IF(KY48<=$V$286,_xlfn.XLOOKUP(LD48,AA$285:$AD$285,$AA$286:$AD$286,"check xlookup for volume 150",0,1),IF(AND(KY48>$V$286,KY48<=$V$287),_xlfn.XLOOKUP(LD48,$AA$285:$AD$285,$AA$287:$AD$287,"check xlookup for volume 300",0,1),IF(AND(KY48>$V$287,KY48<=$V$288),_xlfn.XLOOKUP(LD48,$AA$285:$AD$285,$AA$288:$AD$288,"check xlookup for volume 900",0,1),IF(AND(KY48>$V$288,KY48<=$V$289),_xlfn.XLOOKUP(LD48,$AA$285:$AD$285,$AA$289:$AD$289,"check xlookup for volume 1500",0,1),IF(KY48>$V$289,_xlfn.XLOOKUP(LD48,$AA$285:$AD$285,$AA$290:$AD$290,"check xlookup for volume >1500",0,1),"")))))+IF(LL48=$W$293,$AA$293,$AA$294))/4)) -> Enter Major/Minor Street Speeds | YQ48: =IF(OR(ISBLANK($P$21),ISBLANK($P$23)),"Enter Major/Minor Street Speeds",IF(LR48=0,,(IF(LR48<5,_xlfn.XLOOKUP(LR48,$W$269:$W$272,$AA$269:$AA$272,"error",0,1),$AA$273)+IF(LW48<=$V$276,$AA$276,IF(AND(LW48>$V$276,LW48<=$V$277),$AA$277,IF(AND(LW48>$V$277,LW48<=$V$278),$AA$278,IF(AND(LW48>$V$278,LW48<=$V$279),$AA$279,$AA$280))))+IF(MB48<=$V$286,_xlfn.XLOOKUP(MG48,AA$285:$AD$285,$AA$286:$AD$286,"check xlookup for volume 150",0,1),IF(AND(MB48>$V$286,MB48<=$V$287),_xlfn.XLOOKUP(MG48,$AA$285:$AD$285,$AA$287:$AD$287,"check xlookup for volume 300",0,1),IF(AND(MB48>$V$287,MB48<=$V$288),_xlfn.XLOOKUP(MG48,$AA$285:$AD$285,$AA$288:$AD$288,"check xlookup for volume 900",0,1),IF(AND(MB48>$V$288,MB48<=$V$289),_xlfn.XLOOKUP(MG48,$AA$285:$AD$285,$AA$289:$AD$289,"check xlookup for volume 1500",0,1),IF(MB48>$V$289,_xlfn.XLOOKUP(MG48,$AA$285:$AD$285,$AA$290:$AD$290,"check xlookup for volume >1500",0,1),"")))))+IF(MO48=$W$293,$AA$293,$AA$294))/4)) -> Enter Major/Minor Street Speeds | ZA48: =IF(OR(ISBLANK($P$21),ISBLANK($P$23)),"Enter Major/Minor Street Speeds",IF(MU48=0,,(IF(MU48<5,_xlfn.XLOOKUP(MU48,$W$269:$W$272,$AA$269:$AA$272,"error",0,1),$AA$273)+IF(MZ48<=$V$276,$AA$276,IF(AND(MZ48>$V$276,MZ48<=$V$277),$AA$277,IF(AND(MZ48>$V$277,MZ48<=$V$278),$AA$278,IF(AND(MZ48>$V$278,MZ48<=$V$279),$AA$279,$AA$280))))+IF(NE48<=$V$286,_xlfn.XLOOKUP(NJ48,AA$285:$AD$285,$AA$286:$AD$286,"check xlookup for volume 150",0,1),IF(AND(NE48>$V$286,NE48<=$V$287),_xlfn.XLOOKUP(NJ48,$AA$285:$AD$285,$AA$287:$AD$287,"check xlookup for volume 300",0,1),IF(AND(NE48>$V$287,NE48<=$V$288),_xlfn.XLOOKUP(NJ48,$AA$285:$AD$285,$AA$288:$AD$288,"check xlookup for volume 900",0,1),IF(AND(NE48>$V$288,NE48<=$V$289),_xlfn.XLOOKUP(NJ48,$AA$285:$AD$285,$AA$289:$AD$289,"check xlookup for volume 1500",0,1),IF(NE48>$V$289,_xlfn.XLOOKUP(NJ48,$AA$285:$AD$285,$AA$290:$AD$290,"check xlookup for volume >1500",0,1),"")))))+IF(NR48=$W$293,$AA$293,$AA$294))/4)) -> Enter Major/Minor Street Speeds | ZK48: =IF(OR(ISBLANK($P$21),ISBLANK($P$23)),"Enter Major/Minor Street Speeds",IF(NX48=0,,(IF(NX48<5,_xlfn.XLOOKUP(NX48,$W$269:$W$272,$AA$269:$AA$272,"error",0,1),$AA$273)+IF(OC48<=$V$276,$AA$276,IF(AND(OC48>$V$276,OC48<=$V$277),$AA$277,IF(AND(OC48>$V$277,OC48<=$V$278),$AA$278,IF(AND(OC48>$V$278,OC48<=$V$279),$AA$279,$AA$280))))+IF(OH48<=$V$286,_xlfn.XLOOKUP(OM48,AA$285:$AD$285,$AA$286:$AD$286,"check xlookup for volume 150",0,1),IF(AND(OH48>$V$286,OH48<=$V$287),_xlfn.XLOOKUP(OM48,$AA$285:$AD$285,$AA$287:$AD$287,"check xlookup for volume 300",0,1),IF(AND(OH48>$V$287,OH48<=$V$288),_xlfn.XLOOKUP(OM48,$AA$285:$AD$285,$AA$288:$AD$288,"check xlookup for volume 900",0,1),IF(AND(OH48>$V$288,OH48<=$V$289),_xlfn.XLOOKUP(OM48,$AA$285:$AD$285,$AA$289:$AD$289,"check xlookup for volume 1500",0,1),IF(OH48>$V$289,_xlfn.XLOOKUP(OM48,$AA$285:$AD$285,$AA$290:$AD$290,"check xlookup for volume >1500",0,1),"")))))+IF(OU48=$W$293,$AA$293,$AA$294))/4)) -> Enter Major/Minor Street Speeds | ZU48: =IF(OR(ISBLANK($P$21),ISBLANK($P$23)),"Enter Major/Minor Street Speeds",IF(PA48=0,,(IF(PA48<5,_xlfn.XLOOKUP(PA48,$W$269:$W$272,$AA$269:$AA$272,"error",0,1),$AA$273)+IF(PF48<=$V$276,$AA$276,IF(AND(PF48>$V$276,PF48<=$V$277),$AA$277,IF(AND(PF48>$V$277,PF48<=$V$278),$AA$278,IF(AND(PF48>$V$278,PF48<=$V$279),$AA$279,$AA$280))))+IF(PK48<=$V$286,_xlfn.XLOOKUP(PP48,AA$285:$AD$285,$AA$286:$AD$286,"check xlookup for volume 150",0,1),IF(AND(PK48>$V$286,PK48<=$V$287),_xlfn.XLOOKUP(PP48,$AA$285:$AD$285,$AA$287:$AD$287,"check xlookup for volume 300",0,1),IF(AND(PK48>$V$287,PK48<=$V$288),_xlfn.XLOOKUP(PP48,$AA$285:$AD$285,$AA$288:$AD$288,"check xlookup for volume 900",0,1),IF(AND(PK48>$V$288,PK48<=$V$289),_xlfn.XLOOKUP(PP48,$AA$285:$AD$285,$AA$289:$AD$289,"check xlookup for volume 1500",0,1),IF(PK48>$V$289,_xlfn.XLOOKUP(PP48,$AA$285:$AD$285,$AA$290:$AD$290,"check xlookup for volume >1500",0,1),"")))))+IF(PX48=$W$293,$AA$293,$AA$294))/4)) -> Enter Major/Minor Street Speeds | AAE48: =IF(OR(ISBLANK($P$21),ISBLANK($P$23)),"Enter Major/Minor Street Speeds",IF(QD48=0,,(IF(QD48<5,_xlfn.XLOOKUP(QD48,$W$269:$W$272,$AA$269:$AA$272,"error",0,1),$AA$273)+IF(QI48<=$V$276,$AA$276,IF(AND(QI48>$V$276,QI48<=$V$277),$AA$277,IF(AND(QI48>$V$277,QI48<=$V$278),$AA$278,IF(AND(QI48>$V$278,QI48<=$V$279),$AA$279,$AA$280))))+IF(QN48<=$V$286,_xlfn.XLOOKUP(QS48,AA$285:$AD$285,$AA$286:$AD$286,"check xlookup for volume 150",0,1),IF(AND(QN48>$V$286,QN48<=$V$287),_xlfn.XLOOKUP(QS48,$AA$285:$AD$285,$AA$287:$AD$287,"check xlookup for volume 300",0,1),IF(AND(QN48>$V$287,QN48<=$V$288),_xlfn.XLOOKUP(QS48,$AA$285:$AD$285,$AA$288:$AD$288,"check xlookup for volume 900",0,1),IF(AND(QN48>$V$288,QN48<=$V$289),_xlfn.XLOOKUP(QS48,$AA$285:$AD$285,$AA$289:$AD$289,"check xlookup for volume 1500",0,1),IF(QN48>$V$289,_xlfn.XLOOKUP(QS48,$AA$285:$AD$285,$AA$290:$AD$290,"check xlookup for volume >1500",0,1),"")))))+IF(RA48=$W$293,$AA$293,$AA$294))/4)) -> Enter Major/Minor Street Speeds | AAO48: =IF(OR(ISBLANK($P$21),ISBLANK($P$23)),"Enter Major/Minor Street Speeds",IF(RG48=0,,(IF(RG48<5,_xlfn.XLOOKUP(RG48,$W$269:$W$272,$AA$269:$AA$272,"error",0,1),$AA$273)+IF(RL48<=$V$276,$AA$276,IF(AND(RL48>$V$276,RL48<=$V$277),$AA$277,IF(AND(RL48>$V$277,RL48<=$V$278),$AA$278,IF(AND(RL48>$V$278,RL48<=$V$279),$AA$279,$AA$280))))+IF(RQ48<=$V$286,_xlfn.XLOOKUP(RV48,AA$285:$AD$285,$AA$286:$AD$286,"check xlookup for volume 150",0,1),IF(AND(RQ48>$V$286,RQ48<=$V$287),_xlfn.XLOOKUP(RV48,$AA$285:$AD$285,$AA$287:$AD$287,"check xlookup for volume 300",0,1),IF(AND(RQ48>$V$287,RQ48<=$V$288),_xlfn.XLOOKUP(RV48,$AA$285:$AD$285,$AA$288:$AD$288,"check xlookup for volume 900",0,1),IF(AND(RQ48>$V$288,RQ48<=$V$289),_xlfn.XLOOKUP(RV48,$AA$285:$AD$285,$AA$289:$AD$289,"check xlookup for volume 1500",0,1),IF(RQ48>$V$289,_xlfn.XLOOKUP(RV48,$AA$285:$AD$285,$AA$290:$AD$290,"check xlookup for volume >1500",0,1),"")))))+IF(SD48=$W$293,$AA$293,$AA$294))/4)) -> Enter Major/Minor Street Speeds | AAY48: =IF(OR(ISBLANK($P$21),ISBLANK($P$23)),"Enter Major/Minor Street Speeds",IF(SJ48=0,,(IF(SJ48<5,_xlfn.XLOOKUP(SJ48,$W$269:$W$272,$AA$269:$AA$272,"error",0,1),$AA$273)+IF(SO48<=$V$276,$AA$276,IF(AND(SO48>$V$276,SO48<=$V$277),$AA$277,IF(AND(SO48>$V$277,SO48<=$V$278),$AA$278,IF(AND(SO48>$V$278,SO48<=$V$279),$AA$279,$AA$280))))+IF(ST48<=$V$286,_xlfn.XLOOKUP(SY48,AA$285:$AD$285,$AA$286:$AD$286,"check xlookup for volume 150",0,1),IF(AND(ST48>$V$286,ST48<=$V$287),_xlfn.XLOOKUP(SY48,$AA$285:$AD$285,$AA$287:$AD$287,"check xlookup for volume 300",0,1),IF(AND(ST48>$V$287,ST48<=$V$288),_xlfn.XLOOKUP(SY48,$AA$285:$AD$285,$AA$288:$AD$288,"check xlookup for volume 900",0,1),IF(AND(ST48>$V$288,ST48<=$V$289),_xlfn.XLOOKUP(SY48,$AA$285:$AD$285,$AA$289:$AD$289,"check xlookup for volume 1500",0,1),IF(ST48>$V$289,_xlfn.XLOOKUP(SY48,$AA$285:$AD$285,$AA$290:$AD$290,"check xlookup for volume >1500",0,1),"")))))+IF(TG48=$W$293,$AA$293,$AA$294))/4)) -> Enter Major/Minor Street Speeds | ABI48: =IF(OR(ISBLANK($P$21),ISBLANK($P$23)),"Enter Major/Minor Street Speeds",IF(TM48=0,,(IF(TM48<5,_xlfn.XLOOKUP(TM48,$W$269:$W$272,$AA$269:$AA$272,"error",0,1),$AA$273)+IF(TR48<=$V$276,$AA$276,IF(AND(TR48>$V$276,TR48<=$V$277),$AA$277,IF(AND(TR48>$V$277,TR48<=$V$278),$AA$278,IF(AND(TR48>$V$278,TR48<=$V$279),$AA$279,$AA$280))))+IF(TW48<=$V$286,_xlfn.XLOOKUP(UB48,AA$285:$AD$285,$AA$286:$AD$286,"check xlookup for volume 150",0,1),IF(AND(TW48>$V$286,TW48<=$V$287),_xlfn.XLOOKUP(UB48,$AA$285:$AD$285,$AA$287:$AD$287,"check xlookup for volume 300",0,1),IF(AND(TW48>$V$287,TW48<=$V$288),_xlfn.XLOOKUP(UB48,$AA$285:$AD$285,$AA$288:$AD$288,"check xlookup for volume 900",0,1),IF(AND(TW48>$V$288,TW48<=$V$289),_xlfn.XLOOKUP(UB48,$AA$285:$AD$285,$AA$289:$AD$289,"check xlookup for volume 1500",0,1),IF(TW48>$V$289,_xlfn.XLOOKUP(UB48,$AA$285:$AD$285,$AA$290:$AD$290,"check xlookup for volume >1500",0,1),"")))))+IF(UJ48=$W$293,$AA$293,$AA$294))/4)) -> Enter Major/Minor Street Speeds
A50: Continuous Green T | T50: W | Z50: =UP50 -> Enter Major/Minor Street Speeds | AD50: No | AI50: Yes Crossing(s) with 3+ stages | AN50: =SUM('CGT W'!CI37:CI39) -> 1 | AS50: =Min_St_Spd_Lmt -> 0 | AX50: =SUM(EBR_Master) -> 51 | BC50: Yield Controlled | BK50: Marked | BQ50: =SUM('CGT W'!CI31:CI36)+MAX('CGT W'!CJ43:CO43) -> 2 | BV50: =Min_St_Spd_Lmt -> 0 | CA50: =SUM(EBL_Master,EBU_Master,NBL_Master) -> 133 | CF50: Stop/Signal Controlled | CN50: Marked | CT50: =SUM('CGT W'!CJ30:CL30) -> 1 | CY50: =Maj_St_Spd_Lmt -> 0 | DD50: =SUM(SBR_Master) -> 204 | DI50: Yield Controlled | DQ50: Marked | DW50: =SUM('CGT W'!CM30:CO30) -> 2 | EB50: =Maj_St_Spd_Lmt -> 0 | EG50: =SUM(SBT_Master) -> 510 | EL50: Stop/Signal Controlled | ET50: Unmarked | EZ50: =SUM('CGT W'!CP43:CR43)+MAX('CGT W'!CI31:CI36) -> 3 | FE50: =Maj_St_Spd_Lmt -> 0 | FJ50: =SUM(NBT_Master,EBL_Master,SBU_Master) -> 541 | FO50: Free Flowing | FW50: Unmarked | GC50: =SUM('CGT W'!CJ43:CR43) -> 3 | GH50: =Maj_St_Spd_Lmt -> 0 | GM50: =SUM(NBL_Master,NBT_Master,NBU_Master) -> 612 | GR50: Free Flowing | GZ50: Unmarked | HF50: =MAX('CGT W'!CM30:CO30,'CGT W'!CJ43:CO43) -> 2 | HK50: =Maj_St_Spd_Lmt -> 0 | HP50: =SUM(SBT_Master,NBU_Master) -> 510 | HU50: Stop/Signal Controlled | IC50: Unmarked | UP50: =IFERROR((((SUM(SQRT(UU50),SQRT(VE50),SQRT(VO50),SQRT(VY50),SQRT(WI50),SQRT(WS50),SQRT(XC50),SQRT(XM50),SQRT(XW50),SQRT(YG50),SQRT(YQ50),SQRT(ZA50),SQRT(ZK50),SQRT(ZU50),SQRT(AAE50),SQRT(AAO50),SQRT(AAY50),SQRT(ABI50))/COUNTIF(UU50:ABR51,">0"))^2)*(_xlfn.XLOOKUP(AD50,$W$304:$W$305,$AA$304:$AA$305,"lookup error",0,1))*(_xlfn.XLOOKUP(AI50,Multistage_Crossing,$AA$298:$AA$300,"lookup error",0,1))),"Enter Major/Minor Street Speeds") -> Enter Major/Minor Street Speeds | UU50: =IF(OR(ISBLANK($P$21),ISBLANK($P$23)),"Enter Major/Minor Street Speeds",IF(AN50=0,,(IF(AN50<5,_xlfn.XLOOKUP(AN50,$W$269:$W$272,$AA$269:$AA$272,"error",0,1),$AA$273)+IF(AS50<=$V$276,$AA$276,IF(AND(AS50>$V$276,AS50<=$V$277),$AA$277,IF(AND(AS50>$V$277,AS50<=$V$278),$AA$278,IF(AND(AS50>$V$278,AS50<=$V$279),$AA$279,$AA$280))))+IF(AX50<=$V$286,_xlfn.XLOOKUP(BC50,AA$285:$AD$285,$AA$286:$AD$286,"check xlookup for volume 150",0,1),IF(AND(AX50>$V$286,AX50<=$V$287),_xlfn.XLOOKUP(BC50,$AA$285:$AD$285,$AA$287:$AD$287,"check xlookup for volume 300",0,1),IF(AND(AX50>$V$287,AX50<=$V$288),_xlfn.XLOOKUP(BC50,$AA$285:$AD$285,$AA$288:$AD$288,"check xlookup for volume 900",0,1),IF(AND(AX50>$V$288,AX50<=$V$289),_xlfn.XLOOKUP(BC50,$AA$285:$AD$285,$AA$289:$AD$289,"check xlookup for volume 1500",0,1),IF(AX50>$V$289,_xlfn.XLOOKUP(BC50,$AA$285:$AD$285,$AA$290:$AD$290,"check xlookup for volume >1500",0,1),"")))))+IF(BK50=$W$293,$AA$293,$AA$294))/4)) -> Enter Major/Minor Street Speeds | VE50: =IF(OR(ISBLANK($P$21),ISBLANK($P$23)),"Enter Major/Minor Street Speeds",IF(BQ50=0,,(IF(BQ50<5,_xlfn.XLOOKUP(BQ50,$W$269:$W$272,$AA$269:$AA$272,"error",0,1),$AA$273)+IF(BV50<=$V$276,$AA$276,IF(AND(BV50>$V$276,BV50<=$V$277),$AA$277,IF(AND(BV50>$V$277,BV50<=$V$278),$AA$278,IF(AND(BV50>$V$278,BV50<=$V$279),$AA$279,$AA$280))))+IF(CA50<=$V$286,_xlfn.XLOOKUP(CF50,AA$285:$AD$285,$AA$286:$AD$286,"check xlookup for volume 150",0,1),IF(AND(CA50>$V$286,CA50<=$V$287),_xlfn.XLOOKUP(CF50,$AA$285:$AD$285,$AA$287:$AD$287,"check xlookup for volume 300",0,1),IF(AND(CA50>$V$287,CA50<=$V$288),_xlfn.XLOOKUP(CF50,$AA$285:$AD$285,$AA$288:$AD$288,"check xlookup for volume 900",0,1),IF(AND(CA50>$V$288,CA50<=$V$289),_xlfn.XLOOKUP(CF50,$AA$285:$AD$285,$AA$289:$AD$289,"check xlookup for volume 1500",0,1),IF(CA50>$V$289,_xlfn.XLOOKUP(CF50,$AA$285:$AD$285,$AA$290:$AD$290,"check xlookup for volume >1500",0,1),"")))))+IF(CN50=$W$293,$AA$293,$AA$294))/4)) -> Enter Major/Minor Street Speeds | VO50: =IF(OR(ISBLANK($P$21),ISBLANK($P$23)),"Enter Major/Minor Street Speeds",IF(CT50=0,,(IF(CT50<5,_xlfn.XLOOKUP(CT50,$W$269:$W$272,$AA$269:$AA$272,"error",0,1),$AA$273)+IF(CY50<=$V$276,$AA$276,IF(AND(CY50>$V$276,CY50<=$V$277),$AA$277,IF(AND(CY50>$V$277,CY50<=$V$278),$AA$278,IF(AND(CY50>$V$278,CY50<=$V$279),$AA$279,$AA$280))))+IF(DD50<=$V$286,_xlfn.XLOOKUP(DI50,AA$285:$AD$285,$AA$286:$AD$286,"check xlookup for volume 150",0,1),IF(AND(DD50>$V$286,DD50<=$V$287),_xlfn.XLOOKUP(DI50,$AA$285:$AD$285,$AA$287:$AD$287,"check xlookup for volume 300",0,1),IF(AND(DD50>$V$287,DD50<=$V$288),_xlfn.XLOOKUP(DI50,$AA$285:$AD$285,$AA$288:$AD$288,"check xlookup for volume 900",0,1),IF(AND(DD50>$V$288,DD50<=$V$289),_xlfn.XLOOKUP(DI50,$AA$285:$AD$285,$AA$289:$AD$289,"check xlookup for volume 1500",0,1),IF(DD50>$V$289,_xlfn.XLOOKUP(DI50,$AA$285:$AD$285,$AA$290:$AD$290,"check xlookup for volume >1500",0,1),"")))))+IF(DQ50=$W$293,$AA$293,$AA$294))/4)) -> Enter Major/Minor Street Speeds | VY50: =IF(OR(ISBLANK($P$21),ISBLANK($P$23)),"Enter Major/Minor Street Speeds",IF(DW50=0,,(IF(DW50<5,_xlfn.XLOOKUP(DW50,$W$269:$W$272,$AA$269:$AA$272,"error",0,1),$AA$273)+IF(EB50<=$V$276,$AA$276,IF(AND(EB50>$V$276,EB50<=$V$277),$AA$277,IF(AND(EB50>$V$277,EB50<=$V$278),$AA$278,IF(AND(EB50>$V$278,EB50<=$V$279),$AA$279,$AA$280))))+IF(EG50<=$V$286,_xlfn.XLOOKUP(EL50,AA$285:$AD$285,$AA$286:$AD$286,"check xlookup for volume 150",0,1),IF(AND(EG50>$V$286,EG50<=$V$287),_xlfn.XLOOKUP(EL50,$AA$285:$AD$285,$AA$287:$AD$287,"check xlookup for volume 300",0,1),IF(AND(EG50>$V$287,EG50<=$V$288),_xlfn.XLOOKUP(EL50,$AA$285:$AD$285,$AA$288:$AD$288,"check xlookup for volume 900",0,1),IF(AND(EG50>$V$288,EG50<=$V$289),_xlfn.XLOOKUP(EL50,$AA$285:$AD$285,$AA$289:$AD$289,"check xlookup for volume 1500",0,1),IF(EG50>$V$289,_xlfn.XLOOKUP(EL50,$AA$285:$AD$285,$AA$290:$AD$290,"check xlookup for volume >1500",0,1),"")))))+IF(ET50=$W$293,$AA$293,$AA$294))/4)) -> Enter Major/Minor Street Speeds | WI50: =IF(OR(ISBLANK($P$21),ISBLANK($P$23)),"Enter Major/Minor Street Speeds",IF(EZ50=0,,(IF(EZ50<5,_xlfn.XLOOKUP(EZ50,$W$269:$W$272,$AA$269:$AA$272,"error",0,1),$AA$273)+IF(FE50<=$V$276,$AA$276,IF(AND(FE50>$V$276,FE50<=$V$277),$AA$277,IF(AND(FE50>$V$277,FE50<=$V$278),$AA$278,IF(AND(FE50>$V$278,FE50<=$V$279),$AA$279,$AA$280))))+IF(FJ50<=$V$286,_xlfn.XLOOKUP(FO50,AA$285:$AD$285,$AA$286:$AD$286,"check xlookup for volume 150",0,1),IF(AND(FJ50>$V$286,FJ50<=$V$287),_xlfn.XLOOKUP(FO50,$AA$285:$AD$285,$AA$287:$AD$287,"check xlookup for volume 300",0,1),IF(AND(FJ50>$V$287,FJ50<=$V$288),_xlfn.XLOOKUP(FO50,$AA$285:$AD$285,$AA$288:$AD$288,"check xlookup for volume 900",0,1),IF(AND(FJ50>$V$288,FJ50<=$V$289),_xlfn.XLOOKUP(FO50,$AA$285:$AD$285,$AA$289:$AD$289,"check xlookup for volume 1500",0,1),IF(FJ50>$V$289,_xlfn.XLOOKUP(FO50,$AA$285:$AD$285,$AA$290:$AD$290,"check xlookup for volume >1500",0,1),"")))))+IF(FW50=$W$293,$AA$293,$AA$294))/4)) -> Enter Major/Minor Street Speeds | WS50: =IF(OR(ISBLANK($P$21),ISBLANK($P$23)),"Enter Major/Minor Street Speeds",IF(GC50=0,,(IF(GC50<5,_xlfn.XLOOKUP(GC50,$W$269:$W$272,$AA$269:$AA$272,"error",0,1),$AA$273)+IF(GH50<=$V$276,$AA$276,IF(AND(GH50>$V$276,GH50<=$V$277),$AA$277,IF(AND(GH50>$V$277,GH50<=$V$278),$AA$278,IF(AND(GH50>$V$278,GH50<=$V$279),$AA$279,$AA$280))))+IF(GM50<=$V$286,_xlfn.XLOOKUP(GR50,AA$285:$AD$285,$AA$286:$AD$286,"check xlookup for volume 150",0,1),IF(AND(GM50>$V$286,GM50<=$V$287),_xlfn.XLOOKUP(GR50,$AA$285:$AD$285,$AA$287:$AD$287,"check xlookup for volume 300",0,1),IF(AND(GM50>$V$287,GM50<=$V$288),_xlfn.XLOOKUP(GR50,$AA$285:$AD$285,$AA$288:$AD$288,"check xlookup for volume 900",0,1),IF(AND(GM50>$V$288,GM50<=$V$289),_xlfn.XLOOKUP(GR50,$AA$285:$AD$285,$AA$289:$AD$289,"check xlookup for volume 1500",0,1),IF(GM50>$V$289,_xlfn.XLOOKUP(GR50,$AA$285:$AD$285,$AA$290:$AD$290,"check xlookup for volume >1500",0,1),"")))))+IF(GZ50=$W$293,$AA$293,$AA$294))/4)) -> Enter Major/Minor Street Speeds | XC50: =IF(OR(ISBLANK($P$21),ISBLANK($P$23)),"Enter Major/Minor Street Speeds",IF(HF50=0,,(IF(HF50<5,_xlfn.XLOOKUP(HF50,$W$269:$W$272,$AA$269:$AA$272,"error",0,1),$AA$273)+IF(HK50<=$V$276,$AA$276,IF(AND(HK50>$V$276,HK50<=$V$277),$AA$277,IF(AND(HK50>$V$277,HK50<=$V$278),$AA$278,IF(AND(HK50>$V$278,HK50<=$V$279),$AA$279,$AA$280))))+IF(HP50<=$V$286,_xlfn.XLOOKUP(HU50,AA$285:$AD$285,$AA$286:$AD$286,"check xlookup for volume 150",0,1),IF(AND(HP50>$V$286,HP50<=$V$287),_xlfn.XLOOKUP(HU50,$AA$285:$AD$285,$AA$287:$AD$287,"check xlookup for volume 300",0,1),IF(AND(HP50>$V$287,HP50<=$V$288),_xlfn.XLOOKUP(HU50,$AA$285:$AD$285,$AA$288:$AD$288,"check xlookup for volume 900",0,1),IF(AND(HP50>$V$288,HP50<=$V$289),_xlfn.XLOOKUP(HU50,$AA$285:$AD$285,$AA$289:$AD$289,"check xlookup for volume 1500",0,1),IF(HP50>$V$289,_xlfn.XLOOKUP(HU50,$AA$285:$AD$285,$AA$290:$AD$290,"check xlookup for volume >1500",0,1),"")))))+IF(IC50=$W$293,$AA$293,$AA$294))/4)) -> Enter Major/Minor Street Speeds | XM50: =IF(OR(ISBLANK($P$21),ISBLANK($P$23)),"Enter Major/Minor Street Speeds",IF(II50=0,,(IF(II50<5,_xlfn.XLOOKUP(II50,$W$269:$W$272,$AA$269:$AA$272,"error",0,1),$AA$273)+IF(IN50<=$V$276,$AA$276,IF(AND(IN50>$V$276,IN50<=$V$277),$AA$277,IF(AND(IN50>$V$277,IN50<=$V$278),$AA$278,IF(AND(IN50>$V$278,IN50<=$V$279),$AA$279,$AA$280))))+IF(IS50<=$V$286,_xlfn.XLOOKUP(IX50,AA$285:$AD$285,$AA$286:$AD$286,"check xlookup for volume 150",0,1),IF(AND(IS50>$V$286,IS50<=$V$287),_xlfn.XLOOKUP(IX50,$AA$285:$AD$285,$AA$287:$AD$287,"check xlookup for volume 300",0,1),IF(AND(IS50>$V$287,IS50<=$V$288),_xlfn.XLOOKUP(IX50,$AA$285:$AD$285,$AA$288:$AD$288,"check xlookup for volume 900",0,1),IF(AND(IS50>$V$288,IS50<=$V$289),_xlfn.XLOOKUP(IX50,$AA$285:$AD$285,$AA$289:$AD$289,"check xlookup for volume 1500",0,1),IF(IS50>$V$289,_xlfn.XLOOKUP(IX50,$AA$285:$AD$285,$AA$290:$AD$290,"check xlookup for volume >1500",0,1),"")))))+IF(JF50=$W$293,$AA$293,$AA$294))/4)) -> Enter Major/Minor Street Speeds | XW50: =IF(OR(ISBLANK($P$21),ISBLANK($P$23)),"Enter Major/Minor Street Speeds",IF(JL50=0,,(IF(JL50<5,_xlfn.XLOOKUP(JL50,$W$269:$W$272,$AA$269:$AA$272,"error",0,1),$AA$273)+IF(JQ50<=$V$276,$AA$276,IF(AND(JQ50>$V$276,JQ50<=$V$277),$AA$277,IF(AND(JQ50>$V$277,JQ50<=$V$278),$AA$278,IF(AND(JQ50>$V$278,JQ50<=$V$279),$AA$279,$AA$280))))+IF(JV50<=$V$286,_xlfn.XLOOKUP(KA50,AA$285:$AD$285,$AA$286:$AD$286,"check xlookup for volume 150",0,1),IF(AND(JV50>$V$286,JV50<=$V$287),_xlfn.XLOOKUP(KA50,$AA$285:$AD$285,$AA$287:$AD$287,"check xlookup for volume 300",0,1),IF(AND(JV50>$V$287,JV50<=$V$288),_xlfn.XLOOKUP(KA50,$AA$285:$AD$285,$AA$288:$AD$288,"check xlookup for volume 900",0,1),IF(AND(JV50>$V$288,JV50<=$V$289),_xlfn.XLOOKUP(KA50,$AA$285:$AD$285,$AA$289:$AD$289,"check xlookup for volume 1500",0,1),IF(JV50>$V$289,_xlfn.XLOOKUP(KA50,$AA$285:$AD$285,$AA$290:$AD$290,"check xlookup for volume >1500",0,1),"")))))+IF(KI50=$W$293,$AA$293,$AA$294))/4)) -> Enter Major/Minor Street Speeds | YG50: =IF(OR(ISBLANK($P$21),ISBLANK($P$23)),"Enter Major/Minor Street Speeds",IF(KO50=0,,(IF(KO50<5,_xlfn.XLOOKUP(KO50,$W$269:$W$272,$AA$269:$AA$272,"error",0,1),$AA$273)+IF(KT50<=$V$276,$AA$276,IF(AND(KT50>$V$276,KT50<=$V$277),$AA$277,IF(AND(KT50>$V$277,KT50<=$V$278),$AA$278,IF(AND(KT50>$V$278,KT50<=$V$279),$AA$279,$AA$280))))+IF(KY50<=$V$286,_xlfn.XLOOKUP(LD50,AA$285:$AD$285,$AA$286:$AD$286,"check xlookup for volume 150",0,1),IF(AND(KY50>$V$286,KY50<=$V$287),_xlfn.XLOOKUP(LD50,$AA$285:$AD$285,$AA$287:$AD$287,"check xlookup for volume 300",0,1),IF(AND(KY50>$V$287,KY50<=$V$288),_xlfn.XLOOKUP(LD50,$AA$285:$AD$285,$AA$288:$AD$288,"check xlookup for volume 900",0,1),IF(AND(KY50>$V$288,KY50<=$V$289),_xlfn.XLOOKUP(LD50,$AA$285:$AD$285,$AA$289:$AD$289,"check xlookup for volume 1500",0,1),IF(KY50>$V$289,_xlfn.XLOOKUP(LD50,$AA$285:$AD$285,$AA$290:$AD$290,"check xlookup for volume >1500",0,1),"")))))+IF(LL50=$W$293,$AA$293,$AA$294))/4)) -> Enter Major/Minor Street Speeds | YQ50: =IF(OR(ISBLANK($P$21),ISBLANK($P$23)),"Enter Major/Minor Street Speeds",IF(LR50=0,,(IF(LR50<5,_xlfn.XLOOKUP(LR50,$W$269:$W$272,$AA$269:$AA$272,"error",0,1),$AA$273)+IF(LW50<=$V$276,$AA$276,IF(AND(LW50>$V$276,LW50<=$V$277),$AA$277,IF(AND(LW50>$V$277,LW50<=$V$278),$AA$278,IF(AND(LW50>$V$278,LW50<=$V$279),$AA$279,$AA$280))))+IF(MB50<=$V$286,_xlfn.XLOOKUP(MG50,AA$285:$AD$285,$AA$286:$AD$286,"check xlookup for volume 150",0,1),IF(AND(MB50>$V$286,MB50<=$V$287),_xlfn.XLOOKUP(MG50,$AA$285:$AD$285,$AA$287:$AD$287,"check xlookup for volume 300",0,1),IF(AND(MB50>$V$287,MB50<=$V$288),_xlfn.XLOOKUP(MG50,$AA$285:$AD$285,$AA$288:$AD$288,"check xlookup for volume 900",0,1),IF(AND(MB50>$V$288,MB50<=$V$289),_xlfn.XLOOKUP(MG50,$AA$285:$AD$285,$AA$289:$AD$289,"check xlookup for volume 1500",0,1),IF(MB50>$V$289,_xlfn.XLOOKUP(MG50,$AA$285:$AD$285,$AA$290:$AD$290,"check xlookup for volume >1500",0,1),"")))))+IF(MO50=$W$293,$AA$293,$AA$294))/4)) -> Enter Major/Minor Street Speeds | ZA50: =IF(OR(ISBLANK($P$21),ISBLANK($P$23)),"Enter Major/Minor Street Speeds",IF(MU50=0,,(IF(MU50<5,_xlfn.XLOOKUP(MU50,$W$269:$W$272,$AA$269:$AA$272,"error",0,1),$AA$273)+IF(MZ50<=$V$276,$AA$276,IF(AND(MZ50>$V$276,MZ50<=$V$277),$AA$277,IF(AND(MZ50>$V$277,MZ50<=$V$278),$AA$278,IF(AND(MZ50>$V$278,MZ50<=$V$279),$AA$279,$AA$280))))+IF(NE50<=$V$286,_xlfn.XLOOKUP(NJ50,AA$285:$AD$285,$AA$286:$AD$286,"check xlookup for volume 150",0,1),IF(AND(NE50>$V$286,NE50<=$V$287),_xlfn.XLOOKUP(NJ50,$AA$285:$AD$285,$AA$287:$AD$287,"check xlookup for volume 300",0,1),IF(AND(NE50>$V$287,NE50<=$V$288),_xlfn.XLOOKUP(NJ50,$AA$285:$AD$285,$AA$288:$AD$288,"check xlookup for volume 900",0,1),IF(AND(NE50>$V$288,NE50<=$V$289),_xlfn.XLOOKUP(NJ50,$AA$285:$AD$285,$AA$289:$AD$289,"check xlookup for volume 1500",0,1),IF(NE50>$V$289,_xlfn.XLOOKUP(NJ50,$AA$285:$AD$285,$AA$290:$AD$290,"check xlookup for volume >1500",0,1),"")))))+IF(NR50=$W$293,$AA$293,$AA$294))/4)) -> Enter Major/Minor Street Speeds | ZK50: =IF(OR(ISBLANK($P$21),ISBLANK($P$23)),"Enter Major/Minor Street Speeds",IF(NX50=0,,(IF(NX50<5,_xlfn.XLOOKUP(NX50,$W$269:$W$272,$AA$269:$AA$272,"error",0,1),$AA$273)+IF(OC50<=$V$276,$AA$276,IF(AND(OC50>$V$276,OC50<=$V$277),$AA$277,IF(AND(OC50>$V$277,OC50<=$V$278),$AA$278,IF(AND(OC50>$V$278,OC50<=$V$279),$AA$279,$AA$280))))+IF(OH50<=$V$286,_xlfn.XLOOKUP(OM50,AA$285:$AD$285,$AA$286:$AD$286,"check xlookup for volume 150",0,1),IF(AND(OH50>$V$286,OH50<=$V$287),_xlfn.XLOOKUP(OM50,$AA$285:$AD$285,$AA$287:$AD$287,"check xlookup for volume 300",0,1),IF(AND(OH50>$V$287,OH50<=$V$288),_xlfn.XLOOKUP(OM50,$AA$285:$AD$285,$AA$288:$AD$288,"check xlookup for volume 900",0,1),IF(AND(OH50>$V$288,OH50<=$V$289),_xlfn.XLOOKUP(OM50,$AA$285:$AD$285,$AA$289:$AD$289,"check xlookup for volume 1500",0,1),IF(OH50>$V$289,_xlfn.XLOOKUP(OM50,$AA$285:$AD$285,$AA$290:$AD$290,"check xlookup for volume >1500",0,1),"")))))+IF(OU50=$W$293,$AA$293,$AA$294))/4)) -> Enter Major/Minor Street Speeds | ZU50: =IF(OR(ISBLANK($P$21),ISBLANK($P$23)),"Enter Major/Minor Street Speeds",IF(PA50=0,,(IF(PA50<5,_xlfn.XLOOKUP(PA50,$W$269:$W$272,$AA$269:$AA$272,"error",0,1),$AA$273)+IF(PF50<=$V$276,$AA$276,IF(AND(PF50>$V$276,PF50<=$V$277),$AA$277,IF(AND(PF50>$V$277,PF50<=$V$278),$AA$278,IF(AND(PF50>$V$278,PF50<=$V$279),$AA$279,$AA$280))))+IF(PK50<=$V$286,_xlfn.XLOOKUP(PP50,AA$285:$AD$285,$AA$286:$AD$286,"check xlookup for volume 150",0,1),IF(AND(PK50>$V$286,PK50<=$V$287),_xlfn.XLOOKUP(PP50,$AA$285:$AD$285,$AA$287:$AD$287,"check xlookup for volume 300",0,1),IF(AND(PK50>$V$287,PK50<=$V$288),_xlfn.XLOOKUP(PP50,$AA$285:$AD$285,$AA$288:$AD$288,"check xlookup for volume 900",0,1),IF(AND(PK50>$V$288,PK50<=$V$289),_xlfn.XLOOKUP(PP50,$AA$285:$AD$285,$AA$289:$AD$289,"check xlookup for volume 1500",0,1),IF(PK50>$V$289,_xlfn.XLOOKUP(PP50,$AA$285:$AD$285,$AA$290:$AD$290,"check xlookup for volume >1500",0,1),"")))))+IF(PX50=$W$293,$AA$293,$AA$294))/4)) -> Enter Major/Minor Street Speeds | AAE50: =IF(OR(ISBLANK($P$21),ISBLANK($P$23)),"Enter Major/Minor Street Speeds",IF(QD50=0,,(IF(QD50<5,_xlfn.XLOOKUP(QD50,$W$269:$W$272,$AA$269:$AA$272,"error",0,1),$AA$273)+IF(QI50<=$V$276,$AA$276,IF(AND(QI50>$V$276,QI50<=$V$277),$AA$277,IF(AND(QI50>$V$277,QI50<=$V$278),$AA$278,IF(AND(QI50>$V$278,QI50<=$V$279),$AA$279,$AA$280))))+IF(QN50<=$V$286,_xlfn.XLOOKUP(QS50,AA$285:$AD$285,$AA$286:$AD$286,"check xlookup for volume 150",0,1),IF(AND(QN50>$V$286,QN50<=$V$287),_xlfn.XLOOKUP(QS50,$AA$285:$AD$285,$AA$287:$AD$287,"check xlookup for volume 300",0,1),IF(AND(QN50>$V$287,QN50<=$V$288),_xlfn.XLOOKUP(QS50,$AA$285:$AD$285,$AA$288:$AD$288,"check xlookup for volume 900",0,1),IF(AND(QN50>$V$288,QN50<=$V$289),_xlfn.XLOOKUP(QS50,$AA$285:$AD$285,$AA$289:$AD$289,"check xlookup for volume 1500",0,1),IF(QN50>$V$289,_xlfn.XLOOKUP(QS50,$AA$285:$AD$285,$AA$290:$AD$290,"check xlookup for volume >1500",0,1),"")))))+IF(RA50=$W$293,$AA$293,$AA$294))/4)) -> Enter Major/Minor Street Speeds | AAO50: =IF(OR(ISBLANK($P$21),ISBLANK($P$23)),"Enter Major/Minor Street Speeds",IF(RG50=0,,(IF(RG50<5,_xlfn.XLOOKUP(RG50,$W$269:$W$272,$AA$269:$AA$272,"error",0,1),$AA$273)+IF(RL50<=$V$276,$AA$276,IF(AND(RL50>$V$276,RL50<=$V$277),$AA$277,IF(AND(RL50>$V$277,RL50<=$V$278),$AA$278,IF(AND(RL50>$V$278,RL50<=$V$279),$AA$279,$AA$280))))+IF(RQ50<=$V$286,_xlfn.XLOOKUP(RV50,AA$285:$AD$285,$AA$286:$AD$286,"check xlookup for volume 150",0,1),IF(AND(RQ50>$V$286,RQ50<=$V$287),_xlfn.XLOOKUP(RV50,$AA$285:$AD$285,$AA$287:$AD$287,"check xlookup for volume 300",0,1),IF(AND(RQ50>$V$287,RQ50<=$V$288),_xlfn.XLOOKUP(RV50,$AA$285:$AD$285,$AA$288:$AD$288,"check xlookup for volume 900",0,1),IF(AND(RQ50>$V$288,RQ50<=$V$289),_xlfn.XLOOKUP(RV50,$AA$285:$AD$285,$AA$289:$AD$289,"check xlookup for volume 1500",0,1),IF(RQ50>$V$289,_xlfn.XLOOKUP(RV50,$AA$285:$AD$285,$AA$290:$AD$290,"check xlookup for volume >1500",0,1),"")))))+IF(SD50=$W$293,$AA$293,$AA$294))/4)) -> Enter Major/Minor Street Speeds | AAY50: =IF(OR(ISBLANK($P$21),ISBLANK($P$23)),"Enter Major/Minor Street Speeds",IF(SJ50=0,,(IF(SJ50<5,_xlfn.XLOOKUP(SJ50,$W$269:$W$272,$AA$269:$AA$272,"error",0,1),$AA$273)+IF(SO50<=$V$276,$AA$276,IF(AND(SO50>$V$276,SO50<=$V$277),$AA$277,IF(AND(SO50>$V$277,SO50<=$V$278),$AA$278,IF(AND(SO50>$V$278,SO50<=$V$279),$AA$279,$AA$280))))+IF(ST50<=$V$286,_xlfn.XLOOKUP(SY50,AA$285:$AD$285,$AA$286:$AD$286,"check xlookup for volume 150",0,1),IF(AND(ST50>$V$286,ST50<=$V$287),_xlfn.XLOOKUP(SY50,$AA$285:$AD$285,$AA$287:$AD$287,"check xlookup for volume 300",0,1),IF(AND(ST50>$V$287,ST50<=$V$288),_xlfn.XLOOKUP(SY50,$AA$285:$AD$285,$AA$288:$AD$288,"check xlookup for volume 900",0,1),IF(AND(ST50>$V$288,ST50<=$V$289),_xlfn.XLOOKUP(SY50,$AA$285:$AD$285,$AA$289:$AD$289,"check xlookup for volume 1500",0,1),IF(ST50>$V$289,_xlfn.XLOOKUP(SY50,$AA$285:$AD$285,$AA$290:$AD$290,"check xlookup for volume >1500",0,1),"")))))+IF(TG50=$W$293,$AA$293,$AA$294))/4)) -> Enter Major/Minor Street Speeds | ABI50: =IF(OR(ISBLANK($P$21),ISBLANK($P$23)),"Enter Major/Minor Street Speeds",IF(TM50=0,,(IF(TM50<5,_xlfn.XLOOKUP(TM50,$W$269:$W$272,$AA$269:$AA$272,"error",0,1),$AA$273)+IF(TR50<=$V$276,$AA$276,IF(AND(TR50>$V$276,TR50<=$V$277),$AA$277,IF(AND(TR50>$V$277,TR50<=$V$278),$AA$278,IF(AND(TR50>$V$278,TR50<=$V$279),$AA$279,$AA$280))))+IF(TW50<=$V$286,_xlfn.XLOOKUP(UB50,AA$285:$AD$285,$AA$286:$AD$286,"check xlookup for volume 150",0,1),IF(AND(TW50>$V$286,TW50<=$V$287),_xlfn.XLOOKUP(UB50,$AA$285:$AD$285,$AA$287:$AD$287,"check xlookup for volume 300",0,1),IF(AND(TW50>$V$287,TW50<=$V$288),_xlfn.XLOOKUP(UB50,$AA$285:$AD$285,$AA$288:$AD$288,"check xlookup for volume 900",0,1),IF(AND(TW50>$V$288,TW50<=$V$289),_xlfn.XLOOKUP(UB50,$AA$285:$AD$285,$AA$289:$AD$289,"check xlookup for volume 1500",0,1),IF(TW50>$V$289,_xlfn.XLOOKUP(UB50,$AA$285:$AD$285,$AA$290:$AD$290,"check xlookup for volume >1500",0,1),"")))))+IF(UJ50=$W$293,$AA$293,$AA$294))/4)) -> Enter Major/Minor Street Speeds
T52: N | Z52: =UP52 -> Enter Major/Minor Street Speeds | AD52: No | AI52: Yes Crossing(s) with 3+ stages | AN52: =SUM('CGT N'!CM30:CO30) -> 1 | AS52: =Min_St_Spd_Lmt -> 0 | AX52: =SBR_Master -> 204 | BC52: Yield Controlled | BK52: Marked | BQ52: =SUM('CGT N'!CP30:CU30) -> 1 | BV52: =Min_St_Spd_Lmt -> 0 | CA52: =SUM(EBL_Master,SBU_Master,SBL_Master) -> 82 | CF52: Stop/Signal Controlled | CN52: Marked | CT52: =SUM('CGT N'!CV31:CV33) -> 1 | CY52: =Maj_St_Spd_Lmt -> 0 | DD52: =WBR_Master -> 51 | DI52: Yield Controlled | DQ52: Marked | DW52: =SUM('CGT N'!CV34:CV36) -> 2 | EB52: =Maj_St_Spd_Lmt -> 0 | EG52: =WBT_Master -> 204 | EL52: Stop/Signal Controlled | ET52: Unmarked | EZ52: =SUM('CGT N'!CI37:CI39,'CGT N'!CP30:CU30) -> 3 | FE52: =Maj_St_Spd_Lmt -> 0 | FJ52: =SUM(SBL_Master,EBT_Master) -> 255 | FO52: Free Flowing | FW52: Unmarked | GC52: =SUM('CGT N'!CI31:CI39) -> 3 | GH52: =Maj_St_Spd_Lmt -> 0 | GM52: =SUM(EBL_Master,EBT_Master,EBU_Master) -> 235 | GR52: Free Flowing | GZ52: Unmarked | HF52: =MAX('CGT N'!CV34:CV36,'CGT N'!CI31:CI36) -> 2 | HK52: =Maj_St_Spd_Lmt -> 0 | HP52: =SUM(EBU_Master,WBT_Master) -> 204 | HU52: Stop/Signal Controlled | IC52: Unmarked | UP52: =IFERROR((((SUM(SQRT(UU52),SQRT(VE52),SQRT(VO52),SQRT(VY52),SQRT(WI52),SQRT(WS52),SQRT(XC52),SQRT(XM52),SQRT(XW52),SQRT(YG52),SQRT(YQ52),SQRT(ZA52),SQRT(ZK52),SQRT(ZU52),SQRT(AAE52),SQRT(AAO52),SQRT(AAY52),SQRT(ABI52))/COUNTIF(UU52:ABR53,">0"))^2)*(_xlfn.XLOOKUP(AD52,$W$304:$W$305,$AA$304:$AA$305,"lookup error",0,1))*(_xlfn.XLOOKUP(AI52,Multistage_Crossing,$AA$298:$AA$300,"lookup error",0,1))),"Enter Major/Minor Street Speeds") -> Enter Major/Minor Street Speeds | UU52: =IF(OR(ISBLANK($P$21),ISBLANK($P$23)),"Enter Major/Minor Street Speeds",IF(AN52=0,,(IF(AN52<5,_xlfn.XLOOKUP(AN52,$W$269:$W$272,$AA$269:$AA$272,"error",0,1),$AA$273)+IF(AS52<=$V$276,$AA$276,IF(AND(AS52>$V$276,AS52<=$V$277),$AA$277,IF(AND(AS52>$V$277,AS52<=$V$278),$AA$278,IF(AND(AS52>$V$278,AS52<=$V$279),$AA$279,$AA$280))))+IF(AX52<=$V$286,_xlfn.XLOOKUP(BC52,AA$285:$AD$285,$AA$286:$AD$286,"check xlookup for volume 150",0,1),IF(AND(AX52>$V$286,AX52<=$V$287),_xlfn.XLOOKUP(BC52,$AA$285:$AD$285,$AA$287:$AD$287,"check xlookup for volume 300",0,1),IF(AND(AX52>$V$287,AX52<=$V$288),_xlfn.XLOOKUP(BC52,$AA$285:$AD$285,$AA$288:$AD$288,"check xlookup for volume 900",0,1),IF(AND(AX52>$V$288,AX52<=$V$289),_xlfn.XLOOKUP(BC52,$AA$285:$AD$285,$AA$289:$AD$289,"check xlookup for volume 1500",0,1),IF(AX52>$V$289,_xlfn.XLOOKUP(BC52,$AA$285:$AD$285,$AA$290:$AD$290,"check xlookup for volume >1500",0,1),"")))))+IF(BK52=$W$293,$AA$293,$AA$294))/4)) -> Enter Major/Minor Street Speeds | VE52: =IF(OR(ISBLANK($P$21),ISBLANK($P$23)),"Enter Major/Minor Street Speeds",IF(BQ52=0,,(IF(BQ52<5,_xlfn.XLOOKUP(BQ52,$W$269:$W$272,$AA$269:$AA$272,"error",0,1),$AA$273)+IF(BV52<=$V$276,$AA$276,IF(AND(BV52>$V$276,BV52<=$V$277),$AA$277,IF(AND(BV52>$V$277,BV52<=$V$278),$AA$278,IF(AND(BV52>$V$278,BV52<=$V$279),$AA$279,$AA$280))))+IF(CA52<=$V$286,_xlfn.XLOOKUP(CF52,AA$285:$AD$285,$AA$286:$AD$286,"check xlookup for volume 150",0,1),IF(AND(CA52>$V$286,CA52<=$V$287),_xlfn.XLOOKUP(CF52,$AA$285:$AD$285,$AA$287:$AD$287,"check xlookup for volume 300",0,1),IF(AND(CA52>$V$287,CA52<=$V$288),_xlfn.XLOOKUP(CF52,$AA$285:$AD$285,$AA$288:$AD$288,"check xlookup for volume 900",0,1),IF(AND(CA52>$V$288,CA52<=$V$289),_xlfn.XLOOKUP(CF52,$AA$285:$AD$285,$AA$289:$AD$289,"check xlookup for volume 1500",0,1),IF(CA52>$V$289,_xlfn.XLOOKUP(CF52,$AA$285:$AD$285,$AA$290:$AD$290,"check xlookup for volume >1500",0,1),"")))))+IF(CN52=$W$293,$AA$293,$AA$294))/4)) -> Enter Major/Minor Street Speeds | VO52: =IF(OR(ISBLANK($P$21),ISBLANK($P$23)),"Enter Major/Minor Street Speeds",IF(CT52=0,,(IF(CT52<5,_xlfn.XLOOKUP(CT52,$W$269:$W$272,$AA$269:$AA$272,"error",0,1),$AA$273)+IF(CY52<=$V$276,$AA$276,IF(AND(CY52>$V$276,CY52<=$V$277),$AA$277,IF(AND(CY52>$V$277,CY52<=$V$278),$AA$278,IF(AND(CY52>$V$278,CY52<=$V$279),$AA$279,$AA$280))))+IF(DD52<=$V$286,_xlfn.XLOOKUP(DI52,AA$285:$AD$285,$AA$286:$AD$286,"check xlookup for volume 150",0,1),IF(AND(DD52>$V$286,DD52<=$V$287),_xlfn.XLOOKUP(DI52,$AA$285:$AD$285,$AA$287:$AD$287,"check xlookup for volume 300",0,1),IF(AND(DD52>$V$287,DD52<=$V$288),_xlfn.XLOOKUP(DI52,$AA$285:$AD$285,$AA$288:$AD$288,"check xlookup for volume 900",0,1),IF(AND(DD52>$V$288,DD52<=$V$289),_xlfn.XLOOKUP(DI52,$AA$285:$AD$285,$AA$289:$AD$289,"check xlookup for volume 1500",0,1),IF(DD52>$V$289,_xlfn.XLOOKUP(DI52,$AA$285:$AD$285,$AA$290:$AD$290,"check xlookup for volume >1500",0,1),"")))))+IF(DQ52=$W$293,$AA$293,$AA$294))/4)) -> Enter Major/Minor Street Speeds | VY52: =IF(OR(ISBLANK($P$21),ISBLANK($P$23)),"Enter Major/Minor Street Speeds",IF(DW52=0,,(IF(DW52<5,_xlfn.XLOOKUP(DW52,$W$269:$W$272,$AA$269:$AA$272,"error",0,1),$AA$273)+IF(EB52<=$V$276,$AA$276,IF(AND(EB52>$V$276,EB52<=$V$277),$AA$277,IF(AND(EB52>$V$277,EB52<=$V$278),$AA$278,IF(AND(EB52>$V$278,EB52<=$V$279),$AA$279,$AA$280))))+IF(EG52<=$V$286,_xlfn.XLOOKUP(EL52,AA$285:$AD$285,$AA$286:$AD$286,"check xlookup for volume 150",0,1),IF(AND(EG52>$V$286,EG52<=$V$287),_xlfn.XLOOKUP(EL52,$AA$285:$AD$285,$AA$287:$AD$287,"check xlookup for volume 300",0,1),IF(AND(EG52>$V$287,EG52<=$V$288),_xlfn.XLOOKUP(EL52,$AA$285:$AD$285,$AA$288:$AD$288,"check xlookup for volume 900",0,1),IF(AND(EG52>$V$288,EG52<=$V$289),_xlfn.XLOOKUP(EL52,$AA$285:$AD$285,$AA$289:$AD$289,"check xlookup for volume 1500",0,1),IF(EG52>$V$289,_xlfn.XLOOKUP(EL52,$AA$285:$AD$285,$AA$290:$AD$290,"check xlookup for volume >1500",0,1),"")))))+IF(ET52=$W$293,$AA$293,$AA$294))/4)) -> Enter Major/Minor Street Speeds | WI52: =IF(OR(ISBLANK($P$21),ISBLANK($P$23)),"Enter Major/Minor Street Speeds",IF(EZ52=0,,(IF(EZ52<5,_xlfn.XLOOKUP(EZ52,$W$269:$W$272,$AA$269:$AA$272,"error",0,1),$AA$273)+IF(FE52<=$V$276,$AA$276,IF(AND(FE52>$V$276,FE52<=$V$277),$AA$277,IF(AND(FE52>$V$277,FE52<=$V$278),$AA$278,IF(AND(FE52>$V$278,FE52<=$V$279),$AA$279,$AA$280))))+IF(FJ52<=$V$286,_xlfn.XLOOKUP(FO52,AA$285:$AD$285,$AA$286:$AD$286,"check xlookup for volume 150",0,1),IF(AND(FJ52>$V$286,FJ52<=$V$287),_xlfn.XLOOKUP(FO52,$AA$285:$AD$285,$AA$287:$AD$287,"check xlookup for volume 300",0,1),IF(AND(FJ52>$V$287,FJ52<=$V$288),_xlfn.XLOOKUP(FO52,$AA$285:$AD$285,$AA$288:$AD$288,"check xlookup for volume 900",0,1),IF(AND(FJ52>$V$288,FJ52<=$V$289),_xlfn.XLOOKUP(FO52,$AA$285:$AD$285,$AA$289:$AD$289,"check xlookup for volume 1500",0,1),IF(FJ52>$V$289,_xlfn.XLOOKUP(FO52,$AA$285:$AD$285,$AA$290:$AD$290,"check xlookup for volume >1500",0,1),"")))))+IF(FW52=$W$293,$AA$293,$AA$294))/4)) -> Enter Major/Minor Street Speeds | WS52: =IF(OR(ISBLANK($P$21),ISBLANK($P$23)),"Enter Major/Minor Street Speeds",IF(GC52=0,,(IF(GC52<5,_xlfn.XLOOKUP(GC52,$W$269:$W$272,$AA$269:$AA$272,"error",0,1),$AA$273)+IF(GH52<=$V$276,$AA$276,IF(AND(GH52>$V$276,GH52<=$V$277),$AA$277,IF(AND(GH52>$V$277,GH52<=$V$278),$AA$278,IF(AND(GH52>$V$278,GH52<=$V$279),$AA$279,$AA$280))))+IF(GM52<=$V$286,_xlfn.XLOOKUP(GR52,AA$285:$AD$285,$AA$286:$AD$286,"check xlookup for volume 150",0,1),IF(AND(GM52>$V$286,GM52<=$V$287),_xlfn.XLOOKUP(GR52,$AA$285:$AD$285,$AA$287:$AD$287,"check xlookup for volume 300",0,1),IF(AND(GM52>$V$287,GM52<=$V$288),_xlfn.XLOOKUP(GR52,$AA$285:$AD$285,$AA$288:$AD$288,"check xlookup for volume 900",0,1),IF(AND(GM52>$V$288,GM52<=$V$289),_xlfn.XLOOKUP(GR52,$AA$285:$AD$285,$AA$289:$AD$289,"check xlookup for volume 1500",0,1),IF(GM52>$V$289,_xlfn.XLOOKUP(GR52,$AA$285:$AD$285,$AA$290:$AD$290,"check xlookup for volume >1500",0,1),"")))))+IF(GZ52=$W$293,$AA$293,$AA$294))/4)) -> Enter Major/Minor Street Speeds | XC52: =IF(OR(ISBLANK($P$21),ISBLANK($P$23)),"Enter Major/Minor Street Speeds",IF(HF52=0,,(IF(HF52<5,_xlfn.XLOOKUP(HF52,$W$269:$W$272,$AA$269:$AA$272,"error",0,1),$AA$273)+IF(HK52<=$V$276,$AA$276,IF(AND(HK52>$V$276,HK52<=$V$277),$AA$277,IF(AND(HK52>$V$277,HK52<=$V$278),$AA$278,IF(AND(HK52>$V$278,HK52<=$V$279),$AA$279,$AA$280))))+IF(HP52<=$V$286,_xlfn.XLOOKUP(HU52,AA$285:$AD$285,$AA$286:$AD$286,"check xlookup for volume 150",0,1),IF(AND(HP52>$V$286,HP52<=$V$287),_xlfn.XLOOKUP(HU52,$AA$285:$AD$285,$AA$287:$AD$287,"check xlookup for volume 300",0,1),IF(AND(HP52>$V$287,HP52<=$V$288),_xlfn.XLOOKUP(HU52,$AA$285:$AD$285,$AA$288:$AD$288,"check xlookup for volume 900",0,1),IF(AND(HP52>$V$288,HP52<=$V$289),_xlfn.XLOOKUP(HU52,$AA$285:$AD$285,$AA$289:$AD$289,"check xlookup for volume 1500",0,1),IF(HP52>$V$289,_xlfn.XLOOKUP(HU52,$AA$285:$AD$285,$AA$290:$AD$290,"check xlookup for volume >1500",0,1),"")))))+IF(IC52=$W$293,$AA$293,$AA$294))/4)) -> Enter Major/Minor Street Speeds | XM52: =IF(OR(ISBLANK($P$21),ISBLANK($P$23)),"Enter Major/Minor Street Speeds",IF(II52=0,,(IF(II52<5,_xlfn.XLOOKUP(II52,$W$269:$W$272,$AA$269:$AA$272,"error",0,1),$AA$273)+IF(IN52<=$V$276,$AA$276,IF(AND(IN52>$V$276,IN52<=$V$277),$AA$277,IF(AND(IN52>$V$277,IN52<=$V$278),$AA$278,IF(AND(IN52>$V$278,IN52<=$V$279),$AA$279,$AA$280))))+IF(IS52<=$V$286,_xlfn.XLOOKUP(IX52,AA$285:$AD$285,$AA$286:$AD$286,"check xlookup for volume 150",0,1),IF(AND(IS52>$V$286,IS52<=$V$287),_xlfn.XLOOKUP(IX52,$AA$285:$AD$285,$AA$287:$AD$287,"check xlookup for volume 300",0,1),IF(AND(IS52>$V$287,IS52<=$V$288),_xlfn.XLOOKUP(IX52,$AA$285:$AD$285,$AA$288:$AD$288,"check xlookup for volume 900",0,1),IF(AND(IS52>$V$288,IS52<=$V$289),_xlfn.XLOOKUP(IX52,$AA$285:$AD$285,$AA$289:$AD$289,"check xlookup for volume 1500",0,1),IF(IS52>$V$289,_xlfn.XLOOKUP(IX52,$AA$285:$AD$285,$AA$290:$AD$290,"check xlookup for volume >1500",0,1),"")))))+IF(JF52=$W$293,$AA$293,$AA$294))/4)) -> Enter Major/Minor Street Speeds | XW52: =IF(OR(ISBLANK($P$21),ISBLANK($P$23)),"Enter Major/Minor Street Speeds",IF(JL52=0,,(IF(JL52<5,_xlfn.XLOOKUP(JL52,$W$269:$W$272,$AA$269:$AA$272,"error",0,1),$AA$273)+IF(JQ52<=$V$276,$AA$276,IF(AND(JQ52>$V$276,JQ52<=$V$277),$AA$277,IF(AND(JQ52>$V$277,JQ52<=$V$278),$AA$278,IF(AND(JQ52>$V$278,JQ52<=$V$279),$AA$279,$AA$280))))+IF(JV52<=$V$286,_xlfn.XLOOKUP(KA52,AA$285:$AD$285,$AA$286:$AD$286,"check xlookup for volume 150",0,1),IF(AND(JV52>$V$286,JV52<=$V$287),_xlfn.XLOOKUP(KA52,$AA$285:$AD$285,$AA$287:$AD$287,"check xlookup for volume 300",0,1),IF(AND(JV52>$V$287,JV52<=$V$288),_xlfn.XLOOKUP(KA52,$AA$285:$AD$285,$AA$288:$AD$288,"check xlookup for volume 900",0,1),IF(AND(JV52>$V$288,JV52<=$V$289),_xlfn.XLOOKUP(KA52,$AA$285:$AD$285,$AA$289:$AD$289,"check xlookup for volume 1500",0,1),IF(JV52>$V$289,_xlfn.XLOOKUP(KA52,$AA$285:$AD$285,$AA$290:$AD$290,"check xlookup for volume >1500",0,1),"")))))+IF(KI52=$W$293,$AA$293,$AA$294))/4)) -> Enter Major/Minor Street Speeds | YG52: =IF(OR(ISBLANK($P$21),ISBLANK($P$23)),"Enter Major/Minor Street Speeds",IF(KO52=0,,(IF(KO52<5,_xlfn.XLOOKUP(KO52,$W$269:$W$272,$AA$269:$AA$272,"error",0,1),$AA$273)+IF(KT52<=$V$276,$AA$276,IF(AND(KT52>$V$276,KT52<=$V$277),$AA$277,IF(AND(KT52>$V$277,KT52<=$V$278),$AA$278,IF(AND(KT52>$V$278,KT52<=$V$279),$AA$279,$AA$280))))+IF(KY52<=$V$286,_xlfn.XLOOKUP(LD52,AA$285:$AD$285,$AA$286:$AD$286,"check xlookup for volume 150",0,1),IF(AND(KY52>$V$286,KY52<=$V$287),_xlfn.XLOOKUP(LD52,$AA$285:$AD$285,$AA$287:$AD$287,"check xlookup for volume 300",0,1),IF(AND(KY52>$V$287,KY52<=$V$288),_xlfn.XLOOKUP(LD52,$AA$285:$AD$285,$AA$288:$AD$288,"check xlookup for volume 900",0,1),IF(AND(KY52>$V$288,KY52<=$V$289),_xlfn.XLOOKUP(LD52,$AA$285:$AD$285,$AA$289:$AD$289,"check xlookup for volume 1500",0,1),IF(KY52>$V$289,_xlfn.XLOOKUP(LD52,$AA$285:$AD$285,$AA$290:$AD$290,"check xlookup for volume >1500",0,1),"")))))+IF(LL52=$W$293,$AA$293,$AA$294))/4)) -> Enter Major/Minor Street Speeds | YQ52: =IF(OR(ISBLANK($P$21),ISBLANK($P$23)),"Enter Major/Minor Street Speeds",IF(LR52=0,,(IF(LR52<5,_xlfn.XLOOKUP(LR52,$W$269:$W$272,$AA$269:$AA$272,"error",0,1),$AA$273)+IF(LW52<=$V$276,$AA$276,IF(AND(LW52>$V$276,LW52<=$V$277),$AA$277,IF(AND(LW52>$V$277,LW52<=$V$278),$AA$278,IF(AND(LW52>$V$278,LW52<=$V$279),$AA$279,$AA$280))))+IF(MB52<=$V$286,_xlfn.XLOOKUP(MG52,AA$285:$AD$285,$AA$286:$AD$286,"check xlookup for volume 150",0,1),IF(AND(MB52>$V$286,MB52<=$V$287),_xlfn.XLOOKUP(MG52,$AA$285:$AD$285,$AA$287:$AD$287,"check xlookup for volume 300",0,1),IF(AND(MB52>$V$287,MB52<=$V$288),_xlfn.XLOOKUP(MG52,$AA$285:$AD$285,$AA$288:$AD$288,"check xlookup for volume 900",0,1),IF(AND(MB52>$V$288,MB52<=$V$289),_xlfn.XLOOKUP(MG52,$AA$285:$AD$285,$AA$289:$AD$289,"check xlookup for volume 1500",0,1),IF(MB52>$V$289,_xlfn.XLOOKUP(MG52,$AA$285:$AD$285,$AA$290:$AD$290,"check xlookup for volume >1500",0,1),"")))))+IF(MO52=$W$293,$AA$293,$AA$294))/4)) -> Enter Major/Minor Street Speeds | ZA52: =IF(OR(ISBLANK($P$21),ISBLANK($P$23)),"Enter Major/Minor Street Speeds",IF(MU52=0,,(IF(MU52<5,_xlfn.XLOOKUP(MU52,$W$269:$W$272,$AA$269:$AA$272,"error",0,1),$AA$273)+IF(MZ52<=$V$276,$AA$276,IF(AND(MZ52>$V$276,MZ52<=$V$277),$AA$277,IF(AND(MZ52>$V$277,MZ52<=$V$278),$AA$278,IF(AND(MZ52>$V$278,MZ52<=$V$279),$AA$279,$AA$280))))+IF(NE52<=$V$286,_xlfn.XLOOKUP(NJ52,AA$285:$AD$285,$AA$286:$AD$286,"check xlookup for volume 150",0,1),IF(AND(NE52>$V$286,NE52<=$V$287),_xlfn.XLOOKUP(NJ52,$AA$285:$AD$285,$AA$287:$AD$287,"check xlookup for volume 300",0,1),IF(AND(NE52>$V$287,NE52<=$V$288),_xlfn.XLOOKUP(NJ52,$AA$285:$AD$285,$AA$288:$AD$288,"check xlookup for volume 900",0,1),IF(AND(NE52>$V$288,NE52<=$V$289),_xlfn.XLOOKUP(NJ52,$AA$285:$AD$285,$AA$289:$AD$289,"check xlookup for volume 1500",0,1),IF(NE52>$V$289,_xlfn.XLOOKUP(NJ52,$AA$285:$AD$285,$AA$290:$AD$290,"check xlookup for volume >1500",0,1),"")))))+IF(NR52=$W$293,$AA$293,$AA$294))/4)) -> Enter Major/Minor Street Speeds | ZK52: =IF(OR(ISBLANK($P$21),ISBLANK($P$23)),"Enter Major/Minor Street Speeds",IF(NX52=0,,(IF(NX52<5,_xlfn.XLOOKUP(NX52,$W$269:$W$272,$AA$269:$AA$272,"error",0,1),$AA$273)+IF(OC52<=$V$276,$AA$276,IF(AND(OC52>$V$276,OC52<=$V$277),$AA$277,IF(AND(OC52>$V$277,OC52<=$V$278),$AA$278,IF(AND(OC52>$V$278,OC52<=$V$279),$AA$279,$AA$280))))+IF(OH52<=$V$286,_xlfn.XLOOKUP(OM52,AA$285:$AD$285,$AA$286:$AD$286,"check xlookup for volume 150",0,1),IF(AND(OH52>$V$286,OH52<=$V$287),_xlfn.XLOOKUP(OM52,$AA$285:$AD$285,$AA$287:$AD$287,"check xlookup for volume 300",0,1),IF(AND(OH52>$V$287,OH52<=$V$288),_xlfn.XLOOKUP(OM52,$AA$285:$AD$285,$AA$288:$AD$288,"check xlookup for volume 900",0,1),IF(AND(OH52>$V$288,OH52<=$V$289),_xlfn.XLOOKUP(OM52,$AA$285:$AD$285,$AA$289:$AD$289,"check xlookup for volume 1500",0,1),IF(OH52>$V$289,_xlfn.XLOOKUP(OM52,$AA$285:$AD$285,$AA$290:$AD$290,"check xlookup for volume >1500",0,1),"")))))+IF(OU52=$W$293,$AA$293,$AA$294))/4)) -> Enter Major/Minor Street Speeds | ZU52: =IF(OR(ISBLANK($P$21),ISBLANK($P$23)),"Enter Major/Minor Street Speeds",IF(PA52=0,,(IF(PA52<5,_xlfn.XLOOKUP(PA52,$W$269:$W$272,$AA$269:$AA$272,"error",0,1),$AA$273)+IF(PF52<=$V$276,$AA$276,IF(AND(PF52>$V$276,PF52<=$V$277),$AA$277,IF(AND(PF52>$V$277,PF52<=$V$278),$AA$278,IF(AND(PF52>$V$278,PF52<=$V$279),$AA$279,$AA$280))))+IF(PK52<=$V$286,_xlfn.XLOOKUP(PP52,AA$285:$AD$285,$AA$286:$AD$286,"check xlookup for volume 150",0,1),IF(AND(PK52>$V$286,PK52<=$V$287),_xlfn.XLOOKUP(PP52,$AA$285:$AD$285,$AA$287:$AD$287,"check xlookup for volume 300",0,1),IF(AND(PK52>$V$287,PK52<=$V$288),_xlfn.XLOOKUP(PP52,$AA$285:$AD$285,$AA$288:$AD$288,"check xlookup for volume 900",0,1),IF(AND(PK52>$V$288,PK52<=$V$289),_xlfn.XLOOKUP(PP52,$AA$285:$AD$285,$AA$289:$AD$289,"check xlookup for volume 1500",0,1),IF(PK52>$V$289,_xlfn.XLOOKUP(PP52,$AA$285:$AD$285,$AA$290:$AD$290,"check xlookup for volume >1500",0,1),"")))))+IF(PX52=$W$293,$AA$293,$AA$294))/4)) -> Enter Major/Minor Street Speeds | AAE52: =IF(OR(ISBLANK($P$21),ISBLANK($P$23)),"Enter Major/Minor Street Speeds",IF(QD52=0,,(IF(QD52<5,_xlfn.XLOOKUP(QD52,$W$269:$W$272,$AA$269:$AA$272,"error",0,1),$AA$273)+IF(QI52<=$V$276,$AA$276,IF(AND(QI52>$V$276,QI52<=$V$277),$AA$277,IF(AND(QI52>$V$277,QI52<=$V$278),$AA$278,IF(AND(QI52>$V$278,QI52<=$V$279),$AA$279,$AA$280))))+IF(QN52<=$V$286,_xlfn.XLOOKUP(QS52,AA$285:$AD$285,$AA$286:$AD$286,"check xlookup for volume 150",0,1),IF(AND(QN52>$V$286,QN52<=$V$287),_xlfn.XLOOKUP(QS52,$AA$285:$AD$285,$AA$287:$AD$287,"check xlookup for volume 300",0,1),IF(AND(QN52>$V$287,QN52<=$V$288),_xlfn.XLOOKUP(QS52,$AA$285:$AD$285,$AA$288:$AD$288,"check xlookup for volume 900",0,1),IF(AND(QN52>$V$288,QN52<=$V$289),_xlfn.XLOOKUP(QS52,$AA$285:$AD$285,$AA$289:$AD$289,"check xlookup for volume 1500",0,1),IF(QN52>$V$289,_xlfn.XLOOKUP(QS52,$AA$285:$AD$285,$AA$290:$AD$290,"check xlookup for volume >1500",0,1),"")))))+IF(RA52=$W$293,$AA$293,$AA$294))/4)) -> Enter Major/Minor Street Speeds | AAO52: =IF(OR(ISBLANK($P$21),ISBLANK($P$23)),"Enter Major/Minor Street Speeds",IF(RG52=0,,(IF(RG52<5,_xlfn.XLOOKUP(RG52,$W$269:$W$272,$AA$269:$AA$272,"error",0,1),$AA$273)+IF(RL52<=$V$276,$AA$276,IF(AND(RL52>$V$276,RL52<=$V$277),$AA$277,IF(AND(RL52>$V$277,RL52<=$V$278),$AA$278,IF(AND(RL52>$V$278,RL52<=$V$279),$AA$279,$AA$280))))+IF(RQ52<=$V$286,_xlfn.XLOOKUP(RV52,AA$285:$AD$285,$AA$286:$AD$286,"check xlookup for volume 150",0,1),IF(AND(RQ52>$V$286,RQ52<=$V$287),_xlfn.XLOOKUP(RV52,$AA$285:$AD$285,$AA$287:$AD$287,"check xlookup for volume 300",0,1),IF(AND(RQ52>$V$287,RQ52<=$V$288),_xlfn.XLOOKUP(RV52,$AA$285:$AD$285,$AA$288:$AD$288,"check xlookup for volume 900",0,1),IF(AND(RQ52>$V$288,RQ52<=$V$289),_xlfn.XLOOKUP(RV52,$AA$285:$AD$285,$AA$289:$AD$289,"check xlookup for volume 1500",0,1),IF(RQ52>$V$289,_xlfn.XLOOKUP(RV52,$AA$285:$AD$285,$AA$290:$AD$290,"check xlookup for volume >1500",0,1),"")))))+IF(SD52=$W$293,$AA$293,$AA$294))/4)) -> Enter Major/Minor Street Speeds | AAY52: =IF(OR(ISBLANK($P$21),ISBLANK($P$23)),"Enter Major/Minor Street Speeds",IF(SJ52=0,,(IF(SJ52<5,_xlfn.XLOOKUP(SJ52,$W$269:$W$272,$AA$269:$AA$272,"error",0,1),$AA$273)+IF(SO52<=$V$276,$AA$276,IF(AND(SO52>$V$276,SO52<=$V$277),$AA$277,IF(AND(SO52>$V$277,SO52<=$V$278),$AA$278,IF(AND(SO52>$V$278,SO52<=$V$279),$AA$279,$AA$280))))+IF(ST52<=$V$286,_xlfn.XLOOKUP(SY52,AA$285:$AD$285,$AA$286:$AD$286,"check xlookup for volume 150",0,1),IF(AND(ST52>$V$286,ST52<=$V$287),_xlfn.XLOOKUP(SY52,$AA$285:$AD$285,$AA$287:$AD$287,"check xlookup for volume 300",0,1),IF(AND(ST52>$V$287,ST52<=$V$288),_xlfn.XLOOKUP(SY52,$AA$285:$AD$285,$AA$288:$AD$288,"check xlookup for volume 900",0,1),IF(AND(ST52>$V$288,ST52<=$V$289),_xlfn.XLOOKUP(SY52,$AA$285:$AD$285,$AA$289:$AD$289,"check xlookup for volume 1500",0,1),IF(ST52>$V$289,_xlfn.XLOOKUP(SY52,$AA$285:$AD$285,$AA$290:$AD$290,"check xlookup for volume >1500",0,1),"")))))+IF(TG52=$W$293,$AA$293,$AA$294))/4)) -> Enter Major/Minor Street Speeds | ABI52: =IF(OR(ISBLANK($P$21),ISBLANK($P$23)),"Enter Major/Minor Street Speeds",IF(TM52=0,,(IF(TM52<5,_xlfn.XLOOKUP(TM52,$W$269:$W$272,$AA$269:$AA$272,"error",0,1),$AA$273)+IF(TR52<=$V$276,$AA$276,IF(AND(TR52>$V$276,TR52<=$V$277),$AA$277,IF(AND(TR52>$V$277,TR52<=$V$278),$AA$278,IF(AND(TR52>$V$278,TR52<=$V$279),$AA$279,$AA$280))))+IF(TW52<=$V$286,_xlfn.XLOOKUP(UB52,AA$285:$AD$285,$AA$286:$AD$286,"check xlookup for volume 150",0,1),IF(AND(TW52>$V$286,TW52<=$V$287),_xlfn.XLOOKUP(UB52,$AA$285:$AD$285,$AA$287:$AD$287,"check xlookup for volume 300",0,1),IF(AND(TW52>$V$287,TW52<=$V$288),_xlfn.XLOOKUP(UB52,$AA$285:$AD$285,$AA$288:$AD$288,"check xlookup for volume 900",0,1),IF(AND(TW52>$V$288,TW52<=$V$289),_xlfn.XLOOKUP(UB52,$AA$285:$AD$285,$AA$289:$AD$289,"check xlookup for volume 1500",0,1),IF(TW52>$V$289,_xlfn.XLOOKUP(UB52,$AA$285:$AD$285,$AA$290:$AD$290,"check xlookup for volume >1500",0,1),"")))))+IF(UJ52=$W$293,$AA$293,$AA$294))/4)) -> Enter Major/Minor Street Speeds
T54: E | Z54: =UP54 -> Enter Major/Minor Street Speeds | AD54: No | AI54: Yes Crossing(s) with 3+ stages | AN54: =SUM('CGT E'!CV34:CV36) -> 1 | AS54: =Min_St_Spd_Lmt -> 0 | AX54: =SUM(WBR_Master) -> 51 | BC54: Yield Controlled | BK54: Marked | BQ54: =SUM('CGT E'!CV37:CV42)+MAX('CGT E'!CP30:CU30) -> 2 | BV54: =Min_St_Spd_Lmt -> 0 | CA54: =SUM(WBL_Master,SBL_Master,WBU_Master) -> 82 | CF54: Stop/Signal Controlled | CN54: Marked | CT54: =SUM('CGT E'!CS43:CU43) -> 1 | CY54: =Maj_St_Spd_Lmt -> 0 | DD54: =SUM(NBR_Master) -> 204 | DI54: Yield Controlled | DQ54: Marked | DW54: =SUM('CGT E'!CP43:CR43) -> 2 | EB54: =Maj_St_Spd_Lmt -> 0 | EG54: =SUM(NBT_Master) -> 510 | EL54: Stop/Signal Controlled | ET54: Unmarked | EZ54: =MAX('CGT E'!CV37:CV42,'CGT E'!CM30:CO30) -> 2 | FE54: =Maj_St_Spd_Lmt -> 0 | FJ54: =SUM(WBL_Master,SBT_Master) -> 541 | FO54: Free Flowing | FW54: Unmarked | GC54: =SUM('CGT E'!CM30:CU30) -> 3 | GH54: =Maj_St_Spd_Lmt -> 0 | GM54: =SUM(SBL_Master,SBT_Master) -> 561 | GR54: Free Flowing | GZ54: Unmarked | HF54: =MAX('CGT E'!CP43:CR43) -> 2 | HK54: =Maj_St_Spd_Lmt -> 0 | HP54: =SUM(NBT_Master) -> 510 | HU54: Stop/Signal Controlled | IC54: Unmarked | UP54: =IFERROR((((SUM(SQRT(UU54),SQRT(VE54),SQRT(VO54),SQRT(VY54),SQRT(WI54),SQRT(WS54),SQRT(XC54),SQRT(XM54),SQRT(XW54),SQRT(YG54),SQRT(YQ54),SQRT(ZA54),SQRT(ZK54),SQRT(ZU54),SQRT(AAE54),SQRT(AAO54),SQRT(AAY54),SQRT(ABI54))/COUNTIF(UU54:ABR55,">0"))^2)*(_xlfn.XLOOKUP(AD54,$W$304:$W$305,$AA$304:$AA$305,"lookup error",0,1))*(_xlfn.XLOOKUP(AI54,Multistage_Crossing,$AA$298:$AA$300,"lookup error",0,1))),"Enter Major/Minor Street Speeds") -> Enter Major/Minor Street Speeds | UU54: =IF(OR(ISBLANK($P$21),ISBLANK($P$23)),"Enter Major/Minor Street Speeds",IF(AN54=0,,(IF(AN54<5,_xlfn.XLOOKUP(AN54,$W$269:$W$272,$AA$269:$AA$272,"error",0,1),$AA$273)+IF(AS54<=$V$276,$AA$276,IF(AND(AS54>$V$276,AS54<=$V$277),$AA$277,IF(AND(AS54>$V$277,AS54<=$V$278),$AA$278,IF(AND(AS54>$V$278,AS54<=$V$279),$AA$279,$AA$280))))+IF(AX54<=$V$286,_xlfn.XLOOKUP(BC54,AA$285:$AD$285,$AA$286:$AD$286,"check xlookup for volume 150",0,1),IF(AND(AX54>$V$286,AX54<=$V$287),_xlfn.XLOOKUP(BC54,$AA$285:$AD$285,$AA$287:$AD$287,"check xlookup for volume 300",0,1),IF(AND(AX54>$V$287,AX54<=$V$288),_xlfn.XLOOKUP(BC54,$AA$285:$AD$285,$AA$288:$AD$288,"check xlookup for volume 900",0,1),IF(AND(AX54>$V$288,AX54<=$V$289),_xlfn.XLOOKUP(BC54,$AA$285:$AD$285,$AA$289:$AD$289,"check xlookup for volume 1500",0,1),IF(AX54>$V$289,_xlfn.XLOOKUP(BC54,$AA$285:$AD$285,$AA$290:$AD$290,"check xlookup for volume >1500",0,1),"")))))+IF(BK54=$W$293,$AA$293,$AA$294))/4)) -> Enter Major/Minor Street Speeds | VE54: =IF(OR(ISBLANK($P$21),ISBLANK($P$23)),"Enter Major/Minor Street Speeds",IF(BQ54=0,,(IF(BQ54<5,_xlfn.XLOOKUP(BQ54,$W$269:$W$272,$AA$269:$AA$272,"error",0,1),$AA$273)+IF(BV54<=$V$276,$AA$276,IF(AND(BV54>$V$276,BV54<=$V$277),$AA$277,IF(AND(BV54>$V$277,BV54<=$V$278),$AA$278,IF(AND(BV54>$V$278,BV54<=$V$279),$AA$279,$AA$280))))+IF(CA54<=$V$286,_xlfn.XLOOKUP(CF54,AA$285:$AD$285,$AA$286:$AD$286,"check xlookup for volume 150",0,1),IF(AND(CA54>$V$286,CA54<=$V$287),_xlfn.XLOOKUP(CF54,$AA$285:$AD$285,$AA$287:$AD$287,"check xlookup for volume 300",0,1),IF(AND(CA54>$V$287,CA54<=$V$288),_xlfn.XLOOKUP(CF54,$AA$285:$AD$285,$AA$288:$AD$288,"check xlookup for volume 900",0,1),IF(AND(CA54>$V$288,CA54<=$V$289),_xlfn.XLOOKUP(CF54,$AA$285:$AD$285,$AA$289:$AD$289,"check xlookup for volume 1500",0,1),IF(CA54>$V$289,_xlfn.XLOOKUP(CF54,$AA$285:$AD$285,$AA$290:$AD$290,"check xlookup for volume >1500",0,1),"")))))+IF(CN54=$W$293,$AA$293,$AA$294))/4)) -> Enter Major/Minor Street Speeds | VO54: =IF(OR(ISBLANK($P$21),ISBLANK($P$23)),"Enter Major/Minor Street Speeds",IF(CT54=0,,(IF(CT54<5,_xlfn.XLOOKUP(CT54,$W$269:$W$272,$AA$269:$AA$272,"error",0,1),$AA$273)+IF(CY54<=$V$276,$AA$276,IF(AND(CY54>$V$276,CY54<=$V$277),$AA$277,IF(AND(CY54>$V$277,CY54<=$V$278),$AA$278,IF(AND(CY54>$V$278,CY54<=$V$279),$AA$279,$AA$280))))+IF(DD54<=$V$286,_xlfn.XLOOKUP(DI54,AA$285:$AD$285,$AA$286:$AD$286,"check xlookup for volume 150",0,1),IF(AND(DD54>$V$286,DD54<=$V$287),_xlfn.XLOOKUP(DI54,$AA$285:$AD$285,$AA$287:$AD$287,"check xlookup for volume 300",0,1),IF(AND(DD54>$V$287,DD54<=$V$288),_xlfn.XLOOKUP(DI54,$AA$285:$AD$285,$AA$288:$AD$288,"check xlookup for volume 900",0,1),IF(AND(DD54>$V$288,DD54<=$V$289),_xlfn.XLOOKUP(DI54,$AA$285:$AD$285,$AA$289:$AD$289,"check xlookup for volume 1500",0,1),IF(DD54>$V$289,_xlfn.XLOOKUP(DI54,$AA$285:$AD$285,$AA$290:$AD$290,"check xlookup for volume >1500",0,1),"")))))+IF(DQ54=$W$293,$AA$293,$AA$294))/4)) -> Enter Major/Minor Street Speeds | VY54: =IF(OR(ISBLANK($P$21),ISBLANK($P$23)),"Enter Major/Minor Street Speeds",IF(DW54=0,,(IF(DW54<5,_xlfn.XLOOKUP(DW54,$W$269:$W$272,$AA$269:$AA$272,"error",0,1),$AA$273)+IF(EB54<=$V$276,$AA$276,IF(AND(EB54>$V$276,EB54<=$V$277),$AA$277,IF(AND(EB54>$V$277,EB54<=$V$278),$AA$278,IF(AND(EB54>$V$278,EB54<=$V$279),$AA$279,$AA$280))))+IF(EG54<=$V$286,_xlfn.XLOOKUP(EL54,AA$285:$AD$285,$AA$286:$AD$286,"check xlookup for volume 150",0,1),IF(AND(EG54>$V$286,EG54<=$V$287),_xlfn.XLOOKUP(EL54,$AA$285:$AD$285,$AA$287:$AD$287,"check xlookup for volume 300",0,1),IF(AND(EG54>$V$287,EG54<=$V$288),_xlfn.XLOOKUP(EL54,$AA$285:$AD$285,$AA$288:$AD$288,"check xlookup for volume 900",0,1),IF(AND(EG54>$V$288,EG54<=$V$289),_xlfn.XLOOKUP(EL54,$AA$285:$AD$285,$AA$289:$AD$289,"check xlookup for volume 1500",0,1),IF(EG54>$V$289,_xlfn.XLOOKUP(EL54,$AA$285:$AD$285,$AA$290:$AD$290,"check xlookup for volume >1500",0,1),"")))))+IF(ET54=$W$293,$AA$293,$AA$294))/4)) -> Enter Major/Minor Street Speeds | WI54: =IF(OR(ISBLANK($P$21),ISBLANK($P$23)),"Enter Major/Minor Street Speeds",IF(EZ54=0,,(IF(EZ54<5,_xlfn.XLOOKUP(EZ54,$W$269:$W$272,$AA$269:$AA$272,"error",0,1),$AA$273)+IF(FE54<=$V$276,$AA$276,IF(AND(FE54>$V$276,FE54<=$V$277),$AA$277,IF(AND(FE54>$V$277,FE54<=$V$278),$AA$278,IF(AND(FE54>$V$278,FE54<=$V$279),$AA$279,$AA$280))))+IF(FJ54<=$V$286,_xlfn.XLOOKUP(FO54,AA$285:$AD$285,$AA$286:$AD$286,"check xlookup for volume 150",0,1),IF(AND(FJ54>$V$286,FJ54<=$V$287),_xlfn.XLOOKUP(FO54,$AA$285:$AD$285,$AA$287:$AD$287,"check xlookup for volume 300",0,1),IF(AND(FJ54>$V$287,FJ54<=$V$288),_xlfn.XLOOKUP(FO54,$AA$285:$AD$285,$AA$288:$AD$288,"check xlookup for volume 900",0,1),IF(AND(FJ54>$V$288,FJ54<=$V$289),_xlfn.XLOOKUP(FO54,$AA$285:$AD$285,$AA$289:$AD$289,"check xlookup for volume 1500",0,1),IF(FJ54>$V$289,_xlfn.XLOOKUP(FO54,$AA$285:$AD$285,$AA$290:$AD$290,"check xlookup for volume >1500",0,1),"")))))+IF(FW54=$W$293,$AA$293,$AA$294))/4)) -> Enter Major/Minor Street Speeds | WS54: =IF(OR(ISBLANK($P$21),ISBLANK($P$23)),"Enter Major/Minor Street Speeds",IF(GC54=0,,(IF(GC54<5,_xlfn.XLOOKUP(GC54,$W$269:$W$272,$AA$269:$AA$272,"error",0,1),$AA$273)+IF(GH54<=$V$276,$AA$276,IF(AND(GH54>$V$276,GH54<=$V$277),$AA$277,IF(AND(GH54>$V$277,GH54<=$V$278),$AA$278,IF(AND(GH54>$V$278,GH54<=$V$279),$AA$279,$AA$280))))+IF(GM54<=$V$286,_xlfn.XLOOKUP(GR54,AA$285:$AD$285,$AA$286:$AD$286,"check xlookup for volume 150",0,1),IF(AND(GM54>$V$286,GM54<=$V$287),_xlfn.XLOOKUP(GR54,$AA$285:$AD$285,$AA$287:$AD$287,"check xlookup for volume 300",0,1),IF(AND(GM54>$V$287,GM54<=$V$288),_xlfn.XLOOKUP(GR54,$AA$285:$AD$285,$AA$288:$AD$288,"check xlookup for volume 900",0,1),IF(AND(GM54>$V$288,GM54<=$V$289),_xlfn.XLOOKUP(GR54,$AA$285:$AD$285,$AA$289:$AD$289,"check xlookup for volume 1500",0,1),IF(GM54>$V$289,_xlfn.XLOOKUP(GR54,$AA$285:$AD$285,$AA$290:$AD$290,"check xlookup for volume >1500",0,1),"")))))+IF(GZ54=$W$293,$AA$293,$AA$294))/4)) -> Enter Major/Minor Street Speeds | XC54: =IF(OR(ISBLANK($P$21),ISBLANK($P$23)),"Enter Major/Minor Street Speeds",IF(HF54=0,,(IF(HF54<5,_xlfn.XLOOKUP(HF54,$W$269:$W$272,$AA$269:$AA$272,"error",0,1),$AA$273)+IF(HK54<=$V$276,$AA$276,IF(AND(HK54>$V$276,HK54<=$V$277),$AA$277,IF(AND(HK54>$V$277,HK54<=$V$278),$AA$278,IF(AND(HK54>$V$278,HK54<=$V$279),$AA$279,$AA$280))))+IF(HP54<=$V$286,_xlfn.XLOOKUP(HU54,AA$285:$AD$285,$AA$286:$AD$286,"check xlookup for volume 150",0,1),IF(AND(HP54>$V$286,HP54<=$V$287),_xlfn.XLOOKUP(HU54,$AA$285:$AD$285,$AA$287:$AD$287,"check xlookup for volume 300",0,1),IF(AND(HP54>$V$287,HP54<=$V$288),_xlfn.XLOOKUP(HU54,$AA$285:$AD$285,$AA$288:$AD$288,"check xlookup for volume 900",0,1),IF(AND(HP54>$V$288,HP54<=$V$289),_xlfn.XLOOKUP(HU54,$AA$285:$AD$285,$AA$289:$AD$289,"check xlookup for volume 1500",0,1),IF(HP54>$V$289,_xlfn.XLOOKUP(HU54,$AA$285:$AD$285,$AA$290:$AD$290,"check xlookup for volume >1500",0,1),"")))))+IF(IC54=$W$293,$AA$293,$AA$294))/4)) -> Enter Major/Minor Street Speeds | XM54: =IF(OR(ISBLANK($P$21),ISBLANK($P$23)),"Enter Major/Minor Street Speeds",IF(II54=0,,(IF(II54<5,_xlfn.XLOOKUP(II54,$W$269:$W$272,$AA$269:$AA$272,"error",0,1),$AA$273)+IF(IN54<=$V$276,$AA$276,IF(AND(IN54>$V$276,IN54<=$V$277),$AA$277,IF(AND(IN54>$V$277,IN54<=$V$278),$AA$278,IF(AND(IN54>$V$278,IN54<=$V$279),$AA$279,$AA$280))))+IF(IS54<=$V$286,_xlfn.XLOOKUP(IX54,AA$285:$AD$285,$AA$286:$AD$286,"check xlookup for volume 150",0,1),IF(AND(IS54>$V$286,IS54<=$V$287),_xlfn.XLOOKUP(IX54,$AA$285:$AD$285,$AA$287:$AD$287,"check xlookup for volume 300",0,1),IF(AND(IS54>$V$287,IS54<=$V$288),_xlfn.XLOOKUP(IX54,$AA$285:$AD$285,$AA$288:$AD$288,"check xlookup for volume 900",0,1),IF(AND(IS54>$V$288,IS54<=$V$289),_xlfn.XLOOKUP(IX54,$AA$285:$AD$285,$AA$289:$AD$289,"check xlookup for volume 1500",0,1),IF(IS54>$V$289,_xlfn.XLOOKUP(IX54,$AA$285:$AD$285,$AA$290:$AD$290,"check xlookup for volume >1500",0,1),"")))))+IF(JF54=$W$293,$AA$293,$AA$294))/4)) -> Enter Major/Minor Street Speeds | XW54: =IF(OR(ISBLANK($P$21),ISBLANK($P$23)),"Enter Major/Minor Street Speeds",IF(JL54=0,,(IF(JL54<5,_xlfn.XLOOKUP(JL54,$W$269:$W$272,$AA$269:$AA$272,"error",0,1),$AA$273)+IF(JQ54<=$V$276,$AA$276,IF(AND(JQ54>$V$276,JQ54<=$V$277),$AA$277,IF(AND(JQ54>$V$277,JQ54<=$V$278),$AA$278,IF(AND(JQ54>$V$278,JQ54<=$V$279),$AA$279,$AA$280))))+IF(JV54<=$V$286,_xlfn.XLOOKUP(KA54,AA$285:$AD$285,$AA$286:$AD$286,"check xlookup for volume 150",0,1),IF(AND(JV54>$V$286,JV54<=$V$287),_xlfn.XLOOKUP(KA54,$AA$285:$AD$285,$AA$287:$AD$287,"check xlookup for volume 300",0,1),IF(AND(JV54>$V$287,JV54<=$V$288),_xlfn.XLOOKUP(KA54,$AA$285:$AD$285,$AA$288:$AD$288,"check xlookup for volume 900",0,1),IF(AND(JV54>$V$288,JV54<=$V$289),_xlfn.XLOOKUP(KA54,$AA$285:$AD$285,$AA$289:$AD$289,"check xlookup for volume 1500",0,1),IF(JV54>$V$289,_xlfn.XLOOKUP(KA54,$AA$285:$AD$285,$AA$290:$AD$290,"check xlookup for volume >1500",0,1),"")))))+IF(KI54=$W$293,$AA$293,$AA$294))/4)) -> Enter Major/Minor Street Speeds | YG54: =IF(OR(ISBLANK($P$21),ISBLANK($P$23)),"Enter Major/Minor Street Speeds",IF(KO54=0,,(IF(KO54<5,_xlfn.XLOOKUP(KO54,$W$269:$W$272,$AA$269:$AA$272,"error",0,1),$AA$273)+IF(KT54<=$V$276,$AA$276,IF(AND(KT54>$V$276,KT54<=$V$277),$AA$277,IF(AND(KT54>$V$277,KT54<=$V$278),$AA$278,IF(AND(KT54>$V$278,KT54<=$V$279),$AA$279,$AA$280))))+IF(KY54<=$V$286,_xlfn.XLOOKUP(LD54,AA$285:$AD$285,$AA$286:$AD$286,"check xlookup for volume 150",0,1),IF(AND(KY54>$V$286,KY54<=$V$287),_xlfn.XLOOKUP(LD54,$AA$285:$AD$285,$AA$287:$AD$287,"check xlookup for volume 300",0,1),IF(AND(KY54>$V$287,KY54<=$V$288),_xlfn.XLOOKUP(LD54,$AA$285:$AD$285,$AA$288:$AD$288,"check xlookup for volume 900",0,1),IF(AND(KY54>$V$288,KY54<=$V$289),_xlfn.XLOOKUP(LD54,$AA$285:$AD$285,$AA$289:$AD$289,"check xlookup for volume 1500",0,1),IF(KY54>$V$289,_xlfn.XLOOKUP(LD54,$AA$285:$AD$285,$AA$290:$AD$290,"check xlookup for volume >1500",0,1),"")))))+IF(LL54=$W$293,$AA$293,$AA$294))/4)) -> Enter Major/Minor Street Speeds | YQ54: =IF(OR(ISBLANK($P$21),ISBLANK($P$23)),"Enter Major/Minor Street Speeds",IF(LR54=0,,(IF(LR54<5,_xlfn.XLOOKUP(LR54,$W$269:$W$272,$AA$269:$AA$272,"error",0,1),$AA$273)+IF(LW54<=$V$276,$AA$276,IF(AND(LW54>$V$276,LW54<=$V$277),$AA$277,IF(AND(LW54>$V$277,LW54<=$V$278),$AA$278,IF(AND(LW54>$V$278,LW54<=$V$279),$AA$279,$AA$280))))+IF(MB54<=$V$286,_xlfn.XLOOKUP(MG54,AA$285:$AD$285,$AA$286:$AD$286,"check xlookup for volume 150",0,1),IF(AND(MB54>$V$286,MB54<=$V$287),_xlfn.XLOOKUP(MG54,$AA$285:$AD$285,$AA$287:$AD$287,"check xlookup for volume 300",0,1),IF(AND(MB54>$V$287,MB54<=$V$288),_xlfn.XLOOKUP(MG54,$AA$285:$AD$285,$AA$288:$AD$288,"check xlookup for volume 900",0,1),IF(AND(MB54>$V$288,MB54<=$V$289),_xlfn.XLOOKUP(MG54,$AA$285:$AD$285,$AA$289:$AD$289,"check xlookup for volume 1500",0,1),IF(MB54>$V$289,_xlfn.XLOOKUP(MG54,$AA$285:$AD$285,$AA$290:$AD$290,"check xlookup for volume >1500",0,1),"")))))+IF(MO54=$W$293,$AA$293,$AA$294))/4)) -> Enter Major/Minor Street Speeds | ZA54: =IF(OR(ISBLANK($P$21),ISBLANK($P$23)),"Enter Major/Minor Street Speeds",IF(MU54=0,,(IF(MU54<5,_xlfn.XLOOKUP(MU54,$W$269:$W$272,$AA$269:$AA$272,"error",0,1),$AA$273)+IF(MZ54<=$V$276,$AA$276,IF(AND(MZ54>$V$276,MZ54<=$V$277),$AA$277,IF(AND(MZ54>$V$277,MZ54<=$V$278),$AA$278,IF(AND(MZ54>$V$278,MZ54<=$V$279),$AA$279,$AA$280))))+IF(NE54<=$V$286,_xlfn.XLOOKUP(NJ54,AA$285:$AD$285,$AA$286:$AD$286,"check xlookup for volume 150",0,1),IF(AND(NE54>$V$286,NE54<=$V$287),_xlfn.XLOOKUP(NJ54,$AA$285:$AD$285,$AA$287:$AD$287,"check xlookup for volume 300",0,1),IF(AND(NE54>$V$287,NE54<=$V$288),_xlfn.XLOOKUP(NJ54,$AA$285:$AD$285,$AA$288:$AD$288,"check xlookup for volume 900",0,1),IF(AND(NE54>$V$288,NE54<=$V$289),_xlfn.XLOOKUP(NJ54,$AA$285:$AD$285,$AA$289:$AD$289,"check xlookup for volume 1500",0,1),IF(NE54>$V$289,_xlfn.XLOOKUP(NJ54,$AA$285:$AD$285,$AA$290:$AD$290,"check xlookup for volume >1500",0,1),"")))))+IF(NR54=$W$293,$AA$293,$AA$294))/4)) -> Enter Major/Minor Street Speeds | ZK54: =IF(OR(ISBLANK($P$21),ISBLANK($P$23)),"Enter Major/Minor Street Speeds",IF(NX54=0,,(IF(NX54<5,_xlfn.XLOOKUP(NX54,$W$269:$W$272,$AA$269:$AA$272,"error",0,1),$AA$273)+IF(OC54<=$V$276,$AA$276,IF(AND(OC54>$V$276,OC54<=$V$277),$AA$277,IF(AND(OC54>$V$277,OC54<=$V$278),$AA$278,IF(AND(OC54>$V$278,OC54<=$V$279),$AA$279,$AA$280))))+IF(OH54<=$V$286,_xlfn.XLOOKUP(OM54,AA$285:$AD$285,$AA$286:$AD$286,"check xlookup for volume 150",0,1),IF(AND(OH54>$V$286,OH54<=$V$287),_xlfn.XLOOKUP(OM54,$AA$285:$AD$285,$AA$287:$AD$287,"check xlookup for volume 300",0,1),IF(AND(OH54>$V$287,OH54<=$V$288),_xlfn.XLOOKUP(OM54,$AA$285:$AD$285,$AA$288:$AD$288,"check xlookup for volume 900",0,1),IF(AND(OH54>$V$288,OH54<=$V$289),_xlfn.XLOOKUP(OM54,$AA$285:$AD$285,$AA$289:$AD$289,"check xlookup for volume 1500",0,1),IF(OH54>$V$289,_xlfn.XLOOKUP(OM54,$AA$285:$AD$285,$AA$290:$AD$290,"check xlookup for volume >1500",0,1),"")))))+IF(OU54=$W$293,$AA$293,$AA$294))/4)) -> Enter Major/Minor Street Speeds | ZU54: =IF(OR(ISBLANK($P$21),ISBLANK($P$23)),"Enter Major/Minor Street Speeds",IF(PA54=0,,(IF(PA54<5,_xlfn.XLOOKUP(PA54,$W$269:$W$272,$AA$269:$AA$272,"error",0,1),$AA$273)+IF(PF54<=$V$276,$AA$276,IF(AND(PF54>$V$276,PF54<=$V$277),$AA$277,IF(AND(PF54>$V$277,PF54<=$V$278),$AA$278,IF(AND(PF54>$V$278,PF54<=$V$279),$AA$279,$AA$280))))+IF(PK54<=$V$286,_xlfn.XLOOKUP(PP54,AA$285:$AD$285,$AA$286:$AD$286,"check xlookup for volume 150",0,1),IF(AND(PK54>$V$286,PK54<=$V$287),_xlfn.XLOOKUP(PP54,$AA$285:$AD$285,$AA$287:$AD$287,"check xlookup for volume 300",0,1),IF(AND(PK54>$V$287,PK54<=$V$288),_xlfn.XLOOKUP(PP54,$AA$285:$AD$285,$AA$288:$AD$288,"check xlookup for volume 900",0,1),IF(AND(PK54>$V$288,PK54<=$V$289),_xlfn.XLOOKUP(PP54,$AA$285:$AD$285,$AA$289:$AD$289,"check xlookup for volume 1500",0,1),IF(PK54>$V$289,_xlfn.XLOOKUP(PP54,$AA$285:$AD$285,$AA$290:$AD$290,"check xlookup for volume >1500",0,1),"")))))+IF(PX54=$W$293,$AA$293,$AA$294))/4)) -> Enter Major/Minor Street Speeds | AAE54: =IF(OR(ISBLANK($P$21),ISBLANK($P$23)),"Enter Major/Minor Street Speeds",IF(QD54=0,,(IF(QD54<5,_xlfn.XLOOKUP(QD54,$W$269:$W$272,$AA$269:$AA$272,"error",0,1),$AA$273)+IF(QI54<=$V$276,$AA$276,IF(AND(QI54>$V$276,QI54<=$V$277),$AA$277,IF(AND(QI54>$V$277,QI54<=$V$278),$AA$278,IF(AND(QI54>$V$278,QI54<=$V$279),$AA$279,$AA$280))))+IF(QN54<=$V$286,_xlfn.XLOOKUP(QS54,AA$285:$AD$285,$AA$286:$AD$286,"check xlookup for volume 150",0,1),IF(AND(QN54>$V$286,QN54<=$V$287),_xlfn.XLOOKUP(QS54,$AA$285:$AD$285,$AA$287:$AD$287,"check xlookup for volume 300",0,1),IF(AND(QN54>$V$287,QN54<=$V$288),_xlfn.XLOOKUP(QS54,$AA$285:$AD$285,$AA$288:$AD$288,"check xlookup for volume 900",0,1),IF(AND(QN54>$V$288,QN54<=$V$289),_xlfn.XLOOKUP(QS54,$AA$285:$AD$285,$AA$289:$AD$289,"check xlookup for volume 1500",0,1),IF(QN54>$V$289,_xlfn.XLOOKUP(QS54,$AA$285:$AD$285,$AA$290:$AD$290,"check xlookup for volume >1500",0,1),"")))))+IF(RA54=$W$293,$AA$293,$AA$294))/4)) -> Enter Major/Minor Street Speeds | AAO54: =IF(OR(ISBLANK($P$21),ISBLANK($P$23)),"Enter Major/Minor Street Speeds",IF(RG54=0,,(IF(RG54<5,_xlfn.XLOOKUP(RG54,$W$269:$W$272,$AA$269:$AA$272,"error",0,1),$AA$273)+IF(RL54<=$V$276,$AA$276,IF(AND(RL54>$V$276,RL54<=$V$277),$AA$277,IF(AND(RL54>$V$277,RL54<=$V$278),$AA$278,IF(AND(RL54>$V$278,RL54<=$V$279),$AA$279,$AA$280))))+IF(RQ54<=$V$286,_xlfn.XLOOKUP(RV54,AA$285:$AD$285,$AA$286:$AD$286,"check xlookup for volume 150",0,1),IF(AND(RQ54>$V$286,RQ54<=$V$287),_xlfn.XLOOKUP(RV54,$AA$285:$AD$285,$AA$287:$AD$287,"check xlookup for volume 300",0,1),IF(AND(RQ54>$V$287,RQ54<=$V$288),_xlfn.XLOOKUP(RV54,$AA$285:$AD$285,$AA$288:$AD$288,"check xlookup for volume 900",0,1),IF(AND(RQ54>$V$288,RQ54<=$V$289),_xlfn.XLOOKUP(RV54,$AA$285:$AD$285,$AA$289:$AD$289,"check xlookup for volume 1500",0,1),IF(RQ54>$V$289,_xlfn.XLOOKUP(RV54,$AA$285:$AD$285,$AA$290:$AD$290,"check xlookup for volume >1500",0,1),"")))))+IF(SD54=$W$293,$AA$293,$AA$294))/4)) -> Enter Major/Minor Street Speeds | AAY54: =IF(OR(ISBLANK($P$21),ISBLANK($P$23)),"Enter Major/Minor Street Speeds",IF(SJ54=0,,(IF(SJ54<5,_xlfn.XLOOKUP(SJ54,$W$269:$W$272,$AA$269:$AA$272,"error",0,1),$AA$273)+IF(SO54<=$V$276,$AA$276,IF(AND(SO54>$V$276,SO54<=$V$277),$AA$277,IF(AND(SO54>$V$277,SO54<=$V$278),$AA$278,IF(AND(SO54>$V$278,SO54<=$V$279),$AA$279,$AA$280))))+IF(ST54<=$V$286,_xlfn.XLOOKUP(SY54,AA$285:$AD$285,$AA$286:$AD$286,"check xlookup for volume 150",0,1),IF(AND(ST54>$V$286,ST54<=$V$287),_xlfn.XLOOKUP(SY54,$AA$285:$AD$285,$AA$287:$AD$287,"check xlookup for volume 300",0,1),IF(AND(ST54>$V$287,ST54<=$V$288),_xlfn.XLOOKUP(SY54,$AA$285:$AD$285,$AA$288:$AD$288,"check xlookup for volume 900",0,1),IF(AND(ST54>$V$288,ST54<=$V$289),_xlfn.XLOOKUP(SY54,$AA$285:$AD$285,$AA$289:$AD$289,"check xlookup for volume 1500",0,1),IF(ST54>$V$289,_xlfn.XLOOKUP(SY54,$AA$285:$AD$285,$AA$290:$AD$290,"check xlookup for volume >1500",0,1),"")))))+IF(TG54=$W$293,$AA$293,$AA$294))/4)) -> Enter Major/Minor Street Speeds | ABI54: =IF(OR(ISBLANK($P$21),ISBLANK($P$23)),"Enter Major/Minor Street Speeds",IF(TM54=0,,(IF(TM54<5,_xlfn.XLOOKUP(TM54,$W$269:$W$272,$AA$269:$AA$272,"error",0,1),$AA$273)+IF(TR54<=$V$276,$AA$276,IF(AND(TR54>$V$276,TR54<=$V$277),$AA$277,IF(AND(TR54>$V$277,TR54<=$V$278),$AA$278,IF(AND(TR54>$V$278,TR54<=$V$279),$AA$279,$AA$280))))+IF(TW54<=$V$286,_xlfn.XLOOKUP(UB54,AA$285:$AD$285,$AA$286:$AD$286,"check xlookup for volume 150",0,1),IF(AND(TW54>$V$286,TW54<=$V$287),_xlfn.XLOOKUP(UB54,$AA$285:$AD$285,$AA$287:$AD$287,"check xlookup for volume 300",0,1),IF(AND(TW54>$V$287,TW54<=$V$288),_xlfn.XLOOKUP(UB54,$AA$285:$AD$285,$AA$288:$AD$288,"check xlookup for volume 900",0,1),IF(AND(TW54>$V$288,TW54<=$V$289),_xlfn.XLOOKUP(UB54,$AA$285:$AD$285,$AA$289:$AD$289,"check xlookup for volume 1500",0,1),IF(TW54>$V$289,_xlfn.XLOOKUP(UB54,$AA$285:$AD$285,$AA$290:$AD$290,"check xlookup for volume >1500",0,1),"")))))+IF(UJ54=$W$293,$AA$293,$AA$294))/4)) -> Enter Major/Minor Street Speeds
T56: S | Z56: =UP56 -> Enter Major/Minor Street Speeds | AD56: No | AI56: Yes Crossing(s) with 3+ stages | AN56: =SUM('CGT S'!CP43:CR43) -> 1 | AS56: =Min_St_Spd_Lmt -> 0 | AX56: =NBR_Master -> 204 | BC56: Yield Controlled | BK56: Marked | BQ56: =SUM('CGT S'!CJ43:CO43) -> 1 | BV56: =Min_St_Spd_Lmt -> 0 | CA56: =SUM('CGT S'!CJ43:CO43)+MAX('CGT S'!CV37:CV42) -> 2 | CF56: Stop/Signal Controlled | CN56: Marked | CT56: =SUM('CGT S'!CI40:CI42) -> 1 | CY56: =Maj_St_Spd_Lmt -> 0 | DD56: =SUM(EBR_Master) -> 51 | DI56: Yield Controlled | DQ56: Marked | DW56: =SUM('CGT S'!CI37:CI39) -> 2 | EB56: =Maj_St_Spd_Lmt -> 0 | EG56: =EBT_Master -> 204 | EL56: Stop/Signal Controlled | ET56: Unmarked | EZ56: =MAX('CGT S'!CV34:CV36,'CGT S'!CJ43:CO43) -> 2 | FE56: =Maj_St_Spd_Lmt -> 0 | FJ56: =SUM(WBT_Master,NBL_Master) -> 306 | FO56: Free Flowing | FW56: Unmarked | GC56: =SUM('CGT S'!CV34:CV42) -> 3 | GH56: =Maj_St_Spd_Lmt -> 0 | GM56: =SUM(WBT_Master,WBL_Master) -> 235 | GR56: Free Flowing | GZ56: Unmarked | HF56: =MAX('CGT S'!CI37:CI39) -> 2 | HK56: =Maj_St_Spd_Lmt -> 0 | HP56: =SUM(EBT_Master) -> 204 | HU56: Stop/Signal Controlled | IC56: Unmarked | UP56: =IFERROR((((SUM(SQRT(UU56),SQRT(VE56),SQRT(VO56),SQRT(VY56),SQRT(WI56),SQRT(WS56),SQRT(XC56),SQRT(XM56),SQRT(XW56),SQRT(YG56),SQRT(YQ56),SQRT(ZA56),SQRT(ZK56),SQRT(ZU56),SQRT(AAE56),SQRT(AAO56),SQRT(AAY56),SQRT(ABI56))/COUNTIF(UU56:ABR57,">0"))^2)*(_xlfn.XLOOKUP(AD56,$W$304:$W$305,$AA$304:$AA$305,"lookup error",0,1))*(_xlfn.XLOOKUP(AI56,Multistage_Crossing,$AA$298:$AA$300,"lookup error",0,1))),"Enter Major/Minor Street Speeds") -> Enter Major/Minor Street Speeds | UU56: =IF(OR(ISBLANK($P$21),ISBLANK($P$23)),"Enter Major/Minor Street Speeds",IF(AN56=0,,(IF(AN56<5,_xlfn.XLOOKUP(AN56,$W$269:$W$272,$AA$269:$AA$272,"error",0,1),$AA$273)+IF(AS56<=$V$276,$AA$276,IF(AND(AS56>$V$276,AS56<=$V$277),$AA$277,IF(AND(AS56>$V$277,AS56<=$V$278),$AA$278,IF(AND(AS56>$V$278,AS56<=$V$279),$AA$279,$AA$280))))+IF(AX56<=$V$286,_xlfn.XLOOKUP(BC56,AA$285:$AD$285,$AA$286:$AD$286,"check xlookup for volume 150",0,1),IF(AND(AX56>$V$286,AX56<=$V$287),_xlfn.XLOOKUP(BC56,$AA$285:$AD$285,$AA$287:$AD$287,"check xlookup for volume 300",0,1),IF(AND(AX56>$V$287,AX56<=$V$288),_xlfn.XLOOKUP(BC56,$AA$285:$AD$285,$AA$288:$AD$288,"check xlookup for volume 900",0,1),IF(AND(AX56>$V$288,AX56<=$V$289),_xlfn.XLOOKUP(BC56,$AA$285:$AD$285,$AA$289:$AD$289,"check xlookup for volume 1500",0,1),IF(AX56>$V$289,_xlfn.XLOOKUP(BC56,$AA$285:$AD$285,$AA$290:$AD$290,"check xlookup for volume >1500",0,1),"")))))+IF(BK56=$W$293,$AA$293,$AA$294))/4)) -> Enter Major/Minor Street Speeds | VE56: =IF(OR(ISBLANK($P$21),ISBLANK($P$23)),"Enter Major/Minor Street Speeds",IF(BQ56=0,,(IF(BQ56<5,_xlfn.XLOOKUP(BQ56,$W$269:$W$272,$AA$269:$AA$272,"error",0,1),$AA$273)+IF(BV56<=$V$276,$AA$276,IF(AND(BV56>$V$276,BV56<=$V$277),$AA$277,IF(AND(BV56>$V$277,BV56<=$V$278),$AA$278,IF(AND(BV56>$V$278,BV56<=$V$279),$AA$279,$AA$280))))+IF(CA56<=$V$286,_xlfn.XLOOKUP(CF56,AA$285:$AD$285,$AA$286:$AD$286,"check xlookup for volume 150",0,1),IF(AND(CA56>$V$286,CA56<=$V$287),_xlfn.XLOOKUP(CF56,$AA$285:$AD$285,$AA$287:$AD$287,"check xlookup for volume 300",0,1),IF(AND(CA56>$V$287,CA56<=$V$288),_xlfn.XLOOKUP(CF56,$AA$285:$AD$285,$AA$288:$AD$288,"check xlookup for volume 900",0,1),IF(AND(CA56>$V$288,CA56<=$V$289),_xlfn.XLOOKUP(CF56,$AA$285:$AD$285,$AA$289:$AD$289,"check xlookup for volume 1500",0,1),IF(CA56>$V$289,_xlfn.XLOOKUP(CF56,$AA$285:$AD$285,$AA$290:$AD$290,"check xlookup for volume >1500",0,1),"")))))+IF(CN56=$W$293,$AA$293,$AA$294))/4)) -> Enter Major/Minor Street Speeds | VO56: =IF(OR(ISBLANK($P$21),ISBLANK($P$23)),"Enter Major/Minor Street Speeds",IF(CT56=0,,(IF(CT56<5,_xlfn.XLOOKUP(CT56,$W$269:$W$272,$AA$269:$AA$272,"error",0,1),$AA$273)+IF(CY56<=$V$276,$AA$276,IF(AND(CY56>$V$276,CY56<=$V$277),$AA$277,IF(AND(CY56>$V$277,CY56<=$V$278),$AA$278,IF(AND(CY56>$V$278,CY56<=$V$279),$AA$279,$AA$280))))+IF(DD56<=$V$286,_xlfn.XLOOKUP(DI56,AA$285:$AD$285,$AA$286:$AD$286,"check xlookup for volume 150",0,1),IF(AND(DD56>$V$286,DD56<=$V$287),_xlfn.XLOOKUP(DI56,$AA$285:$AD$285,$AA$287:$AD$287,"check xlookup for volume 300",0,1),IF(AND(DD56>$V$287,DD56<=$V$288),_xlfn.XLOOKUP(DI56,$AA$285:$AD$285,$AA$288:$AD$288,"check xlookup for volume 900",0,1),IF(AND(DD56>$V$288,DD56<=$V$289),_xlfn.XLOOKUP(DI56,$AA$285:$AD$285,$AA$289:$AD$289,"check xlookup for volume 1500",0,1),IF(DD56>$V$289,_xlfn.XLOOKUP(DI56,$AA$285:$AD$285,$AA$290:$AD$290,"check xlookup for volume >1500",0,1),"")))))+IF(DQ56=$W$293,$AA$293,$AA$294))/4)) -> Enter Major/Minor Street Speeds | VY56: =IF(OR(ISBLANK($P$21),ISBLANK($P$23)),"Enter Major/Minor Street Speeds",IF(DW56=0,,(IF(DW56<5,_xlfn.XLOOKUP(DW56,$W$269:$W$272,$AA$269:$AA$272,"error",0,1),$AA$273)+IF(EB56<=$V$276,$AA$276,IF(AND(EB56>$V$276,EB56<=$V$277),$AA$277,IF(AND(EB56>$V$277,EB56<=$V$278),$AA$278,IF(AND(EB56>$V$278,EB56<=$V$279),$AA$279,$AA$280))))+IF(EG56<=$V$286,_xlfn.XLOOKUP(EL56,AA$285:$AD$285,$AA$286:$AD$286,"check xlookup for volume 150",0,1),IF(AND(EG56>$V$286,EG56<=$V$287),_xlfn.XLOOKUP(EL56,$AA$285:$AD$285,$AA$287:$AD$287,"check xlookup for volume 300",0,1),IF(AND(EG56>$V$287,EG56<=$V$288),_xlfn.XLOOKUP(EL56,$AA$285:$AD$285,$AA$288:$AD$288,"check xlookup for volume 900",0,1),IF(AND(EG56>$V$288,EG56<=$V$289),_xlfn.XLOOKUP(EL56,$AA$285:$AD$285,$AA$289:$AD$289,"check xlookup for volume 1500",0,1),IF(EG56>$V$289,_xlfn.XLOOKUP(EL56,$AA$285:$AD$285,$AA$290:$AD$290,"check xlookup for volume >1500",0,1),"")))))+IF(ET56=$W$293,$AA$293,$AA$294))/4)) -> Enter Major/Minor Street Speeds | WI56: =IF(OR(ISBLANK($P$21),ISBLANK($P$23)),"Enter Major/Minor Street Speeds",IF(EZ56=0,,(IF(EZ56<5,_xlfn.XLOOKUP(EZ56,$W$269:$W$272,$AA$269:$AA$272,"error",0,1),$AA$273)+IF(FE56<=$V$276,$AA$276,IF(AND(FE56>$V$276,FE56<=$V$277),$AA$277,IF(AND(FE56>$V$277,FE56<=$V$278),$AA$278,IF(AND(FE56>$V$278,FE56<=$V$279),$AA$279,$AA$280))))+IF(FJ56<=$V$286,_xlfn.XLOOKUP(FO56,AA$285:$AD$285,$AA$286:$AD$286,"check xlookup for volume 150",0,1),IF(AND(FJ56>$V$286,FJ56<=$V$287),_xlfn.XLOOKUP(FO56,$AA$285:$AD$285,$AA$287:$AD$287,"check xlookup for volume 300",0,1),IF(AND(FJ56>$V$287,FJ56<=$V$288),_xlfn.XLOOKUP(FO56,$AA$285:$AD$285,$AA$288:$AD$288,"check xlookup for volume 900",0,1),IF(AND(FJ56>$V$288,FJ56<=$V$289),_xlfn.XLOOKUP(FO56,$AA$285:$AD$285,$AA$289:$AD$289,"check xlookup for volume 1500",0,1),IF(FJ56>$V$289,_xlfn.XLOOKUP(FO56,$AA$285:$AD$285,$AA$290:$AD$290,"check xlookup for volume >1500",0,1),"")))))+IF(FW56=$W$293,$AA$293,$AA$294))/4)) -> Enter Major/Minor Street Speeds | WS56: =IF(OR(ISBLANK($P$21),ISBLANK($P$23)),"Enter Major/Minor Street Speeds",IF(GC56=0,,(IF(GC56<5,_xlfn.XLOOKUP(GC56,$W$269:$W$272,$AA$269:$AA$272,"error",0,1),$AA$273)+IF(GH56<=$V$276,$AA$276,IF(AND(GH56>$V$276,GH56<=$V$277),$AA$277,IF(AND(GH56>$V$277,GH56<=$V$278),$AA$278,IF(AND(GH56>$V$278,GH56<=$V$279),$AA$279,$AA$280))))+IF(GM56<=$V$286,_xlfn.XLOOKUP(GR56,AA$285:$AD$285,$AA$286:$AD$286,"check xlookup for volume 150",0,1),IF(AND(GM56>$V$286,GM56<=$V$287),_xlfn.XLOOKUP(GR56,$AA$285:$AD$285,$AA$287:$AD$287,"check xlookup for volume 300",0,1),IF(AND(GM56>$V$287,GM56<=$V$288),_xlfn.XLOOKUP(GR56,$AA$285:$AD$285,$AA$288:$AD$288,"check xlookup for volume 900",0,1),IF(AND(GM56>$V$288,GM56<=$V$289),_xlfn.XLOOKUP(GR56,$AA$285:$AD$285,$AA$289:$AD$289,"check xlookup for volume 1500",0,1),IF(GM56>$V$289,_xlfn.XLOOKUP(GR56,$AA$285:$AD$285,$AA$290:$AD$290,"check xlookup for volume >1500",0,1),"")))))+IF(GZ56=$W$293,$AA$293,$AA$294))/4)) -> Enter Major/Minor Street Speeds | XC56: =IF(OR(ISBLANK($P$21),ISBLANK($P$23)),"Enter Major/Minor Street Speeds",IF(HF56=0,,(IF(HF56<5,_xlfn.XLOOKUP(HF56,$W$269:$W$272,$AA$269:$AA$272,"error",0,1),$AA$273)+IF(HK56<=$V$276,$AA$276,IF(AND(HK56>$V$276,HK56<=$V$277),$AA$277,IF(AND(HK56>$V$277,HK56<=$V$278),$AA$278,IF(AND(HK56>$V$278,HK56<=$V$279),$AA$279,$AA$280))))+IF(HP56<=$V$286,_xlfn.XLOOKUP(HU56,AA$285:$AD$285,$AA$286:$AD$286,"check xlookup for volume 150",0,1),IF(AND(HP56>$V$286,HP56<=$V$287),_xlfn.XLOOKUP(HU56,$AA$285:$AD$285,$AA$287:$AD$287,"check xlookup for volume 300",0,1),IF(AND(HP56>$V$287,HP56<=$V$288),_xlfn.XLOOKUP(HU56,$AA$285:$AD$285,$AA$288:$AD$288,"check xlookup for volume 900",0,1),IF(AND(HP56>$V$288,HP56<=$V$289),_xlfn.XLOOKUP(HU56,$AA$285:$AD$285,$AA$289:$AD$289,"check xlookup for volume 1500",0,1),IF(HP56>$V$289,_xlfn.XLOOKUP(HU56,$AA$285:$AD$285,$AA$290:$AD$290,"check xlookup for volume >1500",0,1),"")))))+IF(IC56=$W$293,$AA$293,$AA$294))/4)) -> Enter Major/Minor Street Speeds | XM56: =IF(OR(ISBLANK($P$21),ISBLANK($P$23)),"Enter Major/Minor Street Speeds",IF(II56=0,,(IF(II56<5,_xlfn.XLOOKUP(II56,$W$269:$W$272,$AA$269:$AA$272,"error",0,1),$AA$273)+IF(IN56<=$V$276,$AA$276,IF(AND(IN56>$V$276,IN56<=$V$277),$AA$277,IF(AND(IN56>$V$277,IN56<=$V$278),$AA$278,IF(AND(IN56>$V$278,IN56<=$V$279),$AA$279,$AA$280))))+IF(IS56<=$V$286,_xlfn.XLOOKUP(IX56,AA$285:$AD$285,$AA$286:$AD$286,"check xlookup for volume 150",0,1),IF(AND(IS56>$V$286,IS56<=$V$287),_xlfn.XLOOKUP(IX56,$AA$285:$AD$285,$AA$287:$AD$287,"check xlookup for volume 300",0,1),IF(AND(IS56>$V$287,IS56<=$V$288),_xlfn.XLOOKUP(IX56,$AA$285:$AD$285,$AA$288:$AD$288,"check xlookup for volume 900",0,1),IF(AND(IS56>$V$288,IS56<=$V$289),_xlfn.XLOOKUP(IX56,$AA$285:$AD$285,$AA$289:$AD$289,"check xlookup for volume 1500",0,1),IF(IS56>$V$289,_xlfn.XLOOKUP(IX56,$AA$285:$AD$285,$AA$290:$AD$290,"check xlookup for volume >1500",0,1),"")))))+IF(JF56=$W$293,$AA$293,$AA$294))/4)) -> Enter Major/Minor Street Speeds | XW56: =IF(OR(ISBLANK($P$21),ISBLANK($P$23)),"Enter Major/Minor Street Speeds",IF(JL56=0,,(IF(JL56<5,_xlfn.XLOOKUP(JL56,$W$269:$W$272,$AA$269:$AA$272,"error",0,1),$AA$273)+IF(JQ56<=$V$276,$AA$276,IF(AND(JQ56>$V$276,JQ56<=$V$277),$AA$277,IF(AND(JQ56>$V$277,JQ56<=$V$278),$AA$278,IF(AND(JQ56>$V$278,JQ56<=$V$279),$AA$279,$AA$280))))+IF(JV56<=$V$286,_xlfn.XLOOKUP(KA56,AA$285:$AD$285,$AA$286:$AD$286,"check xlookup for volume 150",0,1),IF(AND(JV56>$V$286,JV56<=$V$287),_xlfn.XLOOKUP(KA56,$AA$285:$AD$285,$AA$287:$AD$287,"check xlookup for volume 300",0,1),IF(AND(JV56>$V$287,JV56<=$V$288),_xlfn.XLOOKUP(KA56,$AA$285:$AD$285,$AA$288:$AD$288,"check xlookup for volume 900",0,1),IF(AND(JV56>$V$288,JV56<=$V$289),_xlfn.XLOOKUP(KA56,$AA$285:$AD$285,$AA$289:$AD$289,"check xlookup for volume 1500",0,1),IF(JV56>$V$289,_xlfn.XLOOKUP(KA56,$AA$285:$AD$285,$AA$290:$AD$290,"check xlookup for volume >1500",0,1),"")))))+IF(KI56=$W$293,$AA$293,$AA$294))/4)) -> Enter Major/Minor Street Speeds | YG56: =IF(OR(ISBLANK($P$21),ISBLANK($P$23)),"Enter Major/Minor Street Speeds",IF(KO56=0,,(IF(KO56<5,_xlfn.XLOOKUP(KO56,$W$269:$W$272,$AA$269:$AA$272,"error",0,1),$AA$273)+IF(KT56<=$V$276,$AA$276,IF(AND(KT56>$V$276,KT56<=$V$277),$AA$277,IF(AND(KT56>$V$277,KT56<=$V$278),$AA$278,IF(AND(KT56>$V$278,KT56<=$V$279),$AA$279,$AA$280))))+IF(KY56<=$V$286,_xlfn.XLOOKUP(LD56,AA$285:$AD$285,$AA$286:$AD$286,"check xlookup for volume 150",0,1),IF(AND(KY56>$V$286,KY56<=$V$287),_xlfn.XLOOKUP(LD56,$AA$285:$AD$285,$AA$287:$AD$287,"check xlookup for volume 300",0,1),IF(AND(KY56>$V$287,KY56<=$V$288),_xlfn.XLOOKUP(LD56,$AA$285:$AD$285,$AA$288:$AD$288,"check xlookup for volume 900",0,1),IF(AND(KY56>$V$288,KY56<=$V$289),_xlfn.XLOOKUP(LD56,$AA$285:$AD$285,$AA$289:$AD$289,"check xlookup for volume 1500",0,1),IF(KY56>$V$289,_xlfn.XLOOKUP(LD56,$AA$285:$AD$285,$AA$290:$AD$290,"check xlookup for volume >1500",0,1),"")))))+IF(LL56=$W$293,$AA$293,$AA$294))/4)) -> Enter Major/Minor Street Speeds | YQ56: =IF(OR(ISBLANK($P$21),ISBLANK($P$23)),"Enter Major/Minor Street Speeds",IF(LR56=0,,(IF(LR56<5,_xlfn.XLOOKUP(LR56,$W$269:$W$272,$AA$269:$AA$272,"error",0,1),$AA$273)+IF(LW56<=$V$276,$AA$276,IF(AND(LW56>$V$276,LW56<=$V$277),$AA$277,IF(AND(LW56>$V$277,LW56<=$V$278),$AA$278,IF(AND(LW56>$V$278,LW56<=$V$279),$AA$279,$AA$280))))+IF(MB56<=$V$286,_xlfn.XLOOKUP(MG56,AA$285:$AD$285,$AA$286:$AD$286,"check xlookup for volume 150",0,1),IF(AND(MB56>$V$286,MB56<=$V$287),_xlfn.XLOOKUP(MG56,$AA$285:$AD$285,$AA$287:$AD$287,"check xlookup for volume 300",0,1),IF(AND(MB56>$V$287,MB56<=$V$288),_xlfn.XLOOKUP(MG56,$AA$285:$AD$285,$AA$288:$AD$288,"check xlookup for volume 900",0,1),IF(AND(MB56>$V$288,MB56<=$V$289),_xlfn.XLOOKUP(MG56,$AA$285:$AD$285,$AA$289:$AD$289,"check xlookup for volume 1500",0,1),IF(MB56>$V$289,_xlfn.XLOOKUP(MG56,$AA$285:$AD$285,$AA$290:$AD$290,"check xlookup for volume >1500",0,1),"")))))+IF(MO56=$W$293,$AA$293,$AA$294))/4)) -> Enter Major/Minor Street Speeds | ZA56: =IF(OR(ISBLANK($P$21),ISBLANK($P$23)),"Enter Major/Minor Street Speeds",IF(MU56=0,,(IF(MU56<5,_xlfn.XLOOKUP(MU56,$W$269:$W$272,$AA$269:$AA$272,"error",0,1),$AA$273)+IF(MZ56<=$V$276,$AA$276,IF(AND(MZ56>$V$276,MZ56<=$V$277),$AA$277,IF(AND(MZ56>$V$277,MZ56<=$V$278),$AA$278,IF(AND(MZ56>$V$278,MZ56<=$V$279),$AA$279,$AA$280))))+IF(NE56<=$V$286,_xlfn.XLOOKUP(NJ56,AA$285:$AD$285,$AA$286:$AD$286,"check xlookup for volume 150",0,1),IF(AND(NE56>$V$286,NE56<=$V$287),_xlfn.XLOOKUP(NJ56,$AA$285:$AD$285,$AA$287:$AD$287,"check xlookup for volume 300",0,1),IF(AND(NE56>$V$287,NE56<=$V$288),_xlfn.XLOOKUP(NJ56,$AA$285:$AD$285,$AA$288:$AD$288,"check xlookup for volume 900",0,1),IF(AND(NE56>$V$288,NE56<=$V$289),_xlfn.XLOOKUP(NJ56,$AA$285:$AD$285,$AA$289:$AD$289,"check xlookup for volume 1500",0,1),IF(NE56>$V$289,_xlfn.XLOOKUP(NJ56,$AA$285:$AD$285,$AA$290:$AD$290,"check xlookup for volume >1500",0,1),"")))))+IF(NR56=$W$293,$AA$293,$AA$294))/4)) -> Enter Major/Minor Street Speeds | ZK56: =IF(OR(ISBLANK($P$21),ISBLANK($P$23)),"Enter Major/Minor Street Speeds",IF(NX56=0,,(IF(NX56<5,_xlfn.XLOOKUP(NX56,$W$269:$W$272,$AA$269:$AA$272,"error",0,1),$AA$273)+IF(OC56<=$V$276,$AA$276,IF(AND(OC56>$V$276,OC56<=$V$277),$AA$277,IF(AND(OC56>$V$277,OC56<=$V$278),$AA$278,IF(AND(OC56>$V$278,OC56<=$V$279),$AA$279,$AA$280))))+IF(OH56<=$V$286,_xlfn.XLOOKUP(OM56,AA$285:$AD$285,$AA$286:$AD$286,"check xlookup for volume 150",0,1),IF(AND(OH56>$V$286,OH56<=$V$287),_xlfn.XLOOKUP(OM56,$AA$285:$AD$285,$AA$287:$AD$287,"check xlookup for volume 300",0,1),IF(AND(OH56>$V$287,OH56<=$V$288),_xlfn.XLOOKUP(OM56,$AA$285:$AD$285,$AA$288:$AD$288,"check xlookup for volume 900",0,1),IF(AND(OH56>$V$288,OH56<=$V$289),_xlfn.XLOOKUP(OM56,$AA$285:$AD$285,$AA$289:$AD$289,"check xlookup for volume 1500",0,1),IF(OH56>$V$289,_xlfn.XLOOKUP(OM56,$AA$285:$AD$285,$AA$290:$AD$290,"check xlookup for volume >1500",0,1),"")))))+IF(OU56=$W$293,$AA$293,$AA$294))/4)) -> Enter Major/Minor Street Speeds | ZU56: =IF(OR(ISBLANK($P$21),ISBLANK($P$23)),"Enter Major/Minor Street Speeds",IF(PA56=0,,(IF(PA56<5,_xlfn.XLOOKUP(PA56,$W$269:$W$272,$AA$269:$AA$272,"error",0,1),$AA$273)+IF(PF56<=$V$276,$AA$276,IF(AND(PF56>$V$276,PF56<=$V$277),$AA$277,IF(AND(PF56>$V$277,PF56<=$V$278),$AA$278,IF(AND(PF56>$V$278,PF56<=$V$279),$AA$279,$AA$280))))+IF(PK56<=$V$286,_xlfn.XLOOKUP(PP56,AA$285:$AD$285,$AA$286:$AD$286,"check xlookup for volume 150",0,1),IF(AND(PK56>$V$286,PK56<=$V$287),_xlfn.XLOOKUP(PP56,$AA$285:$AD$285,$AA$287:$AD$287,"check xlookup for volume 300",0,1),IF(AND(PK56>$V$287,PK56<=$V$288),_xlfn.XLOOKUP(PP56,$AA$285:$AD$285,$AA$288:$AD$288,"check xlookup for volume 900",0,1),IF(AND(PK56>$V$288,PK56<=$V$289),_xlfn.XLOOKUP(PP56,$AA$285:$AD$285,$AA$289:$AD$289,"check xlookup for volume 1500",0,1),IF(PK56>$V$289,_xlfn.XLOOKUP(PP56,$AA$285:$AD$285,$AA$290:$AD$290,"check xlookup for volume >1500",0,1),"")))))+IF(PX56=$W$293,$AA$293,$AA$294))/4)) -> Enter Major/Minor Street Speeds | AAE56: =IF(OR(ISBLANK($P$21),ISBLANK($P$23)),"Enter Major/Minor Street Speeds",IF(QD56=0,,(IF(QD56<5,_xlfn.XLOOKUP(QD56,$W$269:$W$272,$AA$269:$AA$272,"error",0,1),$AA$273)+IF(QI56<=$V$276,$AA$276,IF(AND(QI56>$V$276,QI56<=$V$277),$AA$277,IF(AND(QI56>$V$277,QI56<=$V$278),$AA$278,IF(AND(QI56>$V$278,QI56<=$V$279),$AA$279,$AA$280))))+IF(QN56<=$V$286,_xlfn.XLOOKUP(QS56,AA$285:$AD$285,$AA$286:$AD$286,"check xlookup for volume 150",0,1),IF(AND(QN56>$V$286,QN56<=$V$287),_xlfn.XLOOKUP(QS56,$AA$285:$AD$285,$AA$287:$AD$287,"check xlookup for volume 300",0,1),IF(AND(QN56>$V$287,QN56<=$V$288),_xlfn.XLOOKUP(QS56,$AA$285:$AD$285,$AA$288:$AD$288,"check xlookup for volume 900",0,1),IF(AND(QN56>$V$288,QN56<=$V$289),_xlfn.XLOOKUP(QS56,$AA$285:$AD$285,$AA$289:$AD$289,"check xlookup for volume 1500",0,1),IF(QN56>$V$289,_xlfn.XLOOKUP(QS56,$AA$285:$AD$285,$AA$290:$AD$290,"check xlookup for volume >1500",0,1),"")))))+IF(RA56=$W$293,$AA$293,$AA$294))/4)) -> Enter Major/Minor Street Speeds | AAO56: =IF(OR(ISBLANK($P$21),ISBLANK($P$23)),"Enter Major/Minor Street Speeds",IF(RG56=0,,(IF(RG56<5,_xlfn.XLOOKUP(RG56,$W$269:$W$272,$AA$269:$AA$272,"error",0,1),$AA$273)+IF(RL56<=$V$276,$AA$276,IF(AND(RL56>$V$276,RL56<=$V$277),$AA$277,IF(AND(RL56>$V$277,RL56<=$V$278),$AA$278,IF(AND(RL56>$V$278,RL56<=$V$279),$AA$279,$AA$280))))+IF(RQ56<=$V$286,_xlfn.XLOOKUP(RV56,AA$285:$AD$285,$AA$286:$AD$286,"check xlookup for volume 150",0,1),IF(AND(RQ56>$V$286,RQ56<=$V$287),_xlfn.XLOOKUP(RV56,$AA$285:$AD$285,$AA$287:$AD$287,"check xlookup for volume 300",0,1),IF(AND(RQ56>$V$287,RQ56<=$V$288),_xlfn.XLOOKUP(RV56,$AA$285:$AD$285,$AA$288:$AD$288,"check xlookup for volume 900",0,1),IF(AND(RQ56>$V$288,RQ56<=$V$289),_xlfn.XLOOKUP(RV56,$AA$285:$AD$285,$AA$289:$AD$289,"check xlookup for volume 1500",0,1),IF(RQ56>$V$289,_xlfn.XLOOKUP(RV56,$AA$285:$AD$285,$AA$290:$AD$290,"check xlookup for volume >1500",0,1),"")))))+IF(SD56=$W$293,$AA$293,$AA$294))/4)) -> Enter Major/Minor Street Speeds | AAY56: =IF(OR(ISBLANK($P$21),ISBLANK($P$23)),"Enter Major/Minor Street Speeds",IF(SJ56=0,,(IF(SJ56<5,_xlfn.XLOOKUP(SJ56,$W$269:$W$272,$AA$269:$AA$272,"error",0,1),$AA$273)+IF(SO56<=$V$276,$AA$276,IF(AND(SO56>$V$276,SO56<=$V$277),$AA$277,IF(AND(SO56>$V$277,SO56<=$V$278),$AA$278,IF(AND(SO56>$V$278,SO56<=$V$279),$AA$279,$AA$280))))+IF(ST56<=$V$286,_xlfn.XLOOKUP(SY56,AA$285:$AD$285,$AA$286:$AD$286,"check xlookup for volume 150",0,1),IF(AND(ST56>$V$286,ST56<=$V$287),_xlfn.XLOOKUP(SY56,$AA$285:$AD$285,$AA$287:$AD$287,"check xlookup for volume 300",0,1),IF(AND(ST56>$V$287,ST56<=$V$288),_xlfn.XLOOKUP(SY56,$AA$285:$AD$285,$AA$288:$AD$288,"check xlookup for volume 900",0,1),IF(AND(ST56>$V$288,ST56<=$V$289),_xlfn.XLOOKUP(SY56,$AA$285:$AD$285,$AA$289:$AD$289,"check xlookup for volume 1500",0,1),IF(ST56>$V$289,_xlfn.XLOOKUP(SY56,$AA$285:$AD$285,$AA$290:$AD$290,"check xlookup for volume >1500",0,1),"")))))+IF(TG56=$W$293,$AA$293,$AA$294))/4)) -> Enter Major/Minor Street Speeds | ABI56: =IF(OR(ISBLANK($P$21),ISBLANK($P$23)),"Enter Major/Minor Street Speeds",IF(TM56=0,,(IF(TM56<5,_xlfn.XLOOKUP(TM56,$W$269:$W$272,$AA$269:$AA$272,"error",0,1),$AA$273)+IF(TR56<=$V$276,$AA$276,IF(AND(TR56>$V$276,TR56<=$V$277),$AA$277,IF(AND(TR56>$V$277,TR56<=$V$278),$AA$278,IF(AND(TR56>$V$278,TR56<=$V$279),$AA$279,$AA$280))))+IF(TW56<=$V$286,_xlfn.XLOOKUP(UB56,AA$285:$AD$285,$AA$286:$AD$286,"check xlookup for volume 150",0,1),IF(AND(TW56>$V$286,TW56<=$V$287),_xlfn.XLOOKUP(UB56,$AA$285:$AD$285,$AA$287:$AD$287,"check xlookup for volume 300",0,1),IF(AND(TW56>$V$287,TW56<=$V$288),_xlfn.XLOOKUP(UB56,$AA$285:$AD$285,$AA$288:$AD$288,"check xlookup for volume 900",0,1),IF(AND(TW56>$V$288,TW56<=$V$289),_xlfn.XLOOKUP(UB56,$AA$285:$AD$285,$AA$289:$AD$289,"check xlookup for volume 1500",0,1),IF(TW56>$V$289,_xlfn.XLOOKUP(UB56,$AA$285:$AD$285,$AA$290:$AD$290,"check xlookup for volume >1500",0,1),"")))))+IF(UJ56=$W$293,$AA$293,$AA$294))/4)) -> Enter Major/Minor Street Speeds
A58: Quadrant Roadway | T58: S-W | Z58: =UP58 -> Enter Major/Minor Street Speeds | AD58: No | AI58: Yes Crossing(s) with 2 stages | AN58: =SUM('QR S-W'!CX16:DC16) -> 3 | AS58: =Min_St_Spd_Lmt -> 0 | AX58: =SUM(SBT_Master,SBR_Master,SBU_Master,SBL_Master) -> 765 | BC58: Stop/Signal Controlled | BK58: Marked | BQ58: =MAX('QR S-W'!DD29:DF29,'QR S-W'!DJ17:DJ19,) -> 2 | BV58: =Min_St_Spd_Lmt -> 0 | CA58: =SUM(SBU_Master,NBT_Master,WBR_Master,EBL_Master) -> 592 | CF58: Stop/Signal Controlled | CN58: Marked | CT58: =SUM('QR S-W'!DJ17:DJ22) -> 3 | CY58: =Maj_St_Spd_Lmt -> 0 | DD58: =SUM(WBR_Master,WBT_Master,WBU_Master,WBL_Master) -> 286 | DI58: Stop/Signal Controlled | DQ58: Marked | DW58: =MAX('QR S-W'!CW23:CW25,'QR S-W'!DG29:DI29) -> 2 | EB58: =Maj_St_Spd_Lmt -> 0 | EG58: =SUM(WBU_Master,NBR_Master,EBT_Master,SBL_Master) -> 459 | EL58: Stop/Signal Controlled | ET58: Marked | EZ58: =SUM('QR S-W'!DD29:DI29) -> 3 | FE58: =Min_St_Spd_Lmt -> 0 | FJ58: =SUM(NBT_Master,NBR_Master,SBU_Master,WBU_Master,EBL_Master) -> 745 | FO58: Stop/Signal Controlled | FW58: Marked | GC58: =MAX('QR S-W'!DA16:DC16,'QR S-W'!CW26:CW28) -> 2 | GH58: =Min_St_Spd_Lmt -> 0 | GM58: =SUM(SBT_Master,NBU_Master,EBU_Master,SBL_Master) -> 561 | GR58: Stop/Signal Controlled | GZ58: Marked | HF58: =SUM('QR S-W'!CW23:CW28) -> 3 | HK58: =Maj_St_Spd_Lmt -> 0 | HP58: =SUM(EBT_Master,SBL_Master,EBU_Master,NBU_Master) -> 255 | HU58: Stop/Signal Controlled | IC58: Marked | II58: =MAX('QR S-W'!DJ20:DJ22,'QR S-W'!CX16:CZ16) -> 2 | IN58: =Maj_St_Spd_Lmt -> 0 | IS58: =SUM(WBT_Master,SBR_Master,SBU_Master,WBU_Master,WBL_Master) -> 439 | IX58: Stop/Signal Controlled | JF58: Marked | JL58: =SUM('QR S-W'!CX44:DC44) -> 3 | JQ58: =Min_St_Spd_Lmt -> 0 | JV58: =SUM(NBU_Master,EBU_Master,SBT_Master,SBL_Master) -> 561 | KA58: Stop/Signal Controlled | KI58: Unmarked | KO58: =MAX('QR S-W'!CW51:CW53,'QR S-W'!DD57:DF57) -> 2 | KT58: =Min_St_Spd_Lmt -> 0 | KY58: =SUM(EBL_Master,NBT_Master,WBU_Master,SBU_Master,NBR_Master) -> 745 | LD58: Free Flowing | LL58: Unmarked | LR58: =SUM('QR S-W'!DA57:DF57) -> 3 | LW58: =Min_St_Spd_Lmt -> 0 | MB58: =SUM(NBT_Master,NBL_Master,NBU_Master,NBR_Master) -> 816 | MG58: Stop/Signal Controlled | MO58: Marked | MU58: =MAX('QR S-W'!CW54:CW56,'QR S-W'!DA44:DC44) -> 2 | MZ58: =Min_St_Spd_Lmt -> 0 | NE58: =SUM(SBT_Master,EBR_Master,NBU_Master,WBL_Master) -> 592 | NJ58: Stop/Signal Controlled | NR58: Marked | NX58: =SUM('QR S-W'!CW51:CW56)+MAX('QR S-W'!CX44:CZ44,'QR S-W'!DA57:DC57) -> 3 | OC58: =Maj_St_Spd_Lmt -> 0 | OH58: =SUM(EBL_Master,EBR_Master,NBL_Master,NBU_Master,SBU_Master,WBU_Master,EBU_Master,WBL_Master,SBL_Master) -> 266 | OM58: Stop/Signal Controlled | OU58: Marked | PA58: =SUM('QR S-W'!CH17:CH22) -> 3 | PF58: =Maj_St_Spd_Lmt -> 0 | PK58: =SUM(WBU_Master,SBU_Master,WBT_Master,WBL_Master,SBR_Master) -> 439 | PP58: Stop/Signal Controlled | PX58: Marked | QD58: =MAX('QR S-W'!CE29:CG29,'QR S-W'!BU23:BU25) -> 2 | QI58: =Maj_St_Spd_Lmt -> 0 | QN58: =SUM(EBT_Master,EBU_Master,NBU_Master,SBL_Master) -> 255 | QS58: Stop/Signal Controlled | RA58: Marked | RG58: =SUM('QR S-W'!CB29:CG29)+MAX('QR S-W'!BU26:BU28,'QR S-W'!CH20:CH22) -> 3 | RL58: =Min_St_Spd_Lmt -> 0 | RQ58: =SUM(NBU_Master,SBU_Master,EBU_Master,WBU_Master,NBL_Master,WBL_Master,EBR_Master,EBL_Master,SBL_Master) -> 266 | RV58: Stop/Signal Controlled | SD58: Marked | SJ58: =SUM('QR S-W'!BU23:BU28) -> 3 | SO58: =Maj_St_Spd_Lmt -> 0 | ST58: =SUM(EBT_Master,EBR_Master,EBL_Master,EBU_Master) -> 286 | SY58: Stop/Signal Controlled | TG58: Unmarked | TM58: =MAX('QR S-W'!CH17:CH19,'QR S-W'!CB29:CD29) -> 2 | TR58: =Maj_St_Spd_Lmt -> 0 | TW58: =SUM(EBU_Master,WBT_Master,NBL_Master,SBR_Master) -> 510 | UB58: Free Flowing | UJ58: Unmarked | UP58: =IFERROR((((SUM(SQRT(UU58),SQRT(VE58),SQRT(VO58),SQRT(VY58),SQRT(WI58),SQRT(WS58),SQRT(XC58),SQRT(XM58),SQRT(XW58),SQRT(YG58),SQRT(YQ58),SQRT(ZA58),SQRT(ZK58),SQRT(ZU58),SQRT(AAE58),SQRT(AAO58),SQRT(AAY58),SQRT(ABI58))/COUNTIF(UU58:ABR59,">0"))^2)*(_xlfn.XLOOKUP(AD58,$W$304:$W$305,$AA$304:$AA$305,"lookup error",0,1))*(_xlfn.XLOOKUP(AI58,Multistage_Crossing,$AA$298:$AA$300,"lookup error",0,1))),"Enter Major/Minor Street Speeds") -> Enter Major/Minor Street Speeds | UU58: =IF(OR(ISBLANK($P$21),ISBLANK($P$23)),"Enter Major/Minor Street Speeds",IF(AN58=0,,(IF(AN58<5,_xlfn.XLOOKUP(AN58,$W$269:$W$272,$AA$269:$AA$272,"error",0,1),$AA$273)+IF(AS58<=$V$276,$AA$276,IF(AND(AS58>$V$276,AS58<=$V$277),$AA$277,IF(AND(AS58>$V$277,AS58<=$V$278),$AA$278,IF(AND(AS58>$V$278,AS58<=$V$279),$AA$279,$AA$280))))+IF(AX58<=$V$286,_xlfn.XLOOKUP(BC58,AA$285:$AD$285,$AA$286:$AD$286,"check xlookup for volume 150",0,1),IF(AND(AX58>$V$286,AX58<=$V$287),_xlfn.XLOOKUP(BC58,$AA$285:$AD$285,$AA$287:$AD$287,"check xlookup for volume 300",0,1),IF(AND(AX58>$V$287,AX58<=$V$288),_xlfn.XLOOKUP(BC58,$AA$285:$AD$285,$AA$288:$AD$288,"check xlookup for volume 900",0,1),IF(AND(AX58>$V$288,AX58<=$V$289),_xlfn.XLOOKUP(BC58,$AA$285:$AD$285,$AA$289:$AD$289,"check xlookup for volume 1500",0,1),IF(AX58>$V$289,_xlfn.XLOOKUP(BC58,$AA$285:$AD$285,$AA$290:$AD$290,"check xlookup for volume >1500",0,1),"")))))+IF(BK58=$W$293,$AA$293,$AA$294))/4)) -> Enter Major/Minor Street Speeds | VE58: =IF(OR(ISBLANK($P$21),ISBLANK($P$23)),"Enter Major/Minor Street Speeds",IF(BQ58=0,,(IF(BQ58<5,_xlfn.XLOOKUP(BQ58,$W$269:$W$272,$AA$269:$AA$272,"error",0,1),$AA$273)+IF(BV58<=$V$276,$AA$276,IF(AND(BV58>$V$276,BV58<=$V$277),$AA$277,IF(AND(BV58>$V$277,BV58<=$V$278),$AA$278,IF(AND(BV58>$V$278,BV58<=$V$279),$AA$279,$AA$280))))+IF(CA58<=$V$286,_xlfn.XLOOKUP(CF58,AA$285:$AD$285,$AA$286:$AD$286,"check xlookup for volume 150",0,1),IF(AND(CA58>$V$286,CA58<=$V$287),_xlfn.XLOOKUP(CF58,$AA$285:$AD$285,$AA$287:$AD$287,"check xlookup for volume 300",0,1),IF(AND(CA58>$V$287,CA58<=$V$288),_xlfn.XLOOKUP(CF58,$AA$285:$AD$285,$AA$288:$AD$288,"check xlookup for volume 900",0,1),IF(AND(CA58>$V$288,CA58<=$V$289),_xlfn.XLOOKUP(CF58,$AA$285:$AD$285,$AA$289:$AD$289,"check xlookup for volume 1500",0,1),IF(CA58>$V$289,_xlfn.XLOOKUP(CF58,$AA$285:$AD$285,$AA$290:$AD$290,"check xlookup for volume >1500",0,1),"")))))+IF(CN58=$W$293,$AA$293,$AA$294))/4)) -> Enter Major/Minor Street Speeds | VO58: =IF(OR(ISBLANK($P$21),ISBLANK($P$23)),"Enter Major/Minor Street Speeds",IF(CT58=0,,(IF(CT58<5,_xlfn.XLOOKUP(CT58,$W$269:$W$272,$AA$269:$AA$272,"error",0,1),$AA$273)+IF(CY58<=$V$276,$AA$276,IF(AND(CY58>$V$276,CY58<=$V$277),$AA$277,IF(AND(CY58>$V$277,CY58<=$V$278),$AA$278,IF(AND(CY58>$V$278,CY58<=$V$279),$AA$279,$AA$280))))+IF(DD58<=$V$286,_xlfn.XLOOKUP(DI58,AA$285:$AD$285,$AA$286:$AD$286,"check xlookup for volume 150",0,1),IF(AND(DD58>$V$286,DD58<=$V$287),_xlfn.XLOOKUP(DI58,$AA$285:$AD$285,$AA$287:$AD$287,"check xlookup for volume 300",0,1),IF(AND(DD58>$V$287,DD58<=$V$288),_xlfn.XLOOKUP(DI58,$AA$285:$AD$285,$AA$288:$AD$288,"check xlookup for volume 900",0,1),IF(AND(DD58>$V$288,DD58<=$V$289),_xlfn.XLOOKUP(DI58,$AA$285:$AD$285,$AA$289:$AD$289,"check xlookup for volume 1500",0,1),IF(DD58>$V$289,_xlfn.XLOOKUP(DI58,$AA$285:$AD$285,$AA$290:$AD$290,"check xlookup for volume >1500",0,1),"")))))+IF(DQ58=$W$293,$AA$293,$AA$294))/4)) -> Enter Major/Minor Street Speeds | VY58: =IF(OR(ISBLANK($P$21),ISBLANK($P$23)),"Enter Major/Minor Street Speeds",IF(DW58=0,,(IF(DW58<5,_xlfn.XLOOKUP(DW58,$W$269:$W$272,$AA$269:$AA$272,"error",0,1),$AA$273)+IF(EB58<=$V$276,$AA$276,IF(AND(EB58>$V$276,EB58<=$V$277),$AA$277,IF(AND(EB58>$V$277,EB58<=$V$278),$AA$278,IF(AND(EB58>$V$278,EB58<=$V$279),$AA$279,$AA$280))))+IF(EG58<=$V$286,_xlfn.XLOOKUP(EL58,AA$285:$AD$285,$AA$286:$AD$286,"check xlookup for volume 150",0,1),IF(AND(EG58>$V$286,EG58<=$V$287),_xlfn.XLOOKUP(EL58,$AA$285:$AD$285,$AA$287:$AD$287,"check xlookup for volume 300",0,1),IF(AND(EG58>$V$287,EG58<=$V$288),_xlfn.XLOOKUP(EL58,$AA$285:$AD$285,$AA$288:$AD$288,"check xlookup for volume 900",0,1),IF(AND(EG58>$V$288,EG58<=$V$289),_xlfn.XLOOKUP(EL58,$AA$285:$AD$285,$AA$289:$AD$289,"check xlookup for volume 1500",0,1),IF(EG58>$V$289,_xlfn.XLOOKUP(EL58,$AA$285:$AD$285,$AA$290:$AD$290,"check xlookup for volume >1500",0,1),"")))))+IF(ET58=$W$293,$AA$293,$AA$294))/4)) -> Enter Major/Minor Street Speeds | WI58: =IF(OR(ISBLANK($P$21),ISBLANK($P$23)),"Enter Major/Minor Street Speeds",IF(EZ58=0,,(IF(EZ58<5,_xlfn.XLOOKUP(EZ58,$W$269:$W$272,$AA$269:$AA$272,"error",0,1),$AA$273)+IF(FE58<=$V$276,$AA$276,IF(AND(FE58>$V$276,FE58<=$V$277),$AA$277,IF(AND(FE58>$V$277,FE58<=$V$278),$AA$278,IF(AND(FE58>$V$278,FE58<=$V$279),$AA$279,$AA$280))))+IF(FJ58<=$V$286,_xlfn.XLOOKUP(FO58,AA$285:$AD$285,$AA$286:$AD$286,"check xlookup for volume 150",0,1),IF(AND(FJ58>$V$286,FJ58<=$V$287),_xlfn.XLOOKUP(FO58,$AA$285:$AD$285,$AA$287:$AD$287,"check xlookup for volume 300",0,1),IF(AND(FJ58>$V$287,FJ58<=$V$288),_xlfn.XLOOKUP(FO58,$AA$285:$AD$285,$AA$288:$AD$288,"check xlookup for volume 900",0,1),IF(AND(FJ58>$V$288,FJ58<=$V$289),_xlfn.XLOOKUP(FO58,$AA$285:$AD$285,$AA$289:$AD$289,"check xlookup for volume 1500",0,1),IF(FJ58>$V$289,_xlfn.XLOOKUP(FO58,$AA$285:$AD$285,$AA$290:$AD$290,"check xlookup for volume >1500",0,1),"")))))+IF(FW58=$W$293,$AA$293,$AA$294))/4)) -> Enter Major/Minor Street Speeds | WS58: =IF(OR(ISBLANK($P$21),ISBLANK($P$23)),"Enter Major/Minor Street Speeds",IF(GC58=0,,(IF(GC58<5,_xlfn.XLOOKUP(GC58,$W$269:$W$272,$AA$269:$AA$272,"error",0,1),$AA$273)+IF(GH58<=$V$276,$AA$276,IF(AND(GH58>$V$276,GH58<=$V$277),$AA$277,IF(AND(GH58>$V$277,GH58<=$V$278),$AA$278,IF(AND(GH58>$V$278,GH58<=$V$279),$AA$279,$AA$280))))+IF(GM58<=$V$286,_xlfn.XLOOKUP(GR58,AA$285:$AD$285,$AA$286:$AD$286,"check xlookup for volume 150",0,1),IF(AND(GM58>$V$286,GM58<=$V$287),_xlfn.XLOOKUP(GR58,$AA$285:$AD$285,$AA$287:$AD$287,"check xlookup for volume 300",0,1),IF(AND(GM58>$V$287,GM58<=$V$288),_xlfn.XLOOKUP(GR58,$AA$285:$AD$285,$AA$288:$AD$288,"check xlookup for volume 900",0,1),IF(AND(GM58>$V$288,GM58<=$V$289),_xlfn.XLOOKUP(GR58,$AA$285:$AD$285,$AA$289:$AD$289,"check xlookup for volume 1500",0,1),IF(GM58>$V$289,_xlfn.XLOOKUP(GR58,$AA$285:$AD$285,$AA$290:$AD$290,"check xlookup for volume >1500",0,1),"")))))+IF(GZ58=$W$293,$AA$293,$AA$294))/4)) -> Enter Major/Minor Street Speeds | XC58: =IF(OR(ISBLANK($P$21),ISBLANK($P$23)),"Enter Major/Minor Street Speeds",IF(HF58=0,,(IF(HF58<5,_xlfn.XLOOKUP(HF58,$W$269:$W$272,$AA$269:$AA$272,"error",0,1),$AA$273)+IF(HK58<=$V$276,$AA$276,IF(AND(HK58>$V$276,HK58<=$V$277),$AA$277,IF(AND(HK58>$V$277,HK58<=$V$278),$AA$278,IF(AND(HK58>$V$278,HK58<=$V$279),$AA$279,$AA$280))))+IF(HP58<=$V$286,_xlfn.XLOOKUP(HU58,AA$285:$AD$285,$AA$286:$AD$286,"check xlookup for volume 150",0,1),IF(AND(HP58>$V$286,HP58<=$V$287),_xlfn.XLOOKUP(HU58,$AA$285:$AD$285,$AA$287:$AD$287,"check xlookup for volume 300",0,1),IF(AND(HP58>$V$287,HP58<=$V$288),_xlfn.XLOOKUP(HU58,$AA$285:$AD$285,$AA$288:$AD$288,"check xlookup for volume 900",0,1),IF(AND(HP58>$V$288,HP58<=$V$289),_xlfn.XLOOKUP(HU58,$AA$285:$AD$285,$AA$289:$AD$289,"check xlookup for volume 1500",0,1),IF(HP58>$V$289,_xlfn.XLOOKUP(HU58,$AA$285:$AD$285,$AA$290:$AD$290,"check xlookup for volume >1500",0,1),"")))))+IF(IC58=$W$293,$AA$293,$AA$294))/4)) -> Enter Major/Minor Street Speeds | XM58: =IF(OR(ISBLANK($P$21),ISBLANK($P$23)),"Enter Major/Minor Street Speeds",IF(II58=0,,(IF(II58<5,_xlfn.XLOOKUP(II58,$W$269:$W$272,$AA$269:$AA$272,"error",0,1),$AA$273)+IF(IN58<=$V$276,$AA$276,IF(AND(IN58>$V$276,IN58<=$V$277),$AA$277,IF(AND(IN58>$V$277,IN58<=$V$278),$AA$278,IF(AND(IN58>$V$278,IN58<=$V$279),$AA$279,$AA$280))))+IF(IS58<=$V$286,_xlfn.XLOOKUP(IX58,AA$285:$AD$285,$AA$286:$AD$286,"check xlookup for volume 150",0,1),IF(AND(IS58>$V$286,IS58<=$V$287),_xlfn.XLOOKUP(IX58,$AA$285:$AD$285,$AA$287:$AD$287,"check xlookup for volume 300",0,1),IF(AND(IS58>$V$287,IS58<=$V$288),_xlfn.XLOOKUP(IX58,$AA$285:$AD$285,$AA$288:$AD$288,"check xlookup for volume 900",0,1),IF(AND(IS58>$V$288,IS58<=$V$289),_xlfn.XLOOKUP(IX58,$AA$285:$AD$285,$AA$289:$AD$289,"check xlookup for volume 1500",0,1),IF(IS58>$V$289,_xlfn.XLOOKUP(IX58,$AA$285:$AD$285,$AA$290:$AD$290,"check xlookup for volume >1500",0,1),"")))))+IF(JF58=$W$293,$AA$293,$AA$294))/4)) -> Enter Major/Minor Street Speeds | XW58: =IF(OR(ISBLANK($P$21),ISBLANK($P$23)),"Enter Major/Minor Street Speeds",IF(JL58=0,,(IF(JL58<5,_xlfn.XLOOKUP(JL58,$W$269:$W$272,$AA$269:$AA$272,"error",0,1),$AA$273)+IF(JQ58<=$V$276,$AA$276,IF(AND(JQ58>$V$276,JQ58<=$V$277),$AA$277,IF(AND(JQ58>$V$277,JQ58<=$V$278),$AA$278,IF(AND(JQ58>$V$278,JQ58<=$V$279),$AA$279,$AA$280))))+IF(JV58<=$V$286,_xlfn.XLOOKUP(KA58,AA$285:$AD$285,$AA$286:$AD$286,"check xlookup for volume 150",0,1),IF(AND(JV58>$V$286,JV58<=$V$287),_xlfn.XLOOKUP(KA58,$AA$285:$AD$285,$AA$287:$AD$287,"check xlookup for volume 300",0,1),IF(AND(JV58>$V$287,JV58<=$V$288),_xlfn.XLOOKUP(KA58,$AA$285:$AD$285,$AA$288:$AD$288,"check xlookup for volume 900",0,1),IF(AND(JV58>$V$288,JV58<=$V$289),_xlfn.XLOOKUP(KA58,$AA$285:$AD$285,$AA$289:$AD$289,"check xlookup for volume 1500",0,1),IF(JV58>$V$289,_xlfn.XLOOKUP(KA58,$AA$285:$AD$285,$AA$290:$AD$290,"check xlookup for volume >1500",0,1),"")))))+IF(KI58=$W$293,$AA$293,$AA$294))/4)) -> Enter Major/Minor Street Speeds | YG58: =IF(OR(ISBLANK($P$21),ISBLANK($P$23)),"Enter Major/Minor Street Speeds",IF(KO58=0,,(IF(KO58<5,_xlfn.XLOOKUP(KO58,$W$269:$W$272,$AA$269:$AA$272,"error",0,1),$AA$273)+IF(KT58<=$V$276,$AA$276,IF(AND(KT58>$V$276,KT58<=$V$277),$AA$277,IF(AND(KT58>$V$277,KT58<=$V$278),$AA$278,IF(AND(KT58>$V$278,KT58<=$V$279),$AA$279,$AA$280))))+IF(KY58<=$V$286,_xlfn.XLOOKUP(LD58,AA$285:$AD$285,$AA$286:$AD$286,"check xlookup for volume 150",0,1),IF(AND(KY58>$V$286,KY58<=$V$287),_xlfn.XLOOKUP(LD58,$AA$285:$AD$285,$AA$287:$AD$287,"check xlookup for volume 300",0,1),IF(AND(KY58>$V$287,KY58<=$V$288),_xlfn.XLOOKUP(LD58,$AA$285:$AD$285,$AA$288:$AD$288,"check xlookup for volume 900",0,1),IF(AND(KY58>$V$288,KY58<=$V$289),_xlfn.XLOOKUP(LD58,$AA$285:$AD$285,$AA$289:$AD$289,"check xlookup for volume 1500",0,1),IF(KY58>$V$289,_xlfn.XLOOKUP(LD58,$AA$285:$AD$285,$AA$290:$AD$290,"check xlookup for volume >1500",0,1),"")))))+IF(LL58=$W$293,$AA$293,$AA$294))/4)) -> Enter Major/Minor Street Speeds | YQ58: =IF(OR(ISBLANK($P$21),ISBLANK($P$23)),"Enter Major/Minor Street Speeds",IF(LR58=0,,(IF(LR58<5,_xlfn.XLOOKUP(LR58,$W$269:$W$272,$AA$269:$AA$272,"error",0,1),$AA$273)+IF(LW58<=$V$276,$AA$276,IF(AND(LW58>$V$276,LW58<=$V$277),$AA$277,IF(AND(LW58>$V$277,LW58<=$V$278),$AA$278,IF(AND(LW58>$V$278,LW58<=$V$279),$AA$279,$AA$280))))+IF(MB58<=$V$286,_xlfn.XLOOKUP(MG58,AA$285:$AD$285,$AA$286:$AD$286,"check xlookup for volume 150",0,1),IF(AND(MB58>$V$286,MB58<=$V$287),_xlfn.XLOOKUP(MG58,$AA$285:$AD$285,$AA$287:$AD$287,"check xlookup for volume 300",0,1),IF(AND(MB58>$V$287,MB58<=$V$288),_xlfn.XLOOKUP(MG58,$AA$285:$AD$285,$AA$288:$AD$288,"check xlookup for volume 900",0,1),IF(AND(MB58>$V$288,MB58<=$V$289),_xlfn.XLOOKUP(MG58,$AA$285:$AD$285,$AA$289:$AD$289,"check xlookup for volume 1500",0,1),IF(MB58>$V$289,_xlfn.XLOOKUP(MG58,$AA$285:$AD$285,$AA$290:$AD$290,"check xlookup for volume >1500",0,1),"")))))+IF(MO58=$W$293,$AA$293,$AA$294))/4)) -> Enter Major/Minor Street Speeds | ZA58: =IF(OR(ISBLANK($P$21),ISBLANK($P$23)),"Enter Major/Minor Street Speeds",IF(MU58=0,,(IF(MU58<5,_xlfn.XLOOKUP(MU58,$W$269:$W$272,$AA$269:$AA$272,"error",0,1),$AA$273)+IF(MZ58<=$V$276,$AA$276,IF(AND(MZ58>$V$276,MZ58<=$V$277),$AA$277,IF(AND(MZ58>$V$277,MZ58<=$V$278),$AA$278,IF(AND(MZ58>$V$278,MZ58<=$V$279),$AA$279,$AA$280))))+IF(NE58<=$V$286,_xlfn.XLOOKUP(NJ58,AA$285:$AD$285,$AA$286:$AD$286,"check xlookup for volume 150",0,1),IF(AND(NE58>$V$286,NE58<=$V$287),_xlfn.XLOOKUP(NJ58,$AA$285:$AD$285,$AA$287:$AD$287,"check xlookup for volume 300",0,1),IF(AND(NE58>$V$287,NE58<=$V$288),_xlfn.XLOOKUP(NJ58,$AA$285:$AD$285,$AA$288:$AD$288,"check xlookup for volume 900",0,1),IF(AND(NE58>$V$288,NE58<=$V$289),_xlfn.XLOOKUP(NJ58,$AA$285:$AD$285,$AA$289:$AD$289,"check xlookup for volume 1500",0,1),IF(NE58>$V$289,_xlfn.XLOOKUP(NJ58,$AA$285:$AD$285,$AA$290:$AD$290,"check xlookup for volume >1500",0,1),"")))))+IF(NR58=$W$293,$AA$293,$AA$294))/4)) -> Enter Major/Minor Street Speeds | ZK58: =IF(OR(ISBLANK($P$21),ISBLANK($P$23)),"Enter Major/Minor Street Speeds",IF(NX58=0,,(IF(NX58<5,_xlfn.XLOOKUP(NX58,$W$269:$W$272,$AA$269:$AA$272,"error",0,1),$AA$273)+IF(OC58<=$V$276,$AA$276,IF(AND(OC58>$V$276,OC58<=$V$277),$AA$277,IF(AND(OC58>$V$277,OC58<=$V$278),$AA$278,IF(AND(OC58>$V$278,OC58<=$V$279),$AA$279,$AA$280))))+IF(OH58<=$V$286,_xlfn.XLOOKUP(OM58,AA$285:$AD$285,$AA$286:$AD$286,"check xlookup for volume 150",0,1),IF(AND(OH58>$V$286,OH58<=$V$287),_xlfn.XLOOKUP(OM58,$AA$285:$AD$285,$AA$287:$AD$287,"check xlookup for volume 300",0,1),IF(AND(OH58>$V$287,OH58<=$V$288),_xlfn.XLOOKUP(OM58,$AA$285:$AD$285,$AA$288:$AD$288,"check xlookup for volume 900",0,1),IF(AND(OH58>$V$288,OH58<=$V$289),_xlfn.XLOOKUP(OM58,$AA$285:$AD$285,$AA$289:$AD$289,"check xlookup for volume 1500",0,1),IF(OH58>$V$289,_xlfn.XLOOKUP(OM58,$AA$285:$AD$285,$AA$290:$AD$290,"check xlookup for volume >1500",0,1),"")))))+IF(OU58=$W$293,$AA$293,$AA$294))/4)) -> Enter Major/Minor Street Speeds | ZU58: =IF(OR(ISBLANK($P$21),ISBLANK($P$23)),"Enter Major/Minor Street Speeds",IF(PA58=0,,(IF(PA58<5,_xlfn.XLOOKUP(PA58,$W$269:$W$272,$AA$269:$AA$272,"error",0,1),$AA$273)+IF(PF58<=$V$276,$AA$276,IF(AND(PF58>$V$276,PF58<=$V$277),$AA$277,IF(AND(PF58>$V$277,PF58<=$V$278),$AA$278,IF(AND(PF58>$V$278,PF58<=$V$279),$AA$279,$AA$280))))+IF(PK58<=$V$286,_xlfn.XLOOKUP(PP58,AA$285:$AD$285,$AA$286:$AD$286,"check xlookup for volume 150",0,1),IF(AND(PK58>$V$286,PK58<=$V$287),_xlfn.XLOOKUP(PP58,$AA$285:$AD$285,$AA$287:$AD$287,"check xlookup for volume 300",0,1),IF(AND(PK58>$V$287,PK58<=$V$288),_xlfn.XLOOKUP(PP58,$AA$285:$AD$285,$AA$288:$AD$288,"check xlookup for volume 900",0,1),IF(AND(PK58>$V$288,PK58<=$V$289),_xlfn.XLOOKUP(PP58,$AA$285:$AD$285,$AA$289:$AD$289,"check xlookup for volume 1500",0,1),IF(PK58>$V$289,_xlfn.XLOOKUP(PP58,$AA$285:$AD$285,$AA$290:$AD$290,"check xlookup for volume >1500",0,1),"")))))+IF(PX58=$W$293,$AA$293,$AA$294))/4)) -> Enter Major/Minor Street Speeds | AAE58: =IF(OR(ISBLANK($P$21),ISBLANK($P$23)),"Enter Major/Minor Street Speeds",IF(QD58=0,,(IF(QD58<5,_xlfn.XLOOKUP(QD58,$W$269:$W$272,$AA$269:$AA$272,"error",0,1),$AA$273)+IF(QI58<=$V$276,$AA$276,IF(AND(QI58>$V$276,QI58<=$V$277),$AA$277,IF(AND(QI58>$V$277,QI58<=$V$278),$AA$278,IF(AND(QI58>$V$278,QI58<=$V$279),$AA$279,$AA$280))))+IF(QN58<=$V$286,_xlfn.XLOOKUP(QS58,AA$285:$AD$285,$AA$286:$AD$286,"check xlookup for volume 150",0,1),IF(AND(QN58>$V$286,QN58<=$V$287),_xlfn.XLOOKUP(QS58,$AA$285:$AD$285,$AA$287:$AD$287,"check xlookup for volume 300",0,1),IF(AND(QN58>$V$287,QN58<=$V$288),_xlfn.XLOOKUP(QS58,$AA$285:$AD$285,$AA$288:$AD$288,"check xlookup for volume 900",0,1),IF(AND(QN58>$V$288,QN58<=$V$289),_xlfn.XLOOKUP(QS58,$AA$285:$AD$285,$AA$289:$AD$289,"check xlookup for volume 1500",0,1),IF(QN58>$V$289,_xlfn.XLOOKUP(QS58,$AA$285:$AD$285,$AA$290:$AD$290,"check xlookup for volume >1500",0,1),"")))))+IF(RA58=$W$293,$AA$293,$AA$294))/4)) -> Enter Major/Minor Street Speeds | AAO58: =IF(OR(ISBLANK($P$21),ISBLANK($P$23)),"Enter Major/Minor Street Speeds",IF(RG58=0,,(IF(RG58<5,_xlfn.XLOOKUP(RG58,$W$269:$W$272,$AA$269:$AA$272,"error",0,1),$AA$273)+IF(RL58<=$V$276,$AA$276,IF(AND(RL58>$V$276,RL58<=$V$277),$AA$277,IF(AND(RL58>$V$277,RL58<=$V$278),$AA$278,IF(AND(RL58>$V$278,RL58<=$V$279),$AA$279,$AA$280))))+IF(RQ58<=$V$286,_xlfn.XLOOKUP(RV58,AA$285:$AD$285,$AA$286:$AD$286,"check xlookup for volume 150",0,1),IF(AND(RQ58>$V$286,RQ58<=$V$287),_xlfn.XLOOKUP(RV58,$AA$285:$AD$285,$AA$287:$AD$287,"check xlookup for volume 300",0,1),IF(AND(RQ58>$V$287,RQ58<=$V$288),_xlfn.XLOOKUP(RV58,$AA$285:$AD$285,$AA$288:$AD$288,"check xlookup for volume 900",0,1),IF(AND(RQ58>$V$288,RQ58<=$V$289),_xlfn.XLOOKUP(RV58,$AA$285:$AD$285,$AA$289:$AD$289,"check xlookup for volume 1500",0,1),IF(RQ58>$V$289,_xlfn.XLOOKUP(RV58,$AA$285:$AD$285,$AA$290:$AD$290,"check xlookup for volume >1500",0,1),"")))))+IF(SD58=$W$293,$AA$293,$AA$294))/4)) -> Enter Major/Minor Street Speeds | AAY58: =IF(OR(ISBLANK($P$21),ISBLANK($P$23)),"Enter Major/Minor Street Speeds",IF(SJ58=0,,(IF(SJ58<5,_xlfn.XLOOKUP(SJ58,$W$269:$W$272,$AA$269:$AA$272,"error",0,1),$AA$273)+IF(SO58<=$V$276,$AA$276,IF(AND(SO58>$V$276,SO58<=$V$277),$AA$277,IF(AND(SO58>$V$277,SO58<=$V$278),$AA$278,IF(AND(SO58>$V$278,SO58<=$V$279),$AA$279,$AA$280))))+IF(ST58<=$V$286,_xlfn.XLOOKUP(SY58,AA$285:$AD$285,$AA$286:$AD$286,"check xlookup for volume 150",0,1),IF(AND(ST58>$V$286,ST58<=$V$287),_xlfn.XLOOKUP(SY58,$AA$285:$AD$285,$AA$287:$AD$287,"check xlookup for volume 300",0,1),IF(AND(ST58>$V$287,ST58<=$V$288),_xlfn.XLOOKUP(SY58,$AA$285:$AD$285,$AA$288:$AD$288,"check xlookup for volume 900",0,1),IF(AND(ST58>$V$288,ST58<=$V$289),_xlfn.XLOOKUP(SY58,$AA$285:$AD$285,$AA$289:$AD$289,"check xlookup for volume 1500",0,1),IF(ST58>$V$289,_xlfn.XLOOKUP(SY58,$AA$285:$AD$285,$AA$290:$AD$290,"check xlookup for volume >1500",0,1),"")))))+IF(TG58=$W$293,$AA$293,$AA$294))/4)) -> Enter Major/Minor Street Speeds | ABI58: =IF(OR(ISBLANK($P$21),ISBLANK($P$23)),"Enter Major/Minor Street Speeds",IF(TM58=0,,(IF(TM58<5,_xlfn.XLOOKUP(TM58,$W$269:$W$272,$AA$269:$AA$272,"error",0,1),$AA$273)+IF(TR58<=$V$276,$AA$276,IF(AND(TR58>$V$276,TR58<=$V$277),$AA$277,IF(AND(TR58>$V$277,TR58<=$V$278),$AA$278,IF(AND(TR58>$V$278,TR58<=$V$279),$AA$279,$AA$280))))+IF(TW58<=$V$286,_xlfn.XLOOKUP(UB58,AA$285:$AD$285,$AA$286:$AD$286,"check xlookup for volume 150",0,1),IF(AND(TW58>$V$286,TW58<=$V$287),_xlfn.XLOOKUP(UB58,$AA$285:$AD$285,$AA$287:$AD$287,"check xlookup for volume 300",0,1),IF(AND(TW58>$V$287,TW58<=$V$288),_xlfn.XLOOKUP(UB58,$AA$285:$AD$285,$AA$288:$AD$288,"check xlookup for volume 900",0,1),IF(AND(TW58>$V$288,TW58<=$V$289),_xlfn.XLOOKUP(UB58,$AA$285:$AD$285,$AA$289:$AD$289,"check xlookup for volume 1500",0,1),IF(TW58>$V$289,_xlfn.XLOOKUP(UB58,$AA$285:$AD$285,$AA$290:$AD$290,"check xlookup for volume >1500",0,1),"")))))+IF(UJ58=$W$293,$AA$293,$AA$294))/4)) -> Enter Major/Minor Street Speeds
T60: N-E | Z60: =UP60 -> Enter Major/Minor Street Speeds | AD60: No | AI60: Yes Crossing(s) with 2 stages | AN60: =SUM('QR N-E'!CB60:CG60) -> 3 | AS60: =Min_St_Spd_Lmt -> 0 | AX60: =SUM(NBT_Master,NBR_Master,NBL_Master,NBU_Master) -> 816 | BC60: Stop/Signal Controlled | BK60: Marked | BQ60: =MAX('QR N-E'!BY47:CA47,'QR N-E'!BU57:BU59) -> 2 | BV60: =Min_St_Spd_Lmt -> 0 | CA60: =SUM(EBR_Master,WBL_Master,SBT_Master,NBU_Master) -> 592 | CF60: Stop/Signal Controlled | CN60: Marked | CT60: =SUM('QR N-E'!BU54:BU59) -> 3 | CY60: =Maj_St_Spd_Lmt -> 0 | DD60: =SUM(EBL_Master,EBT_Master,EBR_Master,EBU_Master) -> 286 | DI60: Stop/Signal Controlled | DQ60: Marked | DW60: =MAX('QR N-E'!BV47:BX47,'QR N-E'!CH51:CH53) -> 2 | EB60: =Maj_St_Spd_Lmt -> 0 | EG60: =SUM(NBL_Master,WBT_Master,SBR_Master,EBU_Master) -> 510 | EL60: Stop/Signal Controlled | ET60: Marked | EZ60: =SUM('QR N-E'!BV47:CA47) -> 3 | FE60: =Min_St_Spd_Lmt -> 0 | FJ60: =SUM(SBT_Master,SBR_Master,WBL_Master,NBU_Master,EBU_Master) -> 745 | FO60: Stop/Signal Controlled | FW60: Marked | GC60: =MAX('QR N-E'!CB60:CD60,'QR N-E'!CH48:CH50) -> 2 | GH60: =Min_St_Spd_Lmt -> 0 | GM60: =SUM(NBT_Master,NBL_Master,SBU_Master,WBU_Master) -> 612 | GR60: Stop/Signal Controlled | GZ60: Marked | HF60: =SUM('QR N-E'!CH48:CH53) -> 3 | HK60: =Maj_St_Spd_Lmt -> 0 | HP60: =SUM(NBL_Master,WBT_Master,WBU_Master,SBU_Master) -> 306 | HU60: Stop/Signal Controlled | IC60: Marked | II60: =MAX('QR N-E'!BU54:BU56,'QR N-E'!CE60:CG60) -> 2 | IN60: =Maj_St_Spd_Lmt -> 0 | IS60: =SUM(EBL_Master,EBT_Master,NBR_Master,NBU_Master,EBU_Master) -> 439 | IX60: Stop/Signal Controlled | JF60: Marked | JL60: =SUM('QR N-E'!CB32:CG32) -> 3 | JQ60: =Min_St_Spd_Lmt -> 0 | JV60: =SUM(NBT_Master,NBL_Master,WBU_Master,SBU_Master) -> 612 | KA60: Stop/Signal Controlled | KI60: Unmarked | KO60: =MAX('QR N-E'!BY19:CA19,'QR N-E'!CH29:CH31) -> 2 | KT60: =Min_St_Spd_Lmt -> 0 | KY60: =SUM(SBT_Master,SBR_Master,WBL_Master,NBU_Master,EBU_Master) -> 745 | LD60: Free Flowing | LL60: Unmarked | LR60: =SUM('QR N-E'!BY19:CD19) -> 3 | LW60: =Min_St_Spd_Lmt -> 0 | MB60: =SUM(SBT_Master,SBR_Master,SBL_Master,SBU_Master) -> 765 | MG60: Stop/Signal Controlled | MO60: Marked | MU60: =MAX('QR N-E'!CH26:CH28,'QR N-E'!CB32:CD32) -> 2 | MZ60: =Min_St_Spd_Lmt -> 0 | NE60: =SUM(NBT_Master,WBR_Master,EBL_Master,SBU_Master) -> 592 | NJ60: Stop/Signal Controlled | NR60: Marked | NX60: =SUM('QR N-E'!CH26:CH31)+MAX('QR N-E'!CE32:CG32,'QR N-E'!CB19:CD19) -> 3 | OC60: =Maj_St_Spd_Lmt -> 0 | OH60: =SUM(WBR_Master,EBL_Master,NBU_Master,SBU_Master,EBU_Master,WBU_Master,SBL_Master,NBL_Master,WBL_Master) -> 266 | OM60: Stop/Signal Controlled | OU60: Marked | PA60: =SUM('QR N-E'!CW54:CW59) -> 3 | PF60: =Maj_St_Spd_Lmt -> 0 | PK60: =SUM(NBU_Master,EBU_Master,EBL_Master,EBT_Master,NBR_Master) -> 439 | PP60: Stop/Signal Controlled | PX60: Marked | QD60: =MAX('QR N-E'!DJ51:DJ53,'QR N-E'!CX47:CZ47) -> 2 | QI60: =Maj_St_Spd_Lmt -> 0 | QN60: =SUM(NBL_Master,WBT_Master,WBU_Master,SBU_Master) -> 306 | QS60: Stop/Signal Controlled | RA60: Marked | RG60: =SUM('QR N-E'!CX47:DC47)+MAX('QR N-E'!CW54:CW56,'QR N-E'!DJ48:DJ50) -> 3 | RL60: =Min_St_Spd_Lmt -> 0 | RQ60: =SUM(SBL_Master,SBU_Master,NBL_Master,NBU_Master,EBL_Master,EBU_Master,WBU_Master,WBL_Master,WBR_Master) -> 266 | RV60: Stop/Signal Controlled | SD60: Marked | SJ60: =SUM('QR N-E'!DJ48:DJ53) -> 3 | SO60: =Maj_St_Spd_Lmt -> 0 | ST60: =SUM(WBL_Master,WBT_Master,WBR_Master,WBU_Master) -> 286 | SY60: Stop/Signal Controlled | TG60: Unmarked | TM60: =MAX('QR N-E'!DA47:DC47,'QR N-E'!CW57:CW59) -> 2 | TR60: =Maj_St_Spd_Lmt -> 0 | TW60: =SUM(EBT_Master,NBR_Master,SBL_Master,WBU_Master) -> 459 | UB60: Free Flowing | UJ60: Unmarked | UP60: =IFERROR((((SUM(SQRT(UU60),SQRT(VE60),SQRT(VO60),SQRT(VY60),SQRT(WI60),SQRT(WS60),SQRT(XC60),SQRT(XM60),SQRT(XW60),SQRT(YG60),SQRT(YQ60),SQRT(ZA60),SQRT(ZK60),SQRT(ZU60),SQRT(AAE60),SQRT(AAO60),SQRT(AAY60),SQRT(ABI60))/COUNTIF(UU60:ABR61,">0"))^2)*(_xlfn.XLOOKUP(AD60,$W$304:$W$305,$AA$304:$AA$305,"lookup error",0,1))*(_xlfn.XLOOKUP(AI60,Multistage_Crossing,$AA$298:$AA$300,"lookup error",0,1))),"Enter Major/Minor Street Speeds") -> Enter Major/Minor Street Speeds | UU60: =IF(OR(ISBLANK($P$21),ISBLANK($P$23)),"Enter Major/Minor Street Speeds",IF(AN60=0,,(IF(AN60<5,_xlfn.XLOOKUP(AN60,$W$269:$W$272,$AA$269:$AA$272,"error",0,1),$AA$273)+IF(AS60<=$V$276,$AA$276,IF(AND(AS60>$V$276,AS60<=$V$277),$AA$277,IF(AND(AS60>$V$277,AS60<=$V$278),$AA$278,IF(AND(AS60>$V$278,AS60<=$V$279),$AA$279,$AA$280))))+IF(AX60<=$V$286,_xlfn.XLOOKUP(BC60,AA$285:$AD$285,$AA$286:$AD$286,"check xlookup for volume 150",0,1),IF(AND(AX60>$V$286,AX60<=$V$287),_xlfn.XLOOKUP(BC60,$AA$285:$AD$285,$AA$287:$AD$287,"check xlookup for volume 300",0,1),IF(AND(AX60>$V$287,AX60<=$V$288),_xlfn.XLOOKUP(BC60,$AA$285:$AD$285,$AA$288:$AD$288,"check xlookup for volume 900",0,1),IF(AND(AX60>$V$288,AX60<=$V$289),_xlfn.XLOOKUP(BC60,$AA$285:$AD$285,$AA$289:$AD$289,"check xlookup for volume 1500",0,1),IF(AX60>$V$289,_xlfn.XLOOKUP(BC60,$AA$285:$AD$285,$AA$290:$AD$290,"check xlookup for volume >1500",0,1),"")))))+IF(BK60=$W$293,$AA$293,$AA$294))/4)) -> Enter Major/Minor Street Speeds | VE60: =IF(OR(ISBLANK($P$21),ISBLANK($P$23)),"Enter Major/Minor Street Speeds",IF(BQ60=0,,(IF(BQ60<5,_xlfn.XLOOKUP(BQ60,$W$269:$W$272,$AA$269:$AA$272,"error",0,1),$AA$273)+IF(BV60<=$V$276,$AA$276,IF(AND(BV60>$V$276,BV60<=$V$277),$AA$277,IF(AND(BV60>$V$277,BV60<=$V$278),$AA$278,IF(AND(BV60>$V$278,BV60<=$V$279),$AA$279,$AA$280))))+IF(CA60<=$V$286,_xlfn.XLOOKUP(CF60,AA$285:$AD$285,$AA$286:$AD$286,"check xlookup for volume 150",0,1),IF(AND(CA60>$V$286,CA60<=$V$287),_xlfn.XLOOKUP(CF60,$AA$285:$AD$285,$AA$287:$AD$287,"check xlookup for volume 300",0,1),IF(AND(CA60>$V$287,CA60<=$V$288),_xlfn.XLOOKUP(CF60,$AA$285:$AD$285,$AA$288:$AD$288,"check xlookup for volume 900",0,1),IF(AND(CA60>$V$288,CA60<=$V$289),_xlfn.XLOOKUP(CF60,$AA$285:$AD$285,$AA$289:$AD$289,"check xlookup for volume 1500",0,1),IF(CA60>$V$289,_xlfn.XLOOKUP(CF60,$AA$285:$AD$285,$AA$290:$AD$290,"check xlookup for volume >1500",0,1),"")))))+IF(CN60=$W$293,$AA$293,$AA$294))/4)) -> Enter Major/Minor Street Speeds | VO60: =IF(OR(ISBLANK($P$21),ISBLANK($P$23)),"Enter Major/Minor Street Speeds",IF(CT60=0,,(IF(CT60<5,_xlfn.XLOOKUP(CT60,$W$269:$W$272,$AA$269:$AA$272,"error",0,1),$AA$273)+IF(CY60<=$V$276,$AA$276,IF(AND(CY60>$V$276,CY60<=$V$277),$AA$277,IF(AND(CY60>$V$277,CY60<=$V$278),$AA$278,IF(AND(CY60>$V$278,CY60<=$V$279),$AA$279,$AA$280))))+IF(DD60<=$V$286,_xlfn.XLOOKUP(DI60,AA$285:$AD$285,$AA$286:$AD$286,"check xlookup for volume 150",0,1),IF(AND(DD60>$V$286,DD60<=$V$287),_xlfn.XLOOKUP(DI60,$AA$285:$AD$285,$AA$287:$AD$287,"check xlookup for volume 300",0,1),IF(AND(DD60>$V$287,DD60<=$V$288),_xlfn.XLOOKUP(DI60,$AA$285:$AD$285,$AA$288:$AD$288,"check xlookup for volume 900",0,1),IF(AND(DD60>$V$288,DD60<=$V$289),_xlfn.XLOOKUP(DI60,$AA$285:$AD$285,$AA$289:$AD$289,"check xlookup for volume 1500",0,1),IF(DD60>$V$289,_xlfn.XLOOKUP(DI60,$AA$285:$AD$285,$AA$290:$AD$290,"check xlookup for volume >1500",0,1),"")))))+IF(DQ60=$W$293,$AA$293,$AA$294))/4)) -> Enter Major/Minor Street Speeds | VY60: =IF(OR(ISBLANK($P$21),ISBLANK($P$23)),"Enter Major/Minor Street Speeds",IF(DW60=0,,(IF(DW60<5,_xlfn.XLOOKUP(DW60,$W$269:$W$272,$AA$269:$AA$272,"error",0,1),$AA$273)+IF(EB60<=$V$276,$AA$276,IF(AND(EB60>$V$276,EB60<=$V$277),$AA$277,IF(AND(EB60>$V$277,EB60<=$V$278),$AA$278,IF(AND(EB60>$V$278,EB60<=$V$279),$AA$279,$AA$280))))+IF(EG60<=$V$286,_xlfn.XLOOKUP(EL60,AA$285:$AD$285,$AA$286:$AD$286,"check xlookup for volume 150",0,1),IF(AND(EG60>$V$286,EG60<=$V$287),_xlfn.XLOOKUP(EL60,$AA$285:$AD$285,$AA$287:$AD$287,"check xlookup for volume 300",0,1),IF(AND(EG60>$V$287,EG60<=$V$288),_xlfn.XLOOKUP(EL60,$AA$285:$AD$285,$AA$288:$AD$288,"check xlookup for volume 900",0,1),IF(AND(EG60>$V$288,EG60<=$V$289),_xlfn.XLOOKUP(EL60,$AA$285:$AD$285,$AA$289:$AD$289,"check xlookup for volume 1500",0,1),IF(EG60>$V$289,_xlfn.XLOOKUP(EL60,$AA$285:$AD$285,$AA$290:$AD$290,"check xlookup for volume >1500",0,1),"")))))+IF(ET60=$W$293,$AA$293,$AA$294))/4)) -> Enter Major/Minor Street Speeds | WI60: =IF(OR(ISBLANK($P$21),ISBLANK($P$23)),"Enter Major/Minor Street Speeds",IF(EZ60=0,,(IF(EZ60<5,_xlfn.XLOOKUP(EZ60,$W$269:$W$272,$AA$269:$AA$272,"error",0,1),$AA$273)+IF(FE60<=$V$276,$AA$276,IF(AND(FE60>$V$276,FE60<=$V$277),$AA$277,IF(AND(FE60>$V$277,FE60<=$V$278),$AA$278,IF(AND(FE60>$V$278,FE60<=$V$279),$AA$279,$AA$280))))+IF(FJ60<=$V$286,_xlfn.XLOOKUP(FO60,AA$285:$AD$285,$AA$286:$AD$286,"check xlookup for volume 150",0,1),IF(AND(FJ60>$V$286,FJ60<=$V$287),_xlfn.XLOOKUP(FO60,$AA$285:$AD$285,$AA$287:$AD$287,"check xlookup for volume 300",0,1),IF(AND(FJ60>$V$287,FJ60<=$V$288),_xlfn.XLOOKUP(FO60,$AA$285:$AD$285,$AA$288:$AD$288,"check xlookup for volume 900",0,1),IF(AND(FJ60>$V$288,FJ60<=$V$289),_xlfn.XLOOKUP(FO60,$AA$285:$AD$285,$AA$289:$AD$289,"check xlookup for volume 1500",0,1),IF(FJ60>$V$289,_xlfn.XLOOKUP(FO60,$AA$285:$AD$285,$AA$290:$AD$290,"check xlookup for volume >1500",0,1),"")))))+IF(FW60=$W$293,$AA$293,$AA$294))/4)) -> Enter Major/Minor Street Speeds | WS60: =IF(OR(ISBLANK($P$21),ISBLANK($P$23)),"Enter Major/Minor Street Speeds",IF(GC60=0,,(IF(GC60<5,_xlfn.XLOOKUP(GC60,$W$269:$W$272,$AA$269:$AA$272,"error",0,1),$AA$273)+IF(GH60<=$V$276,$AA$276,IF(AND(GH60>$V$276,GH60<=$V$277),$AA$277,IF(AND(GH60>$V$277,GH60<=$V$278),$AA$278,IF(AND(GH60>$V$278,GH60<=$V$279),$AA$279,$AA$280))))+IF(GM60<=$V$286,_xlfn.XLOOKUP(GR60,AA$285:$AD$285,$AA$286:$AD$286,"check xlookup for volume 150",0,1),IF(AND(GM60>$V$286,GM60<=$V$287),_xlfn.XLOOKUP(GR60,$AA$285:$AD$285,$AA$287:$AD$287,"check xlookup for volume 300",0,1),IF(AND(GM60>$V$287,GM60<=$V$288),_xlfn.XLOOKUP(GR60,$AA$285:$AD$285,$AA$288:$AD$288,"check xlookup for volume 900",0,1),IF(AND(GM60>$V$288,GM60<=$V$289),_xlfn.XLOOKUP(GR60,$AA$285:$AD$285,$AA$289:$AD$289,"check xlookup for volume 1500",0,1),IF(GM60>$V$289,_xlfn.XLOOKUP(GR60,$AA$285:$AD$285,$AA$290:$AD$290,"check xlookup for volume >1500",0,1),"")))))+IF(GZ60=$W$293,$AA$293,$AA$294))/4)) -> Enter Major/Minor Street Speeds | XC60: =IF(OR(ISBLANK($P$21),ISBLANK($P$23)),"Enter Major/Minor Street Speeds",IF(HF60=0,,(IF(HF60<5,_xlfn.XLOOKUP(HF60,$W$269:$W$272,$AA$269:$AA$272,"error",0,1),$AA$273)+IF(HK60<=$V$276,$AA$276,IF(AND(HK60>$V$276,HK60<=$V$277),$AA$277,IF(AND(HK60>$V$277,HK60<=$V$278),$AA$278,IF(AND(HK60>$V$278,HK60<=$V$279),$AA$279,$AA$280))))+IF(HP60<=$V$286,_xlfn.XLOOKUP(HU60,AA$285:$AD$285,$AA$286:$AD$286,"check xlookup for volume 150",0,1),IF(AND(HP60>$V$286,HP60<=$V$287),_xlfn.XLOOKUP(HU60,$AA$285:$AD$285,$AA$287:$AD$287,"check xlookup for volume 300",0,1),IF(AND(HP60>$V$287,HP60<=$V$288),_xlfn.XLOOKUP(HU60,$AA$285:$AD$285,$AA$288:$AD$288,"check xlookup for volume 900",0,1),IF(AND(HP60>$V$288,HP60<=$V$289),_xlfn.XLOOKUP(HU60,$AA$285:$AD$285,$AA$289:$AD$289,"check xlookup for volume 1500",0,1),IF(HP60>$V$289,_xlfn.XLOOKUP(HU60,$AA$285:$AD$285,$AA$290:$AD$290,"check xlookup for volume >1500",0,1),"")))))+IF(IC60=$W$293,$AA$293,$AA$294))/4)) -> Enter Major/Minor Street Speeds | XM60: =IF(OR(ISBLANK($P$21),ISBLANK($P$23)),"Enter Major/Minor Street Speeds",IF(II60=0,,(IF(II60<5,_xlfn.XLOOKUP(II60,$W$269:$W$272,$AA$269:$AA$272,"error",0,1),$AA$273)+IF(IN60<=$V$276,$AA$276,IF(AND(IN60>$V$276,IN60<=$V$277),$AA$277,IF(AND(IN60>$V$277,IN60<=$V$278),$AA$278,IF(AND(IN60>$V$278,IN60<=$V$279),$AA$279,$AA$280))))+IF(IS60<=$V$286,_xlfn.XLOOKUP(IX60,AA$285:$AD$285,$AA$286:$AD$286,"check xlookup for volume 150",0,1),IF(AND(IS60>$V$286,IS60<=$V$287),_xlfn.XLOOKUP(IX60,$AA$285:$AD$285,$AA$287:$AD$287,"check xlookup for volume 300",0,1),IF(AND(IS60>$V$287,IS60<=$V$288),_xlfn.XLOOKUP(IX60,$AA$285:$AD$285,$AA$288:$AD$288,"check xlookup for volume 900",0,1),IF(AND(IS60>$V$288,IS60<=$V$289),_xlfn.XLOOKUP(IX60,$AA$285:$AD$285,$AA$289:$AD$289,"check xlookup for volume 1500",0,1),IF(IS60>$V$289,_xlfn.XLOOKUP(IX60,$AA$285:$AD$285,$AA$290:$AD$290,"check xlookup for volume >1500",0,1),"")))))+IF(JF60=$W$293,$AA$293,$AA$294))/4)) -> Enter Major/Minor Street Speeds | XW60: =IF(OR(ISBLANK($P$21),ISBLANK($P$23)),"Enter Major/Minor Street Speeds",IF(JL60=0,,(IF(JL60<5,_xlfn.XLOOKUP(JL60,$W$269:$W$272,$AA$269:$AA$272,"error",0,1),$AA$273)+IF(JQ60<=$V$276,$AA$276,IF(AND(JQ60>$V$276,JQ60<=$V$277),$AA$277,IF(AND(JQ60>$V$277,JQ60<=$V$278),$AA$278,IF(AND(JQ60>$V$278,JQ60<=$V$279),$AA$279,$AA$280))))+IF(JV60<=$V$286,_xlfn.XLOOKUP(KA60,AA$285:$AD$285,$AA$286:$AD$286,"check xlookup for volume 150",0,1),IF(AND(JV60>$V$286,JV60<=$V$287),_xlfn.XLOOKUP(KA60,$AA$285:$AD$285,$AA$287:$AD$287,"check xlookup for volume 300",0,1),IF(AND(JV60>$V$287,JV60<=$V$288),_xlfn.XLOOKUP(KA60,$AA$285:$AD$285,$AA$288:$AD$288,"check xlookup for volume 900",0,1),IF(AND(JV60>$V$288,JV60<=$V$289),_xlfn.XLOOKUP(KA60,$AA$285:$AD$285,$AA$289:$AD$289,"check xlookup for volume 1500",0,1),IF(JV60>$V$289,_xlfn.XLOOKUP(KA60,$AA$285:$AD$285,$AA$290:$AD$290,"check xlookup for volume >1500",0,1),"")))))+IF(KI60=$W$293,$AA$293,$AA$294))/4)) -> Enter Major/Minor Street Speeds | YG60: =IF(OR(ISBLANK($P$21),ISBLANK($P$23)),"Enter Major/Minor Street Speeds",IF(KO60=0,,(IF(KO60<5,_xlfn.XLOOKUP(KO60,$W$269:$W$272,$AA$269:$AA$272,"error",0,1),$AA$273)+IF(KT60<=$V$276,$AA$276,IF(AND(KT60>$V$276,KT60<=$V$277),$AA$277,IF(AND(KT60>$V$277,KT60<=$V$278),$AA$278,IF(AND(KT60>$V$278,KT60<=$V$279),$AA$279,$AA$280))))+IF(KY60<=$V$286,_xlfn.XLOOKUP(LD60,AA$285:$AD$285,$AA$286:$AD$286,"check xlookup for volume 150",0,1),IF(AND(KY60>$V$286,KY60<=$V$287),_xlfn.XLOOKUP(LD60,$AA$285:$AD$285,$AA$287:$AD$287,"check xlookup for volume 300",0,1),IF(AND(KY60>$V$287,KY60<=$V$288),_xlfn.XLOOKUP(LD60,$AA$285:$AD$285,$AA$288:$AD$288,"check xlookup for volume 900",0,1),IF(AND(KY60>$V$288,KY60<=$V$289),_xlfn.XLOOKUP(LD60,$AA$285:$AD$285,$AA$289:$AD$289,"check xlookup for volume 1500",0,1),IF(KY60>$V$289,_xlfn.XLOOKUP(LD60,$AA$285:$AD$285,$AA$290:$AD$290,"check xlookup for volume >1500",0,1),"")))))+IF(LL60=$W$293,$AA$293,$AA$294))/4)) -> Enter Major/Minor Street Speeds | YQ60: =IF(OR(ISBLANK($P$21),ISBLANK($P$23)),"Enter Major/Minor Street Speeds",IF(LR60=0,,(IF(LR60<5,_xlfn.XLOOKUP(LR60,$W$269:$W$272,$AA$269:$AA$272,"error",0,1),$AA$273)+IF(LW60<=$V$276,$AA$276,IF(AND(LW60>$V$276,LW60<=$V$277),$AA$277,IF(AND(LW60>$V$277,LW60<=$V$278),$AA$278,IF(AND(LW60>$V$278,LW60<=$V$279),$AA$279,$AA$280))))+IF(MB60<=$V$286,_xlfn.XLOOKUP(MG60,AA$285:$AD$285,$AA$286:$AD$286,"check xlookup for volume 150",0,1),IF(AND(MB60>$V$286,MB60<=$V$287),_xlfn.XLOOKUP(MG60,$AA$285:$AD$285,$AA$287:$AD$287,"check xlookup for volume 300",0,1),IF(AND(MB60>$V$287,MB60<=$V$288),_xlfn.XLOOKUP(MG60,$AA$285:$AD$285,$AA$288:$AD$288,"check xlookup for volume 900",0,1),IF(AND(MB60>$V$288,MB60<=$V$289),_xlfn.XLOOKUP(MG60,$AA$285:$AD$285,$AA$289:$AD$289,"check xlookup for volume 1500",0,1),IF(MB60>$V$289,_xlfn.XLOOKUP(MG60,$AA$285:$AD$285,$AA$290:$AD$290,"check xlookup for volume >1500",0,1),"")))))+IF(MO60=$W$293,$AA$293,$AA$294))/4)) -> Enter Major/Minor Street Speeds | ZA60: =IF(OR(ISBLANK($P$21),ISBLANK($P$23)),"Enter Major/Minor Street Speeds",IF(MU60=0,,(IF(MU60<5,_xlfn.XLOOKUP(MU60,$W$269:$W$272,$AA$269:$AA$272,"error",0,1),$AA$273)+IF(MZ60<=$V$276,$AA$276,IF(AND(MZ60>$V$276,MZ60<=$V$277),$AA$277,IF(AND(MZ60>$V$277,MZ60<=$V$278),$AA$278,IF(AND(MZ60>$V$278,MZ60<=$V$279),$AA$279,$AA$280))))+IF(NE60<=$V$286,_xlfn.XLOOKUP(NJ60,AA$285:$AD$285,$AA$286:$AD$286,"check xlookup for volume 150",0,1),IF(AND(NE60>$V$286,NE60<=$V$287),_xlfn.XLOOKUP(NJ60,$AA$285:$AD$285,$AA$287:$AD$287,"check xlookup for volume 300",0,1),IF(AND(NE60>$V$287,NE60<=$V$288),_xlfn.XLOOKUP(NJ60,$AA$285:$AD$285,$AA$288:$AD$288,"check xlookup for volume 900",0,1),IF(AND(NE60>$V$288,NE60<=$V$289),_xlfn.XLOOKUP(NJ60,$AA$285:$AD$285,$AA$289:$AD$289,"check xlookup for volume 1500",0,1),IF(NE60>$V$289,_xlfn.XLOOKUP(NJ60,$AA$285:$AD$285,$AA$290:$AD$290,"check xlookup for volume >1500",0,1),"")))))+IF(NR60=$W$293,$AA$293,$AA$294))/4)) -> Enter Major/Minor Street Speeds | ZK60: =IF(OR(ISBLANK($P$21),ISBLANK($P$23)),"Enter Major/Minor Street Speeds",IF(NX60=0,,(IF(NX60<5,_xlfn.XLOOKUP(NX60,$W$269:$W$272,$AA$269:$AA$272,"error",0,1),$AA$273)+IF(OC60<=$V$276,$AA$276,IF(AND(OC60>$V$276,OC60<=$V$277),$AA$277,IF(AND(OC60>$V$277,OC60<=$V$278),$AA$278,IF(AND(OC60>$V$278,OC60<=$V$279),$AA$279,$AA$280))))+IF(OH60<=$V$286,_xlfn.XLOOKUP(OM60,AA$285:$AD$285,$AA$286:$AD$286,"check xlookup for volume 150",0,1),IF(AND(OH60>$V$286,OH60<=$V$287),_xlfn.XLOOKUP(OM60,$AA$285:$AD$285,$AA$287:$AD$287,"check xlookup for volume 300",0,1),IF(AND(OH60>$V$287,OH60<=$V$288),_xlfn.XLOOKUP(OM60,$AA$285:$AD$285,$AA$288:$AD$288,"check xlookup for volume 900",0,1),IF(AND(OH60>$V$288,OH60<=$V$289),_xlfn.XLOOKUP(OM60,$AA$285:$AD$285,$AA$289:$AD$289,"check xlookup for volume 1500",0,1),IF(OH60>$V$289,_xlfn.XLOOKUP(OM60,$AA$285:$AD$285,$AA$290:$AD$290,"check xlookup for volume >1500",0,1),"")))))+IF(OU60=$W$293,$AA$293,$AA$294))/4)) -> Enter Major/Minor Street Speeds | ZU60: =IF(OR(ISBLANK($P$21),ISBLANK($P$23)),"Enter Major/Minor Street Speeds",IF(PA60=0,,(IF(PA60<5,_xlfn.XLOOKUP(PA60,$W$269:$W$272,$AA$269:$AA$272,"error",0,1),$AA$273)+IF(PF60<=$V$276,$AA$276,IF(AND(PF60>$V$276,PF60<=$V$277),$AA$277,IF(AND(PF60>$V$277,PF60<=$V$278),$AA$278,IF(AND(PF60>$V$278,PF60<=$V$279),$AA$279,$AA$280))))+IF(PK60<=$V$286,_xlfn.XLOOKUP(PP60,AA$285:$AD$285,$AA$286:$AD$286,"check xlookup for volume 150",0,1),IF(AND(PK60>$V$286,PK60<=$V$287),_xlfn.XLOOKUP(PP60,$AA$285:$AD$285,$AA$287:$AD$287,"check xlookup for volume 300",0,1),IF(AND(PK60>$V$287,PK60<=$V$288),_xlfn.XLOOKUP(PP60,$AA$285:$AD$285,$AA$288:$AD$288,"check xlookup for volume 900",0,1),IF(AND(PK60>$V$288,PK60<=$V$289),_xlfn.XLOOKUP(PP60,$AA$285:$AD$285,$AA$289:$AD$289,"check xlookup for volume 1500",0,1),IF(PK60>$V$289,_xlfn.XLOOKUP(PP60,$AA$285:$AD$285,$AA$290:$AD$290,"check xlookup for volume >1500",0,1),"")))))+IF(PX60=$W$293,$AA$293,$AA$294))/4)) -> Enter Major/Minor Street Speeds | AAE60: =IF(OR(ISBLANK($P$21),ISBLANK($P$23)),"Enter Major/Minor Street Speeds",IF(QD60=0,,(IF(QD60<5,_xlfn.XLOOKUP(QD60,$W$269:$W$272,$AA$269:$AA$272,"error",0,1),$AA$273)+IF(QI60<=$V$276,$AA$276,IF(AND(QI60>$V$276,QI60<=$V$277),$AA$277,IF(AND(QI60>$V$277,QI60<=$V$278),$AA$278,IF(AND(QI60>$V$278,QI60<=$V$279),$AA$279,$AA$280))))+IF(QN60<=$V$286,_xlfn.XLOOKUP(QS60,AA$285:$AD$285,$AA$286:$AD$286,"check xlookup for volume 150",0,1),IF(AND(QN60>$V$286,QN60<=$V$287),_xlfn.XLOOKUP(QS60,$AA$285:$AD$285,$AA$287:$AD$287,"check xlookup for volume 300",0,1),IF(AND(QN60>$V$287,QN60<=$V$288),_xlfn.XLOOKUP(QS60,$AA$285:$AD$285,$AA$288:$AD$288,"check xlookup for volume 900",0,1),IF(AND(QN60>$V$288,QN60<=$V$289),_xlfn.XLOOKUP(QS60,$AA$285:$AD$285,$AA$289:$AD$289,"check xlookup for volume 1500",0,1),IF(QN60>$V$289,_xlfn.XLOOKUP(QS60,$AA$285:$AD$285,$AA$290:$AD$290,"check xlookup for volume >1500",0,1),"")))))+IF(RA60=$W$293,$AA$293,$AA$294))/4)) -> Enter Major/Minor Street Speeds | AAO60: =IF(OR(ISBLANK($P$21),ISBLANK($P$23)),"Enter Major/Minor Street Speeds",IF(RG60=0,,(IF(RG60<5,_xlfn.XLOOKUP(RG60,$W$269:$W$272,$AA$269:$AA$272,"error",0,1),$AA$273)+IF(RL60<=$V$276,$AA$276,IF(AND(RL60>$V$276,RL60<=$V$277),$AA$277,IF(AND(RL60>$V$277,RL60<=$V$278),$AA$278,IF(AND(RL60>$V$278,RL60<=$V$279),$AA$279,$AA$280))))+IF(RQ60<=$V$286,_xlfn.XLOOKUP(RV60,AA$285:$AD$285,$AA$286:$AD$286,"check xlookup for volume 150",0,1),IF(AND(RQ60>$V$286,RQ60<=$V$287),_xlfn.XLOOKUP(RV60,$AA$285:$AD$285,$AA$287:$AD$287,"check xlookup for volume 300",0,1),IF(AND(RQ60>$V$287,RQ60<=$V$288),_xlfn.XLOOKUP(RV60,$AA$285:$AD$285,$AA$288:$AD$288,"check xlookup for volume 900",0,1),IF(AND(RQ60>$V$288,RQ60<=$V$289),_xlfn.XLOOKUP(RV60,$AA$285:$AD$285,$AA$289:$AD$289,"check xlookup for volume 1500",0,1),IF(RQ60>$V$289,_xlfn.XLOOKUP(RV60,$AA$285:$AD$285,$AA$290:$AD$290,"check xlookup for volume >1500",0,1),"")))))+IF(SD60=$W$293,$AA$293,$AA$294))/4)) -> Enter Major/Minor Street Speeds | AAY60: =IF(OR(ISBLANK($P$21),ISBLANK($P$23)),"Enter Major/Minor Street Speeds",IF(SJ60=0,,(IF(SJ60<5,_xlfn.XLOOKUP(SJ60,$W$269:$W$272,$AA$269:$AA$272,"error",0,1),$AA$273)+IF(SO60<=$V$276,$AA$276,IF(AND(SO60>$V$276,SO60<=$V$277),$AA$277,IF(AND(SO60>$V$277,SO60<=$V$278),$AA$278,IF(AND(SO60>$V$278,SO60<=$V$279),$AA$279,$AA$280))))+IF(ST60<=$V$286,_xlfn.XLOOKUP(SY60,AA$285:$AD$285,$AA$286:$AD$286,"check xlookup for volume 150",0,1),IF(AND(ST60>$V$286,ST60<=$V$287),_xlfn.XLOOKUP(SY60,$AA$285:$AD$285,$AA$287:$AD$287,"check xlookup for volume 300",0,1),IF(AND(ST60>$V$287,ST60<=$V$288),_xlfn.XLOOKUP(SY60,$AA$285:$AD$285,$AA$288:$AD$288,"check xlookup for volume 900",0,1),IF(AND(ST60>$V$288,ST60<=$V$289),_xlfn.XLOOKUP(SY60,$AA$285:$AD$285,$AA$289:$AD$289,"check xlookup for volume 1500",0,1),IF(ST60>$V$289,_xlfn.XLOOKUP(SY60,$AA$285:$AD$285,$AA$290:$AD$290,"check xlookup for volume >1500",0,1),"")))))+IF(TG60=$W$293,$AA$293,$AA$294))/4)) -> Enter Major/Minor Street Speeds | ABI60: =IF(OR(ISBLANK($P$21),ISBLANK($P$23)),"Enter Major/Minor Street Speeds",IF(TM60=0,,(IF(TM60<5,_xlfn.XLOOKUP(TM60,$W$269:$W$272,$AA$269:$AA$272,"error",0,1),$AA$273)+IF(TR60<=$V$276,$AA$276,IF(AND(TR60>$V$276,TR60<=$V$277),$AA$277,IF(AND(TR60>$V$277,TR60<=$V$278),$AA$278,IF(AND(TR60>$V$278,TR60<=$V$279),$AA$279,$AA$280))))+IF(TW60<=$V$286,_xlfn.XLOOKUP(UB60,AA$285:$AD$285,$AA$286:$AD$286,"check xlookup for volume 150",0,1),IF(AND(TW60>$V$286,TW60<=$V$287),_xlfn.XLOOKUP(UB60,$AA$285:$AD$285,$AA$287:$AD$287,"check xlookup for volume 300",0,1),IF(AND(TW60>$V$287,TW60<=$V$288),_xlfn.XLOOKUP(UB60,$AA$285:$AD$285,$AA$288:$AD$288,"check xlookup for volume 900",0,1),IF(AND(TW60>$V$288,TW60<=$V$289),_xlfn.XLOOKUP(UB60,$AA$285:$AD$285,$AA$289:$AD$289,"check xlookup for volume 1500",0,1),IF(TW60>$V$289,_xlfn.XLOOKUP(UB60,$AA$285:$AD$285,$AA$290:$AD$290,"check xlookup for volume >1500",0,1),"")))))+IF(UJ60=$W$293,$AA$293,$AA$294))/4)) -> Enter Major/Minor Street Speeds
T62: S-E | Z62: =UP62 -> Enter Major/Minor Street Speeds | AD62: No | AI62: Yes Crossing(s) with 2 stages | AN62: =SUM('QR S-E'!BU25:BU30) -> 3 | AS62: =Min_St_Spd_Lmt -> 0 | AX62: =SUM(EBL_Master,EBT_Master,EBR_Master,EBU_Master) -> 286 | BC62: Stop/Signal Controlled | BK62: Marked | BQ62: =MAX('QR S-E'!BV18:BX18,'QR S-E'!CH22:CH24) -> 2 | BV62: =Min_St_Spd_Lmt -> 0 | CA62: =SUM(SBR_Master,WBT_Master,NBL_Master,EBU_Master) -> 510 | CF62: Stop/Signal Controlled | CN62: Marked | CT62: =SUM('QR S-E'!BV18:CA18) -> 3 | CY62: =Maj_St_Spd_Lmt -> 0 | DD62: =SUM(SBR_Master,SBL_Master,SBT_Master,SBU_Master) -> 765 | DI62: Stop/Signal Controlled | DQ62: Marked | DW62: =MAX('QR S-E'!CB31:CD31,'QR S-E'!CH19:CH21) -> 2 | EB62: =Maj_St_Spd_Lmt -> 0 | EG62: =SUM(NBT_Master,EBL_Master,WBR_Master,SBU_Master) -> 592 | EL62: Stop/Signal Controlled | ET62: Marked | EZ62: =SUM('QR S-E'!CH19:CH24) -> 3 | FE62: =Min_St_Spd_Lmt -> 0 | FJ62: =SUM(EBU_Master,WBT_Master,WBR_Master,NBL_Master,SBU_Master) -> 357 | FO62: Stop/Signal Controlled | FW62: Marked | GC62: =MAX('QR S-E'!CE31:CG31,'QR S-E'!BU25:BU27) -> 2 | GH62: =Min_St_Spd_Lmt -> 0 | GM62: =SUM(EBL_Master,EBT_Master,WBU_Master,NBU_Master,) -> 235 | GR62: Stop/Signal Controlled | GZ62: Marked | HF62: =SUM('QR S-E'!CB31:CG31) -> 3 | HK62: =Maj_St_Spd_Lmt -> 0 | HP62: =SUM(EBL_Master,WBU_Master,NBT_Master,NBU_Master,) -> 541 | HU62: Stop/Signal Controlled | IC62: Marked | II62: =MAX('QR S-E'!BU28:BU30,'QR S-E'!BY18:CA18) -> 2 | IN62: =Maj_St_Spd_Lmt -> 0 | IS62: =SUM(EBR_Master,EBU_Master,SBL_Master,SBT_Master,SBU_Master) -> 612 | IX62: Stop/Signal Controlled | JF62: Marked | JL62: =SUM('QR S-E'!CW25:CW30) -> 3 | JQ62: =Min_St_Spd_Lmt -> 0 | JV62: =SUM(EBT_Master,EBL_Master,WBU_Master,NBU_Master) -> 235 | KA62: Stop/Signal Controlled | KI62: Unmarked | KO62: =MAX('QR S-E'!DD31:DF31,'QR S-E'!DJ22:DJ24) -> 2 | KT62: =Min_St_Spd_Lmt -> 0 | KY62: =SUM(EBU_Master,WBR_Master,WBT_Master,NBL_Master,SBU_Master) -> 357 | LD62: Free Flowing | LL62: Unmarked | LR62: =SUM('QR S-E'!DJ22:DJ27) -> 3 | LW62: =Min_St_Spd_Lmt -> 0 | MB62: =SUM(WBL_Master,WBT_Master,WBR_Master,WBU_Master) -> 286 | MG62: Stop/Signal Controlled | MO62: Marked | MU62: =MAX('QR S-E'!CW25:CW27,'QR S-E'!DG31:DI31) -> 2 | MZ62: =Min_St_Spd_Lmt -> 0 | NE62: =SUM(EBT_Master,WBU_Master,NBR_Master,SBL_Master) -> 459 | NJ62: Stop/Signal Controlled | NR62: Marked | NX62: =SUM('QR S-E'!DD31:DI31)+MAX('QR S-E'!CW28:CW30,'QR S-E'!DJ25:DJ27) -> 3 | OC62: =Maj_St_Spd_Lmt -> 0 | OH62: =SUM(EBL_Master,EBU_Master,WBL_Master,WBU_Master,NBL_Master,NBR_Master,NBU_Master,SBL_Master,SBU_Master) -> 419 | OM62: Stop/Signal Controlled | OU62: Marked | PA62: =SUM('QR S-E'!BV46:CA46) -> 3 | PF62: =Maj_St_Spd_Lmt -> 0 | PK62: =SUM(EBR_Master,EBU_Master,SBT_Master,SBL_Master,SBU_Master) -> 612 | PP62: Stop/Signal Controlled | PX62: Marked | QD62: =MAX('QR S-E'!CH53:CH55,'QR S-E'!CB59:CD59) -> 2 | QI62: =Maj_St_Spd_Lmt -> 0 | QN62: =SUM(EBL_Master,WBU_Master,NBT_Master,NBU_Master) -> 541 | QS62: Stop/Signal Controlled | RA62: Marked | RG62: =SUM('QR S-E'!CH53:CH58)+MAX('QR S-E'!CE59:CG59,'QR S-E'!BY46:CA46) -> 3 | RL62: =Min_St_Spd_Lmt -> 0 | RQ62: =SUM(EBU_Master,EBL_Master,WBL_Master,WBU_Master,NBU_Master,NBR_Master,NBL_Master,SBL_Master,SBU_Master) -> 419 | RV62: Stop/Signal Controlled | SD62: Marked | SJ62: =SUM('QR S-E'!CB59:CG59) -> 3 | SO62: =Maj_St_Spd_Lmt -> 0 | ST62: =SUM(NBL_Master,NBT_Master,NBR_Master,NBU_Master) -> 816 | SY62: Stop/Signal Controlled | TG62: Unmarked | TM62: =MAX('QR S-E'!CH56:CH58,'QR S-E'!BV46:BX46) -> 2 | TR62: =Maj_St_Spd_Lmt -> 0 | TW62: =SUM(WBL_Master,SBT_Master,EBR_Master,NBU_Master) -> 592 | UB62: Free Flowing | UJ62: Unmarked | UP62: =IFERROR((((SUM(SQRT(UU62),SQRT(VE62),SQRT(VO62),SQRT(VY62),SQRT(WI62),SQRT(WS62),SQRT(XC62),SQRT(XM62),SQRT(XW62),SQRT(YG62),SQRT(YQ62),SQRT(ZA62),SQRT(ZK62),SQRT(ZU62),SQRT(AAE62),SQRT(AAO62),SQRT(AAY62),SQRT(ABI62))/COUNTIF(UU62:ABR63,">0"))^2)*(_xlfn.XLOOKUP(AD62,$W$304:$W$305,$AA$304:$AA$305,"lookup error",0,1))*(_xlfn.XLOOKUP(AI62,Multistage_Crossing,$AA$298:$AA$300,"lookup error",0,1))),"Enter Major/Minor Street Speeds") -> Enter Major/Minor Street Speeds | UU62: =IF(OR(ISBLANK($P$21),ISBLANK($P$23)),"Enter Major/Minor Street Speeds",IF(AN62=0,,(IF(AN62<5,_xlfn.XLOOKUP(AN62,$W$269:$W$272,$AA$269:$AA$272,"error",0,1),$AA$273)+IF(AS62<=$V$276,$AA$276,IF(AND(AS62>$V$276,AS62<=$V$277),$AA$277,IF(AND(AS62>$V$277,AS62<=$V$278),$AA$278,IF(AND(AS62>$V$278,AS62<=$V$279),$AA$279,$AA$280))))+IF(AX62<=$V$286,_xlfn.XLOOKUP(BC62,AA$285:$AD$285,$AA$286:$AD$286,"check xlookup for volume 150",0,1),IF(AND(AX62>$V$286,AX62<=$V$287),_xlfn.XLOOKUP(BC62,$AA$285:$AD$285,$AA$287:$AD$287,"check xlookup for volume 300",0,1),IF(AND(AX62>$V$287,AX62<=$V$288),_xlfn.XLOOKUP(BC62,$AA$285:$AD$285,$AA$288:$AD$288,"check xlookup for volume 900",0,1),IF(AND(AX62>$V$288,AX62<=$V$289),_xlfn.XLOOKUP(BC62,$AA$285:$AD$285,$AA$289:$AD$289,"check xlookup for volume 1500",0,1),IF(AX62>$V$289,_xlfn.XLOOKUP(BC62,$AA$285:$AD$285,$AA$290:$AD$290,"check xlookup for volume >1500",0,1),"")))))+IF(BK62=$W$293,$AA$293,$AA$294))/4)) -> Enter Major/Minor Street Speeds | VE62: =IF(OR(ISBLANK($P$21),ISBLANK($P$23)),"Enter Major/Minor Street Speeds",IF(BQ62=0,,(IF(BQ62<5,_xlfn.XLOOKUP(BQ62,$W$269:$W$272,$AA$269:$AA$272,"error",0,1),$AA$273)+IF(BV62<=$V$276,$AA$276,IF(AND(BV62>$V$276,BV62<=$V$277),$AA$277,IF(AND(BV62>$V$277,BV62<=$V$278),$AA$278,IF(AND(BV62>$V$278,BV62<=$V$279),$AA$279,$AA$280))))+IF(CA62<=$V$286,_xlfn.XLOOKUP(CF62,AA$285:$AD$285,$AA$286:$AD$286,"check xlookup for volume 150",0,1),IF(AND(CA62>$V$286,CA62<=$V$287),_xlfn.XLOOKUP(CF62,$AA$285:$AD$285,$AA$287:$AD$287,"check xlookup for volume 300",0,1),IF(AND(CA62>$V$287,CA62<=$V$288),_xlfn.XLOOKUP(CF62,$AA$285:$AD$285,$AA$288:$AD$288,"check xlookup for volume 900",0,1),IF(AND(CA62>$V$288,CA62<=$V$289),_xlfn.XLOOKUP(CF62,$AA$285:$AD$285,$AA$289:$AD$289,"check xlookup for volume 1500",0,1),IF(CA62>$V$289,_xlfn.XLOOKUP(CF62,$AA$285:$AD$285,$AA$290:$AD$290,"check xlookup for volume >1500",0,1),"")))))+IF(CN62=$W$293,$AA$293,$AA$294))/4)) -> Enter Major/Minor Street Speeds | VO62: =IF(OR(ISBLANK($P$21),ISBLANK($P$23)),"Enter Major/Minor Street Speeds",IF(CT62=0,,(IF(CT62<5,_xlfn.XLOOKUP(CT62,$W$269:$W$272,$AA$269:$AA$272,"error",0,1),$AA$273)+IF(CY62<=$V$276,$AA$276,IF(AND(CY62>$V$276,CY62<=$V$277),$AA$277,IF(AND(CY62>$V$277,CY62<=$V$278),$AA$278,IF(AND(CY62>$V$278,CY62<=$V$279),$AA$279,$AA$280))))+IF(DD62<=$V$286,_xlfn.XLOOKUP(DI62,AA$285:$AD$285,$AA$286:$AD$286,"check xlookup for volume 150",0,1),IF(AND(DD62>$V$286,DD62<=$V$287),_xlfn.XLOOKUP(DI62,$AA$285:$AD$285,$AA$287:$AD$287,"check xlookup for volume 300",0,1),IF(AND(DD62>$V$287,DD62<=$V$288),_xlfn.XLOOKUP(DI62,$AA$285:$AD$285,$AA$288:$AD$288,"check xlookup for volume 900",0,1),IF(AND(DD62>$V$288,DD62<=$V$289),_xlfn.XLOOKUP(DI62,$AA$285:$AD$285,$AA$289:$AD$289,"check xlookup for volume 1500",0,1),IF(DD62>$V$289,_xlfn.XLOOKUP(DI62,$AA$285:$AD$285,$AA$290:$AD$290,"check xlookup for volume >1500",0,1),"")))))+IF(DQ62=$W$293,$AA$293,$AA$294))/4)) -> Enter Major/Minor Street Speeds | VY62: =IF(OR(ISBLANK($P$21),ISBLANK($P$23)),"Enter Major/Minor Street Speeds",IF(DW62=0,,(IF(DW62<5,_xlfn.XLOOKUP(DW62,$W$269:$W$272,$AA$269:$AA$272,"error",0,1),$AA$273)+IF(EB62<=$V$276,$AA$276,IF(AND(EB62>$V$276,EB62<=$V$277),$AA$277,IF(AND(EB62>$V$277,EB62<=$V$278),$AA$278,IF(AND(EB62>$V$278,EB62<=$V$279),$AA$279,$AA$280))))+IF(EG62<=$V$286,_xlfn.XLOOKUP(EL62,AA$285:$AD$285,$AA$286:$AD$286,"check xlookup for volume 150",0,1),IF(AND(EG62>$V$286,EG62<=$V$287),_xlfn.XLOOKUP(EL62,$AA$285:$AD$285,$AA$287:$AD$287,"check xlookup for volume 300",0,1),IF(AND(EG62>$V$287,EG62<=$V$288),_xlfn.XLOOKUP(EL62,$AA$285:$AD$285,$AA$288:$AD$288,"check xlookup for volume 900",0,1),IF(AND(EG62>$V$288,EG62<=$V$289),_xlfn.XLOOKUP(EL62,$AA$285:$AD$285,$AA$289:$AD$289,"check xlookup for volume 1500",0,1),IF(EG62>$V$289,_xlfn.XLOOKUP(EL62,$AA$285:$AD$285,$AA$290:$AD$290,"check xlookup for volume >1500",0,1),"")))))+IF(ET62=$W$293,$AA$293,$AA$294))/4)) -> Enter Major/Minor Street Speeds | WI62: =IF(OR(ISBLANK($P$21),ISBLANK($P$23)),"Enter Major/Minor Street Speeds",IF(EZ62=0,,(IF(EZ62<5,_xlfn.XLOOKUP(EZ62,$W$269:$W$272,$AA$269:$AA$272,"error",0,1),$AA$273)+IF(FE62<=$V$276,$AA$276,IF(AND(FE62>$V$276,FE62<=$V$277),$AA$277,IF(AND(FE62>$V$277,FE62<=$V$278),$AA$278,IF(AND(FE62>$V$278,FE62<=$V$279),$AA$279,$AA$280))))+IF(FJ62<=$V$286,_xlfn.XLOOKUP(FO62,AA$285:$AD$285,$AA$286:$AD$286,"check xlookup for volume 150",0,1),IF(AND(FJ62>$V$286,FJ62<=$V$287),_xlfn.XLOOKUP(FO62,$AA$285:$AD$285,$AA$287:$AD$287,"check xlookup for volume 300",0,1),IF(AND(FJ62>$V$287,FJ62<=$V$288),_xlfn.XLOOKUP(FO62,$AA$285:$AD$285,$AA$288:$AD$288,"check xlookup for volume 900",0,1),IF(AND(FJ62>$V$288,FJ62<=$V$289),_xlfn.XLOOKUP(FO62,$AA$285:$AD$285,$AA$289:$AD$289,"check xlookup for volume 1500",0,1),IF(FJ62>$V$289,_xlfn.XLOOKUP(FO62,$AA$285:$AD$285,$AA$290:$AD$290,"check xlookup for volume >1500",0,1),"")))))+IF(FW62=$W$293,$AA$293,$AA$294))/4)) -> Enter Major/Minor Street Speeds | WS62: =IF(OR(ISBLANK($P$21),ISBLANK($P$23)),"Enter Major/Minor Street Speeds",IF(GC62=0,,(IF(GC62<5,_xlfn.XLOOKUP(GC62,$W$269:$W$272,$AA$269:$AA$272,"error",0,1),$AA$273)+IF(GH62<=$V$276,$AA$276,IF(AND(GH62>$V$276,GH62<=$V$277),$AA$277,IF(AND(GH62>$V$277,GH62<=$V$278),$AA$278,IF(AND(GH62>$V$278,GH62<=$V$279),$AA$279,$AA$280))))+IF(GM62<=$V$286,_xlfn.XLOOKUP(GR62,AA$285:$AD$285,$AA$286:$AD$286,"check xlookup for volume 150",0,1),IF(AND(GM62>$V$286,GM62<=$V$287),_xlfn.XLOOKUP(GR62,$AA$285:$AD$285,$AA$287:$AD$287,"check xlookup for volume 300",0,1),IF(AND(GM62>$V$287,GM62<=$V$288),_xlfn.XLOOKUP(GR62,$AA$285:$AD$285,$AA$288:$AD$288,"check xlookup for volume 900",0,1),IF(AND(GM62>$V$288,GM62<=$V$289),_xlfn.XLOOKUP(GR62,$AA$285:$AD$285,$AA$289:$AD$289,"check xlookup for volume 1500",0,1),IF(GM62>$V$289,_xlfn.XLOOKUP(GR62,$AA$285:$AD$285,$AA$290:$AD$290,"check xlookup for volume >1500",0,1),"")))))+IF(GZ62=$W$293,$AA$293,$AA$294))/4)) -> Enter Major/Minor Street Speeds | XC62: =IF(OR(ISBLANK($P$21),ISBLANK($P$23)),"Enter Major/Minor Street Speeds",IF(HF62=0,,(IF(HF62<5,_xlfn.XLOOKUP(HF62,$W$269:$W$272,$AA$269:$AA$272,"error",0,1),$AA$273)+IF(HK62<=$V$276,$AA$276,IF(AND(HK62>$V$276,HK62<=$V$277),$AA$277,IF(AND(HK62>$V$277,HK62<=$V$278),$AA$278,IF(AND(HK62>$V$278,HK62<=$V$279),$AA$279,$AA$280))))+IF(HP62<=$V$286,_xlfn.XLOOKUP(HU62,AA$285:$AD$285,$AA$286:$AD$286,"check xlookup for volume 150",0,1),IF(AND(HP62>$V$286,HP62<=$V$287),_xlfn.XLOOKUP(HU62,$AA$285:$AD$285,$AA$287:$AD$287,"check xlookup for volume 300",0,1),IF(AND(HP62>$V$287,HP62<=$V$288),_xlfn.XLOOKUP(HU62,$AA$285:$AD$285,$AA$288:$AD$288,"check xlookup for volume 900",0,1),IF(AND(HP62>$V$288,HP62<=$V$289),_xlfn.XLOOKUP(HU62,$AA$285:$AD$285,$AA$289:$AD$289,"check xlookup for volume 1500",0,1),IF(HP62>$V$289,_xlfn.XLOOKUP(HU62,$AA$285:$AD$285,$AA$290:$AD$290,"check xlookup for volume >1500",0,1),"")))))+IF(IC62=$W$293,$AA$293,$AA$294))/4)) -> Enter Major/Minor Street Speeds | XM62: =IF(OR(ISBLANK($P$21),ISBLANK($P$23)),"Enter Major/Minor Street Speeds",IF(II62=0,,(IF(II62<5,_xlfn.XLOOKUP(II62,$W$269:$W$272,$AA$269:$AA$272,"error",0,1),$AA$273)+IF(IN62<=$V$276,$AA$276,IF(AND(IN62>$V$276,IN62<=$V$277),$AA$277,IF(AND(IN62>$V$277,IN62<=$V$278),$AA$278,IF(AND(IN62>$V$278,IN62<=$V$279),$AA$279,$AA$280))))+IF(IS62<=$V$286,_xlfn.XLOOKUP(IX62,AA$285:$AD$285,$AA$286:$AD$286,"check xlookup for volume 150",0,1),IF(AND(IS62>$V$286,IS62<=$V$287),_xlfn.XLOOKUP(IX62,$AA$285:$AD$285,$AA$287:$AD$287,"check xlookup for volume 300",0,1),IF(AND(IS62>$V$287,IS62<=$V$288),_xlfn.XLOOKUP(IX62,$AA$285:$AD$285,$AA$288:$AD$288,"check xlookup for volume 900",0,1),IF(AND(IS62>$V$288,IS62<=$V$289),_xlfn.XLOOKUP(IX62,$AA$285:$AD$285,$AA$289:$AD$289,"check xlookup for volume 1500",0,1),IF(IS62>$V$289,_xlfn.XLOOKUP(IX62,$AA$285:$AD$285,$AA$290:$AD$290,"check xlookup for volume >1500",0,1),"")))))+IF(JF62=$W$293,$AA$293,$AA$294))/4)) -> Enter Major/Minor Street Speeds | XW62: =IF(OR(ISBLANK($P$21),ISBLANK($P$23)),"Enter Major/Minor Street Speeds",IF(JL62=0,,(IF(JL62<5,_xlfn.XLOOKUP(JL62,$W$269:$W$272,$AA$269:$AA$272,"error",0,1),$AA$273)+IF(JQ62<=$V$276,$AA$276,IF(AND(JQ62>$V$276,JQ62<=$V$277),$AA$277,IF(AND(JQ62>$V$277,JQ62<=$V$278),$AA$278,IF(AND(JQ62>$V$278,JQ62<=$V$279),$AA$279,$AA$280))))+IF(JV62<=$V$286,_xlfn.XLOOKUP(KA62,AA$285:$AD$285,$AA$286:$AD$286,"check xlookup for volume 150",0,1),IF(AND(JV62>$V$286,JV62<=$V$287),_xlfn.XLOOKUP(KA62,$AA$285:$AD$285,$AA$287:$AD$287,"check xlookup for volume 300",0,1),IF(AND(JV62>$V$287,JV62<=$V$288),_xlfn.XLOOKUP(KA62,$AA$285:$AD$285,$AA$288:$AD$288,"check xlookup for volume 900",0,1),IF(AND(JV62>$V$288,JV62<=$V$289),_xlfn.XLOOKUP(KA62,$AA$285:$AD$285,$AA$289:$AD$289,"check xlookup for volume 1500",0,1),IF(JV62>$V$289,_xlfn.XLOOKUP(KA62,$AA$285:$AD$285,$AA$290:$AD$290,"check xlookup for volume >1500",0,1),"")))))+IF(KI62=$W$293,$AA$293,$AA$294))/4)) -> Enter Major/Minor Street Speeds | YG62: =IF(OR(ISBLANK($P$21),ISBLANK($P$23)),"Enter Major/Minor Street Speeds",IF(KO62=0,,(IF(KO62<5,_xlfn.XLOOKUP(KO62,$W$269:$W$272,$AA$269:$AA$272,"error",0,1),$AA$273)+IF(KT62<=$V$276,$AA$276,IF(AND(KT62>$V$276,KT62<=$V$277),$AA$277,IF(AND(KT62>$V$277,KT62<=$V$278),$AA$278,IF(AND(KT62>$V$278,KT62<=$V$279),$AA$279,$AA$280))))+IF(KY62<=$V$286,_xlfn.XLOOKUP(LD62,AA$285:$AD$285,$AA$286:$AD$286,"check xlookup for volume 150",0,1),IF(AND(KY62>$V$286,KY62<=$V$287),_xlfn.XLOOKUP(LD62,$AA$285:$AD$285,$AA$287:$AD$287,"check xlookup for volume 300",0,1),IF(AND(KY62>$V$287,KY62<=$V$288),_xlfn.XLOOKUP(LD62,$AA$285:$AD$285,$AA$288:$AD$288,"check xlookup for volume 900",0,1),IF(AND(KY62>$V$288,KY62<=$V$289),_xlfn.XLOOKUP(LD62,$AA$285:$AD$285,$AA$289:$AD$289,"check xlookup for volume 1500",0,1),IF(KY62>$V$289,_xlfn.XLOOKUP(LD62,$AA$285:$AD$285,$AA$290:$AD$290,"check xlookup for volume >1500",0,1),"")))))+IF(LL62=$W$293,$AA$293,$AA$294))/4)) -> Enter Major/Minor Street Speeds | YQ62: =IF(OR(ISBLANK($P$21),ISBLANK($P$23)),"Enter Major/Minor Street Speeds",IF(LR62=0,,(IF(LR62<5,_xlfn.XLOOKUP(LR62,$W$269:$W$272,$AA$269:$AA$272,"error",0,1),$AA$273)+IF(LW62<=$V$276,$AA$276,IF(AND(LW62>$V$276,LW62<=$V$277),$AA$277,IF(AND(LW62>$V$277,LW62<=$V$278),$AA$278,IF(AND(LW62>$V$278,LW62<=$V$279),$AA$279,$AA$280))))+IF(MB62<=$V$286,_xlfn.XLOOKUP(MG62,AA$285:$AD$285,$AA$286:$AD$286,"check xlookup for volume 150",0,1),IF(AND(MB62>$V$286,MB62<=$V$287),_xlfn.XLOOKUP(MG62,$AA$285:$AD$285,$AA$287:$AD$287,"check xlookup for volume 300",0,1),IF(AND(MB62>$V$287,MB62<=$V$288),_xlfn.XLOOKUP(MG62,$AA$285:$AD$285,$AA$288:$AD$288,"check xlookup for volume 900",0,1),IF(AND(MB62>$V$288,MB62<=$V$289),_xlfn.XLOOKUP(MG62,$AA$285:$AD$285,$AA$289:$AD$289,"check xlookup for volume 1500",0,1),IF(MB62>$V$289,_xlfn.XLOOKUP(MG62,$AA$285:$AD$285,$AA$290:$AD$290,"check xlookup for volume >1500",0,1),"")))))+IF(MO62=$W$293,$AA$293,$AA$294))/4)) -> Enter Major/Minor Street Speeds | ZA62: =IF(OR(ISBLANK($P$21),ISBLANK($P$23)),"Enter Major/Minor Street Speeds",IF(MU62=0,,(IF(MU62<5,_xlfn.XLOOKUP(MU62,$W$269:$W$272,$AA$269:$AA$272,"error",0,1),$AA$273)+IF(MZ62<=$V$276,$AA$276,IF(AND(MZ62>$V$276,MZ62<=$V$277),$AA$277,IF(AND(MZ62>$V$277,MZ62<=$V$278),$AA$278,IF(AND(MZ62>$V$278,MZ62<=$V$279),$AA$279,$AA$280))))+IF(NE62<=$V$286,_xlfn.XLOOKUP(NJ62,AA$285:$AD$285,$AA$286:$AD$286,"check xlookup for volume 150",0,1),IF(AND(NE62>$V$286,NE62<=$V$287),_xlfn.XLOOKUP(NJ62,$AA$285:$AD$285,$AA$287:$AD$287,"check xlookup for volume 300",0,1),IF(AND(NE62>$V$287,NE62<=$V$288),_xlfn.XLOOKUP(NJ62,$AA$285:$AD$285,$AA$288:$AD$288,"check xlookup for volume 900",0,1),IF(AND(NE62>$V$288,NE62<=$V$289),_xlfn.XLOOKUP(NJ62,$AA$285:$AD$285,$AA$289:$AD$289,"check xlookup for volume 1500",0,1),IF(NE62>$V$289,_xlfn.XLOOKUP(NJ62,$AA$285:$AD$285,$AA$290:$AD$290,"check xlookup for volume >1500",0,1),"")))))+IF(NR62=$W$293,$AA$293,$AA$294))/4)) -> Enter Major/Minor Street Speeds | ZK62: =IF(OR(ISBLANK($P$21),ISBLANK($P$23)),"Enter Major/Minor Street Speeds",IF(NX62=0,,(IF(NX62<5,_xlfn.XLOOKUP(NX62,$W$269:$W$272,$AA$269:$AA$272,"error",0,1),$AA$273)+IF(OC62<=$V$276,$AA$276,IF(AND(OC62>$V$276,OC62<=$V$277),$AA$277,IF(AND(OC62>$V$277,OC62<=$V$278),$AA$278,IF(AND(OC62>$V$278,OC62<=$V$279),$AA$279,$AA$280))))+IF(OH62<=$V$286,_xlfn.XLOOKUP(OM62,AA$285:$AD$285,$AA$286:$AD$286,"check xlookup for volume 150",0,1),IF(AND(OH62>$V$286,OH62<=$V$287),_xlfn.XLOOKUP(OM62,$AA$285:$AD$285,$AA$287:$AD$287,"check xlookup for volume 300",0,1),IF(AND(OH62>$V$287,OH62<=$V$288),_xlfn.XLOOKUP(OM62,$AA$285:$AD$285,$AA$288:$AD$288,"check xlookup for volume 900",0,1),IF(AND(OH62>$V$288,OH62<=$V$289),_xlfn.XLOOKUP(OM62,$AA$285:$AD$285,$AA$289:$AD$289,"check xlookup for volume 1500",0,1),IF(OH62>$V$289,_xlfn.XLOOKUP(OM62,$AA$285:$AD$285,$AA$290:$AD$290,"check xlookup for volume >1500",0,1),"")))))+IF(OU62=$W$293,$AA$293,$AA$294))/4)) -> Enter Major/Minor Street Speeds | ZU62: =IF(OR(ISBLANK($P$21),ISBLANK($P$23)),"Enter Major/Minor Street Speeds",IF(PA62=0,,(IF(PA62<5,_xlfn.XLOOKUP(PA62,$W$269:$W$272,$AA$269:$AA$272,"error",0,1),$AA$273)+IF(PF62<=$V$276,$AA$276,IF(AND(PF62>$V$276,PF62<=$V$277),$AA$277,IF(AND(PF62>$V$277,PF62<=$V$278),$AA$278,IF(AND(PF62>$V$278,PF62<=$V$279),$AA$279,$AA$280))))+IF(PK62<=$V$286,_xlfn.XLOOKUP(PP62,AA$285:$AD$285,$AA$286:$AD$286,"check xlookup for volume 150",0,1),IF(AND(PK62>$V$286,PK62<=$V$287),_xlfn.XLOOKUP(PP62,$AA$285:$AD$285,$AA$287:$AD$287,"check xlookup for volume 300",0,1),IF(AND(PK62>$V$287,PK62<=$V$288),_xlfn.XLOOKUP(PP62,$AA$285:$AD$285,$AA$288:$AD$288,"check xlookup for volume 900",0,1),IF(AND(PK62>$V$288,PK62<=$V$289),_xlfn.XLOOKUP(PP62,$AA$285:$AD$285,$AA$289:$AD$289,"check xlookup for volume 1500",0,1),IF(PK62>$V$289,_xlfn.XLOOKUP(PP62,$AA$285:$AD$285,$AA$290:$AD$290,"check xlookup for volume >1500",0,1),"")))))+IF(PX62=$W$293,$AA$293,$AA$294))/4)) -> Enter Major/Minor Street Speeds | AAE62: =IF(OR(ISBLANK($P$21),ISBLANK($P$23)),"Enter Major/Minor Street Speeds",IF(QD62=0,,(IF(QD62<5,_xlfn.XLOOKUP(QD62,$W$269:$W$272,$AA$269:$AA$272,"error",0,1),$AA$273)+IF(QI62<=$V$276,$AA$276,IF(AND(QI62>$V$276,QI62<=$V$277),$AA$277,IF(AND(QI62>$V$277,QI62<=$V$278),$AA$278,IF(AND(QI62>$V$278,QI62<=$V$279),$AA$279,$AA$280))))+IF(QN62<=$V$286,_xlfn.XLOOKUP(QS62,AA$285:$AD$285,$AA$286:$AD$286,"check xlookup for volume 150",0,1),IF(AND(QN62>$V$286,QN62<=$V$287),_xlfn.XLOOKUP(QS62,$AA$285:$AD$285,$AA$287:$AD$287,"check xlookup for volume 300",0,1),IF(AND(QN62>$V$287,QN62<=$V$288),_xlfn.XLOOKUP(QS62,$AA$285:$AD$285,$AA$288:$AD$288,"check xlookup for volume 900",0,1),IF(AND(QN62>$V$288,QN62<=$V$289),_xlfn.XLOOKUP(QS62,$AA$285:$AD$285,$AA$289:$AD$289,"check xlookup for volume 1500",0,1),IF(QN62>$V$289,_xlfn.XLOOKUP(QS62,$AA$285:$AD$285,$AA$290:$AD$290,"check xlookup for volume >1500",0,1),"")))))+IF(RA62=$W$293,$AA$293,$AA$294))/4)) -> Enter Major/Minor Street Speeds | AAO62: =IF(OR(ISBLANK($P$21),ISBLANK($P$23)),"Enter Major/Minor Street Speeds",IF(RG62=0,,(IF(RG62<5,_xlfn.XLOOKUP(RG62,$W$269:$W$272,$AA$269:$AA$272,"error",0,1),$AA$273)+IF(RL62<=$V$276,$AA$276,IF(AND(RL62>$V$276,RL62<=$V$277),$AA$277,IF(AND(RL62>$V$277,RL62<=$V$278),$AA$278,IF(AND(RL62>$V$278,RL62<=$V$279),$AA$279,$AA$280))))+IF(RQ62<=$V$286,_xlfn.XLOOKUP(RV62,AA$285:$AD$285,$AA$286:$AD$286,"check xlookup for volume 150",0,1),IF(AND(RQ62>$V$286,RQ62<=$V$287),_xlfn.XLOOKUP(RV62,$AA$285:$AD$285,$AA$287:$AD$287,"check xlookup for volume 300",0,1),IF(AND(RQ62>$V$287,RQ62<=$V$288),_xlfn.XLOOKUP(RV62,$AA$285:$AD$285,$AA$288:$AD$288,"check xlookup for volume 900",0,1),IF(AND(RQ62>$V$288,RQ62<=$V$289),_xlfn.XLOOKUP(RV62,$AA$285:$AD$285,$AA$289:$AD$289,"check xlookup for volume 1500",0,1),IF(RQ62>$V$289,_xlfn.XLOOKUP(RV62,$AA$285:$AD$285,$AA$290:$AD$290,"check xlookup for volume >1500",0,1),"")))))+IF(SD62=$W$293,$AA$293,$AA$294))/4)) -> Enter Major/Minor Street Speeds | AAY62: =IF(OR(ISBLANK($P$21),ISBLANK($P$23)),"Enter Major/Minor Street Speeds",IF(SJ62=0,,(IF(SJ62<5,_xlfn.XLOOKUP(SJ62,$W$269:$W$272,$AA$269:$AA$272,"error",0,1),$AA$273)+IF(SO62<=$V$276,$AA$276,IF(AND(SO62>$V$276,SO62<=$V$277),$AA$277,IF(AND(SO62>$V$277,SO62<=$V$278),$AA$278,IF(AND(SO62>$V$278,SO62<=$V$279),$AA$279,$AA$280))))+IF(ST62<=$V$286,_xlfn.XLOOKUP(SY62,AA$285:$AD$285,$AA$286:$AD$286,"check xlookup for volume 150",0,1),IF(AND(ST62>$V$286,ST62<=$V$287),_xlfn.XLOOKUP(SY62,$AA$285:$AD$285,$AA$287:$AD$287,"check xlookup for volume 300",0,1),IF(AND(ST62>$V$287,ST62<=$V$288),_xlfn.XLOOKUP(SY62,$AA$285:$AD$285,$AA$288:$AD$288,"check xlookup for volume 900",0,1),IF(AND(ST62>$V$288,ST62<=$V$289),_xlfn.XLOOKUP(SY62,$AA$285:$AD$285,$AA$289:$AD$289,"check xlookup for volume 1500",0,1),IF(ST62>$V$289,_xlfn.XLOOKUP(SY62,$AA$285:$AD$285,$AA$290:$AD$290,"check xlookup for volume >1500",0,1),"")))))+IF(TG62=$W$293,$AA$293,$AA$294))/4)) -> Enter Major/Minor Street Speeds | ABI62: =IF(OR(ISBLANK($P$21),ISBLANK($P$23)),"Enter Major/Minor Street Speeds",IF(TM62=0,,(IF(TM62<5,_xlfn.XLOOKUP(TM62,$W$269:$W$272,$AA$269:$AA$272,"error",0,1),$AA$273)+IF(TR62<=$V$276,$AA$276,IF(AND(TR62>$V$276,TR62<=$V$277),$AA$277,IF(AND(TR62>$V$277,TR62<=$V$278),$AA$278,IF(AND(TR62>$V$278,TR62<=$V$279),$AA$279,$AA$280))))+IF(TW62<=$V$286,_xlfn.XLOOKUP(UB62,AA$285:$AD$285,$AA$286:$AD$286,"check xlookup for volume 150",0,1),IF(AND(TW62>$V$286,TW62<=$V$287),_xlfn.XLOOKUP(UB62,$AA$285:$AD$285,$AA$287:$AD$287,"check xlookup for volume 300",0,1),IF(AND(TW62>$V$287,TW62<=$V$288),_xlfn.XLOOKUP(UB62,$AA$285:$AD$285,$AA$288:$AD$288,"check xlookup for volume 900",0,1),IF(AND(TW62>$V$288,TW62<=$V$289),_xlfn.XLOOKUP(UB62,$AA$285:$AD$285,$AA$289:$AD$289,"check xlookup for volume 1500",0,1),IF(TW62>$V$289,_xlfn.XLOOKUP(UB62,$AA$285:$AD$285,$AA$290:$AD$290,"check xlookup for volume >1500",0,1),"")))))+IF(UJ62=$W$293,$AA$293,$AA$294))/4)) -> Enter Major/Minor Street Speeds
T64: N-W | Z64: =UP64 -> Enter Major/Minor Street Speeds | AD64: No | AI64: Yes Crossing(s) with 2 stages | AN64: =SUM('QR N-W'!DJ47:DJ52) -> 3 | AS64: =Min_St_Spd_Lmt -> 0 | AX64: =SUM(WBL_Master,WBT_Master,WBR_Master,WBU_Master) -> 286 | BC64: Stop/Signal Controlled | BK64: Marked | BQ64: =MAX('QR N-W'!DG59:DI59,'QR N-W'!CW53:CW55) -> 2 | BV64: =Min_St_Spd_Lmt -> 0 | CA64: =SUM(SBL_Master,EBT_Master,NBR_Master,WBU_Master) -> 459 | CF64: Stop/Signal Controlled | CN64: Marked | CT64: =SUM('QR N-W'!DD59:DI59) -> 3 | CY64: =Maj_St_Spd_Lmt -> 0 | DD64: =SUM(NBL_Master,NBT_Master,NBR_Master,NBU_Master) -> 816 | DI64: Stop/Signal Controlled | DQ64: Marked | DW64: =MAX('QR N-W'!CW56:CW58,'QR N-W'!DA46:DC46) -> 2 | EB64: =Maj_St_Spd_Lmt -> 0 | EG64: =SUM(WBL_Master,SBT_Master,EBR_Master,NBU_Master) -> 592 | EL64: Stop/Signal Controlled | ET64: Marked | EZ64: =SUM('QR N-W'!CW53:CW58) -> 3 | FE64: =Min_St_Spd_Lmt -> 0 | FJ64: =SUM(EBT_Master,EBR_Master,WBU_Master,NBU_Master,SBL_Master) -> 306 | FO64: Stop/Signal Controlled | FW64: Marked | GC64: =MAX('QR N-W'!DJ50:DJ52,'QR N-W'!CX46:CZ46) -> 2 | GH64: =Min_St_Spd_Lmt -> 0 | GM64: =SUM(EBU_Master,WBL_Master,WBT_Master,SBU_Master) -> 235 | GR64: Stop/Signal Controlled | GZ64: Marked | HF64: =SUM('QR N-W'!CX46:DC46) -> 3 | HK64: =Maj_St_Spd_Lmt -> 0 | HP64: =SUM(EBU_Master,WBL_Master,SBT_Master,SBU_Master) -> 541 | HU64: Stop/Signal Controlled | IC64: Marked | II64: =MAX('QR N-W'!DD59:DF59,'QR N-W'!DJ47:DJ49) -> 2 | IN64: =Maj_St_Spd_Lmt -> 0 | IS64: =SUM(WBR_Master,WBU_Master,NBL_Master,NBT_Master,NBU_Master) -> 663 | IX64: Stop/Signal Controlled | JF64: Marked | JL64: =SUM('QR N-W'!CH47:CH52) -> 3 | JQ64: =Min_St_Spd_Lmt -> 0 | JV64: =SUM(EBU_Master,WBL_Master,WBT_Master,SBU_Master) -> 235 | KA64: Stop/Signal Controlled | KI64: Unmarked | KO64: =MAX('QR N-W'!BY46:CA46,'QR N-W'!BU53:BU55) -> 2 | KT64: =Min_St_Spd_Lmt -> 0 | KY64: =SUM(EBT_Master,EBR_Master,WBU_Master,NBU_Master,SBL_Master) -> 306 | LD64: Free Flowing | LL64: Unmarked | LR64: =SUM('QR N-W'!BU50:BU55) -> 3 | LW64: =Min_St_Spd_Lmt -> 0 | MB64: =SUM(EBL_Master,EBT_Master,EBR_Master,EBU_Master) -> 286 | MG64: Stop/Signal Controlled | MO64: Marked | MU64: =MAX('QR N-W'!BV46:BX46,'QR N-W'!CH50:CH52) -> 2 | MZ64: =Min_St_Spd_Lmt -> 0 | NE64: =SUM(NBL_Master,WBT_Master,SBR_Master,EBU_Master) -> 510 | NJ64: Stop/Signal Controlled | NR64: Marked | NX64: =SUM('QR N-W'!BV46:CA46)+MAX('QR N-W'!BU50:BU52,'QR N-W'!CH47:CH49) -> 3 | OC64: =Maj_St_Spd_Lmt -> 0 | OH64: =SUM(EBL_Master,EBU_Master,WBL_Master,WBU_Master,NBL_Master,NBU_Master,SBL_Master,SBR_Master,SBU_Master) -> 419 | OM64: Stop/Signal Controlled | OU64: Marked | PA64: =SUM('QR N-W'!DD31:DI31) -> 3 | PF64: =Maj_St_Spd_Lmt -> 0 | PK64: =SUM(WBR_Master,WBU_Master,NBL_Master,NBT_Master,NBU_Master) -> 663 | PP64: Stop/Signal Controlled | PX64: Marked | QD64: =MAX('QR N-W'!CW28:CW30,'QR N-W'!DA18:DC18) -> 2 | QI64: =Maj_St_Spd_Lmt -> 0 | QN64: =SUM(EBU_Master,WBL_Master,SBT_Master,SBU_Master) -> 541 | QS64: Stop/Signal Controlled | RA64: Marked | RG64: =SUM('QR N-W'!CW25:CW30)+MAX('QR N-W'!DD31:DF31,'QR N-W'!CX18:CZ18) -> 3 | RL64: =Min_St_Spd_Lmt -> 0 | RQ64: =SUM(EBL_Master,EBU_Master,WBL_Master,WBU_Master,NBL_Master,NBU_Master,SBL_Master,SBR_Master,SBU_Master) -> 419 | RV64: Stop/Signal Controlled | SD64: Marked | SJ64: =SUM('QR N-W'!CX18:DC18) -> 3 | SO64: =Maj_St_Spd_Lmt -> 0 | ST64: =SUM(SBL_Master,SBT_Master,SBR_Master,SBU_Master) -> 765 | SY64: Stop/Signal Controlled | TG64: Unmarked | TM64: =MAX('QR N-W'!CW25:CW27,'QR N-W'!DG31:DI31) -> 2 | TR64: =Maj_St_Spd_Lmt -> 0 | TW64: =SUM(EBL_Master,NBT_Master,WBR_Master,SBU_Master) -> 592 | UB64: Free Flowing | UJ64: Unmarked | UP64: =IFERROR((((SUM(SQRT(UU64),SQRT(VE64),SQRT(VO64),SQRT(VY64),SQRT(WI64),SQRT(WS64),SQRT(XC64),SQRT(XM64),SQRT(XW64),SQRT(YG64),SQRT(YQ64),SQRT(ZA64),SQRT(ZK64),SQRT(ZU64),SQRT(AAE64),SQRT(AAO64),SQRT(AAY64),SQRT(ABI64))/COUNTIF(UU64:ABR65,">0"))^2)*(_xlfn.XLOOKUP(AD64,$W$304:$W$305,$AA$304:$AA$305,"lookup error",0,1))*(_xlfn.XLOOKUP(AI64,Multistage_Crossing,$AA$298:$AA$300,"lookup error",0,1))),"Enter Major/Minor Street Speeds") -> Enter Major/Minor Street Speeds | UU64: =IF(OR(ISBLANK($P$21),ISBLANK($P$23)),"Enter Major/Minor Street Speeds",IF(AN64=0,,(IF(AN64<5,_xlfn.XLOOKUP(AN64,$W$269:$W$272,$AA$269:$AA$272,"error",0,1),$AA$273)+IF(AS64<=$V$276,$AA$276,IF(AND(AS64>$V$276,AS64<=$V$277),$AA$277,IF(AND(AS64>$V$277,AS64<=$V$278),$AA$278,IF(AND(AS64>$V$278,AS64<=$V$279),$AA$279,$AA$280))))+IF(AX64<=$V$286,_xlfn.XLOOKUP(BC64,AA$285:$AD$285,$AA$286:$AD$286,"check xlookup for volume 150",0,1),IF(AND(AX64>$V$286,AX64<=$V$287),_xlfn.XLOOKUP(BC64,$AA$285:$AD$285,$AA$287:$AD$287,"check xlookup for volume 300",0,1),IF(AND(AX64>$V$287,AX64<=$V$288),_xlfn.XLOOKUP(BC64,$AA$285:$AD$285,$AA$288:$AD$288,"check xlookup for volume 900",0,1),IF(AND(AX64>$V$288,AX64<=$V$289),_xlfn.XLOOKUP(BC64,$AA$285:$AD$285,$AA$289:$AD$289,"check xlookup for volume 1500",0,1),IF(AX64>$V$289,_xlfn.XLOOKUP(BC64,$AA$285:$AD$285,$AA$290:$AD$290,"check xlookup for volume >1500",0,1),"")))))+IF(BK64=$W$293,$AA$293,$AA$294))/4)) -> Enter Major/Minor Street Speeds | VE64: =IF(OR(ISBLANK($P$21),ISBLANK($P$23)),"Enter Major/Minor Street Speeds",IF(BQ64=0,,(IF(BQ64<5,_xlfn.XLOOKUP(BQ64,$W$269:$W$272,$AA$269:$AA$272,"error",0,1),$AA$273)+IF(BV64<=$V$276,$AA$276,IF(AND(BV64>$V$276,BV64<=$V$277),$AA$277,IF(AND(BV64>$V$277,BV64<=$V$278),$AA$278,IF(AND(BV64>$V$278,BV64<=$V$279),$AA$279,$AA$280))))+IF(CA64<=$V$286,_xlfn.XLOOKUP(CF64,AA$285:$AD$285,$AA$286:$AD$286,"check xlookup for volume 150",0,1),IF(AND(CA64>$V$286,CA64<=$V$287),_xlfn.XLOOKUP(CF64,$AA$285:$AD$285,$AA$287:$AD$287,"check xlookup for volume 300",0,1),IF(AND(CA64>$V$287,CA64<=$V$288),_xlfn.XLOOKUP(CF64,$AA$285:$AD$285,$AA$288:$AD$288,"check xlookup for volume 900",0,1),IF(AND(CA64>$V$288,CA64<=$V$289),_xlfn.XLOOKUP(CF64,$AA$285:$AD$285,$AA$289:$AD$289,"check xlookup for volume 1500",0,1),IF(CA64>$V$289,_xlfn.XLOOKUP(CF64,$AA$285:$AD$285,$AA$290:$AD$290,"check xlookup for volume >1500",0,1),"")))))+IF(CN64=$W$293,$AA$293,$AA$294))/4)) -> Enter Major/Minor Street Speeds | VO64: =IF(OR(ISBLANK($P$21),ISBLANK($P$23)),"Enter Major/Minor Street Speeds",IF(CT64=0,,(IF(CT64<5,_xlfn.XLOOKUP(CT64,$W$269:$W$272,$AA$269:$AA$272,"error",0,1),$AA$273)+IF(CY64<=$V$276,$AA$276,IF(AND(CY64>$V$276,CY64<=$V$277),$AA$277,IF(AND(CY64>$V$277,CY64<=$V$278),$AA$278,IF(AND(CY64>$V$278,CY64<=$V$279),$AA$279,$AA$280))))+IF(DD64<=$V$286,_xlfn.XLOOKUP(DI64,AA$285:$AD$285,$AA$286:$AD$286,"check xlookup for volume 150",0,1),IF(AND(DD64>$V$286,DD64<=$V$287),_xlfn.XLOOKUP(DI64,$AA$285:$AD$285,$AA$287:$AD$287,"check xlookup for volume 300",0,1),IF(AND(DD64>$V$287,DD64<=$V$288),_xlfn.XLOOKUP(DI64,$AA$285:$AD$285,$AA$288:$AD$288,"check xlookup for volume 900",0,1),IF(AND(DD64>$V$288,DD64<=$V$289),_xlfn.XLOOKUP(DI64,$AA$285:$AD$285,$AA$289:$AD$289,"check xlookup for volume 1500",0,1),IF(DD64>$V$289,_xlfn.XLOOKUP(DI64,$AA$285:$AD$285,$AA$290:$AD$290,"check xlookup for volume >1500",0,1),"")))))+IF(DQ64=$W$293,$AA$293,$AA$294))/4)) -> Enter Major/Minor Street Speeds | VY64: =IF(OR(ISBLANK($P$21),ISBLANK($P$23)),"Enter Major/Minor Street Speeds",IF(DW64=0,,(IF(DW64<5,_xlfn.XLOOKUP(DW64,$W$269:$W$272,$AA$269:$AA$272,"error",0,1),$AA$273)+IF(EB64<=$V$276,$AA$276,IF(AND(EB64>$V$276,EB64<=$V$277),$AA$277,IF(AND(EB64>$V$277,EB64<=$V$278),$AA$278,IF(AND(EB64>$V$278,EB64<=$V$279),$AA$279,$AA$280))))+IF(EG64<=$V$286,_xlfn.XLOOKUP(EL64,AA$285:$AD$285,$AA$286:$AD$286,"check xlookup for volume 150",0,1),IF(AND(EG64>$V$286,EG64<=$V$287),_xlfn.XLOOKUP(EL64,$AA$285:$AD$285,$AA$287:$AD$287,"check xlookup for volume 300",0,1),IF(AND(EG64>$V$287,EG64<=$V$288),_xlfn.XLOOKUP(EL64,$AA$285:$AD$285,$AA$288:$AD$288,"check xlookup for volume 900",0,1),IF(AND(EG64>$V$288,EG64<=$V$289),_xlfn.XLOOKUP(EL64,$AA$285:$AD$285,$AA$289:$AD$289,"check xlookup for volume 1500",0,1),IF(EG64>$V$289,_xlfn.XLOOKUP(EL64,$AA$285:$AD$285,$AA$290:$AD$290,"check xlookup for volume >1500",0,1),"")))))+IF(ET64=$W$293,$AA$293,$AA$294))/4)) -> Enter Major/Minor Street Speeds | WI64: =IF(OR(ISBLANK($P$21),ISBLANK($P$23)),"Enter Major/Minor Street Speeds",IF(EZ64=0,,(IF(EZ64<5,_xlfn.XLOOKUP(EZ64,$W$269:$W$272,$AA$269:$AA$272,"error",0,1),$AA$273)+IF(FE64<=$V$276,$AA$276,IF(AND(FE64>$V$276,FE64<=$V$277),$AA$277,IF(AND(FE64>$V$277,FE64<=$V$278),$AA$278,IF(AND(FE64>$V$278,FE64<=$V$279),$AA$279,$AA$280))))+IF(FJ64<=$V$286,_xlfn.XLOOKUP(FO64,AA$285:$AD$285,$AA$286:$AD$286,"check xlookup for volume 150",0,1),IF(AND(FJ64>$V$286,FJ64<=$V$287),_xlfn.XLOOKUP(FO64,$AA$285:$AD$285,$AA$287:$AD$287,"check xlookup for volume 300",0,1),IF(AND(FJ64>$V$287,FJ64<=$V$288),_xlfn.XLOOKUP(FO64,$AA$285:$AD$285,$AA$288:$AD$288,"check xlookup for volume 900",0,1),IF(AND(FJ64>$V$288,FJ64<=$V$289),_xlfn.XLOOKUP(FO64,$AA$285:$AD$285,$AA$289:$AD$289,"check xlookup for volume 1500",0,1),IF(FJ64>$V$289,_xlfn.XLOOKUP(FO64,$AA$285:$AD$285,$AA$290:$AD$290,"check xlookup for volume >1500",0,1),"")))))+IF(FW64=$W$293,$AA$293,$AA$294))/4)) -> Enter Major/Minor Street Speeds | WS64: =IF(OR(ISBLANK($P$21),ISBLANK($P$23)),"Enter Major/Minor Street Speeds",IF(GC64=0,,(IF(GC64<5,_xlfn.XLOOKUP(GC64,$W$269:$W$272,$AA$269:$AA$272,"error",0,1),$AA$273)+IF(GH64<=$V$276,$AA$276,IF(AND(GH64>$V$276,GH64<=$V$277),$AA$277,IF(AND(GH64>$V$277,GH64<=$V$278),$AA$278,IF(AND(GH64>$V$278,GH64<=$V$279),$AA$279,$AA$280))))+IF(GM64<=$V$286,_xlfn.XLOOKUP(GR64,AA$285:$AD$285,$AA$286:$AD$286,"check xlookup for volume 150",0,1),IF(AND(GM64>$V$286,GM64<=$V$287),_xlfn.XLOOKUP(GR64,$AA$285:$AD$285,$AA$287:$AD$287,"check xlookup for volume 300",0,1),IF(AND(GM64>$V$287,GM64<=$V$288),_xlfn.XLOOKUP(GR64,$AA$285:$AD$285,$AA$288:$AD$288,"check xlookup for volume 900",0,1),IF(AND(GM64>$V$288,GM64<=$V$289),_xlfn.XLOOKUP(GR64,$AA$285:$AD$285,$AA$289:$AD$289,"check xlookup for volume 1500",0,1),IF(GM64>$V$289,_xlfn.XLOOKUP(GR64,$AA$285:$AD$285,$AA$290:$AD$290,"check xlookup for volume >1500",0,1),"")))))+IF(GZ64=$W$293,$AA$293,$AA$294))/4)) -> Enter Major/Minor Street Speeds | XC64: =IF(OR(ISBLANK($P$21),ISBLANK($P$23)),"Enter Major/Minor Street Speeds",IF(HF64=0,,(IF(HF64<5,_xlfn.XLOOKUP(HF64,$W$269:$W$272,$AA$269:$AA$272,"error",0,1),$AA$273)+IF(HK64<=$V$276,$AA$276,IF(AND(HK64>$V$276,HK64<=$V$277),$AA$277,IF(AND(HK64>$V$277,HK64<=$V$278),$AA$278,IF(AND(HK64>$V$278,HK64<=$V$279),$AA$279,$AA$280))))+IF(HP64<=$V$286,_xlfn.XLOOKUP(HU64,AA$285:$AD$285,$AA$286:$AD$286,"check xlookup for volume 150",0,1),IF(AND(HP64>$V$286,HP64<=$V$287),_xlfn.XLOOKUP(HU64,$AA$285:$AD$285,$AA$287:$AD$287,"check xlookup for volume 300",0,1),IF(AND(HP64>$V$287,HP64<=$V$288),_xlfn.XLOOKUP(HU64,$AA$285:$AD$285,$AA$288:$AD$288,"check xlookup for volume 900",0,1),IF(AND(HP64>$V$288,HP64<=$V$289),_xlfn.XLOOKUP(HU64,$AA$285:$AD$285,$AA$289:$AD$289,"check xlookup for volume 1500",0,1),IF(HP64>$V$289,_xlfn.XLOOKUP(HU64,$AA$285:$AD$285,$AA$290:$AD$290,"check xlookup for volume >1500",0,1),"")))))+IF(IC64=$W$293,$AA$293,$AA$294))/4)) -> Enter Major/Minor Street Speeds | XM64: =IF(OR(ISBLANK($P$21),ISBLANK($P$23)),"Enter Major/Minor Street Speeds",IF(II64=0,,(IF(II64<5,_xlfn.XLOOKUP(II64,$W$269:$W$272,$AA$269:$AA$272,"error",0,1),$AA$273)+IF(IN64<=$V$276,$AA$276,IF(AND(IN64>$V$276,IN64<=$V$277),$AA$277,IF(AND(IN64>$V$277,IN64<=$V$278),$AA$278,IF(AND(IN64>$V$278,IN64<=$V$279),$AA$279,$AA$280))))+IF(IS64<=$V$286,_xlfn.XLOOKUP(IX64,AA$285:$AD$285,$AA$286:$AD$286,"check xlookup for volume 150",0,1),IF(AND(IS64>$V$286,IS64<=$V$287),_xlfn.XLOOKUP(IX64,$AA$285:$AD$285,$AA$287:$AD$287,"check xlookup for volume 300",0,1),IF(AND(IS64>$V$287,IS64<=$V$288),_xlfn.XLOOKUP(IX64,$AA$285:$AD$285,$AA$288:$AD$288,"check xlookup for volume 900",0,1),IF(AND(IS64>$V$288,IS64<=$V$289),_xlfn.XLOOKUP(IX64,$AA$285:$AD$285,$AA$289:$AD$289,"check xlookup for volume 1500",0,1),IF(IS64>$V$289,_xlfn.XLOOKUP(IX64,$AA$285:$AD$285,$AA$290:$AD$290,"check xlookup for volume >1500",0,1),"")))))+IF(JF64=$W$293,$AA$293,$AA$294))/4)) -> Enter Major/Minor Street Speeds | XW64: =IF(OR(ISBLANK($P$21),ISBLANK($P$23)),"Enter Major/Minor Street Speeds",IF(JL64=0,,(IF(JL64<5,_xlfn.XLOOKUP(JL64,$W$269:$W$272,$AA$269:$AA$272,"error",0,1),$AA$273)+IF(JQ64<=$V$276,$AA$276,IF(AND(JQ64>$V$276,JQ64<=$V$277),$AA$277,IF(AND(JQ64>$V$277,JQ64<=$V$278),$AA$278,IF(AND(JQ64>$V$278,JQ64<=$V$279),$AA$279,$AA$280))))+IF(JV64<=$V$286,_xlfn.XLOOKUP(KA64,AA$285:$AD$285,$AA$286:$AD$286,"check xlookup for volume 150",0,1),IF(AND(JV64>$V$286,JV64<=$V$287),_xlfn.XLOOKUP(KA64,$AA$285:$AD$285,$AA$287:$AD$287,"check xlookup for volume 300",0,1),IF(AND(JV64>$V$287,JV64<=$V$288),_xlfn.XLOOKUP(KA64,$AA$285:$AD$285,$AA$288:$AD$288,"check xlookup for volume 900",0,1),IF(AND(JV64>$V$288,JV64<=$V$289),_xlfn.XLOOKUP(KA64,$AA$285:$AD$285,$AA$289:$AD$289,"check xlookup for volume 1500",0,1),IF(JV64>$V$289,_xlfn.XLOOKUP(KA64,$AA$285:$AD$285,$AA$290:$AD$290,"check xlookup for volume >1500",0,1),"")))))+IF(KI64=$W$293,$AA$293,$AA$294))/4)) -> Enter Major/Minor Street Speeds | YG64: =IF(OR(ISBLANK($P$21),ISBLANK($P$23)),"Enter Major/Minor Street Speeds",IF(KO64=0,,(IF(KO64<5,_xlfn.XLOOKUP(KO64,$W$269:$W$272,$AA$269:$AA$272,"error",0,1),$AA$273)+IF(KT64<=$V$276,$AA$276,IF(AND(KT64>$V$276,KT64<=$V$277),$AA$277,IF(AND(KT64>$V$277,KT64<=$V$278),$AA$278,IF(AND(KT64>$V$278,KT64<=$V$279),$AA$279,$AA$280))))+IF(KY64<=$V$286,_xlfn.XLOOKUP(LD64,AA$285:$AD$285,$AA$286:$AD$286,"check xlookup for volume 150",0,1),IF(AND(KY64>$V$286,KY64<=$V$287),_xlfn.XLOOKUP(LD64,$AA$285:$AD$285,$AA$287:$AD$287,"check xlookup for volume 300",0,1),IF(AND(KY64>$V$287,KY64<=$V$288),_xlfn.XLOOKUP(LD64,$AA$285:$AD$285,$AA$288:$AD$288,"check xlookup for volume 900",0,1),IF(AND(KY64>$V$288,KY64<=$V$289),_xlfn.XLOOKUP(LD64,$AA$285:$AD$285,$AA$289:$AD$289,"check xlookup for volume 1500",0,1),IF(KY64>$V$289,_xlfn.XLOOKUP(LD64,$AA$285:$AD$285,$AA$290:$AD$290,"check xlookup for volume >1500",0,1),"")))))+IF(LL64=$W$293,$AA$293,$AA$294))/4)) -> Enter Major/Minor Street Speeds | YQ64: =IF(OR(ISBLANK($P$21),ISBLANK($P$23)),"Enter Major/Minor Street Speeds",IF(LR64=0,,(IF(LR64<5,_xlfn.XLOOKUP(LR64,$W$269:$W$272,$AA$269:$AA$272,"error",0,1),$AA$273)+IF(LW64<=$V$276,$AA$276,IF(AND(LW64>$V$276,LW64<=$V$277),$AA$277,IF(AND(LW64>$V$277,LW64<=$V$278),$AA$278,IF(AND(LW64>$V$278,LW64<=$V$279),$AA$279,$AA$280))))+IF(MB64<=$V$286,_xlfn.XLOOKUP(MG64,AA$285:$AD$285,$AA$286:$AD$286,"check xlookup for volume 150",0,1),IF(AND(MB64>$V$286,MB64<=$V$287),_xlfn.XLOOKUP(MG64,$AA$285:$AD$285,$AA$287:$AD$287,"check xlookup for volume 300",0,1),IF(AND(MB64>$V$287,MB64<=$V$288),_xlfn.XLOOKUP(MG64,$AA$285:$AD$285,$AA$288:$AD$288,"check xlookup for volume 900",0,1),IF(AND(MB64>$V$288,MB64<=$V$289),_xlfn.XLOOKUP(MG64,$AA$285:$AD$285,$AA$289:$AD$289,"check xlookup for volume 1500",0,1),IF(MB64>$V$289,_xlfn.XLOOKUP(MG64,$AA$285:$AD$285,$AA$290:$AD$290,"check xlookup for volume >1500",0,1),"")))))+IF(MO64=$W$293,$AA$293,$AA$294))/4)) -> Enter Major/Minor Street Speeds | ZA64: =IF(OR(ISBLANK($P$21),ISBLANK($P$23)),"Enter Major/Minor Street Speeds",IF(MU64=0,,(IF(MU64<5,_xlfn.XLOOKUP(MU64,$W$269:$W$272,$AA$269:$AA$272,"error",0,1),$AA$273)+IF(MZ64<=$V$276,$AA$276,IF(AND(MZ64>$V$276,MZ64<=$V$277),$AA$277,IF(AND(MZ64>$V$277,MZ64<=$V$278),$AA$278,IF(AND(MZ64>$V$278,MZ64<=$V$279),$AA$279,$AA$280))))+IF(NE64<=$V$286,_xlfn.XLOOKUP(NJ64,AA$285:$AD$285,$AA$286:$AD$286,"check xlookup for volume 150",0,1),IF(AND(NE64>$V$286,NE64<=$V$287),_xlfn.XLOOKUP(NJ64,$AA$285:$AD$285,$AA$287:$AD$287,"check xlookup for volume 300",0,1),IF(AND(NE64>$V$287,NE64<=$V$288),_xlfn.XLOOKUP(NJ64,$AA$285:$AD$285,$AA$288:$AD$288,"check xlookup for volume 900",0,1),IF(AND(NE64>$V$288,NE64<=$V$289),_xlfn.XLOOKUP(NJ64,$AA$285:$AD$285,$AA$289:$AD$289,"check xlookup for volume 1500",0,1),IF(NE64>$V$289,_xlfn.XLOOKUP(NJ64,$AA$285:$AD$285,$AA$290:$AD$290,"check xlookup for volume >1500",0,1),"")))))+IF(NR64=$W$293,$AA$293,$AA$294))/4)) -> Enter Major/Minor Street Speeds | ZK64: =IF(OR(ISBLANK($P$21),ISBLANK($P$23)),"Enter Major/Minor Street Speeds",IF(NX64=0,,(IF(NX64<5,_xlfn.XLOOKUP(NX64,$W$269:$W$272,$AA$269:$AA$272,"error",0,1),$AA$273)+IF(OC64<=$V$276,$AA$276,IF(AND(OC64>$V$276,OC64<=$V$277),$AA$277,IF(AND(OC64>$V$277,OC64<=$V$278),$AA$278,IF(AND(OC64>$V$278,OC64<=$V$279),$AA$279,$AA$280))))+IF(OH64<=$V$286,_xlfn.XLOOKUP(OM64,AA$285:$AD$285,$AA$286:$AD$286,"check xlookup for volume 150",0,1),IF(AND(OH64>$V$286,OH64<=$V$287),_xlfn.XLOOKUP(OM64,$AA$285:$AD$285,$AA$287:$AD$287,"check xlookup for volume 300",0,1),IF(AND(OH64>$V$287,OH64<=$V$288),_xlfn.XLOOKUP(OM64,$AA$285:$AD$285,$AA$288:$AD$288,"check xlookup for volume 900",0,1),IF(AND(OH64>$V$288,OH64<=$V$289),_xlfn.XLOOKUP(OM64,$AA$285:$AD$285,$AA$289:$AD$289,"check xlookup for volume 1500",0,1),IF(OH64>$V$289,_xlfn.XLOOKUP(OM64,$AA$285:$AD$285,$AA$290:$AD$290,"check xlookup for volume >1500",0,1),"")))))+IF(OU64=$W$293,$AA$293,$AA$294))/4)) -> Enter Major/Minor Street Speeds | ZU64: =IF(OR(ISBLANK($P$21),ISBLANK($P$23)),"Enter Major/Minor Street Speeds",IF(PA64=0,,(IF(PA64<5,_xlfn.XLOOKUP(PA64,$W$269:$W$272,$AA$269:$AA$272,"error",0,1),$AA$273)+IF(PF64<=$V$276,$AA$276,IF(AND(PF64>$V$276,PF64<=$V$277),$AA$277,IF(AND(PF64>$V$277,PF64<=$V$278),$AA$278,IF(AND(PF64>$V$278,PF64<=$V$279),$AA$279,$AA$280))))+IF(PK64<=$V$286,_xlfn.XLOOKUP(PP64,AA$285:$AD$285,$AA$286:$AD$286,"check xlookup for volume 150",0,1),IF(AND(PK64>$V$286,PK64<=$V$287),_xlfn.XLOOKUP(PP64,$AA$285:$AD$285,$AA$287:$AD$287,"check xlookup for volume 300",0,1),IF(AND(PK64>$V$287,PK64<=$V$288),_xlfn.XLOOKUP(PP64,$AA$285:$AD$285,$AA$288:$AD$288,"check xlookup for volume 900",0,1),IF(AND(PK64>$V$288,PK64<=$V$289),_xlfn.XLOOKUP(PP64,$AA$285:$AD$285,$AA$289:$AD$289,"check xlookup for volume 1500",0,1),IF(PK64>$V$289,_xlfn.XLOOKUP(PP64,$AA$285:$AD$285,$AA$290:$AD$290,"check xlookup for volume >1500",0,1),"")))))+IF(PX64=$W$293,$AA$293,$AA$294))/4)) -> Enter Major/Minor Street Speeds | AAE64: =IF(OR(ISBLANK($P$21),ISBLANK($P$23)),"Enter Major/Minor Street Speeds",IF(QD64=0,,(IF(QD64<5,_xlfn.XLOOKUP(QD64,$W$269:$W$272,$AA$269:$AA$272,"error",0,1),$AA$273)+IF(QI64<=$V$276,$AA$276,IF(AND(QI64>$V$276,QI64<=$V$277),$AA$277,IF(AND(QI64>$V$277,QI64<=$V$278),$AA$278,IF(AND(QI64>$V$278,QI64<=$V$279),$AA$279,$AA$280))))+IF(QN64<=$V$286,_xlfn.XLOOKUP(QS64,AA$285:$AD$285,$AA$286:$AD$286,"check xlookup for volume 150",0,1),IF(AND(QN64>$V$286,QN64<=$V$287),_xlfn.XLOOKUP(QS64,$AA$285:$AD$285,$AA$287:$AD$287,"check xlookup for volume 300",0,1),IF(AND(QN64>$V$287,QN64<=$V$288),_xlfn.XLOOKUP(QS64,$AA$285:$AD$285,$AA$288:$AD$288,"check xlookup for volume 900",0,1),IF(AND(QN64>$V$288,QN64<=$V$289),_xlfn.XLOOKUP(QS64,$AA$285:$AD$285,$AA$289:$AD$289,"check xlookup for volume 1500",0,1),IF(QN64>$V$289,_xlfn.XLOOKUP(QS64,$AA$285:$AD$285,$AA$290:$AD$290,"check xlookup for volume >1500",0,1),"")))))+IF(RA64=$W$293,$AA$293,$AA$294))/4)) -> Enter Major/Minor Street Speeds | AAO64: =IF(OR(ISBLANK($P$21),ISBLANK($P$23)),"Enter Major/Minor Street Speeds",IF(RG64=0,,(IF(RG64<5,_xlfn.XLOOKUP(RG64,$W$269:$W$272,$AA$269:$AA$272,"error",0,1),$AA$273)+IF(RL64<=$V$276,$AA$276,IF(AND(RL64>$V$276,RL64<=$V$277),$AA$277,IF(AND(RL64>$V$277,RL64<=$V$278),$AA$278,IF(AND(RL64>$V$278,RL64<=$V$279),$AA$279,$AA$280))))+IF(RQ64<=$V$286,_xlfn.XLOOKUP(RV64,AA$285:$AD$285,$AA$286:$AD$286,"check xlookup for volume 150",0,1),IF(AND(RQ64>$V$286,RQ64<=$V$287),_xlfn.XLOOKUP(RV64,$AA$285:$AD$285,$AA$287:$AD$287,"check xlookup for volume 300",0,1),IF(AND(RQ64>$V$287,RQ64<=$V$288),_xlfn.XLOOKUP(RV64,$AA$285:$AD$285,$AA$288:$AD$288,"check xlookup for volume 900",0,1),IF(AND(RQ64>$V$288,RQ64<=$V$289),_xlfn.XLOOKUP(RV64,$AA$285:$AD$285,$AA$289:$AD$289,"check xlookup for volume 1500",0,1),IF(RQ64>$V$289,_xlfn.XLOOKUP(RV64,$AA$285:$AD$285,$AA$290:$AD$290,"check xlookup for volume >1500",0,1),"")))))+IF(SD64=$W$293,$AA$293,$AA$294))/4)) -> Enter Major/Minor Street Speeds | AAY64: =IF(OR(ISBLANK($P$21),ISBLANK($P$23)),"Enter Major/Minor Street Speeds",IF(SJ64=0,,(IF(SJ64<5,_xlfn.XLOOKUP(SJ64,$W$269:$W$272,$AA$269:$AA$272,"error",0,1),$AA$273)+IF(SO64<=$V$276,$AA$276,IF(AND(SO64>$V$276,SO64<=$V$277),$AA$277,IF(AND(SO64>$V$277,SO64<=$V$278),$AA$278,IF(AND(SO64>$V$278,SO64<=$V$279),$AA$279,$AA$280))))+IF(ST64<=$V$286,_xlfn.XLOOKUP(SY64,AA$285:$AD$285,$AA$286:$AD$286,"check xlookup for volume 150",0,1),IF(AND(ST64>$V$286,ST64<=$V$287),_xlfn.XLOOKUP(SY64,$AA$285:$AD$285,$AA$287:$AD$287,"check xlookup for volume 300",0,1),IF(AND(ST64>$V$287,ST64<=$V$288),_xlfn.XLOOKUP(SY64,$AA$285:$AD$285,$AA$288:$AD$288,"check xlookup for volume 900",0,1),IF(AND(ST64>$V$288,ST64<=$V$289),_xlfn.XLOOKUP(SY64,$AA$285:$AD$285,$AA$289:$AD$289,"check xlookup for volume 1500",0,1),IF(ST64>$V$289,_xlfn.XLOOKUP(SY64,$AA$285:$AD$285,$AA$290:$AD$290,"check xlookup for volume >1500",0,1),"")))))+IF(TG64=$W$293,$AA$293,$AA$294))/4)) -> Enter Major/Minor Street Speeds | ABI64: =IF(OR(ISBLANK($P$21),ISBLANK($P$23)),"Enter Major/Minor Street Speeds",IF(TM64=0,,(IF(TM64<5,_xlfn.XLOOKUP(TM64,$W$269:$W$272,$AA$269:$AA$272,"error",0,1),$AA$273)+IF(TR64<=$V$276,$AA$276,IF(AND(TR64>$V$276,TR64<=$V$277),$AA$277,IF(AND(TR64>$V$277,TR64<=$V$278),$AA$278,IF(AND(TR64>$V$278,TR64<=$V$279),$AA$279,$AA$280))))+IF(TW64<=$V$286,_xlfn.XLOOKUP(UB64,AA$285:$AD$285,$AA$286:$AD$286,"check xlookup for volume 150",0,1),IF(AND(TW64>$V$286,TW64<=$V$287),_xlfn.XLOOKUP(UB64,$AA$285:$AD$285,$AA$287:$AD$287,"check xlookup for volume 300",0,1),IF(AND(TW64>$V$287,TW64<=$V$288),_xlfn.XLOOKUP(UB64,$AA$285:$AD$285,$AA$288:$AD$288,"check xlookup for volume 900",0,1),IF(AND(TW64>$V$288,TW64<=$V$289),_xlfn.XLOOKUP(UB64,$AA$285:$AD$285,$AA$289:$AD$289,"check xlookup for volume 1500",0,1),IF(TW64>$V$289,_xlfn.XLOOKUP(UB64,$AA$285:$AD$285,$AA$290:$AD$290,"check xlookup for volume >1500",0,1),"")))))+IF(UJ64=$W$293,$AA$293,$AA$294))/4)) -> Enter Major/Minor Street Speeds
